Workbook

Sheet Disclaimer

Sheet INPUTS>>

Sheet Currency
A1: Currency Scenario Manager
A2: =Name_Model -> AssetCo Model
C4: Currency switching instructions | E4: 1. Choose desired Case using the drop down in cell F18. Case 1 = USD; Case 2 = LCY
E5: 2. Resize the debt using the macro in the 'Inputs' tab at cell I302
E6: 3. Make sure the DSRA is correctly funded by using the macro in the 'Inputs' tab at cell L302
E7: 4. Redo steps 2 and 3 until the checks in the 'Inputs"'tab in cells N292 and N300 are both 'Ok'
C9: Scenario assumptions
C11: Effective date | D11: Year | F11: 2023
C14: Exchange rate | D14: LCY/USD | F14: =LOOKUP($F$11,Inputs!$I$401:$AM$402) -> 100
C16: Base exchange rate | D16: LCY/USD | F16: 100
C18: Selected scenario | D18: Selection | F18: 1 | G18: =INDEX($H$23:$I$23,$F$18) -> USD
C20: VAT expense | G20: =Inputs!E$222 -> 0
C22: Scenario numbers | E22: Base currency | F22: Applied | G22: VAT | H22: 1 | I22: 2 | K22: Contracted
D23: Selection | H23: USD | I23: LCY | K23: USD | L23: LCY
C25: FX Scenario Inputs
D26: Dashboard tab
D27: Senior debt
D28: MMRA starting balance | E28: USD | F28: =INDEX(H28:I28,$F$18)*(1+G28) -> 750000 | H28: 750000 | I28: =H28*Exchange_rate -> 75000000
D29: All-in cost of debt | E29: USD | F29: 0.07 | H29: 0.07 | I29: 0.15
D31: Portfolio tab
D32: Capex
D33: Capex (net of grant) | E33: USD | F33: =INDEX(H33:I33,$F$18)*(1+G33) -> 900 | G33: =$G$20 * IF(Inputs!$E$224 = "Recoverable", 0, 1) -> 0 | H33: 900 | I33: =H33*Exchange_rate -> 90000
D34: Grant | E34: USD | F34: 255 | H34: 255 | I34: =H34*Exchange_rate -> 25500
D35: Lithium Ion Battery cost | E35: USD | F35: 400 | G35: =$G$20 * IF(Inputs!$E$224 = "Recoverable", 0, 1) -> 0 | H35: 400 | I35: =H35*Exchange_rate -> 40000
D36: Transfer fee cost | E36: USD | F36: 0 | G36: =$G$20 * IF(Inputs!$E$224 = "Recoverable", 0, 1) -> 0 | H36: 0 | I36: =H36*Exchange_rate -> 0
D38: Opex
D39: Fixed Opex fee per grid | E39: LCY | F39: =INDEX(H39:I39,$F$18)*(1+G39) -> 4000 | G39: =$G$20 * IF(Inputs!$E$225 = "Recoverable", 0, 1) -> 0 | H39: =I39/Exchange_rate -> 4000 | I39: =L39 -> 400000 | K39: 4000 | L39: =K39*$F$16 -> 400000
D40: Diesel price per litre | E40: USD | F40: 1 | H40: 1 | I40: =H40*Exchange_rate -> 100
D42: Inputs tab
D43: Replacement capex
D44: PV pricing | E44: USD | F44: =INDEX(H44:I44,$F$18)*(1+G44) -> 0.35 | G44: =$G$20 * IF(Inputs!$E$224 = "Recoverable", 0, 1) -> 0 | H44: 0.35 | I44: =H44*Exchange_rate -> 35
D45: Racking and container costs of battery | E45: USD | F45: 50 | G45: =$G$20 * IF(Inputs!$E$224 = "Recoverable", 0, 1) -> 0 | H45: 50 | I45: =H45*Exchange_rate -> 5000
D46: Lithium ion battery installation costs | E46: LCY | F46: 20 | G46: =$G$20 * IF(Inputs!$E$224 = "Recoverable", 0, 1) -> 0 | H46: =I46/Exchange_rate -> 20 | I46: =L46 -> 2000 | K46: 20 | L46: =K46*$F$16 -> 2000
D47: Battery unit replacement cost in 2023 | F47: 152 | G47: =$G$20 * IF(Inputs!$E$224 = "Recoverable", 0, 1) -> 0 | H47: 152 | I47: =H47*Exchange_rate -> 15200
D48: Inverter price per inverter W - 2020 | E48: USD | F48: 0.15 | G48: =$G$20 * IF(Inputs!$E$224 = "Recoverable", 0, 1) -> 0 | H48: 0.15 | I48: =H48*Exchange_rate -> 15
D49: Mini-grid expansion racking | E49: USD | F49: 2500 | G49: =$G$20 * IF(Inputs!$E$224 = "Recoverable", 0, 1) -> 0 | H49: 2500 | I49: =H49*Exchange_rate -> 250000
D50: Mini-grid expansion logistics, labour, other | E50: LCY | F50: 1000 | G50: =$G$20 * IF(Inputs!$E$224 = "Recoverable", 0, 1) -> 0 | H50: =I50/Exchange_rate -> 1000 | I50: =L50 -> 100000 | K50: 1000 | L50: =K50*$F$16 -> 100000
D51: BNEF battery cost forecast - 2030 | E51: USD | F51: 58 | G51: =$G$20 * IF(Inputs!$E$224 = "Recoverable", 0, 1) -> 0 | H51: 58 | I51: =H51*Exchange_rate -> 5800
D52: Inverter cost forecast - 2030 | E52: USD | F52: 0.08981054089 | G52: =$G$20 * IF(Inputs!$E$224 = "Recoverable", 0, 1) -> 0 | H52: 0.08981054089 | I52: =H52*Exchange_rate -> 8.981054089
D54: Opex
D55: Monthly Fixed Opex fee per customer | E55: LCY | F55: =INDEX(H55:I55,$F$18)*(1+G55) -> 2 | G55: =$G$20 * IF(Inputs!$E$225 = "Recoverable", 0, 1) -> 0 | H55: =I55/Exchange_rate -> 2 | I55: =L55 -> 200 | K55: 2 | L55: =K55*$F$16 -> 200
D56: Administrative, accounting, and professional costs | E56: USD | F56: 15000 | G56: =$G$20 * IF(Inputs!$E$225 = "Recoverable", 0, 1) -> 0 | H56: 15000 | I56: =H56*Exchange_rate -> 1500000
D58: Revenue
D59: Tariff | E59: LCY | F59: =INDEX(H59:I59,$F$18)*(1+G59) -> 0.55 | H59: =I59/Exchange_rate -> 0.55 | I59: =L59 -> 55 | K59: 0.55 | L59: =K59*$F$16 -> 55
D60: Grid arrival tariff | E60: LCY | F60: 0.23 | H60: =I60/Exchange_rate -> 0.23 | I60: =L60 -> 23 | K60: 0.23 | L60: =K60*$F$16 -> 23
D62: Other inputs
D63: AMT threshold (Alternative Minimum Tax) | E63: LCY | F63: =INDEX(H63:I63,$F$18)*(1+G63) -> 0 | H63: =I63/Exchange_rate -> 0 | I63: =L63 -> 0 | K63: 0 | L63: =K63*$F$16 -> 0
D64: Senior debt sizing - rounding | E64: USD | F64: 5 | H64: 5 | I64: 7
D66: Model tab
D67: Equity Injection not Required Check - Cap (1% of capex net of grant) | E67: USD | F67: =INDEX(H67:I67,$F$18)*(1+G67) -> 103500 | H67: =1% * $H$33 * Portfolio!$S$14 * Portfolio!$S$13 -> 103500 | I67: =H67*Exchange_rate -> 10350000

Sheet Portfolio
A1: Portfolio
A2: =Name_Model -> AssetCo Model
C4: Portfolio
E6: Inputs | L6: Active
E8: Batch 1 | F8: Batch 2 | G8: Batch 3 | H8: Spare 1 | I8: Spare 2 | J8: Spare 3 | L8: =E8 -> Batch 1 | M8: =F8 -> Batch 2 | N8: =G8 -> Batch 3 | O8: =H8 -> Spare 1 | P8: Spare 2 | Q8: Spare 3 | S8: Blended
C9: Included? | E9: 1 | F9: 1 | G9: 1 | H9: 0 | I9: 0 | J9: 0 | L9: =E9 -> 1 | M9: 1 | N9: 1 | O9: 0 | P9: 0 | Q9: 0
C10: Country | E10: Country 1 | F10: Country 1 | G10: Country 1 | H10: Country 1 | I10: Country 1 | J10: Country 1 | L10: Country 1 | M10: Country 1 | N10: Country 1 | O10: Country 1 | P10: Country 1 | Q10: Country 1
C12: Grid and Portfolio Sizing
C13: Number of grids | D13: Num# | E13: 10 | F13: 10 | G13: 10 | H13: 0 | I13: 0 | J13: 0 | L13: =E13*L$9 -> 10 | M13: 10 | N13: 10 | O13: =H13*O$9 -> 0 | P13: 0 | Q13: 0 | S13: =SUM(L13:Q13) -> 30
C14: Number of connections per grid | D14: Num# | E14: 300 | F14: 400 | G14: 450 | H14: 0 | I14: 0 | J14: 0 | L14: 300 | M14: 400 | N14: 450 | O14: 0 | P14: 0 | Q14: 0 | S14: =SUMPRODUCT(L14:Q14,$L$13:$Q$13)/SUM($L$13:$Q$13) -> 383.3333333
C15: Total connections | D15: #num | E15: =E13*E14 -> 3000 | F15: 4000 | G15: 4500 | H15: 0 | I15: 0 | J15: 0 | L15: 3000 | M15: 4000 | N15: 4500 | O15: 0 | P15: 0 | Q15: 0 | S15: =SUM(L15:Q15) -> 11500
C16: Generating capacity per grid | D16: kWp/grid | E16: 60 | F16: 75 | G16: 90 | H16: 0 | I16: 0 | J16: 0 | L16: 60 | M16: 75 | N16: 90 | O16: 0 | P16: 0 | Q16: 0 | S16: =SUMPRODUCT(L16:Q16,$L$13:$Q$13)/SUM($L$13:$Q$13) -> 75
C18: Number of people per connection | D18: people per connection | E18: 5 | F18: 5 | G18: 5 | H18: 5 | I18: 5 | J18: 5 | L18: =E18*L$9 -> 5 | M18: 5 | N18: 5 | O18: =H18*O$9 -> 0 | P18: 0 | Q18: 0 | S18: =SUMPRODUCT(L18:Q18,$L$15:$Q$15)/SUM($L$15:$Q$15) -> 5
C19: Number of people served | D19: Num# | E19: =E13*E14*E18 -> 15000 | F19: 20000 | G19: 22500 | H19: 0 | I19: 0 | J19: 0 | L19: 15000 | M19: 20000 | N19: 22500 | O19: 0 | P19: 0 | Q19: 0 | S19: =SUM(L19:Q19) -> 57500
C21: Consumption
C22: Baseline average consumption | D22: kWh/month | E22: 10 | F22: 10 | G22: 10 | H22: 0 | I22: 0 | J22: 0 | L22: =E22*L$9 -> 10 | M22: 10 | N22: 10 | O22: =H22*O$9 -> 0 | P22: 0 | Q22: 0 | S22: =SUMPRODUCT(L22:Q22,$L$15:$Q$15)/SUM($L$15:$Q$15) -> 10
C23: 5 year peak under plateau case | D23: kWh/month | E23: 20 | F23: 20 | G23: 20 | H23: 0 | I23: 0 | J23: 0 | L23: 20 | M23: 20 | N23: 20 | O23: 0 | P23: 0 | Q23: 0 | S23: =SUMPRODUCT(L23:Q23,$L$15:$Q$15)/SUM($L$15:$Q$15) -> 20
C25: Tariff
C26: Average tariff on baseline consumption | D26: $/kWh | E26: =Currency!$F$59 -> 0.55 | F26: =$E26 -> 0.55 | G26: =$E26 -> 0.55 | H26: =$E26 -> 0.55 | I26: =$E26 -> 0.55 | J26: =$E26 -> 0.55 | L26: =E26*L$9 -> 0.55 | M26: 0.55 | N26: 0.55 | O26: 0 | P26: 0 | Q26: 0 | S26: =SUMPRODUCT(L26:Q26,$L$15:$Q$15)/SUM($L$15:$Q$15) -> 0.55
C28: AssetCo Purchase Terms
C29: Capex (net of grant) | D29: $/connection | E29: =Currency!$F$33 -> 900 | F29: =$E$29 -> 900 | G29: =$E$29 -> 900 | H29: 900 | I29: 900 | J29: 900 | L29: =E29*L$9 -> 900 | M29: 900 | N29: 900 | O29: 0 | P29: 0 | Q29: 0 | S29: =SUMPRODUCT(L29:Q29,$L$15:$Q$15)/SUM($L$15:$Q$15) -> 900
C30: Transfer fee cost | D30: $/connection | E30: =Currency!$F$36 -> 0 | F30: =E30 -> 0 | G30: =F30 -> 0 | H30: =G30 -> 0 | I30: =H30 -> 0 | J30: =I30 -> 0 | L30: =E30*L$9 -> 0 | M30: 0 | N30: 0 | O30: 0 | P30: 0 | Q30: 0 | S30: =SUMPRODUCT(L30:Q30,$L$15:$Q$15)/SUM($L$15:$Q$15) -> 0
C31: Total purchase price | D31: $/connection | E31: =SUM(E29:E30) -> 900 | F31: =SUM(F29:F30) -> 900 | G31: 900 | H31: 900 | I31: 900 | J31: 900 | L31: 900 | M31: 900 | N31: 900 | O31: 0 | P31: 0 | Q31: 0 | S31: =SUMPRODUCT(L31:Q31,$L$15:$Q$15)/SUM($L$15:$Q$15) -> 900
C32: Total purchase price | D32: $ | E32: =E15*E29 -> 2700000 | F32: 3600000 | G32: 4050000 | H32: 0 | I32: 0 | J32: 0 | L32: 2700000 | M32: 3600000 | N32: 4050000 | O32: 0 | P32: 0 | Q32: 0 | S32: =SUM(L32:Q32) -> 10350000
C34: Grant | D34: $/connection | E34: =Currency!F34 -> 255 | F34: =$E$34 -> 255 | G34: =$E$34 -> 255 | H34: =$E$34 -> 255 | I34: =$E$34 -> 255 | J34: =$E$34 -> 255 | L34: =E34*L$9 -> 255 | M34: 255 | N34: 255 | O34: 0 | P34: 0 | Q34: 0 | S34: =SUMPRODUCT(L34:Q34,$L$15:$Q$15)/SUM($L$15:$Q$15) -> 255
C35: Total Capex | D35: $/connection | E35: =E31+E34 -> 1155 | F35: 1155 | G35: 1155 | H35: 1155 | I35: 1155 | J35: 1155 | L35: 1155 | M35: 1155 | N35: 1155 | O35: 0 | P35: 0 | Q35: 0 | S35: =SUMPRODUCT(L35:Q35,$L$15:$Q$15)/SUM($L$15:$Q$15) -> 1155
C37: Capacity per connection | D37: W/connection | E37: =IF(E9=1,E16/E14*Thousand,0) -> 200 | F37: 187.5 | G37: 200 | H37: 0 | I37: 0 | J37: 0 | L37: =E37*L$9 -> 200 | M37: 187.5 | N37: 200 | O37: =H37*O$9 -> 0 | P37: 0 | Q37: 0 | S37: =SUMPRODUCT(L37:Q37,$L$15:$Q$15)/SUM($L$15:$Q$15) -> 195.6521739
C39: Ongoing Capex
C40: Expansion module size | D40: kW | E40: 30 | F40: 40 | G40: 45 | H40: 0 | I40: 0 | J40: 0 | L40: =E40*L$9 -> 30 | M40: 40 | N40: 45 | O40: =H40*O$9 -> 0 | P40: 0 | Q40: 0 | S40: =SUMPRODUCT(L40:Q40,$L$15:$Q$15)/SUM($L$15:$Q$15) -> 39.34782609
C41: Battery cost | D41: $/kWh | E41: =Currency!$F$35 -> 400 | F41: =$E$41 -> 400 | G41: =$E$41 -> 400 | H41: 400 | I41: 400 | J41: 400 | L41: 400 | M41: 400 | N41: 400 | O41: 0 | P41: 0 | Q41: 0 | S41: =SUMPRODUCT(L41:Q41,$L$15:$Q$15)/SUM($L$15:$Q$15) -> 400
C43: OpCo fee
C44: Fixed Opex fee per grid | D44: $/grid/yr | E44: =Currency!$F$39 -> 4000 | F44: =$E44 -> 4000 | G44: 4000 | H44: 4000 | I44: 4000 | J44: 4000 | L44: =E44*L$9 -> 4000 | M44: 4000 | N44: 4000 | O44: =H44*O$9 -> 0 | P44: 0 | Q44: 0 | S44: =SUMPRODUCT(L44:Q44,$L$13:$Q$13)/SUM($L$13:$Q$13) -> 4000
C45: Fixed Opex fee per customer | D45: $/connection/month | E45: =Currency!$F$55 -> 2 | F45: 2 | G45: 2 | H45: 2 | I45: 2 | J45: 2 | L45: 2 | M45: 2 | N45: 2 | O45: 0 | P45: 0 | Q45: 0 | S45: =SUMPRODUCT(L45:Q45,$L$15:$Q$15)/SUM($L$15:$Q$15) -> 2
C46: Opex fee ratchet (% of revenue above P50 forecast) | D46: % | E46: =Inputs!$E$174 -> 0.3 | F46: 0.3 | G46: 0.3 | H46: 0.3 | I46: 0.3 | J46: 0.3 | L46: 0.3 | M46: 0.3 | N46: 0.3 | O46: 0 | P46: 0 | Q46: 0 | S46: =SUMPRODUCT(L46:Q46,$L$15:$Q$15)/SUM($L$15:$Q$15) -> 0.3
C47: Diesel | D47: $/litre | E47: =Currency!$F$40 -> 1 | F47: =$E47 -> 1 | G47: =$E47 -> 1 | H47: =$E47 -> 1 | I47: =$E47 -> 1 | J47: =$E47 -> 1 | L47: 1 | M47: 1 | N47: 1 | O47: 0 | P47: 0 | Q47: 0 | S47: =SUMPRODUCT(L47:Q47,$L$15:$Q$15)/SUM($L$15:$Q$15) -> 1

Sheet Inputs
A1: Inputs
A2: =Name_Model -> AssetCo Model
C4: Timing
C5: Start
C6: Model Start Date | D6: Date | E6: 2022-12-31
C8: Construction
C9: Start | D9: Date | E9: 2023-01-01
C10: Duration | D10: Yr(s) | E10: =COUNTIF($I$136:$N$136,">0") -> 1
C11: End | D11: Date | E11: =EOMONTH(E9,E10*Months_Yr-1) -> 2023-12-31
C13: Project-level
C14: Duration | D14: Yr(s) | E14: 1
C16: Operations
C17: Start | D17: Date | E17: =EOMONTH(Con_Start,E14*(Months_Yr-1))+1 -> 2024-01-01
C18: Lifetime of grid | D18: Yr(s) | E18: 20
C19: End | D19: Date | E19: =EOMONTH(E11,E18*Months_Yr) -> 2043-12-31
C21: Mini-Grid Portfolio Sizing
C23: Portfolio
C24: Number of grids | D24: Num# | E24: =Portfolio!$S$13 -> 30
C25: Total connections | D25: Num# | E25: =E24*E30 -> 11500
C26: Number of people per connection | D26: people per connection | E26: =Portfolio!$S$18 -> 5
C27: Number of people served | D27: Num# | E27: =E26*E25 -> 57500
C29: Mini-Grids
C30: Number of connections | D30: Num#/grid | E30: =Portfolio!S14 -> 383.3333333
C31: =Dashboard!I9 -> Total Capex | D31: =Dashboard!J9 -> $/connection | E31: =Portfolio!$S$35 -> 1155
C32: Price per W | D32: $/W | E32: =E33/E38/Thousand -> 5.903333333
C33: Grid purchase price | D33: $ | E33: =E30*E31 -> 442750
C37: PV Capacity
C38: Generating capacity | D38: kWp | E38: =Dashboard!$E$9 -> 75
C39: Generation output - annual per kWp | D39: kWh/kWp/year | E39: 1600
C40: Generation output - daily per kWp | D40: kWh/kWp/day | E40: =E39/Days_Yr -> 4.383561644
C41: Daily output | D41: kWh/day | E41: =E38*E39/Days_Yr -> 328.7671233
C42: Monthly output | D42: kWh/month | E42: =E43/Months_Yr -> 10000
C43: Annual output | D43: kWh/year | E43: =E38*E$39 -> 120000
C45: PV pricing | D45: $/W | E45: =Currency!$F$44 -> 0.35
C46: Initial PV capex | D46: $ | E46: =E45*E38*Thousand -> 26250
D47: $/connection | E47: =E46/E30 -> 68.47826087
C49: Losses
C50: Power Unit Self-Consumption | D50: kWh/grid/day | E50: 7
C51: Meter self-consumption | D51: kWh/connection/day | E51: 0.05
C52: Distribution losses | D52: % consumption at meter | E52: 0.07
C54: Battery Sizing
C55: Lithium Ion
C56: Night time battery usage as % of PV daily output | D56: % | E56: 0.5
C57: Storage required | D57: kWh | E57: =E$41*E$56 -> 164.3835616
C58: Regular battery discharge limit | D58: % | E58: 0.9
C59: Battery required | D59: kWh | E59: =E57/E58 -> 182.6484018
C60: Initial battery capex | D60: $ | E60: =E63*E59 -> 73059.36073
D61: $/connection | E61: =E60/E$30 -> 190.5896367
C63: Battery unit cost | D63: $/kWh | E63: =Portfolio!$S$41 -> 400
C64: Racking and container costs of battery | D64: $/kWh | E64: =Currency!$F$45 -> 50
C65: Battery unit replacement cost | D65: $/kWh | E65: =E63-E64 -> 350
C67: Battery replacement cost | D67: $ | E67: =E59*E63 -> 73059.36073
C69: Battery unit cost | D69: $/kWh | E69: =Portfolio!$S$41 -> 400
C70: Battery replacement cost | D70: $ | E70: =Currency!$F$45 -> 50
C71: Installation costs | D71: $/kWh | E71: =Currency!$F$46 -> 20
C73: Inverter
C74: Sizing | D74: Inverter W/ solar Wp | E74: 0.75
C75: Price | D75: $/inverter W | E75: =Currency!$F$48 -> 0.15
C76: Capacity | D76: kVA | E76: =E38*E74 -> 56.25
C78: Diesel
C80: Diesel
C81: kWh/litre
C82: 40kW generator | D82: kWh/litre | E82: 3
C83: 10kW generator | D83: kWh/litre | E83: 2
C85: Price
C86: Price per litre | D86: $/litre | E86: =Portfolio!$S$47 -> 1
C88: Runtime
C89: Usage | D89: Litre/hour | E89: 2.5
C91: Gross Consumption as % of Gross Production
C92: Threshold | D92: % | E92: 0.75
C94: Diesel use as % of Gross Consumption
C95: Below threshold | D95: % | E95: 0.03
C96: Above threshold | D96: % | E96: 0.95
C98: Capex Expansion Trigger
C99: =Dashboard!I15 -> Max Diesel Use as % of Gross Solar Production | D99: =Dashboard!J15 -> % | E99: 0.05
C101: Mini-Grid Expansion
C103: Generation unit
C104: Size
C105: PV
C106: Panels | D106: kW | E106: =Portfolio!$S$40 -> 39.34782609
C107: =C41 -> Daily output | D107: kWh/day | E107: =E106*E$39/Days_Yr -> 172.4836212
C108: Monthly output | D108: kWh/month | E108: =E109/Months_Yr -> 5246.376812
C109: Annual output | D109: kWh/year | E109: =E106*E$39 -> 62956.52174
C110: Battery
C111: Storage required | D111: =D57 -> kWh | E111: =E107*E$56 -> 86.2418106
C112: Lithium Ion Battery required | D112: kWh | E112: =E$111/$E$58 -> 95.824234
C113: Inverter
C114: Capacity required | D114: kVA | E114: =E106*E74 -> 29.51086957
C116: Cost
C117: =C105 -> PV | D117: $ | E117: =E106*E45*Thousand -> 13771.73913
C118: =C110 -> Battery | D118: $ | E118: =E112*E63 -> 38329.6936
C119: =C113 -> Inverter | D119: $ | E119: =E75*E114*Thousand -> 4426.630435
C120: Racking | D120: $ | E120: =Currency!$F$49 -> 2500
C121: Logistics, labour, and other | D121: $ | E121: =Currency!$F$50 -> 1000 | G121: Comparison | I121: Total per grid
C122: Total | D122: $ | E122: =SUM(E117:E121) -> 60028.06317 | G122: =E122/I122 -> 0.135580041 | I122: =E31*E30 -> 442750
C124: Construction
C126: Purchase Price
C127: Purchase Price / Capex net of grants
C128: Initial | D128: $/connection | E128: =Portfolio!$S$31 -> 900
D129: $/grid | E129: =E128*E$30 -> 345000
C130: Total Capex
C131: Total Capex and Depreciable Asset | D131: $/connection | E131: =Portfolio!$S$35 -> 1155
D132: $/grid | E132: =E131*E$30 -> 442750
C134: Build Profile | G134: Total | I134: 1 | J134: =I134+1 -> 2 | K134: =J134+1 -> 3 | L134: =K134+1 -> 4 | M134: =L134+1 -> 5 | N134: =M134+1 -> 6
G135: =SUM(I135:N135) -> 1 | I135: 1 | J135: 0 | K135: 0 | M135: 0 | N135: 0
C136: Incremental | D136: Num# | E136: =Dashboard!E7 -> 30 | G136: =SUM(I136:N136) -> 30 | I136: =MIN(ROUND($E136*I$135,0),I141) -> 30 | J136: 0 | K136: 0 | L136: 0 | M136: 0 | N136: 0
C137: Total Purchase Price | D137: $ | G137: =SUM(I137:N137) -> 10350000 | I137: =$E129*I$136 -> 10350000 | J137: 0 | K137: 0 | L137: 0 | M137: 0 | N137: 0
C138: Actual Capex and Depreciable Asset | D138: $ | G138: =SUM(I138:N138) -> 13282500 | I138: =$E132*I$136 -> 13282500 | J138: 0 | K138: 0 | L138: 0 | M138: 0 | N138: 0
C140: Total at year end | D140: Num# | G140: =MAX(I140:N140) -> 30 | I140: =SUM($I136:I136) -> 30 | J140: =SUM($I136:J136) -> 30 | K140: =SUM($I136:K136) -> 30 | L140: =SUM($I136:L136) -> 30 | M140: =SUM($I136:M136) -> 30 | N140: =SUM($I136:N136) -> 30
C141: Portfolio remaining | D141: Num# | G141: =G140-E24 -> 0 | I141: =MAX(($E$136-H140),0) -> 30 | J141: 0 | K141: 0 | L141: 0 | M141: 0 | N141: 0
C143: Connections | D143: Num# | G143: =SUM(I143:N143) -> 11500 | I143: =I136*$E$30 -> 11500 | J143: 0 | K143: 0 | L143: 0 | M143: 0 | N143: 0
C145: Operations
C147: Revenue ramp-up by grid
C148: Year of Operations by Grid | E148: Ramp-up | G148: Discount | I148: 1 | J148: =I148+1 -> 2 | K148: =J148+1 -> 3 | L148: 4 | M148: 5 | N148: 6 | O148: 7 | P148: 8 | Q148: 9 | R148: 10
C149: 1 | D149: % baseline revenue | E149: 1 | G149: 1 | I149: =I$136*$E149*$G149 -> 30 | J149: =J$136*$E149*$G149 -> 0 | K149: 0 | L149: 0 | M149: 0 | N149: 0 | O149: 0 | P149: 0 | Q149: 0 | R149: 0
C150: 2 | D150: % baseline revenue | E150: 1 | J150: =I$136*$E150 -> 30 | K150: 0 | L150: 0 | M150: 0 | N150: 0 | O150: 0 | P150: 0 | Q150: 0 | R150: 0
C151: 3 | D151: % baseline revenue | E151: 1 | K151: =I$136*$E151 -> 30 | L151: 0 | M151: 0 | N151: 0 | O151: 0 | P151: 0 | Q151: 0 | R151: 0
C152: 4 | D152: % baseline revenue | E152: 1 | L152: =SUM($I136:I136)*$E152 -> 30 | M152: =SUM($I136:J136)*$E152 -> 30 | N152: =SUM($I136:K136)*$E152 -> 30 | O152: =SUM($I136:L136)*$E152 -> 30 | P152: =SUM($I136:M136)*$E152 -> 30 | Q152: =SUM($I136:N136)*$E152 -> 30 | R152: =SUM($I136:O136)*$E152 -> 30
C154: 100% Revenue Generating Grids | D154: #Num | I154: =SUM(I149:I152) -> 30 | J154: =SUM(J149:J152) -> 30 | K154: 30 | L154: 30 | M154: 30 | N154: 30 | O154: 30 | P154: 30 | Q154: 30 | R154: 30
C156: 100% Revenue Generating Grids Flag | D156: Flag | I156: =($G$140=I$154)*1 -> 1 | J156: 1 | K156: 1 | L156: 1 | M156: 1 | N156: 1 | O156: 1 | P156: 1 | Q156: 1 | R156: 1
C157: End of ramp-up period for portfolio | D157: Year | E157: =SUMIF(I157:R157,1,I148:R148) -> 1 | I157: =IF(SUM($I$156:I156)=1,1,0) -> 1 | J157: =IF(SUM($I$156:J156)=1,1,0) -> 0 | K157: =IF(SUM($I$156:K156)=1,1,0) -> 0 | L157: =IF(SUM($I$156:L156)=1,1,0) -> 0 | M157: =IF(SUM($I$156:M156)=1,1,0) -> 0 | N157: =IF(SUM($I$156:N156)=1,1,0) -> 0 | O157: =IF(SUM($I$156:O156)=1,1,0) -> 0 | P157: =IF(SUM($I$156:P156)=1,1,0) -> 0 | Q157: =IF(SUM($I$156:Q156)=1,1,0) -> 0 | R157: =IF(SUM($I$156:R156)=1,1,0) -> 0
C160: Consumption
C161: Per connection
C162: Average consumption | D162: Wh/day | E162: =E164/Days_Yr*Thousand -> 328.7671233
C163: Average consumption | D163: kWh/month | E163: =Portfolio!$S$22 -> 10
C164: Average consumption | D164: kWh/year | E164: =E163*Months_Yr -> 120
G165: Sensitivity
C166: Annual growth | D166: % | E166: =I166+G166 -> 0.1 | G166: 0 | I166: 0.1
C168: Tariff
G169: Sensitivity | I169: Tariff
C170: Average | D170: $/kWh | E170: =I170*(1+G170) -> 0.55 | G170: 0 | I170: =Portfolio!$S$26 -> 0.55
C172: Opex
C173: =Dashboard!I18 -> Fixed Opex fee per grid | D173: =Dashboard!J18 -> $/grid/yr | E173: =Portfolio!$S$44 -> 4000
C174: =Dashboard!I20 -> Opex fee ratchet (% of revenue above P50 forecast) | D174: =Dashboard!J20 -> % | E174: 0.3
C175: Operations Year Threshold | D175: Ops Year | I175: 0 | J175: 5 | K175: 10 | L175: 15 | N175: 15 Ops Yr Avg
C176: Fixed Opex fee per customer | D176: $/connection/month | E176: =Portfolio!$S$45 -> 2 | I176: =E176 -> 2 | J176: =I176 -> 2 | K176: =J176 -> 2 | L176: 2 | N176: =Model!E103 -> 2
C179: Administrative, accounting and professional costs | D179: $ | E179: =Currency!$F$56 -> 15000
C181: Working Capital
C182: Receivable days | D182: days | E182: 0
C183: Payables days | D183: days | E183: 0
C185: Ongoing Capex
C186: Replacement
C187: Battery | D187: years | E187: 10
C188: Inverter life | D188: years | E188: 10
C189: Number of years to stop replacing before end of AssetCo life | D189: years | E189: 3
C191: Solar PV cost forecast
C192: Calendar Year | E192: Reduction % | I192: =YEAR(Inputs!$E$6+1) -> 2023 | J192: =I192+1 -> 2024 | K192: =J192+1 -> 2025 | L192: 2026 | M192: 2027 | N192: 2028 | O192: 2029 | P192: 2030 | Q192: 2031 | R192: 2032 | S192: 2033 | T192: 2034 | U192: 2035 | V192: 2036 | W192: 2037 | X192: 2038 | Y192: 2039 | Z192: 2040 | AA192: 2041 | AB192: 2042 | AC192: 2043 | AD192: 2044 | AE192: 2045 | AF192: 2046 | AG192: 2047 | AH192: 2048 | AI192: =AH192+1 -> 2049 | AJ192: =AI192+1 -> 2050 | AK192: =AJ192+1 -> 2051 | AL192: =AK192+1 -> 2052 | AM192: =AL192+1 -> 2053
C193: Forecast | D193: $/watt | E193: 0.1 | I193: =E194 -> 0.35 | J193: =I193*(1-$E193) -> 0.315 | K193: 0.2835 | L193: 0.25515 | M193: 0.229635 | N193: 0.2066715 | O193: 0.18600435 | P193: =O193*(1-$E193) -> 0.167403915 | Q193: =P193 -> 0.167403915 | R193: =Q193 -> 0.167403915 | S193: 0.167403915 | T193: 0.167403915 | U193: 0.167403915 | V193: 0.167403915 | W193: 0.167403915 | X193: 0.167403915 | Y193: 0.167403915 | Z193: 0.167403915 | AA193: 0.167403915 | AB193: 0.167403915 | AC193: 0.167403915 | AD193: 0.167403915 | AE193: 0.167403915 | AF193: 0.167403915 | AG193: 0.167403915 | AH193: 0.167403915 | AI193: =AH193 -> 0.167403915 | AJ193: =AI193 -> 0.167403915 | AK193: =AJ193 -> 0.167403915 | AL193: =AK193 -> 0.167403915 | AM193: =AL193 -> 0.167403915
C194: 2023 PV module pricing | D194: $/watt | E194: =Currency!F44 -> 0.35
C197: Battery cost forecast
C198: Calendar Year | E198: Reduction % | I198: =YEAR(Inputs!$E$6+1) -> 2023 | J198: =I198+1 -> 2024 | K198: =J198+1 -> 2025 | L198: 2026 | M198: 2027 | N198: 2028 | O198: 2029 | P198: 2030 | Q198: 2031 | R198: 2032 | S198: 2033 | T198: 2034 | U198: 2035 | V198: 2036 | W198: 2037 | X198: 2038 | Y198: 2039 | Z198: 2040 | AA198: 2041 | AB198: 2042 | AC198: 2043 | AD198: 2044 | AE198: 2045 | AF198: 2046 | AG198: 2047 | AH198: 2048 | AI198: =AH198+1 -> 2049 | AJ198: =AI198+1 -> 2050 | AK198: =AJ198+1 -> 2051 | AL198: =AK198+1 -> 2052 | AM198: =AL198+1 -> 2053
C199: AssetCo Forecast | D199: $/kWh | E199: 0.1 | I199: =$E$202 -> 152 | J199: =I199*(1-$E199) -> 136.8 | K199: =J199*(1-$E199) -> 123.12 | L199: 110.808 | M199: 99.7272 | N199: 89.75448 | O199: 80.779032 | P199: =O199*(1-$E199) -> 72.7011288 | Q199: =P199 -> 72.7011288 | R199: =Q199 -> 72.7011288 | S199: =R199 -> 72.7011288 | T199: =S199 -> 72.7011288 | U199: =T199 -> 72.7011288 | V199: =U199 -> 72.7011288 | W199: =V199 -> 72.7011288 | X199: =W199 -> 72.7011288 | Y199: =X199 -> 72.7011288 | Z199: =Y199 -> 72.7011288 | AA199: =Z199 -> 72.7011288 | AB199: =AA199 -> 72.7011288 | AC199: =AB199 -> 72.7011288 | AD199: =AC199 -> 72.7011288 | AE199: =AD199 -> 72.7011288 | AF199: =AE199 -> 72.7011288 | AG199: =AF199 -> 72.7011288 | AH199: =AG199 -> 72.7011288 | AI199: =AH199 -> 72.7011288 | AJ199: =AI199 -> 72.7011288 | AK199: =AJ199 -> 72.7011288 | AL199: =AK199 -> 72.7011288 | AM199: =AL199 -> 72.7011288
C200: BNEF New Energy Outlook 2018 forecast for Lithium-Ion batteries | D200: $/kWh | E200: =-((($U$200/$I$200)^(1/($U$198-$I$198))) -1) -> 0.0771480509 | I200: =$E$202 -> 152 | J200: =I200*(1-$E200) -> 140.2734963 | K200: =J200*(1-$E200) -> 129.4516694 | L200: 119.4647254 | M200: 110.2482547 | N200: 101.7428168 | O200: 93.89355675 | P200: =Currency!$F$51 -> 58 | Q200: =P200 -> 58 | R200: 58 | S200: 58 | T200: 58 | U200: 58 | V200: 58 | W200: 58 | X200: 58 | Y200: 58 | Z200: 58 | AA200: 58 | AB200: 58 | AC200: 58 | AD200: 58 | AE200: 58 | AF200: 58 | AG200: 58 | AH200: 58 | AI200: 58 | AJ200: 58 | AK200: 58 | AL200: 58 | AM200: 58
C201: Selected | D201: $ | E201: AssetCo Forecast | I201: =LOOKUP($E$201,$C$199:$C$200,I199:I200) -> 152 | J201: 136.8 | K201: 123.12 | L201: 110.808 | M201: 99.7272 | N201: 89.75448 | O201: 80.779032 | P201: 72.7011288 | Q201: 72.7011288 | R201: 72.7011288 | S201: 72.7011288 | T201: 72.7011288 | U201: 72.7011288 | V201: 72.7011288 | W201: 72.7011288 | X201: 72.7011288 | Y201: 72.7011288 | Z201: 72.7011288 | AA201: 72.7011288 | AB201: 72.7011288 | AC201: 72.7011288 | AD201: 72.7011288 | AE201: 72.7011288 | AF201: 72.7011288 | AG201: 72.7011288 | AH201: 72.7011288 | AI201: =LOOKUP($E$201,$C$199:$C$200,AI199:AI200) -> 72.7011288 | AJ201: 72.7011288 | AK201: 72.7011288 | AL201: 72.7011288 | AM201: 72.7011288
C202: Battery unit replacement cost in 2023 | D202: $/kWh | E202: =Currency!F47 -> 152
C204: Inverter cost forecast
C205: Calendar Year | E205: Reduction % | I205: =YEAR(Inputs!$E$6+1) -> 2023 | J205: =I205+1 -> 2024 | K205: =J205+1 -> 2025 | L205: 2026 | M205: 2027 | N205: 2028 | O205: 2029 | P205: 2030 | Q205: 2031 | R205: 2032 | S205: 2033 | T205: 2034 | U205: 2035 | V205: 2036 | W205: 2037 | X205: 2038 | Y205: 2039 | Z205: 2040 | AA205: 2041 | AB205: 2042 | AC205: 2043 | AD205: 2044 | AE205: 2045 | AF205: 2046 | AG205: 2047 | AH205: 2048 | AI205: =AH205+1 -> 2049 | AJ205: =AI205+1 -> 2050 | AK205: =AJ205+1 -> 2051 | AL205: =AK205+1 -> 2052 | AM205: =AL205+1 -> 2053
C206: Cost forecast | D206: $/inverter watt | E206: 0.05 | I206: =E207*(1-$E$206)^(I205-$E$208) -> 0.12860625 | J206: =I206*(1-$E206) -> 0.1221759375 | K206: =J206*(1-$E206) -> 0.1160671406 | L206: =K206*(1-$E206) -> 0.1102637836 | M206: =L206*(1-$E206) -> 0.1047505944 | N206: =M206*(1-$E206) -> 0.09951306469 | O206: =N206*(1-$E206) -> 0.09453741146 | P206: =Currency!$F$52 -> 0.08981054089 | Q206: =P206 -> 0.08981054089 | R206: =Q206 -> 0.08981054089 | S206: 0.08981054089 | T206: 0.08981054089 | U206: 0.08981054089 | V206: 0.08981054089 | W206: 0.08981054089 | X206: 0.08981054089 | Y206: 0.08981054089 | Z206: 0.08981054089 | AA206: 0.08981054089 | AB206: 0.08981054089 | AC206: 0.08981054089 | AD206: 0.08981054089 | AE206: 0.08981054089 | AF206: 0.08981054089 | AG206: 0.08981054089 | AH206: 0.08981054089 | AI206: =AH206 -> 0.08981054089 | AJ206: =AI206 -> 0.08981054089 | AK206: =AJ206 -> 0.08981054089 | AL206: =AK206 -> 0.08981054089 | AM206: =AL206 -> 0.08981054089
C207: 2020 Inverter price | D207: $/inverter watt | E207: =Currency!$F$48 -> 0.15
C208: Reference Year | E208: 2020
C210: Tax and Depreciation
C212: Tax
E214: In-country
C215: Corporate tax rate | D215: % | E215: 0.3
C217: Years of tax holiday (if any) | D217: Yrs | E217: 2
C219: Net Operating Losses Carry Forward | D219: years | E219: 50
C222: VAT | D222: % | E222: 0
C224: VAT category : Capex | D224: label | E224: Recoverable
C225: VAT category : Opex | D225: label | E225: Recoverable
C227: VAT receivable / payable term | D227: days | E227: 30
C230: Minimum payable tax | D230: % | E230: 0.01
C231: Alternative Minimum Tax Threshold | D231: $ | E231: =Currency!$F$63 -> 0
C233: Dividends Withholding tax (WHT) | D233: % | E233: 0.05
C235: Depreciation
C236: Accounting Depreciation
C237: Initial Capex Items
C238: Asset life | D238: Yrs | E238: 20
C239: Straight line depreciation | D239: % p.a. | E239: =1/E238 -> 0.05
C241: Replacement Capex Items
C242: Asset life | D242: Yrs | E242: =$E$187 -> 10
C243: Straight line depreciation | D243: % p.a. | E243: =1/E242 -> 0.1
C245: Interest during construction
C246: Asset life | D246: Yrs | E246: =E238 -> 20
C247: Straight line depreciation | D247: % p.a. | E247: =1/E246 -> 0.05
C249: Tax Depreciation
C250: Initial Capex Items
C251: Asset life | D251: Yrs | E251: 5
C252: Straight line depreciation | D252: % p.a. | E252: =1/E251 -> 0.2
C254: Replacement Capex Items
C255: Asset life | D255: Yrs | E255: 3
C256: Straight line depreciation | D256: % p.a. | E256: =1/E255 -> 0.3333333333
C258: Interest during construction
C259: Asset life | D259: Yrs | E259: =E251 -> 5
C260: Straight line depreciation | D260: % p.a. | E260: =1/E259 -> 0.2
C262: Capital Allowance limit | D262: % | E262: 0.5
C264: Funding
C266: WACC target | D266: % | E266: 0.12
C267: IRR period | D267: Yrs | E267: 20
C269: Grants
C270: Grant to AssetCo | D270: $ | E270: =Portfolio!$S$34*Inputs!$E$25 -> 2932500
... 132 more rows

Sheet CALCULATIONS>>

Sheet Model
A1: Model
A2: =Name_Model -> AssetCo Model
J3: =J19 -> 1 | K3: 2 | L3: 3 | M3: 4 | N3: 5 | O3: 6 | P3: 7 | Q3: 8 | R3: 9 | S3: 10 | T3: 11 | U3: 12 | V3: 13 | W3: 14 | X3: 15 | Y3: 16 | Z3: 17 | AA3: 18 | AB3: 19 | AC3: 20 | AD3: 21 | AE3: 0 | AF3: 0 | AG3: 0 | AH3: 0 | AI3: 0 | AJ3: 0 | AK3: 0 | AL3: 0 | AM3: 0 | AN3: 0 | AO3: 0 | AP3: =AP19 -> 0 | AQ3: 0 | AR3: 0 | AS3: 0 | AT3: 0 | AU3: 0 | AV3: 0 | AW3: 0 | AX3: 0 | AY3: 0 | AZ3: 0 | BA3: 0 | BB3: 0 | BC3: 0 | BD3: 0 | BE3: 0 | BF3: 0 | BG3: 0 | BH3: 0 | BI3: 0 | BJ3: 0 | BK3: 0 | BL3: 0 | BM3: 0 | BN3: 0 | BO3: 0 | BP3: 0 | BQ3: 0 | BR3: 0 | BS3: 0 | BT3: 0 | BU3: 0 | BV3: 0 | BW3: 0 | BX3: 0 | BY3: 0 | BZ3: 0
C4: Period Start | D4: Date | J4: =I5+1 -> 2023-01-01 | K4: 2024-01-01 | L4: 2025-01-01 | M4: 2026-01-01 | N4: 2027-01-01 | O4: 2028-01-01 | P4: 2029-01-01 | Q4: 2030-01-01 | R4: 2031-01-01 | S4: 2032-01-01 | T4: 2033-01-01 | U4: 2034-01-01 | V4: 2035-01-01 | W4: 2036-01-01 | X4: 2037-01-01 | Y4: 2038-01-01 | Z4: 2039-01-01 | AA4: 2040-01-01 | AB4: 2041-01-01 | AC4: 2042-01-01 | AD4: 2043-01-01 | AE4: 2044-01-01 | AF4: 2045-01-01 | AG4: 2046-01-01 | AH4: 2047-01-01 | AI4: 2048-01-01 | AJ4: 2049-01-01 | AK4: 2050-01-01 | AL4: 2051-01-01 | AM4: 2052-01-01 | AN4: 2053-01-01 | AO4: 2054-01-01 | AP4: =AO5+1 -> 2055-01-01 | AQ4: 2056-01-01 | AR4: 2057-01-01 | AS4: 2058-01-01 | AT4: 2059-01-01 | AU4: 2060-01-01 | AV4: 2061-01-01 | AW4: 2062-01-01 | AX4: 2063-01-01 | AY4: 2064-01-01 | AZ4: 2065-01-01 | BA4: 2066-01-01 | BB4: 2067-01-01 | BC4: 2068-01-01 | BD4: 2069-01-01 | BE4: 2070-01-01 | BF4: 2071-01-01 | BG4: 2072-01-01 | BH4: 2073-01-01 | BI4: 2074-01-01 | BJ4: 2075-01-01 | BK4: 2076-01-01 | BL4: 2077-01-01 | BM4: 2078-01-01 | BN4: 2079-01-01 | BO4: 2080-01-01 | BP4: 2081-01-01 | BQ4: 2082-01-01 | BR4: 2083-01-01 | BS4: 2084-01-01 | BT4: 2085-01-01 | BU4: 2086-01-01 | BV4: 2087-01-01 | BW4: 2088-01-01 | BX4: 2089-01-01 | BY4: 2090-01-01 | BZ4: 2091-01-01
C5: Period End | D5: Date | E5: Start | F5: End | I5: =Inputs!E6 -> 2022-12-31 | J5: =EOMONTH(J4,Months_Yr-1) -> 2023-12-31 | K5: 2024-12-31 | L5: 2025-12-31 | M5: 2026-12-31 | N5: 2027-12-31 | O5: 2028-12-31 | P5: 2029-12-31 | Q5: 2030-12-31 | R5: 2031-12-31 | S5: 2032-12-31 | T5: 2033-12-31 | U5: 2034-12-31 | V5: 2035-12-31 | W5: 2036-12-31 | X5: 2037-12-31 | Y5: 2038-12-31 | Z5: 2039-12-31 | AA5: 2040-12-31 | AB5: 2041-12-31 | AC5: 2042-12-31 | AD5: 2043-12-31 | AE5: 2044-12-31 | AF5: 2045-12-31 | AG5: 2046-12-31 | AH5: 2047-12-31 | AI5: 2048-12-31 | AJ5: 2049-12-31 | AK5: 2050-12-31 | AL5: 2051-12-31 | AM5: 2052-12-31 | AN5: 2053-12-31 | AO5: 2054-12-31 | AP5: =EOMONTH(AP4,Months_Yr-1) -> 2055-12-31 | AQ5: 2056-12-31 | AR5: 2057-12-31 | AS5: 2058-12-31 | AT5: 2059-12-31 | AU5: 2060-12-31 | AV5: 2061-12-31 | AW5: 2062-12-31 | AX5: 2063-12-31 | AY5: 2064-12-31 | AZ5: 2065-12-31 | BA5: 2066-12-31 | BB5: 2067-12-31 | BC5: 2068-12-31 | BD5: 2069-12-31 | BE5: 2070-12-31 | BF5: 2071-12-31 | BG5: 2072-12-31 | BH5: 2073-12-31 | BI5: 2074-12-31 | BJ5: 2075-12-31 | BK5: 2076-12-31 | BL5: 2077-12-31 | BM5: 2078-12-31 | BN5: 2079-12-31 | BO5: 2080-12-31 | BP5: 2081-12-31 | BQ5: 2082-12-31 | BR5: 2083-12-31 | BS5: 2084-12-31 | BT5: 2085-12-31 | BU5: 2086-12-31 | BV5: =EOMONTH(BV4,Months_Yr-1) -> 2087-12-31 | BW5: 2088-12-31 | BX5: 2089-12-31 | BY5: 2090-12-31 | BZ5: 2091-12-31
C6: Construction | D6: [1,0] | E6: =Con_Start -> 2023-01-01 | F6: =Cons_End -> 2023-12-31 | J6: =(J$4>=$E6)*(J$5<=$F6) -> 1 | K6: 0 | L6: 0 | M6: 0 | N6: 0 | O6: 0 | P6: 0 | Q6: 0 | R6: 0 | S6: 0 | T6: =(T$4>=$E6)*(T$5<=$F6) -> 0 | U6: 0 | V6: 0 | W6: 0 | X6: 0 | Y6: 0 | Z6: 0 | AA6: 0 | AB6: 0 | AC6: 0 | AD6: =(AD$4>=$E6)*(AD$5<=$F6) -> 0 | AE6: 0 | AF6: 0 | AG6: 0 | AH6: 0 | AI6: 0 | AJ6: 0 | AK6: 0 | AL6: 0 | AM6: 0 | AN6: =(AN$4>=$E6)*(AN$5<=$F6) -> 0 | AO6: 0 | AP6: 0 | AQ6: 0 | AR6: 0 | AS6: 0 | AT6: 0 | AU6: 0 | AV6: 0 | AW6: 0 | AX6: =(AX$4>=$E6)*(AX$5<=$F6) -> 0 | AY6: 0 | AZ6: 0 | BA6: 0 | BB6: 0 | BC6: 0 | BD6: 0 | BE6: 0 | BF6: 0 | BG6: 0 | BH6: =(BH$4>=$E6)*(BH$5<=$F6) -> 0 | BI6: 0 | BJ6: 0 | BK6: 0 | BL6: 0 | BM6: 0 | BN6: 0 | BO6: 0 | BP6: 0 | BQ6: 0 | BR6: =(BR$4>=$E6)*(BR$5<=$F6) -> 0 | BS6: 0 | BT6: 0 | BU6: 0 | BV6: 0 | BW6: 0 | BX6: 0 | BY6: 0 | BZ6: 0
C7: Operations | D7: [1,0] | E7: =Ops_Start -> 2024-01-01 | F7: =Ops_End -> 2043-12-31 | J7: 0 | K7: 1 | L7: 1 | M7: 1 | N7: 1 | O7: 1 | P7: 1 | Q7: 1 | R7: 1 | S7: 1 | T7: 1 | U7: 1 | V7: 1 | W7: 1 | X7: 1 | Y7: 1 | Z7: 1 | AA7: 1 | AB7: 1 | AC7: 1 | AD7: 1 | AE7: 0 | AF7: 0 | AG7: 0 | AH7: 0 | AI7: 0 | AJ7: 0 | AK7: 0 | AL7: 0 | AM7: 0 | AN7: 0 | AO7: 0 | AP7: 0 | AQ7: 0 | AR7: 0 | AS7: 0 | AT7: 0 | AU7: 0 | AV7: 0 | AW7: 0 | AX7: 0 | AY7: 0 | AZ7: 0 | BA7: 0 | BB7: 0 | BC7: 0 | BD7: 0 | BE7: 0 | BF7: 0 | BG7: 0 | BH7: 0 | BI7: 0 | BJ7: 0 | BK7: 0 | BL7: 0 | BM7: 0 | BN7: 0 | BO7: 0 | BP7: 0 | BQ7: 0 | BR7: 0 | BS7: 0 | BT7: 0 | BU7: 0 | BV7: 0 | BW7: 0 | BX7: 0 | BY7: 0 | BZ7: 0
C9: Counters
C10: Days in a period | D10: Num# | J10: =J5-J4+1 -> 365 | K10: 366 | L10: 365 | M10: 365 | N10: 365 | O10: 366 | P10: 365 | Q10: 365 | R10: 365 | S10: 366 | T10: 365 | U10: 365 | V10: 365 | W10: 366 | X10: 365 | Y10: 365 | Z10: 365 | AA10: 366 | AB10: 365 | AC10: 365 | AD10: 365 | AE10: 366 | AF10: 365 | AG10: 365 | AH10: 365 | AI10: 366 | AJ10: 365 | AK10: 365 | AL10: 365 | AM10: 366 | AN10: 365 | AO10: 365 | AP10: =AP5-AP4+1 -> 365 | AQ10: 366 | AR10: 365 | AS10: 365 | AT10: 365 | AU10: 366 | AV10: 365 | AW10: 365 | AX10: 365 | AY10: 366 | AZ10: 365 | BA10: 365 | BB10: 365 | BC10: 366 | BD10: 365 | BE10: 365 | BF10: 365 | BG10: 366 | BH10: 365 | BI10: 365 | BJ10: 365 | BK10: 366 | BL10: 365 | BM10: 365 | BN10: 365 | BO10: 366 | BP10: 365 | BQ10: 365 | BR10: 365 | BS10: 366 | BT10: 365 | BU10: 365 | BV10: 365 | BW10: 366 | BX10: 365 | BY10: 365 | BZ10: 365
C11: Calendar year | D11: Num# | J11: =YEAR(J4) -> 2023 | K11: 2024 | L11: 2025 | M11: 2026 | N11: 2027 | O11: 2028 | P11: 2029 | Q11: 2030 | R11: 2031 | S11: 2032 | T11: 2033 | U11: 2034 | V11: 2035 | W11: 2036 | X11: 2037 | Y11: 2038 | Z11: 2039 | AA11: 2040 | AB11: 2041 | AC11: 2042 | AD11: 2043 | AE11: 2044 | AF11: 2045 | AG11: 2046 | AH11: 2047 | AI11: 2048 | AJ11: 2049 | AK11: 2050 | AL11: 2051 | AM11: 2052 | AN11: 2053 | AO11: 2054 | AP11: =YEAR(AP4) -> 2055 | AQ11: 2056 | AR11: 2057 | AS11: 2058 | AT11: 2059 | AU11: 2060 | AV11: 2061 | AW11: 2062 | AX11: 2063 | AY11: 2064 | AZ11: 2065 | BA11: 2066 | BB11: 2067 | BC11: 2068 | BD11: 2069 | BE11: 2070 | BF11: 2071 | BG11: 2072 | BH11: 2073 | BI11: 2074 | BJ11: 2075 | BK11: 2076 | BL11: 2077 | BM11: 2078 | BN11: 2079 | BO11: 2080 | BP11: 2081 | BQ11: 2082 | BR11: 2083 | BS11: 2084 | BT11: 2085 | BU11: 2086 | BV11: 2087 | BW11: 2088 | BX11: 2089 | BY11: 2090 | BZ11: 2091
C13: Construction year | D13: Num# | J13: =SUM($J6:J6)*J6 -> 1 | K13: =SUM($J6:K6)*K6 -> 0 | L13: =SUM($J6:L6)*L6 -> 0 | M13: =SUM($J6:M6)*M6 -> 0 | N13: =SUM($J6:N6)*N6 -> 0 | O13: =SUM($J6:O6)*O6 -> 0 | P13: =SUM($J6:P6)*P6 -> 0 | Q13: =SUM($J6:Q6)*Q6 -> 0 | R13: =SUM($J6:R6)*R6 -> 0 | S13: =SUM($J6:S6)*S6 -> 0 | T13: =SUM($J6:T6)*T6 -> 0 | U13: =SUM($J6:U6)*U6 -> 0 | V13: =SUM($J6:V6)*V6 -> 0 | W13: =SUM($J6:W6)*W6 -> 0 | X13: =SUM($J6:X6)*X6 -> 0 | Y13: =SUM($J6:Y6)*Y6 -> 0 | Z13: =SUM($J6:Z6)*Z6 -> 0 | AA13: =SUM($J6:AA6)*AA6 -> 0 | AB13: =SUM($J6:AB6)*AB6 -> 0 | AC13: =SUM($J6:AC6)*AC6 -> 0 | AD13: =SUM($J6:AD6)*AD6 -> 0 | AE13: =SUM($J6:AE6)*AE6 -> 0 | AF13: =SUM($J6:AF6)*AF6 -> 0 | AG13: =SUM($J6:AG6)*AG6 -> 0 | AH13: =SUM($J6:AH6)*AH6 -> 0 | AI13: =SUM($J6:AI6)*AI6 -> 0 | AJ13: =SUM($J6:AJ6)*AJ6 -> 0 | AK13: =SUM($J6:AK6)*AK6 -> 0 | AL13: =SUM($J6:AL6)*AL6 -> 0 | AM13: =SUM($J6:AM6)*AM6 -> 0 | AN13: =SUM($J6:AN6)*AN6 -> 0 | AO13: =SUM($J6:AO6)*AO6 -> 0 | AP13: =SUM($J6:AP6)*AP6 -> 0 | AQ13: =SUM($J6:AQ6)*AQ6 -> 0 | AR13: =SUM($J6:AR6)*AR6 -> 0 | AS13: =SUM($J6:AS6)*AS6 -> 0 | AT13: =SUM($J6:AT6)*AT6 -> 0 | AU13: =SUM($J6:AU6)*AU6 -> 0 | AV13: =SUM($J6:AV6)*AV6 -> 0 | AW13: =SUM($J6:AW6)*AW6 -> 0 | AX13: =SUM($J6:AX6)*AX6 -> 0 | AY13: =SUM($J6:AY6)*AY6 -> 0 | AZ13: =SUM($J6:AZ6)*AZ6 -> 0 | BA13: =SUM($J6:BA6)*BA6 -> 0 | BB13: =SUM($J6:BB6)*BB6 -> 0 | BC13: =SUM($J6:BC6)*BC6 -> 0 | BD13: =SUM($J6:BD6)*BD6 -> 0 | BE13: =SUM($J6:BE6)*BE6 -> 0 | BF13: =SUM($J6:BF6)*BF6 -> 0 | BG13: =SUM($J6:BG6)*BG6 -> 0 | BH13: =SUM($J6:BH6)*BH6 -> 0 | BI13: =SUM($J6:BI6)*BI6 -> 0 | BJ13: =SUM($J6:BJ6)*BJ6 -> 0 | BK13: =SUM($J6:BK6)*BK6 -> 0 | BL13: =SUM($J6:BL6)*BL6 -> 0 | BM13: =SUM($J6:BM6)*BM6 -> 0 | BN13: =SUM($J6:BN6)*BN6 -> 0 | BO13: =SUM($J6:BO6)*BO6 -> 0 | BP13: =SUM($J6:BP6)*BP6 -> 0 | BQ13: =SUM($J6:BQ6)*BQ6 -> 0 | BR13: =SUM($J6:BR6)*BR6 -> 0 | BS13: =SUM($J6:BS6)*BS6 -> 0 | BT13: =SUM($J6:BT6)*BT6 -> 0 | BU13: =SUM($J6:BU6)*BU6 -> 0 | BV13: =SUM($J6:BV6)*BV6 -> 0 | BW13: =SUM($J6:BW6)*BW6 -> 0 | BX13: =SUM($J6:BX6)*BX6 -> 0 | BY13: =SUM($J6:BY6)*BY6 -> 0 | BZ13: =SUM($J6:BZ6)*BZ6 -> 0
C14: Operations year | D14: Num# | J14: =SUM($J7:J7)*J7 -> 0 | K14: =SUM($J7:K7)*K7 -> 1 | L14: =SUM($J7:L7)*L7 -> 2 | M14: =SUM($J7:M7)*M7 -> 3 | N14: =SUM($J7:N7)*N7 -> 4 | O14: =SUM($J7:O7)*O7 -> 5 | P14: =SUM($J7:P7)*P7 -> 6 | Q14: =SUM($J7:Q7)*Q7 -> 7 | R14: =SUM($J7:R7)*R7 -> 8 | S14: =SUM($J7:S7)*S7 -> 9 | T14: =SUM($J7:T7)*T7 -> 10 | U14: =SUM($J7:U7)*U7 -> 11 | V14: =SUM($J7:V7)*V7 -> 12 | W14: =SUM($J7:W7)*W7 -> 13 | X14: =SUM($J7:X7)*X7 -> 14 | Y14: =SUM($J7:Y7)*Y7 -> 15 | Z14: =SUM($J7:Z7)*Z7 -> 16 | AA14: =SUM($J7:AA7)*AA7 -> 17 | AB14: =SUM($J7:AB7)*AB7 -> 18 | AC14: =SUM($J7:AC7)*AC7 -> 19 | AD14: =SUM($J7:AD7)*AD7 -> 20 | AE14: =SUM($J7:AE7)*AE7 -> 0 | AF14: =SUM($J7:AF7)*AF7 -> 0 | AG14: =SUM($J7:AG7)*AG7 -> 0 | AH14: =SUM($J7:AH7)*AH7 -> 0 | AI14: =SUM($J7:AI7)*AI7 -> 0 | AJ14: =SUM($J7:AJ7)*AJ7 -> 0 | AK14: =SUM($J7:AK7)*AK7 -> 0 | AL14: =SUM($J7:AL7)*AL7 -> 0 | AM14: =SUM($J7:AM7)*AM7 -> 0 | AN14: =SUM($J7:AN7)*AN7 -> 0 | AO14: =SUM($J7:AO7)*AO7 -> 0 | AP14: =SUM($J7:AP7)*AP7 -> 0 | AQ14: =SUM($J7:AQ7)*AQ7 -> 0 | AR14: =SUM($J7:AR7)*AR7 -> 0 | AS14: =SUM($J7:AS7)*AS7 -> 0 | AT14: =SUM($J7:AT7)*AT7 -> 0 | AU14: =SUM($J7:AU7)*AU7 -> 0 | AV14: =SUM($J7:AV7)*AV7 -> 0 | AW14: =SUM($J7:AW7)*AW7 -> 0 | AX14: =SUM($J7:AX7)*AX7 -> 0 | AY14: =SUM($J7:AY7)*AY7 -> 0 | AZ14: =SUM($J7:AZ7)*AZ7 -> 0 | BA14: =SUM($J7:BA7)*BA7 -> 0 | BB14: =SUM($J7:BB7)*BB7 -> 0 | BC14: =SUM($J7:BC7)*BC7 -> 0 | BD14: =SUM($J7:BD7)*BD7 -> 0 | BE14: =SUM($J7:BE7)*BE7 -> 0 | BF14: =SUM($J7:BF7)*BF7 -> 0 | BG14: =SUM($J7:BG7)*BG7 -> 0 | BH14: =SUM($J7:BH7)*BH7 -> 0 | BI14: =SUM($J7:BI7)*BI7 -> 0 | BJ14: =SUM($J7:BJ7)*BJ7 -> 0 | BK14: =SUM($J7:BK7)*BK7 -> 0 | BL14: =SUM($J7:BL7)*BL7 -> 0 | BM14: =SUM($J7:BM7)*BM7 -> 0 | BN14: =SUM($J7:BN7)*BN7 -> 0 | BO14: =SUM($J7:BO7)*BO7 -> 0 | BP14: =SUM($J7:BP7)*BP7 -> 0 | BQ14: =SUM($J7:BQ7)*BQ7 -> 0 | BR14: =SUM($J7:BR7)*BR7 -> 0 | BS14: =SUM($J7:BS7)*BS7 -> 0 | BT14: =SUM($J7:BT7)*BT7 -> 0 | BU14: =SUM($J7:BU7)*BU7 -> 0 | BV14: =SUM($J7:BV7)*BV7 -> 0 | BW14: =SUM($J7:BW7)*BW7 -> 0 | BX14: =SUM($J7:BX7)*BX7 -> 0 | BY14: =SUM($J7:BY7)*BY7 -> 0 | BZ14: =SUM($J7:BZ7)*BZ7 -> 0
C15: Inflation | D15: Index | E15: =Inputs!$E$391 -> 0.1 | J15: 1 | K15: =J15*(1+$E$15) -> 1.1 | L15: 1.21 | M15: 1.331 | N15: 1.4641 | O15: 1.61051 | P15: 1.771561 | Q15: 1.9487171 | R15: 2.14358881 | S15: 2.357947691 | T15: 2.59374246 | U15: 2.853116706 | V15: 3.138428377 | W15: 3.452271214 | X15: 3.797498336 | Y15: 4.177248169 | Z15: 4.594972986 | AA15: 5.054470285 | AB15: 5.559917313 | AC15: 6.115909045 | AD15: 6.727499949 | AE15: 7.400249944 | AF15: 8.140274939 | AG15: 8.954302433 | AH15: 9.849732676 | AI15: 10.83470594 | AJ15: 11.91817654 | AK15: 13.10999419 | AL15: 14.42099361 | AM15: 15.86309297 | AN15: 17.44940227 | AO15: 19.1943425 | AP15: 21.11377675 | AQ15: =AP15*(1+$E$15) -> 23.22515442 | AR15: 25.54766986 | AS15: 28.10243685 | AT15: 30.91268053 | AU15: 34.00394859 | AV15: 37.40434344 | AW15: 41.14477779 | AX15: 45.25925557 | AY15: 49.78518112 | AZ15: 54.76369924 | BA15: 60.24006916 | BB15: 66.26407608 | BC15: 72.89048369 | BD15: 80.17953205 | BE15: 88.19748526 | BF15: 97.01723378 | BG15: 106.7189572 | BH15: 117.3908529 | BI15: 129.1299382 | BJ15: 142.042932 | BK15: 156.2472252 | BL15: 171.8719477 | BM15: 189.0591425 | BN15: 207.9650567 | BO15: 228.7615624 | BP15: 251.6377186 | BQ15: 276.8014905 | BR15: 304.4816395 | BS15: 334.9298035 | BT15: 368.4227838 | BU15: 405.2650622 | BV15: 445.7915685 | BW15: 490.3707253 | BX15: 539.4077978 | BY15: 593.3485776 | BZ15: 652.6834354
C16: =Inputs!C398 -> Naira depreciation against USD | D16: Index | J16: =LOOKUP(J$11,Inputs!$I$393:$AM$393,Inputs!$I$398:$AM$398) -> 1 | K16: =LOOKUP(K$11,Inputs!$I$393:$AM$393,Inputs!$I$398:$AM$398) -> 0.9345794393 | L16: =LOOKUP(L$11,Inputs!$I$393:$AM$393,Inputs!$I$398:$AM$398) -> 0.8734387283 | M16: =LOOKUP(M$11,Inputs!$I$393:$AM$393,Inputs!$I$398:$AM$398) -> 0.8162978769 | N16: =LOOKUP(N$11,Inputs!$I$393:$AM$393,Inputs!$I$398:$AM$398) -> 0.762895212 | O16: =LOOKUP(O$11,Inputs!$I$393:$AM$393,Inputs!$I$398:$AM$398) -> 0.7129861795 | P16: =LOOKUP(P$11,Inputs!$I$393:$AM$393,Inputs!$I$398:$AM$398) -> 0.6663422238 | Q16: =LOOKUP(Q$11,Inputs!$I$393:$AM$393,Inputs!$I$398:$AM$398) -> 0.6227497419 | R16: =LOOKUP(R$11,Inputs!$I$393:$AM$393,Inputs!$I$398:$AM$398) -> 0.5820091046 | S16: =LOOKUP(S$11,Inputs!$I$393:$AM$393,Inputs!$I$398:$AM$398) -> 0.5439337426 | T16: =LOOKUP(T$11,Inputs!$I$393:$AM$393,Inputs!$I$398:$AM$398) -> 0.5083492921 | U16: =LOOKUP(U$11,Inputs!$I$393:$AM$393,Inputs!$I$398:$AM$398) -> 0.4750927964 | V16: =LOOKUP(V$11,Inputs!$I$393:$AM$393,Inputs!$I$398:$AM$398) -> 0.4440119592 | W16: =LOOKUP(W$11,Inputs!$I$393:$AM$393,Inputs!$I$398:$AM$398) -> 0.4149644479 | X16: =LOOKUP(X$11,Inputs!$I$393:$AM$393,Inputs!$I$398:$AM$398) -> 0.387817241 | Y16: =LOOKUP(Y$11,Inputs!$I$393:$AM$393,Inputs!$I$398:$AM$398) -> 0.3624460196 | Z16: =LOOKUP(Z$11,Inputs!$I$393:$AM$393,Inputs!$I$398:$AM$398) -> 0.3387345978 | AA16: =LOOKUP(AA$11,Inputs!$I$393:$AM$393,Inputs!$I$398:$AM$398) -> 0.3165743905 | AB16: =LOOKUP(AB$11,Inputs!$I$393:$AM$393,Inputs!$I$398:$AM$398) -> 0.2958639163 | AC16: =LOOKUP(AC$11,Inputs!$I$393:$AM$393,Inputs!$I$398:$AM$398) -> 0.276508333 | AD16: =LOOKUP(AD$11,Inputs!$I$393:$AM$393,Inputs!$I$398:$AM$398) -> 0.2584190028 | AE16: =LOOKUP(AE$11,Inputs!$I$393:$AM$393,Inputs!$I$398:$AM$398) -> 0.2415130867 | AF16: =LOOKUP(AF$11,Inputs!$I$393:$AM$393,Inputs!$I$398:$AM$398) -> 0.2257131652 | AG16: =LOOKUP(AG$11,Inputs!$I$393:$AM$393,Inputs!$I$398:$AM$398) -> 0.2109468833 | AH16: =LOOKUP(AH$11,Inputs!$I$393:$AM$393,Inputs!$I$398:$AM$398) -> 0.1971466199 | AI16: =LOOKUP(AI$11,Inputs!$I$393:$AM$393,Inputs!$I$398:$AM$398) -> 0.1842491775 | AJ16: =LOOKUP(AJ$11,Inputs!$I$393:$AM$393,Inputs!$I$398:$AM$398) -> 0.172195493 | AK16: =LOOKUP(AK$11,Inputs!$I$393:$AM$393,Inputs!$I$398:$AM$398) -> 0.1609303673 | AL16: =LOOKUP(AL$11,Inputs!$I$393:$AM$393,Inputs!$I$398:$AM$398) -> 0.1504022124 | AM16: =LOOKUP(AM$11,Inputs!$I$393:$AM$393,Inputs!$I$398:$AM$398) -> 0.1405628154 | AN16: =LOOKUP(AN$11,Inputs!$I$393:$AM$393,Inputs!$I$398:$AM$398) -> 0.1313671172 | AO16: =LOOKUP(AO$11,Inputs!$I$393:$AM$393,Inputs!$I$398:$AM$398) -> 0.1313671172 | AP16: =LOOKUP(AP$11,Inputs!$I$393:$AM$393,Inputs!$I$398:$AM$398) -> 0.1313671172 | AQ16: =LOOKUP(AQ$11,Inputs!$I$393:$AM$393,Inputs!$I$398:$AM$398) -> 0.1313671172 | AR16: =LOOKUP(AR$11,Inputs!$I$393:$AM$393,Inputs!$I$398:$AM$398) -> 0.1313671172 | AS16: =LOOKUP(AS$11,Inputs!$I$393:$AM$393,Inputs!$I$398:$AM$398) -> 0.1313671172 | AT16: =LOOKUP(AT$11,Inputs!$I$393:$AM$393,Inputs!$I$398:$AM$398) -> 0.1313671172 | AU16: =LOOKUP(AU$11,Inputs!$I$393:$AM$393,Inputs!$I$398:$AM$398) -> 0.1313671172 | AV16: =LOOKUP(AV$11,Inputs!$I$393:$AM$393,Inputs!$I$398:$AM$398) -> 0.1313671172 | AW16: =LOOKUP(AW$11,Inputs!$I$393:$AM$393,Inputs!$I$398:$AM$398) -> 0.1313671172 | AX16: =LOOKUP(AX$11,Inputs!$I$393:$AM$393,Inputs!$I$398:$AM$398) -> 0.1313671172 | AY16: =LOOKUP(AY$11,Inputs!$I$393:$AM$393,Inputs!$I$398:$AM$398) -> 0.1313671172 | AZ16: =LOOKUP(AZ$11,Inputs!$I$393:$AM$393,Inputs!$I$398:$AM$398) -> 0.1313671172 | BA16: =LOOKUP(BA$11,Inputs!$I$393:$AM$393,Inputs!$I$398:$AM$398) -> 0.1313671172 | BB16: =LOOKUP(BB$11,Inputs!$I$393:$AM$393,Inputs!$I$398:$AM$398) -> 0.1313671172 | BC16: =LOOKUP(BC$11,Inputs!$I$393:$AM$393,Inputs!$I$398:$AM$398) -> 0.1313671172 | BD16: =LOOKUP(BD$11,Inputs!$I$393:$AM$393,Inputs!$I$398:$AM$398) -> 0.1313671172 | BE16: =LOOKUP(BE$11,Inputs!$I$393:$AM$393,Inputs!$I$398:$AM$398) -> 0.1313671172 | BF16: =LOOKUP(BF$11,Inputs!$I$393:$AM$393,Inputs!$I$398:$AM$398) -> 0.1313671172 | BG16: =LOOKUP(BG$11,Inputs!$I$393:$AM$393,Inputs!$I$398:$AM$398) -> 0.1313671172 | BH16: =LOOKUP(BH$11,Inputs!$I$393:$AM$393,Inputs!$I$398:$AM$398) -> 0.1313671172 | BI16: =LOOKUP(BI$11,Inputs!$I$393:$AM$393,Inputs!$I$398:$AM$398) -> 0.1313671172 | BJ16: =LOOKUP(BJ$11,Inputs!$I$393:$AM$393,Inputs!$I$398:$AM$398) -> 0.1313671172 | BK16: =LOOKUP(BK$11,Inputs!$I$393:$AM$393,Inputs!$I$398:$AM$398) -> 0.1313671172 | BL16: =LOOKUP(BL$11,Inputs!$I$393:$AM$393,Inputs!$I$398:$AM$398) -> 0.1313671172 | BM16: =LOOKUP(BM$11,Inputs!$I$393:$AM$393,Inputs!$I$398:$AM$398) -> 0.1313671172 | BN16: =LOOKUP(BN$11,Inputs!$I$393:$AM$393,Inputs!$I$398:$AM$398) -> 0.1313671172 | BO16: =LOOKUP(BO$11,Inputs!$I$393:$AM$393,Inputs!$I$398:$AM$398) -> 0.1313671172 | BP16: =LOOKUP(BP$11,Inputs!$I$393:$AM$393,Inputs!$I$398:$AM$398) -> 0.1313671172 | BQ16: =LOOKUP(BQ$11,Inputs!$I$393:$AM$393,Inputs!$I$398:$AM$398) -> 0.1313671172 | BR16: =LOOKUP(BR$11,Inputs!$I$393:$AM$393,Inputs!$I$398:$AM$398) -> 0.1313671172 | BS16: =LOOKUP(BS$11,Inputs!$I$393:$AM$393,Inputs!$I$398:$AM$398) -> 0.1313671172 | BT16: =LOOKUP(BT$11,Inputs!$I$393:$AM$393,Inputs!$I$398:$AM$398) -> 0.1313671172 | BU16: =LOOKUP(BU$11,Inputs!$I$393:$AM$393,Inputs!$I$398:$AM$398) -> 0.1313671172 | BV16: =LOOKUP(BV$11,Inputs!$I$393:$AM$393,Inputs!$I$398:$AM$398) -> 0.1313671172 | BW16: =LOOKUP(BW$11,Inputs!$I$393:$AM$393,Inputs!$I$398:$AM$398) -> 0.1313671172 | BX16: =LOOKUP(BX$11,Inputs!$I$393:$AM$393,Inputs!$I$398:$AM$398) -> 0.1313671172 | BY16: =LOOKUP(BY$11,Inputs!$I$393:$AM$393,Inputs!$I$398:$AM$398) -> 0.1313671172 | BZ16: =LOOKUP(BZ$11,Inputs!$I$393:$AM$393,Inputs!$I$398:$AM$398) -> 0.1313671172
C17: =Inputs!C399 -> USD appreciation against Naira | D17: Index | J17: =LOOKUP(J$11,Inputs!$I$393:$AM$393,Inputs!$I$399:$AM$399) -> 1 | K17: =LOOKUP(K$11,Inputs!$I$393:$AM$393,Inputs!$I$399:$AM$399) -> 1.07 | L17: =LOOKUP(L$11,Inputs!$I$393:$AM$393,Inputs!$I$399:$AM$399) -> 1.1449 | M17: =LOOKUP(M$11,Inputs!$I$393:$AM$393,Inputs!$I$399:$AM$399) -> 1.225043 | N17: =LOOKUP(N$11,Inputs!$I$393:$AM$393,Inputs!$I$399:$AM$399) -> 1.31079601 | O17: =LOOKUP(O$11,Inputs!$I$393:$AM$393,Inputs!$I$399:$AM$399) -> 1.402551731 | P17: =LOOKUP(P$11,Inputs!$I$393:$AM$393,Inputs!$I$399:$AM$399) -> 1.500730352 | Q17: =LOOKUP(Q$11,Inputs!$I$393:$AM$393,Inputs!$I$399:$AM$399) -> 1.605781476 | R17: =LOOKUP(R$11,Inputs!$I$393:$AM$393,Inputs!$I$399:$AM$399) -> 1.71818618 | S17: =LOOKUP(S$11,Inputs!$I$393:$AM$393,Inputs!$I$399:$AM$399) -> 1.838459212 | T17: =LOOKUP(T$11,Inputs!$I$393:$AM$393,Inputs!$I$399:$AM$399) -> 1.967151357 | U17: =LOOKUP(U$11,Inputs!$I$393:$AM$393,Inputs!$I$399:$AM$399) -> 2.104851952 | V17: =LOOKUP(V$11,Inputs!$I$393:$AM$393,Inputs!$I$399:$AM$399) -> 2.252191589 | W17: =LOOKUP(W$11,Inputs!$I$393:$AM$393,Inputs!$I$399:$AM$399) -> 2.409845 | X17: =LOOKUP(X$11,Inputs!$I$393:$AM$393,Inputs!$I$399:$AM$399) -> 2.57853415 | Y17: =LOOKUP(Y$11,Inputs!$I$393:$AM$393,Inputs!$I$399:$AM$399) -> 2.759031541 | Z17: =LOOKUP(Z$11,Inputs!$I$393:$AM$393,Inputs!$I$399:$AM$399) -> 2.952163749 | AA17: =LOOKUP(AA$11,Inputs!$I$393:$AM$393,Inputs!$I$399:$AM$399) -> 3.158815211 | AB17: =LOOKUP(AB$11,Inputs!$I$393:$AM$393,Inputs!$I$399:$AM$399) -> 3.379932276 | AC17: =LOOKUP(AC$11,Inputs!$I$393:$AM$393,Inputs!$I$399:$AM$399) -> 3.616527535 | AD17: =LOOKUP(AD$11,Inputs!$I$393:$AM$393,Inputs!$I$399:$AM$399) -> 3.869684462 | AE17: =LOOKUP(AE$11,Inputs!$I$393:$AM$393,Inputs!$I$399:$AM$399) -> 4.140562375 | AF17: =LOOKUP(AF$11,Inputs!$I$393:$AM$393,Inputs!$I$399:$AM$399) -> 4.430401741 | AG17: =LOOKUP(AG$11,Inputs!$I$393:$AM$393,Inputs!$I$399:$AM$399) -> 4.740529863 | AH17: =LOOKUP(AH$11,Inputs!$I$393:$AM$393,Inputs!$I$399:$AM$399) -> 5.072366953 | AI17: =LOOKUP(AI$11,Inputs!$I$393:$AM$393,Inputs!$I$399:$AM$399) -> 5.42743264 | AJ17: =LOOKUP(AJ$11,Inputs!$I$393:$AM$393,Inputs!$I$399:$AM$399) -> 5.807352925 | AK17: =LOOKUP(AK$11,Inputs!$I$393:$AM$393,Inputs!$I$399:$AM$399) -> 6.21386763 | AL17: =LOOKUP(AL$11,Inputs!$I$393:$AM$393,Inputs!$I$399:$AM$399) -> 6.648838364 | AM17: =LOOKUP(AM$11,Inputs!$I$393:$AM$393,Inputs!$I$399:$AM$399) -> 7.114257049 | AN17: =LOOKUP(AN$11,Inputs!$I$393:$AM$393,Inputs!$I$399:$AM$399) -> 7.612255043 | AO17: =LOOKUP(AO$11,Inputs!$I$393:$AM$393,Inputs!$I$399:$AM$399) -> 7.612255043 | AP17: =LOOKUP(AP$11,Inputs!$I$393:$AM$393,Inputs!$I$399:$AM$399) -> 7.612255043 | AQ17: =LOOKUP(AQ$11,Inputs!$I$393:$AM$393,Inputs!$I$399:$AM$399) -> 7.612255043 | AR17: =LOOKUP(AR$11,Inputs!$I$393:$AM$393,Inputs!$I$399:$AM$399) -> 7.612255043 | AS17: =LOOKUP(AS$11,Inputs!$I$393:$AM$393,Inputs!$I$399:$AM$399) -> 7.612255043 | AT17: =LOOKUP(AT$11,Inputs!$I$393:$AM$393,Inputs!$I$399:$AM$399) -> 7.612255043 | AU17: =LOOKUP(AU$11,Inputs!$I$393:$AM$393,Inputs!$I$399:$AM$399) -> 7.612255043 | AV17: =LOOKUP(AV$11,Inputs!$I$393:$AM$393,Inputs!$I$399:$AM$399) -> 7.612255043 | AW17: =LOOKUP(AW$11,Inputs!$I$393:$AM$393,Inputs!$I$399:$AM$399) -> 7.612255043 | AX17: =LOOKUP(AX$11,Inputs!$I$393:$AM$393,Inputs!$I$399:$AM$399) -> 7.612255043 | AY17: =LOOKUP(AY$11,Inputs!$I$393:$AM$393,Inputs!$I$399:$AM$399) -> 7.612255043 | AZ17: =LOOKUP(AZ$11,Inputs!$I$393:$AM$393,Inputs!$I$399:$AM$399) -> 7.612255043 | BA17: =LOOKUP(BA$11,Inputs!$I$393:$AM$393,Inputs!$I$399:$AM$399) -> 7.612255043 | BB17: =LOOKUP(BB$11,Inputs!$I$393:$AM$393,Inputs!$I$399:$AM$399) -> 7.612255043 | BC17: =LOOKUP(BC$11,Inputs!$I$393:$AM$393,Inputs!$I$399:$AM$399) -> 7.612255043 | BD17: =LOOKUP(BD$11,Inputs!$I$393:$AM$393,Inputs!$I$399:$AM$399) -> 7.612255043 | BE17: =LOOKUP(BE$11,Inputs!$I$393:$AM$393,Inputs!$I$399:$AM$399) -> 7.612255043 | BF17: =LOOKUP(BF$11,Inputs!$I$393:$AM$393,Inputs!$I$399:$AM$399) -> 7.612255043 | BG17: =LOOKUP(BG$11,Inputs!$I$393:$AM$393,Inputs!$I$399:$AM$399) -> 7.612255043 | BH17: =LOOKUP(BH$11,Inputs!$I$393:$AM$393,Inputs!$I$399:$AM$399) -> 7.612255043 | BI17: =LOOKUP(BI$11,Inputs!$I$393:$AM$393,Inputs!$I$399:$AM$399) -> 7.612255043 | BJ17: =LOOKUP(BJ$11,Inputs!$I$393:$AM$393,Inputs!$I$399:$AM$399) -> 7.612255043 | BK17: =LOOKUP(BK$11,Inputs!$I$393:$AM$393,Inputs!$I$399:$AM$399) -> 7.612255043 | BL17: =LOOKUP(BL$11,Inputs!$I$393:$AM$393,Inputs!$I$399:$AM$399) -> 7.612255043 | BM17: =LOOKUP(BM$11,Inputs!$I$393:$AM$393,Inputs!$I$399:$AM$399) -> 7.612255043 | BN17: =LOOKUP(BN$11,Inputs!$I$393:$AM$393,Inputs!$I$399:$AM$399) -> 7.612255043 | BO17: =LOOKUP(BO$11,Inputs!$I$393:$AM$393,Inputs!$I$399:$AM$399) -> 7.612255043 | BP17: =LOOKUP(BP$11,Inputs!$I$393:$AM$393,Inputs!$I$399:$AM$399) -> 7.612255043 | BQ17: =LOOKUP(BQ$11,Inputs!$I$393:$AM$393,Inputs!$I$399:$AM$399) -> 7.612255043 | BR17: =LOOKUP(BR$11,Inputs!$I$393:$AM$393,Inputs!$I$399:$AM$399) -> 7.612255043 | BS17: =LOOKUP(BS$11,Inputs!$I$393:$AM$393,Inputs!$I$399:$AM$399) -> 7.612255043 | BT17: =LOOKUP(BT$11,Inputs!$I$393:$AM$393,Inputs!$I$399:$AM$399) -> 7.612255043 | BU17: =LOOKUP(BU$11,Inputs!$I$393:$AM$393,Inputs!$I$399:$AM$399) -> 7.612255043 | BV17: =LOOKUP(BV$11,Inputs!$I$393:$AM$393,Inputs!$I$399:$AM$399) -> 7.612255043 | BW17: =LOOKUP(BW$11,Inputs!$I$393:$AM$393,Inputs!$I$399:$AM$399) -> 7.612255043 | BX17: =LOOKUP(BX$11,Inputs!$I$393:$AM$393,Inputs!$I$399:$AM$399) -> 7.612255043 | BY17: =LOOKUP(BY$11,Inputs!$I$393:$AM$393,Inputs!$I$399:$AM$399) -> 7.612255043 | BZ17: =LOOKUP(BZ$11,Inputs!$I$393:$AM$393,Inputs!$I$399:$AM$399) -> 7.612255043
C18: AssetCo live flag | D18: Flag | J18: =(J$4>=$E6)*(J$5<=$F7) -> 1 | K18: 1 | L18: 1 | M18: 1 | N18: 1 | O18: 1 | P18: 1 | Q18: 1 | R18: 1 | S18: 1 | T18: 1 | U18: 1 | V18: 1 | W18: 1 | X18: 1 | Y18: 1 | Z18: 1 | AA18: 1 | AB18: 1 | AC18: 1 | AD18: 1 | AE18: 0 | AF18: 0 | AG18: 0 | AH18: 0 | AI18: 0 | AJ18: 0 | AK18: 0 | AL18: 0 | AM18: 0 | AN18: 0 | AO18: 0 | AP18: =(AP$4>=$E6)*(AP$5<=$F7) -> 0 | AQ18: 0 | AR18: 0 | AS18: 0 | AT18: 0 | AU18: 0 | AV18: 0 | AW18: 0 | AX18: 0 | AY18: 0 | AZ18: 0 | BA18: 0 | BB18: 0 | BC18: 0 | BD18: 0 | BE18: 0 | BF18: 0 | BG18: 0 | BH18: 0 | BI18: 0 | BJ18: 0 | BK18: 0 | BL18: 0 | BM18: 0 | BN18: 0 | BO18: 0 | BP18: 0 | BQ18: 0 | BR18: 0 | BS18: 0 | BT18: 0 | BU18: 0 | BV18: 0 | BW18: 0 | BX18: 0 | BY18: 0 | BZ18: 0
C19: AssetCo lifetime | D19: Flag | J19: =SUM($J18:J18)*J18 -> 1 | K19: =SUM($J18:K18)*K18 -> 2 | L19: =SUM($J18:L18)*L18 -> 3 | M19: =SUM($J18:M18)*M18 -> 4 | N19: =SUM($J18:N18)*N18 -> 5 | O19: =SUM($J18:O18)*O18 -> 6 | P19: =SUM($J18:P18)*P18 -> 7 | Q19: =SUM($J18:Q18)*Q18 -> 8 | R19: =SUM($J18:R18)*R18 -> 9 | S19: =SUM($J18:S18)*S18 -> 10 | T19: =SUM($J18:T18)*T18 -> 11 | U19: =SUM($J18:U18)*U18 -> 12 | V19: =SUM($J18:V18)*V18 -> 13 | W19: =SUM($J18:W18)*W18 -> 14 | X19: =SUM($J18:X18)*X18 -> 15 | Y19: =SUM($J18:Y18)*Y18 -> 16 | Z19: =SUM($J18:Z18)*Z18 -> 17 | AA19: =SUM($J18:AA18)*AA18 -> 18 | AB19: =SUM($J18:AB18)*AB18 -> 19 | AC19: =SUM($J18:AC18)*AC18 -> 20 | AD19: =SUM($J18:AD18)*AD18 -> 21 | AE19: =SUM($J18:AE18)*AE18 -> 0 | AF19: =SUM($J18:AF18)*AF18 -> 0 | AG19: =SUM($J18:AG18)*AG18 -> 0 | AH19: =SUM($J18:AH18)*AH18 -> 0 | AI19: =SUM($J18:AI18)*AI18 -> 0 | AJ19: =SUM($J18:AJ18)*AJ18 -> 0 | AK19: =SUM($J18:AK18)*AK18 -> 0 | AL19: =SUM($J18:AL18)*AL18 -> 0 | AM19: =SUM($J18:AM18)*AM18 -> 0 | AN19: =SUM($J18:AN18)*AN18 -> 0 | AO19: =SUM($J18:AO18)*AO18 -> 0 | AP19: =SUM($J18:AP18)*AP18 -> 0 | AQ19: =SUM($J18:AQ18)*AQ18 -> 0 | AR19: =SUM($J18:AR18)*AR18 -> 0 | AS19: =SUM($J18:AS18)*AS18 -> 0 | AT19: =SUM($J18:AT18)*AT18 -> 0 | AU19: =SUM($J18:AU18)*AU18 -> 0 | AV19: =SUM($J18:AV18)*AV18 -> 0 | AW19: =SUM($J18:AW18)*AW18 -> 0 | AX19: =SUM($J18:AX18)*AX18 -> 0 | AY19: =SUM($J18:AY18)*AY18 -> 0 | AZ19: =SUM($J18:AZ18)*AZ18 -> 0 | BA19: =SUM($J18:BA18)*BA18 -> 0 | BB19: =SUM($J18:BB18)*BB18 -> 0 | BC19: =SUM($J18:BC18)*BC18 -> 0 | BD19: =SUM($J18:BD18)*BD18 -> 0 | BE19: =SUM($J18:BE18)*BE18 -> 0 | BF19: =SUM($J18:BF18)*BF18 -> 0 | BG19: =SUM($J18:BG18)*BG18 -> 0 | BH19: =SUM($J18:BH18)*BH18 -> 0 | BI19: =SUM($J18:BI18)*BI18 -> 0 | BJ19: =SUM($J18:BJ18)*BJ18 -> 0 | BK19: =SUM($J18:BK18)*BK18 -> 0 | BL19: =SUM($J18:BL18)*BL18 -> 0 | BM19: =SUM($J18:BM18)*BM18 -> 0 | BN19: =SUM($J18:BN18)*BN18 -> 0 | BO19: =SUM($J18:BO18)*BO18 -> 0 | BP19: =SUM($J18:BP18)*BP18 -> 0 | BQ19: =SUM($J18:BQ18)*BQ18 -> 0 | BR19: =SUM($J18:BR18)*BR18 -> 0 | BS19: =SUM($J18:BS18)*BS18 -> 0 | BT19: =SUM($J18:BT18)*BT18 -> 0 | BU19: =SUM($J18:BU18)*BU18 -> 0 | BV19: =SUM($J18:BV18)*BV18 -> 0 | BW19: =SUM($J18:BW18)*BW18 -> 0 | BX19: =SUM($J18:BX18)*BX18 -> 0 | BY19: =SUM($J18:BY18)*BY18 -> 0 | BZ19: =SUM($J18:BZ18)*BZ18 -> 0
C20: Last year of construction flag | E20: =Inputs!E10 -> 1 | J20: =($E20=J13)*1 -> 1 | K20: 0 | L20: 0 | M20: 0 | N20: 0 | O20: 0 | P20: 0 | Q20: 0 | R20: 0 | S20: 0 | T20: 0 | U20: 0 | V20: 0 | W20: 0 | X20: 0 | Y20: 0 | Z20: 0 | AA20: 0 | AB20: 0 | AC20: 0 | AD20: 0 | AE20: 0 | AF20: 0 | AG20: 0 | AH20: 0 | AI20: 0 | AJ20: 0 | AK20: 0 | AL20: 0 | AM20: 0 | AN20: 0 | AO20: 0 | AP20: =($E20=AP13)*1 -> 0 | AQ20: 0 | AR20: 0 | AS20: 0 | AT20: 0 | AU20: 0 | AV20: 0 | AW20: 0 | AX20: 0 | AY20: 0 | AZ20: 0 | BA20: 0 | BB20: 0 | BC20: 0 | BD20: 0 | BE20: 0 | BF20: 0 | BG20: 0 | BH20: 0 | BI20: 0 | BJ20: 0 | BK20: 0 | BL20: 0 | BM20: 0 | BN20: 0 | BO20: 0 | BP20: 0 | BQ20: 0 | BR20: 0 | BS20: 0 | BT20: 0 | BU20: 0 | BV20: 0 | BW20: 0 | BX20: 0 | BY20: 0 | BZ20: 0
C22: Portfolio Profile
C23: Operational Grids year end | D23: Num# | J23: =J185 -> 0 | K23: 30 | L23: 30 | M23: 30 | N23: 30 | O23: 30 | P23: 30 | Q23: 30 | R23: 30 | S23: 30 | T23: 30 | U23: 30 | V23: 30 | W23: 30 | X23: 30 | Y23: 30 | Z23: 30 | AA23: 30 | AB23: 30 | AC23: 30 | AD23: 30 | AE23: 0 | AF23: 0 | AG23: 0 | AH23: 0 | AI23: 0 | AJ23: 0 | AK23: 0 | AL23: 0 | AM23: 0 | AN23: 0 | AO23: 0 | AP23: =AP185 -> 0 | AQ23: 0 | AR23: 0 | AS23: 0 | AT23: 0 | AU23: 0 | AV23: 0 | AW23: 0 | AX23: 0 | AY23: 0 | AZ23: 0 | BA23: 0 | BB23: 0 | BC23: 0 | BD23: 0 | BE23: 0 | BF23: 0 | BG23: 0 | BH23: 0 | BI23: 0 | BJ23: 0 | BK23: 0 | BL23: 0 | BM23: 0 | BN23: 0 | BO23: 0 | BP23: 0 | BQ23: 0 | BR23: 0 | BS23: 0 | BT23: 0 | BU23: 0 | BV23: 0 | BW23: 0 | BX23: 0 | BY23: 0 | BZ23: 0
C24: Operational Grids ramp-up | D24: Num# | J24: =IF(J14=0,0,LOOKUP(J$14,Inputs!$I$148:$R$148,Inputs!$I$154:$R$154)) -> 0 | K24: =IF(K14=0,0,LOOKUP(K$14,Inputs!$I$148:$R$148,Inputs!$I$154:$R$154)) -> 30 | L24: =IF(L14=0,0,LOOKUP(L$14,Inputs!$I$148:$R$148,Inputs!$I$154:$R$154)) -> 30 | M24: =IF(M14=0,0,LOOKUP(M$14,Inputs!$I$148:$R$148,Inputs!$I$154:$R$154)) -> 30 | N24: =IF(N14=0,0,LOOKUP(N$14,Inputs!$I$148:$R$148,Inputs!$I$154:$R$154)) -> 30 | O24: =IF(O14=0,0,LOOKUP(O$14,Inputs!$I$148:$R$148,Inputs!$I$154:$R$154)) -> 30 | P24: =IF(P14=0,0,LOOKUP(P$14,Inputs!$I$148:$R$148,Inputs!$I$154:$R$154)) -> 30 | Q24: =IF(Q14=0,0,LOOKUP(Q$14,Inputs!$I$148:$R$148,Inputs!$I$154:$R$154)) -> 30 | R24: =IF(R14=0,0,LOOKUP(R$14,Inputs!$I$148:$R$148,Inputs!$I$154:$R$154)) -> 30 | S24: =IF(S14=0,0,LOOKUP(S$14,Inputs!$I$148:$R$148,Inputs!$I$154:$R$154)) -> 30 | T24: =IF(T14=0,0,LOOKUP(T$14,Inputs!$I$148:$R$148,Inputs!$I$154:$R$154)) -> 30 | U24: =IF(U14=0,0,LOOKUP(U$14,Inputs!$I$148:$R$148,Inputs!$I$154:$R$154)) -> 30 | V24: =IF(V14=0,0,LOOKUP(V$14,Inputs!$I$148:$R$148,Inputs!$I$154:$R$154)) -> 30 | W24: =IF(W14=0,0,LOOKUP(W$14,Inputs!$I$148:$R$148,Inputs!$I$154:$R$154)) -> 30 | X24: =IF(X14=0,0,LOOKUP(X$14,Inputs!$I$148:$R$148,Inputs!$I$154:$R$154)) -> 30 | Y24: =IF(Y14=0,0,LOOKUP(Y$14,Inputs!$I$148:$R$148,Inputs!$I$154:$R$154)) -> 30 | Z24: =IF(Z14=0,0,LOOKUP(Z$14,Inputs!$I$148:$R$148,Inputs!$I$154:$R$154)) -> 30 | AA24: =IF(AA14=0,0,LOOKUP(AA$14,Inputs!$I$148:$R$148,Inputs!$I$154:$R$154)) -> 30 | AB24: =IF(AB14=0,0,LOOKUP(AB$14,Inputs!$I$148:$R$148,Inputs!$I$154:$R$154)) -> 30 | AC24: =IF(AC14=0,0,LOOKUP(AC$14,Inputs!$I$148:$R$148,Inputs!$I$154:$R$154)) -> 30 | AD24: =IF(AD14=0,0,LOOKUP(AD$14,Inputs!$I$148:$R$148,Inputs!$I$154:$R$154)) -> 30 | AE24: =IF(AE14=0,0,LOOKUP(AE$14,Inputs!$I$148:$R$148,Inputs!$I$154:$R$154)) -> 0 | AF24: =IF(AF14=0,0,LOOKUP(AF$14,Inputs!$I$148:$R$148,Inputs!$I$154:$R$154)) -> 0 | AG24: =IF(AG14=0,0,LOOKUP(AG$14,Inputs!$I$148:$R$148,Inputs!$I$154:$R$154)) -> 0 | AH24: =IF(AH14=0,0,LOOKUP(AH$14,Inputs!$I$148:$R$148,Inputs!$I$154:$R$154)) -> 0 | AI24: =IF(AI14=0,0,LOOKUP(AI$14,Inputs!$I$148:$R$148,Inputs!$I$154:$R$154)) -> 0 | AJ24: =IF(AJ14=0,0,LOOKUP(AJ$14,Inputs!$I$148:$R$148,Inputs!$I$154:$R$154)) -> 0 | AK24: =IF(AK14=0,0,LOOKUP(AK$14,Inputs!$I$148:$R$148,Inputs!$I$154:$R$154)) -> 0 | AL24: =IF(AL14=0,0,LOOKUP(AL$14,Inputs!$I$148:$R$148,Inputs!$I$154:$R$154)) -> 0 | AM24: =IF(AM14=0,0,LOOKUP(AM$14,Inputs!$I$148:$R$148,Inputs!$I$154:$R$154)) -> 0 | AN24: =IF(AN14=0,0,LOOKUP(AN$14,Inputs!$I$148:$R$148,Inputs!$I$154:$R$154)) -> 0 | AO24: =IF(AO14=0,0,LOOKUP(AO$14,Inputs!$I$148:$R$148,Inputs!$I$154:$R$154)) -> 0 | AP24: =IF(AP14=0,0,LOOKUP(AP$14,Inputs!$I$148:$R$148,Inputs!$I$154:$R$154)) -> 0 | AQ24: =IF(AQ14=0,0,LOOKUP(AQ$14,Inputs!$I$148:$R$148,Inputs!$I$154:$R$154)) -> 0 | AR24: =IF(AR14=0,0,LOOKUP(AR$14,Inputs!$I$148:$R$148,Inputs!$I$154:$R$154)) -> 0 | AS24: =IF(AS14=0,0,LOOKUP(AS$14,Inputs!$I$148:$R$148,Inputs!$I$154:$R$154)) -> 0 | AT24: =IF(AT14=0,0,LOOKUP(AT$14,Inputs!$I$148:$R$148,Inputs!$I$154:$R$154)) -> 0 | AU24: =IF(AU14=0,0,LOOKUP(AU$14,Inputs!$I$148:$R$148,Inputs!$I$154:$R$154)) -> 0 | AV24: =IF(AV14=0,0,LOOKUP(AV$14,Inputs!$I$148:$R$148,Inputs!$I$154:$R$154)) -> 0 | AW24: =IF(AW14=0,0,LOOKUP(AW$14,Inputs!$I$148:$R$148,Inputs!$I$154:$R$154)) -> 0 | AX24: =IF(AX14=0,0,LOOKUP(AX$14,Inputs!$I$148:$R$148,Inputs!$I$154:$R$154)) -> 0 | AY24: =IF(AY14=0,0,LOOKUP(AY$14,Inputs!$I$148:$R$148,Inputs!$I$154:$R$154)) -> 0 | AZ24: =IF(AZ14=0,0,LOOKUP(AZ$14,Inputs!$I$148:$R$148,Inputs!$I$154:$R$154)) -> 0 | BA24: =IF(BA14=0,0,LOOKUP(BA$14,Inputs!$I$148:$R$148,Inputs!$I$154:$R$154)) -> 0 | BB24: =IF(BB14=0,0,LOOKUP(BB$14,Inputs!$I$148:$R$148,Inputs!$I$154:$R$154)) -> 0 | BC24: =IF(BC14=0,0,LOOKUP(BC$14,Inputs!$I$148:$R$148,Inputs!$I$154:$R$154)) -> 0 | BD24: =IF(BD14=0,0,LOOKUP(BD$14,Inputs!$I$148:$R$148,Inputs!$I$154:$R$154)) -> 0 | BE24: =IF(BE14=0,0,LOOKUP(BE$14,Inputs!$I$148:$R$148,Inputs!$I$154:$R$154)) -> 0 | BF24: =IF(BF14=0,0,LOOKUP(BF$14,Inputs!$I$148:$R$148,Inputs!$I$154:$R$154)) -> 0 | BG24: =IF(BG14=0,0,LOOKUP(BG$14,Inputs!$I$148:$R$148,Inputs!$I$154:$R$154)) -> 0 | BH24: =IF(BH14=0,0,LOOKUP(BH$14,Inputs!$I$148:$R$148,Inputs!$I$154:$R$154)) -> 0 | BI24: =IF(BI14=0,0,LOOKUP(BI$14,Inputs!$I$148:$R$148,Inputs!$I$154:$R$154)) -> 0 | BJ24: =IF(BJ14=0,0,LOOKUP(BJ$14,Inputs!$I$148:$R$148,Inputs!$I$154:$R$154)) -> 0 | BK24: =IF(BK14=0,0,LOOKUP(BK$14,Inputs!$I$148:$R$148,Inputs!$I$154:$R$154)) -> 0 | BL24: =IF(BL14=0,0,LOOKUP(BL$14,Inputs!$I$148:$R$148,Inputs!$I$154:$R$154)) -> 0 | BM24: =IF(BM14=0,0,LOOKUP(BM$14,Inputs!$I$148:$R$148,Inputs!$I$154:$R$154)) -> 0 | BN24: =IF(BN14=0,0,LOOKUP(BN$14,Inputs!$I$148:$R$148,Inputs!$I$154:$R$154)) -> 0 | BO24: =IF(BO14=0,0,LOOKUP(BO$14,Inputs!$I$148:$R$148,Inputs!$I$154:$R$154)) -> 0 | BP24: =IF(BP14=0,0,LOOKUP(BP$14,Inputs!$I$148:$R$148,Inputs!$I$154:$R$154)) -> 0 | BQ24: =IF(BQ14=0,0,LOOKUP(BQ$14,Inputs!$I$148:$R$148,Inputs!$I$154:$R$154)) -> 0 | BR24: =IF(BR14=0,0,LOOKUP(BR$14,Inputs!$I$148:$R$148,Inputs!$I$154:$R$154)) -> 0 | BS24: =IF(BS14=0,0,LOOKUP(BS$14,Inputs!$I$148:$R$148,Inputs!$I$154:$R$154)) -> 0 | BT24: =IF(BT14=0,0,LOOKUP(BT$14,Inputs!$I$148:$R$148,Inputs!$I$154:$R$154)) -> 0 | BU24: =IF(BU14=0,0,LOOKUP(BU$14,Inputs!$I$148:$R$148,Inputs!$I$154:$R$154)) -> 0 | BV24: =IF(BV14=0,0,LOOKUP(BV$14,Inputs!$I$148:$R$148,Inputs!$I$154:$R$154)) -> 0 | BW24: =IF(BW14=0,0,LOOKUP(BW$14,Inputs!$I$148:$R$148,Inputs!$I$154:$R$154)) -> 0 | BX24: =IF(BX14=0,0,LOOKUP(BX$14,Inputs!$I$148:$R$148,Inputs!$I$154:$R$154)) -> 0 | BY24: =IF(BY14=0,0,LOOKUP(BY$14,Inputs!$I$148:$R$148,Inputs!$I$154:$R$154)) -> 0 | BZ24: =IF(BZ14=0,0,LOOKUP(BZ$14,Inputs!$I$148:$R$148,Inputs!$I$154:$R$154)) -> 0
C25: Fully Operational Grids over lifetime | D25: Num# | E25: =Inputs!$E$157 -> 1 | J25: =MIN(J23,J24) -> 0 | K25: 30 | L25: 30 | M25: 30 | N25: 30 | O25: 30 | P25: 30 | Q25: 30 | R25: 30 | S25: 30 | T25: 30 | U25: 30 | V25: 30 | W25: 30 | X25: 30 | Y25: 30 | Z25: 30 | AA25: 30 | AB25: 30 | AC25: 30 | AD25: 30 | AE25: 0 | AF25: 0 | AG25: 0 | AH25: 0 | AI25: 0 | AJ25: 0 | AK25: 0 | AL25: 0 | AM25: 0 | AN25: 0 | AO25: 0 | AP25: =MIN(AP23,AP24) -> 0 | AQ25: 0 | AR25: 0 | AS25: 0 | AT25: 0 | AU25: 0 | AV25: 0 | AW25: 0 | AX25: 0 | AY25: 0 | AZ25: 0 | BA25: 0 | BB25: 0 | BC25: 0 | BD25: 0 | BE25: 0 | BF25: 0 | BG25: 0 | BH25: 0 | BI25: 0 | BJ25: 0 | BK25: 0 | BL25: 0 | BM25: 0 | BN25: 0 | BO25: 0 | BP25: 0 | BQ25: 0 | BR25: 0 | BS25: 0 | BT25: 0 | BU25: 0 | BV25: =MIN(BV23,BV24) -> 0 | BW25: 0 | BX25: 0 | BY25: 0 | BZ25: 0
C26: Fully Operational Connections | D26: Num# | E26: =Inputs!$E$30 -> 383.3333333 | J26: =J$25*$E26 -> 0 | K26: 11500 | L26: 11500 | M26: 11500 | N26: 11500 | O26: 11500 | P26: 11500 | Q26: 11500 | R26: 11500 | S26: 11500 | T26: 11500 | U26: 11500 | V26: 11500 | W26: 11500 | X26: 11500 | Y26: 11500 | Z26: 11500 | AA26: 11500 | AB26: 11500 | AC26: 11500 | AD26: 11500 | AE26: 0 | AF26: 0 | AG26: 0 | AH26: 0 | AI26: 0 | AJ26: 0 | AK26: 0 | AL26: 0 | AM26: 0 | AN26: 0 | AO26: 0 | AP26: =AP$25*$E26 -> 0 | AQ26: 0 | AR26: 0 | AS26: 0 | AT26: 0 | AU26: 0 | AV26: 0 | AW26: 0 | AX26: 0 | AY26: 0 | AZ26: 0 | BA26: 0 | BB26: 0 | BC26: 0 | BD26: 0 | BE26: 0 | BF26: 0 | BG26: 0 | BH26: 0 | BI26: 0 | BJ26: 0 | BK26: 0 | BL26: 0 | BM26: 0 | BN26: 0 | BO26: 0 | BP26: 0 | BQ26: 0 | BR26: 0 | BS26: 0 | BT26: 0 | BU26: 0 | BV26: 0 | BW26: 0 | BX26: 0 | BY26: 0 | BZ26: 0
C27: Operational Connections | D27: Num# | E27: =Inputs!$E$30 -> 383.3333333 | J27: =I23*$E$27 -> 0 | K27: 0 | L27: 11500 | M27: 11500 | N27: 11500 | O27: 11500 | P27: 11500 | Q27: 11500 | R27: 11500 | S27: 11500 | T27: 11500 | U27: 11500 | V27: 11500 | W27: 11500 | X27: 11500 | Y27: 11500 | Z27: 11500 | AA27: 11500 | AB27: 11500 | AC27: 11500 | AD27: 11500 | AE27: 11500 | AF27: 0 | AG27: 0 | AH27: 0 | AI27: 0 | AJ27: 0 | AK27: 0 | AL27: 0 | AM27: 0 | AN27: 0 | AO27: 0 | AP27: =AO23*$E$27 -> 0 | AQ27: 0 | AR27: 0 | AS27: 0 | AT27: 0 | AU27: 0 | AV27: 0 | AW27: 0 | AX27: 0 | AY27: 0 | AZ27: 0 | BA27: 0 | BB27: 0 | BC27: 0 | BD27: 0 | BE27: 0 | BF27: 0 | BG27: 0 | BH27: 0 | BI27: 0 | BJ27: 0 | BK27: 0 | BL27: 0 | BM27: 0 | BN27: 0 | BO27: 0 | BP27: 0 | BQ27: 0 | BR27: 0 | BS27: 0 | BT27: 0 | BU27: 0 | BV27: 0 | BW27: 0 | BX27: 0 | BY27: 0 | BZ27: 0
C29: Production
C30: =C589 -> PV system size | D30: =D590 -> kW | E30: Module size | J30: =J590 -> 0 | K30: 2250 | L30: 2250 | M30: 2250 | N30: 2289.347826 | O30: 2486.086957 | P30: 2643.478261 | Q30: 2722.173913 | R30: 2800.869565 | S30: 2840.217391 | T30: 2879.565217 | U30: 2958.26087 | V30: 2997.608696 | W30: 3076.304348 | X30: 3115.652174 | Y30: 3194.347826 | Z30: 3233.695652 | AA30: 3312.391304 | AB30: 3351.73913 | AC30: 3430.434783 | AD30: 3469.782609 | AE30: 3548.478261 | AF30: 1298.478261 | AG30: 1298.478261 | AH30: 1298.478261 | AI30: 1298.478261 | AJ30: 1298.478261 | AK30: 1298.478261 | AL30: 1298.478261 | AM30: 1298.478261 | AN30: 1298.478261 | AO30: 1298.478261 | AP30: =AP590 -> 1298.478261 | AQ30: 1298.478261 | AR30: 1298.478261 | AS30: 1298.478261 | AT30: 1298.478261 | AU30: 1298.478261 | AV30: 1298.478261 | AW30: 1298.478261 | AX30: 1298.478261 | AY30: 1298.478261 | AZ30: 1298.478261 | BA30: 1298.478261 | BB30: 1298.478261 | BC30: 1298.478261 | BD30: 1298.478261 | BE30: 1298.478261 | BF30: 1298.478261 | BG30: 1298.478261 | BH30: 1298.478261 | BI30: 1298.478261 | BJ30: 1298.478261 | BK30: 1298.478261 | BL30: 1298.478261 | BM30: 1298.478261 | BN30: 1298.478261 | BO30: 1298.478261 | BP30: 1298.478261 | BQ30: 1298.478261 | BR30: 1298.478261 | BS30: 1298.478261 | BT30: 1298.478261 | BU30: 1298.478261 | BV30: 1298.478261 | BW30: 1298.478261 | BX30: 1298.478261 | BY30: 1298.478261 | BZ30: 1298.478261
C31: Number of modules | D31: #Num | E31: =Inputs!E106 -> 39.34782609 | J31: =J30/$E31 -> 0 | K31: 57.18232044 | L31: 57.18232044 | M31: 57.18232044 | N31: 58.18232044 | O31: 63.18232044 | P31: 67.18232044 | Q31: 69.18232044 | R31: 71.18232044 | S31: 72.18232044 | T31: 73.18232044 | U31: 75.18232044 | V31: 76.18232044 | W31: 78.18232044 | X31: 79.18232044 | Y31: 81.18232044 | Z31: 82.18232044 | AA31: 84.18232044 | AB31: 85.18232044 | AC31: 87.18232044 | AD31: 88.18232044 | AE31: 90.18232044 | AF31: 33 | AG31: 33 | AH31: 33 | AI31: 33 | AJ31: 33 | AK31: 33 | AL31: 33 | AM31: 33 | AN31: 33 | AO31: 33 | AP31: =AP30/$E31 -> 33 | AQ31: 33 | AR31: 33 | AS31: 33 | AT31: 33 | AU31: 33 | AV31: 33 | AW31: 33 | AX31: 33 | AY31: 33 | AZ31: 33 | BA31: 33 | BB31: 33 | BC31: 33 | BD31: 33 | BE31: 33 | BF31: 33 | BG31: 33 | BH31: 33 | BI31: 33 | BJ31: 33 | BK31: 33 | BL31: 33 | BM31: 33 | BN31: 33 | BO31: 33 | BP31: 33 | BQ31: 33 | BR31: 33 | BS31: 33 | BT31: 33 | BU31: 33 | BV31: =BV30/$E31 -> 33 | BW31: 33 | BX31: 33 | BY31: 33 | BZ31: 33
E32: =E603 -> kWh/kWp
C33: Gross Production | D33: =D608 -> kWh | E33: =E604 -> 1600 | I33: =SUM(J33:BZ33) -> 92083130.43 | J33: =J604 -> 0 | K33: 3600000 | L33: 3600000 | M33: 3600000 | N33: 3662956.522 | O33: 3977739.13 | P33: 4229565.217 | Q33: 4355478.261 | R33: 4481391.304 | S33: 4544347.826 | T33: 4607304.348 | U33: 4733217.391 | V33: 4796173.913 | W33: 4922086.957 | X33: 4985043.478 | Y33: 5110956.522 | Z33: 5173913.043 | AA33: 5299826.087 | AB33: 5362782.609 | AC33: 5488695.652 | AD33: 5551652.174 | AE33: 0 | AF33: 0 | AG33: 0 | AH33: 0 | AI33: 0 | AJ33: 0 | AK33: 0 | AL33: 0 | AM33: 0 | AN33: 0 | AO33: 0 | AP33: =AP604 -> 0 | AQ33: 0 | AR33: 0 | AS33: 0 | AT33: 0 | AU33: 0 | AV33: 0 | AW33: 0 | AX33: 0 | AY33: 0 | AZ33: 0 | BA33: 0 | BB33: 0 | BC33: 0 | BD33: 0 | BE33: 0 | BF33: 0 | BG33: 0 | BH33: 0 | BI33: 0 | BJ33: 0 | BK33: 0 | BL33: 0 | BM33: 0 | BN33: 0 | BO33: 0 | BP33: 0 | BQ33: 0 | BR33: 0 | BS33: 0 | BT33: 0 | BU33: 0 | BV33: 0 | BW33: 0 | BX33: 0 | BY33: 0 | BZ33: 0
C35: Losses
C36: Fixed | D36: kWh | E36: kWh/grid/day
C37: Power Unit Self-Consumption | D37: kWh | E37: =Inputs!E50 -> 7 | I37: =SUM(J37:BZ37) -> -3737061.575 | J37: =-$E37*J31*Days_Yr*J$7 -> 0 | K37: -146100.8287 | L37: -146100.8287 | M37: -146100.8287 | N37: -148655.8287 | O37: -161430.8287 | P37: -171650.8287 | Q37: -176760.8287 | R37: -181870.8287 | S37: -184425.8287 | T37: -186980.8287 | U37: -192090.8287 | V37: -194645.8287 | W37: -199755.8287 | X37: -202310.8287 | Y37: -207420.8287 | Z37: -209975.8287 | AA37: -215085.8287 | AB37: -217640.8287 | AC37: -222750.8287 | AD37: -225305.8287 | AE37: 0 | AF37: 0 | AG37: 0 | AH37: 0 | AI37: 0 | AJ37: 0 | AK37: 0 | AL37: 0 | AM37: 0 | AN37: 0 | AO37: 0 | AP37: =-$E37*AP31*Days_Yr*AP$7 -> 0 | AQ37: 0 | AR37: 0 | AS37: 0 | AT37: 0 | AU37: 0 | AV37: 0 | AW37: 0 | AX37: 0 | AY37: 0 | AZ37: 0 | BA37: 0 | BB37: 0 | BC37: 0 | BD37: 0 | BE37: 0 | BF37: 0 | BG37: 0 | BH37: 0 | BI37: 0 | BJ37: 0 | BK37: 0 | BL37: 0 | BM37: 0 | BN37: 0 | BO37: 0 | BP37: 0 | BQ37: 0 | BR37: 0 | BS37: 0 | BT37: 0 | BU37: 0 | BV37: 0 | BW37: 0 | BX37: 0 | BY37: 0 | BZ37: 0
C39: Variable | E39: =Inputs!D51 -> kWh/connection/day
C40: Meters | D40: kWh | E40: =Inputs!E51 -> 0.05 | I40: =SUM(J40:BZ40) -> -4197500 | J40: =-$E40*J26*Days_Yr*J$7 -> 0 | K40: -209875 | L40: -209875 | M40: -209875 | N40: -209875 | O40: -209875 | P40: -209875 | Q40: -209875 | R40: -209875 | S40: -209875 | T40: -209875 | U40: -209875 | V40: -209875 | W40: -209875 | X40: -209875 | Y40: -209875 | Z40: -209875 | AA40: -209875 | AB40: -209875 | AC40: -209875 | AD40: -209875 | AE40: 0 | AF40: 0 | AG40: 0 | AH40: 0 | AI40: 0 | AJ40: 0 | AK40: 0 | AL40: 0 | AM40: 0 | AN40: 0 | AO40: 0 | AP40: =-$E40*AP26*Days_Yr*AP$7 -> 0 | AQ40: 0 | AR40: 0 | AS40: 0 | AT40: 0 | AU40: 0 | AV40: 0 | AW40: 0 | AX40: 0 | AY40: 0 | AZ40: 0 | BA40: 0 | BB40: 0 | BC40: 0 | BD40: 0 | BE40: 0 | BF40: 0 | BG40: 0 | BH40: 0 | BI40: 0 | BJ40: 0 | BK40: 0 | BL40: 0 | BM40: 0 | BN40: 0 | BO40: 0 | BP40: 0 | BQ40: 0 | BR40: 0 | BS40: 0 | BT40: 0 | BU40: 0 | BV40: 0 | BW40: 0 | BX40: 0 | BY40: 0 | BZ40: 0
C41: Meters Consumption distribution losses | D41: kWh | E41: 1e-05 | I41: =SUM(J41:BZ41) -> -4197541.975 | J41: =J40*(1+$E41) -> 0 | K41: -209877.0988 | L41: -209877.0988 | M41: -209877.0988 | N41: -209877.0988 | O41: -209877.0988 | P41: -209877.0988 | Q41: -209877.0988 | R41: -209877.0988 | S41: -209877.0988 | T41: -209877.0988 | U41: -209877.0988 | V41: -209877.0988 | W41: -209877.0988 | X41: -209877.0988 | Y41: -209877.0988 | Z41: -209877.0988 | AA41: -209877.0988 | AB41: -209877.0988 | AC41: -209877.0988 | AD41: -209877.0988 | AE41: 0 | AF41: 0 | AG41: 0 | AH41: 0 | AI41: 0 | AJ41: 0 | AK41: 0 | AL41: 0 | AM41: 0 | AN41: 0 | AO41: 0 | AP41: =AP40*(1+$E41) -> 0 | AQ41: 0 | AR41: 0 | AS41: 0 | AT41: 0 | AU41: 0 | AV41: 0 | AW41: 0 | AX41: 0 | AY41: 0 | AZ41: 0 | BA41: 0 | BB41: 0 | BC41: 0 | BD41: 0 | BE41: 0 | BF41: 0 | BG41: 0 | BH41: 0 | BI41: 0 | BJ41: 0 | BK41: 0 | BL41: 0 | BM41: 0 | BN41: 0 | BO41: 0 | BP41: 0 | BQ41: 0 | BR41: 0 | BS41: 0 | BT41: 0 | BU41: 0 | BV41: =BV40*(1+$E41) -> 0 | BW41: 0 | BX41: 0 | BY41: 0 | BZ41: 0
C43: Customer Consumption distribution losses | D43: kWh | E43: =Inputs!$E$52 -> 0.07 | I43: =SUM(J43:BZ43) -> -4178259.736 | J43: =J60*(-$E43) -> 0 | K43: -96600 | L43: -138203.3555 | M43: -162539.7584 | N43: -179806.711 | O43: -193200 | P43: -197064 | Q43: -201005.28 | R43: -205025.3856 | S43: -209125.8933 | T43: -213308.4112 | U43: -217574.5794 | V43: -221926.071 | W43: -226364.5924 | X43: -230891.8843 | Y43: -235509.7219 | Z43: -240219.9164 | AA43: -245024.3147 | AB43: -249924.801 | AC43: -254923.297 | AD43: -260021.763 | AE43: 0 | AF43: 0 | AG43: 0 | AH43: 0 | AI43: 0 | AJ43: 0 | AK43: 0 | AL43: 0 | AM43: 0 | AN43: 0 | AO43: 0 | AP43: =AP60*(-$E43) -> 0 | AQ43: 0 | AR43: 0 | AS43: 0 | AT43: 0 | AU43: 0 | AV43: 0 | AW43: 0 | AX43: 0 | AY43: 0 | AZ43: 0 | BA43: 0 | BB43: 0 | BC43: 0 | BD43: 0 | BE43: 0 | BF43: 0 | BG43: 0 | BH43: 0 | BI43: 0 | BJ43: 0 | BK43: 0 | BL43: 0 | BM43: 0 | BN43: 0 | BO43: 0 | BP43: 0 | BQ43: 0 | BR43: 0 | BS43: 0 | BT43: 0 | BU43: 0 | BV43: 0 | BW43: 0 | BX43: 0 | BY43: 0 | BZ43: 0
C45: Total distribution losses | D45: kWh | I45: =SUM(J45:BZ45) -> -12112863.29 | J45: =J43+J41+J37 -> 0 | K45: -452577.9275 | L45: -494181.283 | M45: -518517.6859 | N45: -538339.6385 | O45: -564507.9275 | P45: -578591.9275 | Q45: -587643.2075 | R45: -596773.3131 | S45: -603428.8208 | T45: -610166.3387 | U45: -619542.5069 | V45: -626448.9985 | W45: -635997.5199 | X45: -643079.8117 | Y45: -652807.6494 | Z45: -660072.8439 | AA45: -669987.2422 | AB45: -677442.7285 | AC45: -687551.2245 | AD45: -695204.6904 | AE45: 0 | AF45: 0 | AG45: 0 | AH45: 0 | AI45: 0 | AJ45: 0 | AK45: 0 | AL45: 0 | AM45: 0 | AN45: 0 | AO45: 0 | AP45: =AP43+AP41+AP37 -> 0 | AQ45: 0 | AR45: 0 | AS45: 0 | AT45: 0 | AU45: 0 | AV45: 0 | AW45: 0 | AX45: 0 | AY45: 0 | AZ45: 0 | BA45: 0 | BB45: 0 | BC45: 0 | BD45: 0 | BE45: 0 | BF45: 0 | BG45: 0 | BH45: 0 | BI45: 0 | BJ45: 0 | BK45: 0 | BL45: 0 | BM45: 0 | BN45: 0 | BO45: 0 | BP45: 0 | BQ45: 0 | BR45: 0 | BS45: 0 | BT45: 0 | BU45: 0 | BV45: 0 | BW45: 0 | BX45: 0 | BY45: 0 | BZ45: 0
C46: Proportion of Gross Production | D46: % | J46: =IF(J33=0,0,J45/J33) -> 0 | K46: -0.125716091 | L46: -0.1372725786 | M46: -0.1440326905 | N46: -0.1469686127 | O46: -0.1419167796 | P46: -0.1367970223 | Q46: -0.1349204777 | R46: -0.1331669726 | S46: -0.1327866712 | T46: -0.1324345632 | U46: -0.1308924682 | V46: -0.1306143209 | W46: -0.1292129793 | X46: -0.1290018461 | Y46: -0.127727099 | Z46: -0.1275771043 | AA46: -0.1264168354 | AB46: -0.126322989 | AC46: -0.1252667789 | AD46: -0.1252248283 | AE46: 0 | AF46: 0 | AG46: 0 | AH46: 0 | AI46: 0 | AJ46: 0 | AK46: 0 | AL46: 0 | AM46: 0 | AN46: 0 | AO46: 0 | AP46: =IF(AP33=0,0,AP45/AP33) -> 0 | AQ46: 0 | AR46: 0 | AS46: 0 | AT46: 0 | AU46: 0 | AV46: 0 | AW46: 0 | AX46: 0 | AY46: 0 | AZ46: 0 | BA46: 0 | BB46: 0 | BC46: 0 | BD46: 0 | BE46: 0 | BF46: 0 | BG46: 0 | BH46: 0 | BI46: 0 | BJ46: 0 | BK46: 0 | BL46: 0 | BM46: 0 | BN46: 0 | BO46: 0 | BP46: 0 | BQ46: 0 | BR46: 0 | BS46: 0 | BT46: 0 | BU46: 0 | BV46: =IF(BV33=0,0,BV45/BV33) -> 0 | BW46: 0 | BX46: 0 | BY46: 0 | BZ46: 0
C48: Net Production | D48: kWh | I48: =SUM(J48:BZ48) -> 79970267.15 | J48: =J33+J45 -> 0 | K48: 3147422.073 | L48: 3105818.717 | M48: 3081482.314 | N48: 3124616.883 | O48: 3413231.203 | P48: 3650973.29 | Q48: 3767835.053 | R48: 3884617.991 | S48: 3940919.005 | T48: 3997138.009 | U48: 4113674.884 | V48: 4169724.915 | W48: 4286089.437 | X48: 4341963.667 | Y48: 4458148.872 | Z48: 4513840.2 | AA48: 4629838.845 | AB48: 4685339.88 | AC48: 4801144.428 | AD48: 4856447.483 | AE48: 0 | AF48: 0 | AG48: 0 | AH48: 0 | AI48: 0 | AJ48: 0 | AK48: 0 | AL48: 0 | AM48: 0 | AN48: 0 | AO48: 0 | AP48: =AP33+AP45 -> 0 | AQ48: 0 | AR48: 0 | AS48: 0 | AT48: 0 | AU48: 0 | AV48: 0 | AW48: 0 | AX48: 0 | AY48: 0 | AZ48: 0 | BA48: 0 | BB48: 0 | BC48: 0 | BD48: 0 | BE48: 0 | BF48: 0 | BG48: 0 | BH48: 0 | BI48: 0 | BJ48: 0 | BK48: 0 | BL48: 0 | BM48: 0 | BN48: 0 | BO48: 0 | BP48: 0 | BQ48: 0 | BR48: 0 | BS48: 0 | BT48: 0 | BU48: 0 | BV48: 0 | BW48: 0 | BX48: 0 | BY48: 0 | BZ48: 0
C49: Net production per module | D49: kWh | I49: =SUM(J49:BZ49) -> 1092656.411 | J49: =IF(J31=0,0,J48/J31) -> 0 | K49: 55041.87393 | L49: 54314.31766 | M49: 53888.72453 | N49: 53703.88908 | O49: 54021.93492 | P49: 54344.25703 | Q49: 54462.39775 | R49: 54572.79233 | S49: 54596.73478 | T49: 54618.90228 | U49: 54715.98722 | V49: 54733.49841 | W49: 54821.722 | X49: 54835.01421 | Y49: 54915.26786 | Z49: 54924.711 | AA49: 54997.75749 | AB49: 55003.66574 | AC49: 55070.16105 | AD49: 55072.80211 | AE49: 0 | AF49: 0 | AG49: 0 | AH49: 0 | AI49: 0 | AJ49: 0 | AK49: 0 | AL49: 0 | AM49: 0 | AN49: 0 | AO49: 0 | AP49: =IF(AP31=0,0,AP48/AP31) -> 0 | AQ49: 0 | AR49: 0 | AS49: 0 | AT49: 0 | AU49: 0 | AV49: 0 | AW49: 0 | AX49: 0 | AY49: 0 | AZ49: 0 | BA49: 0 | BB49: 0 | BC49: 0 | BD49: 0 | BE49: 0 | BF49: 0 | BG49: 0 | BH49: 0 | BI49: 0 | BJ49: 0 | BK49: 0 | BL49: 0 | BM49: 0 | BN49: 0 | BO49: 0 | BP49: 0 | BQ49: 0 | BR49: 0 | BS49: 0 | BT49: 0 | BU49: 0 | BV49: =IF(BV31=0,0,BV48/BV31) -> 0 | BW49: 0 | BX49: 0 | BY49: 0 | BZ49: 0
C51: Revenue
C52: Consumption | D52: kWh/month | J52: =LOOKUP(J$14,Inputs!$H$432:$AL$432,Inputs!$H$433:$AL$433) -> 0 | K52: =LOOKUP(K$14,Inputs!$H$432:$AL$432,Inputs!$H$433:$AL$433) -> 10 | L52: =LOOKUP(L$14,Inputs!$H$432:$AL$432,Inputs!$H$433:$AL$433) -> 14.30676558 | M52: =LOOKUP(M$14,Inputs!$H$432:$AL$432,Inputs!$H$433:$AL$433) -> 16.82606194 | N52: =LOOKUP(N$14,Inputs!$H$432:$AL$432,Inputs!$H$433:$AL$433) -> 18.61353116 | O52: =LOOKUP(O$14,Inputs!$H$432:$AL$432,Inputs!$H$433:$AL$433) -> 20 | P52: =LOOKUP(P$14,Inputs!$H$432:$AL$432,Inputs!$H$433:$AL$433) -> 20.4 | Q52: =LOOKUP(Q$14,Inputs!$H$432:$AL$432,Inputs!$H$433:$AL$433) -> 20.808 | R52: =LOOKUP(R$14,Inputs!$H$432:$AL$432,Inputs!$H$433:$AL$433) -> 21.22416 | S52: =LOOKUP(S$14,Inputs!$H$432:$AL$432,Inputs!$H$433:$AL$433) -> 21.6486432 | T52: =LOOKUP(T$14,Inputs!$H$432:$AL$432,Inputs!$H$433:$AL$433) -> 22.08161606 | U52: =LOOKUP(U$14,Inputs!$H$432:$AL$432,Inputs!$H$433:$AL$433) -> 22.52324839 | V52: =LOOKUP(V$14,Inputs!$H$432:$AL$432,Inputs!$H$433:$AL$433) -> 22.97371335 | W52: =LOOKUP(W$14,Inputs!$H$432:$AL$432,Inputs!$H$433:$AL$433) -> 23.43318762 | X52: =LOOKUP(X$14,Inputs!$H$432:$AL$432,Inputs!$H$433:$AL$433) -> 23.90185137 | Y52: =LOOKUP(Y$14,Inputs!$H$432:$AL$432,Inputs!$H$433:$AL$433) -> 24.3798884 | Z52: =LOOKUP(Z$14,Inputs!$H$432:$AL$432,Inputs!$H$433:$AL$433) -> 24.86748617 | AA52: =LOOKUP(AA$14,Inputs!$H$432:$AL$432,Inputs!$H$433:$AL$433) -> 25.36483589 | AB52: =LOOKUP(AB$14,Inputs!$H$432:$AL$432,Inputs!$H$433:$AL$433) -> 25.87213261 | AC52: =LOOKUP(AC$14,Inputs!$H$432:$AL$432,Inputs!$H$433:$AL$433) -> 26.38957526 | AD52: =LOOKUP(AD$14,Inputs!$H$432:$AL$432,Inputs!$H$433:$AL$433) -> 26.91736677 | AE52: =LOOKUP(AE$14,Inputs!$H$432:$AL$432,Inputs!$H$433:$AL$433) -> 0 | AF52: =LOOKUP(AF$14,Inputs!$H$432:$AL$432,Inputs!$H$433:$AL$433) -> 0 | AG52: =LOOKUP(AG$14,Inputs!$H$432:$AL$432,Inputs!$H$433:$AL$433) -> 0 | AH52: =LOOKUP(AH$14,Inputs!$H$432:$AL$432,Inputs!$H$433:$AL$433) -> 0 | AI52: =LOOKUP(AI$14,Inputs!$H$432:$AL$432,Inputs!$H$433:$AL$433) -> 0 | AJ52: =LOOKUP(AJ$14,Inputs!$H$432:$AL$432,Inputs!$H$433:$AL$433) -> 0 | AK52: =LOOKUP(AK$14,Inputs!$H$432:$AL$432,Inputs!$H$433:$AL$433) -> 0 | AL52: =LOOKUP(AL$14,Inputs!$H$432:$AL$432,Inputs!$H$433:$AL$433) -> 0 | AM52: =LOOKUP(AM$14,Inputs!$H$432:$AL$432,Inputs!$H$433:$AL$433) -> 0 | AN52: =LOOKUP(AN$14,Inputs!$H$432:$AL$432,Inputs!$H$433:$AL$433) -> 0 | AO52: =LOOKUP(AO$14,Inputs!$H$432:$AL$432,Inputs!$H$433:$AL$433) -> 0 | AP52: =LOOKUP(AP$14,Inputs!$H$432:$AL$432,Inputs!$H$433:$AL$433) -> 0 | AQ52: =LOOKUP(AQ$14,Inputs!$H$432:$AL$432,Inputs!$H$433:$AL$433) -> 0 | AR52: =LOOKUP(AR$14,Inputs!$H$432:$AL$432,Inputs!$H$433:$AL$433) -> 0 | AS52: =LOOKUP(AS$14,Inputs!$H$432:$AL$432,Inputs!$H$433:$AL$433) -> 0 | AT52: =LOOKUP(AT$14,Inputs!$H$432:$AL$432,Inputs!$H$433:$AL$433) -> 0 | AU52: =LOOKUP(AU$14,Inputs!$H$432:$AL$432,Inputs!$H$433:$AL$433) -> 0 | AV52: =LOOKUP(AV$14,Inputs!$H$432:$AL$432,Inputs!$H$433:$AL$433) -> 0 | AW52: =LOOKUP(AW$14,Inputs!$H$432:$AL$432,Inputs!$H$433:$AL$433) -> 0 | AX52: =LOOKUP(AX$14,Inputs!$H$432:$AL$432,Inputs!$H$433:$AL$433) -> 0 | AY52: =LOOKUP(AY$14,Inputs!$H$432:$AL$432,Inputs!$H$433:$AL$433) -> 0 | AZ52: =LOOKUP(AZ$14,Inputs!$H$432:$AL$432,Inputs!$H$433:$AL$433) -> 0 | BA52: =LOOKUP(BA$14,Inputs!$H$432:$AL$432,Inputs!$H$433:$AL$433) -> 0 | BB52: =LOOKUP(BB$14,Inputs!$H$432:$AL$432,Inputs!$H$433:$AL$433) -> 0 | BC52: =LOOKUP(BC$14,Inputs!$H$432:$AL$432,Inputs!$H$433:$AL$433) -> 0 | BD52: =LOOKUP(BD$14,Inputs!$H$432:$AL$432,Inputs!$H$433:$AL$433) -> 0 | BE52: =LOOKUP(BE$14,Inputs!$H$432:$AL$432,Inputs!$H$433:$AL$433) -> 0 | BF52: =LOOKUP(BF$14,Inputs!$H$432:$AL$432,Inputs!$H$433:$AL$433) -> 0 | BG52: =LOOKUP(BG$14,Inputs!$H$432:$AL$432,Inputs!$H$433:$AL$433) -> 0 | BH52: =LOOKUP(BH$14,Inputs!$H$432:$AL$432,Inputs!$H$433:$AL$433) -> 0 | BI52: =LOOKUP(BI$14,Inputs!$H$432:$AL$432,Inputs!$H$433:$AL$433) -> 0 | BJ52: =LOOKUP(BJ$14,Inputs!$H$432:$AL$432,Inputs!$H$433:$AL$433) -> 0 | BK52: =LOOKUP(BK$14,Inputs!$H$432:$AL$432,Inputs!$H$433:$AL$433) -> 0 | BL52: =LOOKUP(BL$14,Inputs!$H$432:$AL$432,Inputs!$H$433:$AL$433) -> 0 | BM52: =LOOKUP(BM$14,Inputs!$H$432:$AL$432,Inputs!$H$433:$AL$433) -> 0 | BN52: =LOOKUP(BN$14,Inputs!$H$432:$AL$432,Inputs!$H$433:$AL$433) -> 0 | BO52: =LOOKUP(BO$14,Inputs!$H$432:$AL$432,Inputs!$H$433:$AL$433) -> 0 | BP52: =LOOKUP(BP$14,Inputs!$H$432:$AL$432,Inputs!$H$433:$AL$433) -> 0 | BQ52: =LOOKUP(BQ$14,Inputs!$H$432:$AL$432,Inputs!$H$433:$AL$433) -> 0 | BR52: =LOOKUP(BR$14,Inputs!$H$432:$AL$432,Inputs!$H$433:$AL$433) -> 0 | BS52: =LOOKUP(BS$14,Inputs!$H$432:$AL$432,Inputs!$H$433:$AL$433) -> 0 | BT52: =LOOKUP(BT$14,Inputs!$H$432:$AL$432,Inputs!$H$433:$AL$433) -> 0 | BU52: =LOOKUP(BU$14,Inputs!$H$432:$AL$432,Inputs!$H$433:$AL$433) -> 0 | BV52: =LOOKUP(BV$14,Inputs!$H$432:$AL$432,Inputs!$H$433:$AL$433) -> 0 | BW52: =LOOKUP(BW$14,Inputs!$H$432:$AL$432,Inputs!$H$433:$AL$433) -> 0 | BX52: =LOOKUP(BX$14,Inputs!$H$432:$AL$432,Inputs!$H$433:$AL$433) -> 0 | BY52: =LOOKUP(BY$14,Inputs!$H$432:$AL$432,Inputs!$H$433:$AL$433) -> 0 | BZ52: =LOOKUP(BZ$14,Inputs!$H$432:$AL$432,Inputs!$H$433:$AL$433) -> 0
C54: Consumption x Tariff Driven
C55: Connection | F55: Average
C56: Energy consumption | D56: kWh/month | E56: =Inputs!$E$163 -> 10 | F56: =AVERAGEIF(J56:BZ56,"<>0") -> 21.62660319 | J56: =J52 -> 0 | K56: 10 | L56: 14.30676558 | M56: 16.82606194 | N56: 18.61353116 | O56: 20 | P56: 20.4 | Q56: 20.808 | R56: 21.22416 | S56: 21.6486432 | T56: 22.08161606 | U56: 22.52324839 | V56: 22.97371335 | W56: 23.43318762 | X56: 23.90185137 | Y56: 24.3798884 | Z56: 24.86748617 | AA56: 25.36483589 | AB56: 25.87213261 | AC56: 26.38957526 | AD56: 26.91736677 | AE56: 0 | AF56: 0 | AG56: 0 | AH56: 0 | AI56: 0 | AJ56: 0 | AK56: 0 | AL56: 0 | AM56: 0 | AN56: 0 | AO56: 0 | AP56: =AP52 -> 0 | AQ56: 0 | AR56: 0 | AS56: 0 | AT56: 0 | AU56: 0 | AV56: 0 | AW56: 0 | AX56: 0 | AY56: 0 | AZ56: 0 | BA56: 0 | BB56: 0 | BC56: 0 | BD56: 0 | BE56: 0 | BF56: 0 | BG56: 0 | BH56: 0 | BI56: 0 | BJ56: 0 | BK56: 0 | BL56: 0 | BM56: 0 | BN56: 0 | BO56: 0 | BP56: 0 | BQ56: 0 | BR56: 0 | BS56: 0 | BT56: 0 | BU56: 0 | BV56: 0 | BW56: 0 | BX56: 0 | BY56: 0 | BZ56: 0
C57: Energy consumption | D57: =Inputs!D164 -> kWh/year | E57: =Inputs!E164 -> 120 | F57: =AVERAGEIF(J57:BZ57,"<>0") -> 259.5192383 | J57: =J56*Months_Yr -> 0 | K57: 120 | L57: 171.681187 | M57: 201.9127433 | N57: 223.3623739 | O57: 240 | P57: 244.8 | Q57: 249.696 | R57: 254.68992 | S57: 259.7837184 | T57: 264.9793928 | U57: 270.2789806 | V57: 275.6845602 | W57: 281.1982514 | X57: 286.8222165 | Y57: 292.5586608 | Z57: 298.409834 | AA57: 304.3780307 | AB57: 310.4655913 | AC57: 316.6749031 | AD57: 323.0084012 | AE57: 0 | AF57: 0 | AG57: 0 | AH57: 0 | AI57: 0 | AJ57: 0 | AK57: 0 | AL57: 0 | AM57: 0 | AN57: 0 | AO57: 0 | AP57: =AP56*Months_Yr -> 0 | AQ57: 0 | AR57: 0 | AS57: 0 | AT57: 0 | AU57: 0 | AV57: 0 | AW57: 0 | AX57: 0 | AY57: 0 | AZ57: 0 | BA57: 0 | BB57: 0 | BC57: 0 | BD57: 0 | BE57: 0 | BF57: 0 | BG57: 0 | BH57: 0 | BI57: 0 | BJ57: 0 | BK57: 0 | BL57: 0 | BM57: 0 | BN57: 0 | BO57: 0 | BP57: 0 | BQ57: 0 | BR57: 0 | BS57: 0 | BT57: 0 | BU57: 0 | BV57: =BV56*Months_Yr -> 0 | BW57: 0 | BX57: 0 | BY57: 0 | BZ57: 0
C58: Total
C59: Fully Operational Connections | D59: #Num | J59: =J26 -> 0 | K59: 11500 | L59: 11500 | M59: 11500 | N59: 11500 | O59: 11500 | P59: 11500 | Q59: 11500 | R59: 11500 | S59: 11500 | T59: 11500 | U59: 11500 | V59: 11500 | W59: 11500 | X59: 11500 | Y59: 11500 | Z59: 11500 | AA59: 11500 | AB59: 11500 | AC59: 11500 | AD59: 11500 | AE59: 0 | AF59: 0 | AG59: 0 | AH59: 0 | AI59: 0 | AJ59: 0 | AK59: 0 | AL59: 0 | AM59: 0 | AN59: 0 | AO59: 0 | AP59: =AP26 -> 0 | AQ59: 0 | AR59: 0 | AS59: 0 | AT59: 0 | AU59: 0 | AV59: 0 | AW59: 0 | AX59: 0 | AY59: 0 | AZ59: 0 | BA59: 0 | BB59: 0 | BC59: 0 | BD59: 0 | BE59: 0 | BF59: 0 | BG59: 0 | BH59: 0 | BI59: 0 | BJ59: 0 | BK59: 0 | BL59: 0 | BM59: 0 | BN59: 0 | BO59: 0 | BP59: 0 | BQ59: 0 | BR59: 0 | BS59: 0 | BT59: 0 | BU59: 0 | BV59: 0 | BW59: 0 | BX59: 0 | BY59: 0 | BZ59: 0
C60: Total | D60: kWh/year | I60: =SUM(J60:BZ60) -> 59689424.8 | J60: =J$57*J$59 -> 0 | K60: 1380000 | L60: 1974333.65 | M60: 2321996.548 | N60: 2568667.3 | O60: 2760000 | P60: 2815200 | Q60: 2871504 | R60: 2928934.08 | S60: 2987512.762 | T60: 3047263.017 | U60: 3108208.277 | V60: 3170372.443 | W60: 3233779.892 | X60: 3298455.489 | Y60: 3364424.599 | Z60: 3431713.091 | AA60: 3500347.353 | AB60: 3570354.3 | AC60: 3641761.386 | AD60: 3714596.614 | AE60: 0 | AF60: 0 | AG60: 0 | AH60: 0 | AI60: 0 | AJ60: 0 | AK60: 0 | AL60: 0 | AM60: 0 | AN60: 0 | AO60: 0 | AP60: =AP$57*AP$59 -> 0 | AQ60: 0 | AR60: 0 | AS60: 0 | AT60: 0 | AU60: 0 | AV60: 0 | AW60: 0 | AX60: 0 | AY60: 0 | AZ60: 0 | BA60: 0 | BB60: 0 | BC60: 0 | BD60: 0 | BE60: 0 | BF60: 0 | BG60: 0 | BH60: 0 | BI60: 0 | BJ60: 0 | BK60: 0 | BL60: 0 | BM60: 0 | BN60: 0 | BO60: 0 | BP60: 0 | BQ60: 0 | BR60: 0 | BS60: 0 | BT60: 0 | BU60: 0 | BV60: 0 | BW60: 0 | BX60: 0 | BY60: 0 | BZ60: 0
C62: Price | F62: Average
C63: Tariff | D63: $/kWh | E63: =Inputs!$E$170 -> 0.55 | F63: =AVERAGEIF(J67:BZ67,"<>0") -> 0.7446681102 | J63: =IF(J$7=0,0,$E$63) -> 0 | K63: 0.55 | L63: 0.55 | M63: 0.55 | N63: 0.55 | O63: 0.55 | P63: 0.55 | Q63: 0.55 | R63: 0.55 | S63: 0.55 | T63: 0.55 | U63: 0.55 | V63: 0.55 | W63: 0.55 | X63: 0.55 | Y63: 0.55 | Z63: 0.55 | AA63: 0.55 | AB63: 0.55 | AC63: 0.55 | AD63: 0.55 | AE63: 0 | AF63: 0 | AG63: 0 | AH63: 0 | AI63: 0 | AJ63: 0 | AK63: 0 | AL63: 0 | AM63: 0 | AN63: 0 | AO63: 0 | AP63: =IF(AP$7=0,0,$E$63) -> 0 | AQ63: 0 | AR63: 0 | AS63: 0 | AT63: 0 | AU63: 0 | AV63: 0 | AW63: 0 | AX63: 0 | AY63: 0 | AZ63: 0 | BA63: 0 | BB63: 0 | BC63: 0 | BD63: 0 | BE63: 0 | BF63: 0 | BG63: 0 | BH63: 0 | BI63: 0 | BJ63: 0 | BK63: 0 | BL63: 0 | BM63: 0 | BN63: 0 | BO63: 0 | BP63: 0 | BQ63: 0 | BR63: 0 | BS63: 0 | BT63: 0 | BU63: 0 | BV63: 0 | BW63: 0 | BX63: 0 | BY63: 0 | BZ63: 0
E64: Case
C65: Naira depreciation against selected currency | D65: Index | E65: =Currency!$F$18 -> 1 | J65: =IF($E65=2,1,J$16)*J$7 -> 0 | K65: 0.9345794393 | L65: 0.8734387283 | M65: 0.8162978769 | N65: 0.762895212 | O65: 0.7129861795 | P65: 0.6663422238 | Q65: 0.6227497419 | R65: 0.5820091046 | S65: 0.5439337426 | T65: 0.5083492921 | U65: 0.4750927964 | V65: 0.4440119592 | W65: 0.4149644479 | X65: 0.387817241 | Y65: 0.3624460196 | Z65: 0.3387345978 | AA65: 0.3165743905 | AB65: 0.2958639163 | AC65: 0.276508333 | AD65: 0.2584190028 | AE65: 0 | AF65: 0 | AG65: 0 | AH65: 0 | AI65: 0 | AJ65: 0 | AK65: 0 | AL65: 0 | AM65: 0 | AN65: 0 | AO65: 0 | AP65: =IF($E65=2,1,AP$16)*AP$7 -> 0 | AQ65: 0 | AR65: 0 | AS65: 0 | AT65: 0 | AU65: 0 | AV65: 0 | AW65: 0 | AX65: 0 | AY65: 0 | AZ65: 0 | BA65: 0 | BB65: 0 | BC65: 0 | BD65: 0 | BE65: 0 | BF65: 0 | BG65: 0 | BH65: 0 | BI65: 0 | BJ65: 0 | BK65: 0 | BL65: 0 | BM65: 0 | BN65: 0 | BO65: 0 | BP65: 0 | BQ65: 0 | BR65: 0 | BS65: 0 | BT65: 0 | BU65: 0 | BV65: 0 | BW65: 0 | BX65: 0 | BY65: 0 | BZ65: 0
C66: Normalised for Inflation | D66: Index | J66: =J$7*J$83 -> 0 | K66: 1.1 | L66: 1.21 | M66: 1.331 | N66: 1.4641 | O66: 1.61051 | P66: 1.771561 | Q66: 1.9487171 | R66: 2.14358881 | S66: 2.357947691 | T66: 2.59374246 | U66: 2.853116706 | V66: 3.138428377 | W66: 3.452271214 | X66: 3.797498336 | Y66: 4.177248169 | Z66: 4.594972986 | AA66: 5.054470285 | AB66: 5.559917313 | AC66: 6.115909045 | AD66: 6.727499949 | AE66: 0 | AF66: 0 | AG66: 0 | AH66: 0 | AI66: 0 | AJ66: 0 | AK66: 0 | AL66: 0 | AM66: 0 | AN66: 0 | AO66: 0 | AP66: =AP$7*AP$83 -> 0 | AQ66: 0 | AR66: 0 | AS66: 0 | AT66: 0 | AU66: 0 | AV66: 0 | AW66: 0 | AX66: 0 | AY66: 0 | AZ66: 0 | BA66: 0 | BB66: 0 | BC66: 0 | BD66: 0 | BE66: 0 | BF66: 0 | BG66: 0 | BH66: 0 | BI66: 0 | BJ66: 0 | BK66: 0 | BL66: 0 | BM66: 0 | BN66: 0 | BO66: 0 | BP66: 0 | BQ66: 0 | BR66: 0 | BS66: 0 | BT66: 0 | BU66: 0 | BV66: 0 | BW66: 0 | BX66: 0 | BY66: 0 | BZ66: 0
C67: Tariff (FX and Inflation adjusted) | D67: $/kWh | J67: =J63*J65*J66 -> 0 | K67: 0.5654205607 | L67: 0.5812734737 | M67: 0.5975708608 | N67: 0.614325184 | O67: 0.6315492546 | P67: 0.649256243 | Q67: 0.6674596891 | R67: 0.6861735121 | S67: 0.7054120218 | T67: 0.725189929 | U67: 0.7455223569 | V67: 0.7664248529 | W67: 0.7879134001 | X67: 0.8100044301 | Y67: 0.8327148346 | Z67: 0.8560619795 | AA67: 0.8800637173 | AB67: 0.9047384009 | AC67: 0.9301048982 | AD67: 0.9561826056 | AE67: 0 | AF67: 0 | AG67: 0 | AH67: 0 | AI67: 0 | AJ67: 0 | AK67: 0 | AL67: 0 | AM67: 0 | AN67: 0 | AO67: 0 | AP67: =AP63*AP65*AP66 -> 0 | AQ67: 0 | AR67: 0 | AS67: 0 | AT67: 0 | AU67: 0 | AV67: 0 | AW67: 0 | AX67: 0 | AY67: 0 | AZ67: 0 | BA67: 0 | BB67: 0 | BC67: 0 | BD67: 0 | BE67: 0 | BF67: 0 | BG67: 0 | BH67: 0 | BI67: 0 | BJ67: 0 | BK67: 0 | BL67: 0 | BM67: 0 | BN67: 0 | BO67: 0 | BP67: 0 | BQ67: 0 | BR67: 0 | BS67: 0 | BT67: 0 | BU67: 0 | BV67: =BV63*BV65*BV66 -> 0 | BW67: 0 | BX67: 0 | BY67: 0 | BZ67: 0
C68: Subsidy | D68: $/kWh
C69: Total | D69: $/kWh | E69: =SUM(E63:E68) -> 1.55 | J69: =SUM(J67:J68) -> 0 | K69: 0.5654205607 | L69: 0.5812734737 | M69: 0.5975708608 | N69: 0.614325184 | O69: 0.6315492546 | P69: 0.649256243 | Q69: 0.6674596891 | R69: 0.6861735121 | S69: 0.7054120218 | T69: 0.725189929 | U69: 0.7455223569 | V69: 0.7664248529 | W69: 0.7879134001 | X69: 0.8100044301 | Y69: 0.8327148346 | Z69: 0.8560619795 | AA69: 0.8800637173 | AB69: 0.9047384009 | AC69: 0.9301048982 | AD69: 0.9561826056 | AE69: 0 | AF69: 0 | AG69: 0 | AH69: 0 | AI69: 0 | AJ69: 0 | AK69: 0 | AL69: 0 | AM69: 0 | AN69: 0 | AO69: 0 | AP69: =SUM(AP67:AP68) -> 0 | AQ69: 0 | AR69: 0 | AS69: 0 | AT69: 0 | AU69: 0 | AV69: 0 | AW69: 0 | AX69: 0 | AY69: 0 | AZ69: 0 | BA69: 0 | BB69: 0 | BC69: 0 | BD69: 0 | BE69: 0 | BF69: 0 | BG69: 0 | BH69: 0 | BI69: 0 | BJ69: 0 | BK69: 0 | BL69: 0 | BM69: 0 | BN69: 0 | BO69: 0 | BP69: 0 | BQ69: 0 | BR69: 0 | BS69: 0 | BT69: 0 | BU69: 0 | BV69: =SUM(BV67:BV68) -> 0 | BW69: 0 | BX69: 0 | BY69: 0 | BZ69: 0
C71: Grid Arrival
C72: Pre-grid Flag | F72: Start | J72: =J7-J73 -> 0 | K72: 1 | L72: 1 | M72: 1 | N72: 1 | O72: 1 | P72: 1 | Q72: 1 | R72: 1 | S72: 1 | T72: 1 | U72: 1 | V72: 1 | W72: 1 | X72: 1 | Y72: 1 | Z72: 1 | AA72: 1 | AB72: 1 | AC72: 1 | AD72: 1 | AE72: 0 | AF72: 0 | AG72: 0 | AH72: 0 | AI72: 0 | AJ72: 0 | AK72: 0 | AL72: 0 | AM72: 0 | AN72: 0 | AO72: 0 | AP72: =AP7-AP73 -> 0 | AQ72: 0 | AR72: 0 | AS72: 0 | AT72: 0 | AU72: 0 | AV72: 0 | AW72: 0 | AX72: 0 | AY72: 0 | AZ72: 0 | BA72: 0 | BB72: 0 | BC72: 0 | BD72: 0 | BE72: 0 | BF72: 0 | BG72: 0 | BH72: 0 | BI72: 0 | BJ72: 0 | BK72: 0 | BL72: 0 | BM72: 0 | BN72: 0 | BO72: 0 | BP72: 0 | BQ72: 0 | BR72: 0 | BS72: 0 | BT72: 0 | BU72: 0 | BV72: =BV7-BV73 -> 0 | BW72: 0 | BX72: 0 | BY72: 0 | BZ72: 0
C73: Post-grid Flag | D73: Flag | E73: =Inputs!E438 -> 30 | F73: =Inputs!$E$439 -> 2054-01-01 | J73: =J$7*(J$4>=$F73) -> 0 | K73: 0 | L73: 0 | M73: 0 | N73: 0 | O73: 0 | P73: 0 | Q73: 0 | R73: 0 | S73: 0 | T73: 0 | U73: 0 | V73: 0 | W73: 0 | X73: 0 | Y73: 0 | Z73: 0 | AA73: 0 | AB73: 0 | AC73: 0 | AD73: 0 | AE73: 0 | AF73: 0 | AG73: 0 | AH73: 0 | AI73: 0 | AJ73: 0 | AK73: 0 | AL73: 0 | AM73: 0 | AN73: 0 | AO73: 0 | AP73: =AP$7*(AP$4>=$F73) -> 0 | AQ73: 0 | AR73: 0 | AS73: 0 | AT73: 0 | AU73: 0 | AV73: 0 | AW73: 0 | AX73: 0 | AY73: 0 | AZ73: 0 | BA73: 0 | BB73: 0 | BC73: 0 | BD73: 0 | BE73: 0 | BF73: 0 | BG73: 0 | BH73: 0 | BI73: 0 | BJ73: 0 | BK73: 0 | BL73: 0 | BM73: 0 | BN73: 0 | BO73: 0 | BP73: 0 | BQ73: 0 | BR73: 0 | BS73: 0 | BT73: 0 | BU73: 0 | BV73: 0 | BW73: 0 | BX73: 0 | BY73: 0 | BZ73: 0
C75: Tariff applied | D75: $/kWh | E75: =Inputs!E441 -> 0.23 | J75: =J69*J72+J73*$E$75*J65*J66 -> 0 | K75: 0.5654205607 | L75: 0.5812734737 | M75: 0.5975708608 | N75: 0.614325184 | O75: 0.6315492546 | P75: 0.649256243 | Q75: 0.6674596891 | R75: 0.6861735121 | S75: 0.7054120218 | T75: 0.725189929 | U75: 0.7455223569 | V75: 0.7664248529 | W75: 0.7879134001 | X75: 0.8100044301 | Y75: 0.8327148346 | Z75: 0.8560619795 | AA75: 0.8800637173 | AB75: 0.9047384009 | AC75: 0.9301048982 | AD75: 0.9561826056 | AE75: 0 | AF75: 0 | AG75: 0 | AH75: 0 | AI75: 0 | AJ75: 0 | AK75: 0 | AL75: 0 | AM75: 0 | AN75: 0 | AO75: 0 | AP75: =AP69*AP72+AP73*$E$75*AP65*AP66 -> 0 | AQ75: 0 | AR75: 0 | AS75: 0 | AT75: 0 | AU75: 0 | AV75: 0 | AW75: 0 | AX75: 0 | AY75: 0 | AZ75: 0 | BA75: 0 | BB75: 0 | BC75: 0 | BD75: 0 | BE75: 0 | BF75: 0 | BG75: 0 | BH75: 0 | BI75: 0 | BJ75: 0 | BK75: 0 | BL75: 0 | BM75: 0 | BN75: 0 | BO75: 0 | BP75: 0 | BQ75: 0 | BR75: 0 | BS75: 0 | BT75: 0 | BU75: 0 | BV75: 0 | BW75: 0 | BX75: 0 | BY75: 0 | BZ75: 0
C77: Revenue (Consumption x Tariff Driven) | I77: =SUM(J77:BZ77) -> 45663943.33 | J77: =J60*J75 -> 0 | K77: 780280.3738 | L77: 1147627.779 | M77: 1387557.476 | N77: 1577997.012 | O77: 1743075.943 | P77: 1827786.175 | Q77: 1916613.167 | R77: 2009756.984 | S77: 2107427.417 | T77: 2209844.451 | U77: 2317238.76 | V77: 2429852.233 | W77: 2547938.51 | X77: 2671763.559 | Y77: 2801606.274 | Z77: 2937759.102 | AA77: 3080528.703 | AB77: 3230236.64 | AC77: 3387220.103 | AD77: 3551832.669 | AE77: 0 | AF77: 0 | AG77: 0 | AH77: 0 | AI77: 0 | AJ77: 0 | AK77: 0 | AL77: 0 | AM77: 0 | AN77: 0 | AO77: 0 | AP77: =AP60*AP75 -> 0 | AQ77: 0 | AR77: 0 | AS77: 0 | AT77: 0 | AU77: 0 | AV77: 0 | AW77: 0 | AX77: 0 | AY77: 0 | AZ77: 0 | BA77: 0 | BB77: 0 | BC77: 0 | BD77: 0 | BE77: 0 | BF77: 0 | BG77: 0 | BH77: 0 | BI77: 0 | BJ77: 0 | BK77: 0 | BL77: 0 | BM77: 0 | BN77: 0 | BO77: 0 | BP77: 0 | BQ77: 0 | BR77: 0 | BS77: 0 | BT77: 0 | BU77: 0 | BV77: 0 | BW77: 0 | BX77: 0 | BY77: 0 | BZ77: 0
C79: Number of Operational Connections | D79: #Num | J79: =J26 -> 0 | K79: 11500 | L79: 11500 | M79: 11500 | N79: 11500 | O79: 11500 | P79: 11500 | Q79: 11500 | R79: 11500 | S79: 11500 | T79: 11500 | U79: 11500 | V79: 11500 | W79: 11500 | X79: 11500 | Y79: 11500 | Z79: 11500 | AA79: 11500 | AB79: 11500 | AC79: 11500 | AD79: 11500 | AE79: 0 | AF79: 0 | AG79: 0 | AH79: 0 | AI79: 0 | AJ79: 0 | AK79: 0 | AL79: 0 | AM79: 0 | AN79: 0 | AO79: 0 | AP79: =AP26 -> 0 | AQ79: 0 | AR79: 0 | AS79: 0 | AT79: 0 | AU79: 0 | AV79: 0 | AW79: 0 | AX79: 0 | AY79: 0 | AZ79: 0 | BA79: 0 | BB79: 0 | BC79: 0 | BD79: 0 | BE79: 0 | BF79: 0 | BG79: 0 | BH79: 0 | BI79: 0 | BJ79: 0 | BK79: 0 | BL79: 0 | BM79: 0 | BN79: 0 | BO79: 0 | BP79: 0 | BQ79: 0 | BR79: 0 | BS79: 0 | BT79: 0 | BU79: 0 | BV79: 0 | BW79: 0 | BX79: 0 | BY79: 0 | BZ79: 0
C80: ARPU (real) | D80: $/month | J80: =IF(J79=0,0,J77/J79)/Months_Yr -> 0 | K80: 5.654205607 | L80: 8.316143326 | M80: 10.05476432 | N80: 11.43476096 | O80: 12.63098509 | P80: 13.24482736 | Q80: 13.88850121 | R80: 14.56345641 | S80: 15.27121317 | T80: 16.01336558 | U80: 16.79158522 | V80: 17.60762488 | W80: 18.46332253 | X80: 19.3606055 | Y80: 20.30149474 | Z80: 21.28810943 | AA80: 22.32267176 | AB80: 23.40751189 | AC80: 24.54507321 | AD80: 25.73791789 | AE80: 0 | AF80: 0 | AG80: 0 | AH80: 0 | AI80: 0 | AJ80: 0 | AK80: 0 | AL80: 0 | AM80: 0 | AN80: 0 | AO80: 0 | AP80: =IF(AP79=0,0,AP77/AP79)/Months_Yr -> 0 | AQ80: 0 | AR80: 0 | AS80: 0 | AT80: 0 | AU80: 0 | AV80: 0 | AW80: 0 | AX80: 0 | AY80: 0 | AZ80: 0 | BA80: 0 | BB80: 0 | BC80: 0 | BD80: 0 | BE80: 0 | BF80: 0 | BG80: 0 | BH80: 0 | BI80: 0 | BJ80: 0 | BK80: 0 | BL80: 0 | BM80: 0 | BN80: 0 | BO80: 0 | BP80: 0 | BQ80: 0 | BR80: 0 | BS80: 0 | BT80: 0 | BU80: 0 | BV80: =IF(BV79=0,0,BV77/BV79)/Months_Yr -> 0 | BW80: 0 | BX80: 0 | BY80: 0 | BZ80: 0
C82: Revenue - Active Case
C83: Inflation index | D83: Index | J83: =J15 -> 1 | K83: 1.1 | L83: 1.21 | M83: 1.331 | N83: 1.4641 | O83: 1.61051 | P83: 1.771561 | Q83: 1.9487171 | R83: 2.14358881 | S83: 2.357947691 | T83: 2.59374246 | U83: 2.853116706 | V83: 3.138428377 | W83: 3.452271214 | X83: 3.797498336 | Y83: 4.177248169 | Z83: 4.594972986 | AA83: 5.054470285 | AB83: 5.559917313 | AC83: 6.115909045 | AD83: 6.727499949 | AE83: 7.400249944 | AF83: 8.140274939 | AG83: 8.954302433 | AH83: 9.849732676 | AI83: 10.83470594 | AJ83: 11.91817654 | AK83: 13.10999419 | AL83: 14.42099361 | AM83: 15.86309297 | AN83: 17.44940227 | AO83: 19.1943425 | AP83: =AP15 -> 21.11377675 | AQ83: 23.22515442 | AR83: 25.54766986 | AS83: 28.10243685 | AT83: 30.91268053 | AU83: 34.00394859 | AV83: 37.40434344 | AW83: 41.14477779 | AX83: 45.25925557 | AY83: 49.78518112 | AZ83: 54.76369924 | BA83: 60.24006916 | BB83: 66.26407608 | BC83: 72.89048369 | BD83: 80.17953205 | BE83: 88.19748526 | BF83: 97.01723378 | BG83: 106.7189572 | BH83: 117.3908529 | BI83: 129.1299382 | BJ83: 142.042932 | BK83: 156.2472252 | BL83: 171.8719477 | BM83: 189.0591425 | BN83: 207.9650567 | BO83: 228.7615624 | BP83: 251.6377186 | BQ83: 276.8014905 | BR83: 304.4816395 | BS83: 334.9298035 | BT83: 368.4227838 | BU83: 405.2650622 | BV83: 445.7915685 | BW83: 490.3707253 | BX83: 539.4077978 | BY83: 593.3485776 | BZ83: 652.6834354
C84: =C16 -> Naira depreciation against USD | D84: Index | J84: =J16 -> 1 | K84: 0.9345794393 | L84: 0.8734387283 | M84: 0.8162978769 | N84: 0.762895212 | O84: 0.7129861795 | P84: 0.6663422238 | Q84: 0.6227497419 | R84: 0.5820091046 | S84: 0.5439337426 | T84: 0.5083492921 | U84: 0.4750927964 | V84: 0.4440119592 | W84: 0.4149644479 | X84: 0.387817241 | Y84: 0.3624460196 | Z84: 0.3387345978 | AA84: 0.3165743905 | AB84: 0.2958639163 | AC84: 0.276508333 | AD84: 0.2584190028 | AE84: 0.2415130867 | AF84: 0.2257131652 | AG84: 0.2109468833 | AH84: 0.1971466199 | AI84: 0.1842491775 | AJ84: 0.172195493 | AK84: 0.1609303673 | AL84: 0.1504022124 | AM84: 0.1405628154 | AN84: 0.1313671172 | AO84: 0.1313671172 | AP84: =AP16 -> 0.1313671172 | AQ84: 0.1313671172 | AR84: 0.1313671172 | AS84: 0.1313671172 | AT84: 0.1313671172 | AU84: 0.1313671172 | AV84: 0.1313671172 | AW84: 0.1313671172 | AX84: 0.1313671172 | AY84: 0.1313671172 | AZ84: 0.1313671172 | BA84: 0.1313671172 | BB84: 0.1313671172 | BC84: 0.1313671172 | BD84: 0.1313671172 | BE84: 0.1313671172 | BF84: 0.1313671172 | BG84: 0.1313671172 | BH84: 0.1313671172 | BI84: 0.1313671172 | BJ84: 0.1313671172 | BK84: 0.1313671172 | BL84: 0.1313671172 | BM84: 0.1313671172 | BN84: 0.1313671172 | BO84: 0.1313671172 | BP84: 0.1313671172 | BQ84: 0.1313671172 | BR84: 0.1313671172 | BS84: 0.1313671172 | BT84: 0.1313671172 | BU84: 0.1313671172 | BV84: 0.1313671172 | BW84: 0.1313671172 | BX84: 0.1313671172 | BY84: 0.1313671172 | BZ84: 0.1313671172
C85: Inflation x FX adjustment | D85: Index | J85: =J83*J84 -> 1 | K85: 1.028037383 | L85: 1.056860861 | M85: 1.086492474 | N85: 1.11695488 | O85: 1.148271372 | P85: 1.180465896 | Q85: 1.213563071 | R85: 1.247588204 | S85: 1.282567312 | T85: 1.318527144 | U85: 1.355495194 | V85: 1.393499732 | W85: 1.432569818 | X85: 1.472735327 | Y85: 1.514026972 | Z85: 1.556476326 | AA85: 1.60011585 | AB85: 1.644978911 | AC85: 1.691099815 | AD85: 1.738513828 | AE85: 1.787257207 | AF85: 1.837367222 | AG85: 1.888882191 | AH85: 1.941841504 | AI85: 1.996285659 | AJ85: 2.052256285 | AK85: 2.109796181 | AL85: 2.168949344 | AM85: 2.229761008 | AN85: 2.292277672 | AO85: 2.521505439 | AP85: =AP83*AP84 -> 2.773655983 | AQ85: 3.051021582 | AR85: 3.35612374 | AS85: 3.691736114 | AT85: 4.060909725 | AU85: 4.467000698 | AV85: 4.913700767 | AW85: 5.405070844 | AX85: 5.945577929 | AY85: 6.540135721 | AZ85: 7.194149294 | BA85: 7.913564223 | BB85: 8.704920645 | BC85: 9.57541271 | BD85: 10.53295398 | BE85: 11.58624938 | BF85: 12.74487432 | BG85: 14.01936175 | BH85: 15.42129792 | BI85: 16.96342772 | BJ85: 18.65977049 | BK85: 20.52574754 | BL85: 22.57832229 | BM85: 24.83615452 | BN85: 27.31976997 | BO85: 30.05174697 | BP85: 33.05692166 | BQ85: 36.36261383 | BR85: 39.99887521 | BS85: 43.99876273 | BT85: 48.39863901 | BU85: 53.23850291 | BV85: =BV83*BV84 -> 58.5623532 | BW85: 64.41858852 | BX85: 70.86044737 | BY85: 77.94649211 | BZ85: 85.74114132
C87: Revenue (FX and Inflation adjusted) | D87: $ | I87: =SUM(J87:BZ87) -> 45663943.33 | J87: =J$77 -> 0 | K87: 780280.3738 | L87: 1147627.779 | M87: 1387557.476 | N87: 1577997.012 | O87: 1743075.943 | P87: 1827786.175 | Q87: 1916613.167 | R87: 2009756.984 | S87: 2107427.417 | T87: 2209844.451 | U87: 2317238.76 | V87: 2429852.233 | W87: 2547938.51 | X87: 2671763.559 | Y87: 2801606.274 | Z87: 2937759.102 | AA87: 3080528.703 | AB87: 3230236.64 | AC87: 3387220.103 | AD87: 3551832.669 | AE87: 0 | AF87: 0 | AG87: 0 | AH87: 0 | AI87: 0 | AJ87: 0 | AK87: 0 | AL87: 0 | AM87: 0 | AN87: 0 | AO87: 0 | AP87: =AP$77 -> 0 | AQ87: 0 | AR87: 0 | AS87: 0 | AT87: 0 | AU87: 0 | AV87: 0 | AW87: 0 | AX87: 0 | AY87: 0 | AZ87: 0 | BA87: 0 | BB87: 0 | BC87: 0 | BD87: 0 | BE87: 0 | BF87: 0 | BG87: 0 | BH87: 0 | BI87: 0 | BJ87: 0 | BK87: 0 | BL87: 0 | BM87: 0 | BN87: 0 | BO87: 0 | BP87: 0 | BQ87: 0 | BR87: 0 | BS87: 0 | BT87: 0 | BU87: 0 | BV87: 0 | BW87: 0 | BX87: 0 | BY87: 0 | BZ87: 0
E88: Average
C89: ARPU (FX and inflation adjusted) | D89: $/year | E89: =AVERAGEIF(J89:BZ89,"<>0") -> 198.538884 | J89: =IF(J79=0,0,J87/J79) -> 0 | K89: 67.85046729 | L89: 99.79371991 | M89: 120.6571718 | N89: 137.2171315 | O89: 151.5718211 | P89: 158.9379283 | Q89: 166.6620145 | R89: 174.7614769 | S89: 183.254558 | T89: 192.160387 | U89: 201.4990226 | V89: 211.2914985 | W89: 221.5598704 | X89: 232.327266 | Y89: 243.6179368 | Z89: 255.4573132 | AA89: 267.8720612 | AB89: 280.8901426 | AC89: 294.5408785 | AD89: 308.8550147 | AE89: 0 | AF89: 0 | AG89: 0 | AH89: 0 | AI89: 0 | AJ89: 0 | AK89: 0 | AL89: 0 | AM89: 0 | AN89: 0 | AO89: 0 | AP89: =IF(AP79=0,0,AP87/AP79) -> 0 | AQ89: 0 | AR89: 0 | AS89: 0 | AT89: 0 | AU89: 0 | AV89: 0 | AW89: 0 | AX89: 0 | AY89: 0 | AZ89: 0 | BA89: 0 | BB89: 0 | BC89: 0 | BD89: 0 | BE89: 0 | BF89: 0 | BG89: 0 | BH89: 0 | BI89: 0 | BJ89: 0 | BK89: 0 | BL89: 0 | BM89: 0 | BN89: 0 | BO89: 0 | BP89: 0 | BQ89: 0 | BR89: 0 | BS89: 0 | BT89: 0 | BU89: 0 | BV89: 0 | BW89: 0 | BX89: 0 | BY89: 0 | BZ89: 0
C90: ARPU (FX and inflation adjusted) | D90: $/month | E90: =AVERAGEIF(J90:BZ90,"<>0") -> 16.544907 | J90: =J89/Months_Yr -> 0 | K90: 5.654205607 | L90: 8.316143326 | M90: 10.05476432 | N90: 11.43476096 | O90: 12.63098509 | P90: 13.24482736 | Q90: 13.88850121 | R90: 14.56345641 | S90: 15.27121317 | T90: 16.01336558 | U90: 16.79158522 | V90: 17.60762488 | W90: 18.46332253 | X90: 19.3606055 | Y90: 20.30149474 | Z90: 21.28810943 | AA90: 22.32267176 | AB90: 23.40751189 | AC90: 24.54507321 | AD90: 25.73791789 | AE90: 0 | AF90: 0 | AG90: 0 | AH90: 0 | AI90: 0 | AJ90: 0 | AK90: 0 | AL90: 0 | AM90: 0 | AN90: 0 | AO90: 0 | AP90: =AP89/Months_Yr -> 0 | AQ90: 0 | AR90: 0 | AS90: 0 | AT90: 0 | AU90: 0 | AV90: 0 | AW90: 0 | AX90: 0 | AY90: 0 | AZ90: 0 | BA90: 0 | BB90: 0 | BC90: 0 | BD90: 0 | BE90: 0 | BF90: 0 | BG90: 0 | BH90: 0 | BI90: 0 | BJ90: 0 | BK90: 0 | BL90: 0 | BM90: 0 | BN90: 0 | BO90: 0 | BP90: 0 | BQ90: 0 | BR90: 0 | BS90: 0 | BT90: 0 | BU90: 0 | BV90: =BV89/Months_Yr -> 0 | BW90: 0 | BX90: 0 | BY90: 0 | BZ90: 0
C92: Revenue per grid | D92: $/year | E92: =Inputs!$E$30 -> 383.3333333 | J92: =$E92*J$89 -> 0 | K92: 26009.34579 | L92: 38254.2593 | M92: 46251.91587 | N92: 52599.90039 | O92: 58102.53142 | P92: 60926.20584 | Q92: 63887.10557 | R92: 66991.89948 | S92: 70247.58058 | T92: 73661.48169 | U92: 77241.29202 | V92: 80995.07443 | W92: 84931.28366 | X92: 89058.78529 | Y92: 93386.87579 | Z92: 97925.3034 | AA92: 102684.2901 | AB92: 107674.5547 | AC92: 112907.3368 | AD92: 118394.4223 | AE92: 0 | AF92: 0 | AG92: 0 | AH92: 0 | AI92: 0 | AJ92: 0 | AK92: 0 | AL92: 0 | AM92: 0 | AN92: 0 | AO92: 0 | AP92: =$E92*AP$89 -> 0 | AQ92: 0 | AR92: 0 | AS92: 0 | AT92: 0 | AU92: 0 | AV92: 0 | AW92: 0 | AX92: 0 | AY92: 0 | AZ92: 0 | BA92: 0 | BB92: 0 | BC92: 0 | BD92: 0 | BE92: 0 | BF92: 0 | BG92: 0 | BH92: 0 | BI92: 0 | BJ92: 0 | BK92: 0 | BL92: 0 | BM92: 0 | BN92: 0 | BO92: 0 | BP92: 0 | BQ92: 0 | BR92: 0 | BS92: 0 | BT92: 0 | BU92: 0 | BV92: 0 | BW92: 0 | BX92: 0 | BY92: 0 | BZ92: 0
C94: Opex
C95: Base Fee
E96: OpEx Fee
C97: Fixed Opex fee per grid | D97: $/grid/yr | E97: =Inputs!E173 -> 4000 | F97: Case | J97: =$E97*J$7 -> 0 | K97: 4000 | L97: 4000 | M97: 4000 | N97: 4000 | O97: 4000 | P97: 4000 | Q97: 4000 | R97: 4000 | S97: 4000 | T97: 4000 | U97: 4000 | V97: 4000 | W97: 4000 | X97: 4000 | Y97: 4000 | Z97: 4000 | AA97: 4000 | AB97: 4000 | AC97: 4000 | AD97: 4000 | AE97: 0 | AF97: 0 | AG97: 0 | AH97: 0 | AI97: 0 | AJ97: 0 | AK97: 0 | AL97: 0 | AM97: 0 | AN97: 0 | AO97: 0 | AP97: =$E97*AP$7 -> 0 | AQ97: 0 | AR97: 0 | AS97: 0 | AT97: 0 | AU97: 0 | AV97: 0 | AW97: 0 | AX97: 0 | AY97: 0 | AZ97: 0 | BA97: 0 | BB97: 0 | BC97: 0 | BD97: 0 | BE97: 0 | BF97: 0 | BG97: 0 | BH97: 0 | BI97: 0 | BJ97: 0 | BK97: 0 | BL97: 0 | BM97: 0 | BN97: 0 | BO97: 0 | BP97: 0 | BQ97: 0 | BR97: 0 | BS97: 0 | BT97: 0 | BU97: 0 | BV97: 0 | BW97: 0 | BX97: 0 | BY97: 0 | BZ97: 0
C98: Naira depreciation against selected currency | D98: Index | F98: =Currency!$F$18 -> 1 | J98: =IF($F98=2,1,J$16)*J$7 -> 0 | K98: 0.9345794393 | L98: 0.8734387283 | M98: 0.8162978769 | N98: 0.762895212 | O98: 0.7129861795 | P98: 0.6663422238 | Q98: 0.6227497419 | R98: 0.5820091046 | S98: 0.5439337426 | T98: 0.5083492921 | U98: 0.4750927964 | V98: 0.4440119592 | W98: 0.4149644479 | X98: 0.387817241 | Y98: 0.3624460196 | Z98: 0.3387345978 | AA98: 0.3165743905 | AB98: 0.2958639163 | AC98: 0.276508333 | AD98: 0.2584190028 | AE98: 0 | AF98: 0 | AG98: 0 | AH98: 0 | AI98: 0 | AJ98: 0 | AK98: 0 | AL98: 0 | AM98: 0 | AN98: 0 | AO98: 0 | AP98: =IF($F98=2,1,AP$16)*AP$7 -> 0 | AQ98: 0 | AR98: 0 | AS98: 0 | AT98: 0 | AU98: 0 | AV98: 0 | AW98: 0 | AX98: 0 | AY98: 0 | AZ98: 0 | BA98: 0 | BB98: 0 | BC98: 0 | BD98: 0 | BE98: 0 | BF98: 0 | BG98: 0 | BH98: 0 | BI98: 0 | BJ98: 0 | BK98: 0 | BL98: 0 | BM98: 0 | BN98: 0 | BO98: 0 | BP98: 0 | BQ98: 0 | BR98: 0 | BS98: 0 | BT98: 0 | BU98: 0 | BV98: 0 | BW98: 0 | BX98: 0 | BY98: 0 | BZ98: 0
C99: Normalised for Inflation | D99: Index | J99: =J$83*J$7 -> 0 | K99: 1.1 | L99: 1.21 | M99: 1.331 | N99: 1.4641 | O99: 1.61051 | P99: 1.771561 | Q99: 1.9487171 | R99: 2.14358881 | S99: 2.357947691 | T99: 2.59374246 | U99: 2.853116706 | V99: 3.138428377 | W99: 3.452271214 | X99: 3.797498336 | Y99: 4.177248169 | Z99: 4.594972986 | AA99: 5.054470285 | AB99: 5.559917313 | AC99: 6.115909045 | AD99: 6.727499949 | AE99: 0 | AF99: 0 | AG99: 0 | AH99: 0 | AI99: 0 | AJ99: 0 | AK99: 0 | AL99: 0 | AM99: 0 | AN99: 0 | AO99: 0 | AP99: =AP$83*AP$7 -> 0 | AQ99: 0 | AR99: 0 | AS99: 0 | AT99: 0 | AU99: 0 | AV99: 0 | AW99: 0 | AX99: 0 | AY99: 0 | AZ99: 0 | BA99: 0 | BB99: 0 | BC99: 0 | BD99: 0 | BE99: 0 | BF99: 0 | BG99: 0 | BH99: 0 | BI99: 0 | BJ99: 0 | BK99: 0 | BL99: 0 | BM99: 0 | BN99: 0 | BO99: 0 | BP99: 0 | BQ99: 0 | BR99: 0 | BS99: 0 | BT99: 0 | BU99: 0 | BV99: 0 | BW99: 0 | BX99: 0 | BY99: 0 | BZ99: 0
C100: Fixed Opex fee per grid (FX adjusted) | D100: $/grid/yr | J100: =J97*J98*J99 -> 0 | K100: 4112.149533 | L100: 4227.443445 | M100: 4345.969897 | N100: 4467.81952 | O100: 4593.085488 | P100: 4721.863585 | Q100: 4854.252284 | R100: 4990.352815 | S100: 5130.26925 | T100: 5274.108574 | U100: 5421.980777 | V100: 5573.99893 | W100: 5730.279274 | X100: 5890.941309 | Y100: 6056.107888 | Z100: 6225.905306 | AA100: 6400.463398 | AB100: 6579.915643 | AC100: 6764.399259 | AD100: 6954.055313 | AE100: 0 | AF100: 0 | AG100: 0 | AH100: 0 | AI100: 0 | AJ100: 0 | AK100: 0 | AL100: 0 | AM100: 0 | AN100: 0 | AO100: 0 | AP100: =AP97*AP98*AP99 -> 0 | AQ100: 0 | AR100: 0 | AS100: 0 | AT100: 0 | AU100: 0 | AV100: 0 | AW100: 0 | AX100: 0 | AY100: 0 | AZ100: 0 | BA100: 0 | BB100: 0 | BC100: 0 | BD100: 0 | BE100: 0 | BF100: 0 | BG100: 0 | BH100: 0 | BI100: 0 | BJ100: 0 | BK100: 0 | BL100: 0 | BM100: 0 | BN100: 0 | BO100: 0 | BP100: 0 | BQ100: 0 | BR100: 0 | BS100: 0 | BT100: 0 | BU100: 0 | BV100: =BV97*BV98*BV99 -> 0 | BW100: 0 | BX100: 0 | BY100: 0 | BZ100: 0
C101: Fixed Opex fee | D101: $/year | I101: =SUM(J101:BZ101) -> -3249460.845 | J101: =-J100*J$185 -> 0 | K101: -123364.486 | L101: -126823.3033 | M101: -130379.0969 | N101: -134034.5856 | O101: -137792.5646 | P101: -141655.9076 | Q101: -145627.5685 | R101: -149710.5845 | S101: -153908.0775 | T101: -158223.2572 | U101: -162659.4233 | V101: -167219.9679 | W101: -171908.3782 | X101: -176728.2393 | Y101: -181683.2366 | Z101: -186777.1592 | AA101: -192013.902 | AB101: -197397.4693 | AC101: -202931.9778 | AD101: -208621.6594 | AE101: 0 | AF101: 0 | AG101: 0 | AH101: 0 | AI101: 0 | AJ101: 0 | AK101: 0 | AL101: 0 | AM101: 0 | AN101: 0 | AO101: 0 | AP101: =-AP100*AP$185 -> 0 | AQ101: 0 | AR101: 0 | AS101: 0 | AT101: 0 | AU101: 0 | AV101: 0 | AW101: 0 | AX101: 0 | AY101: 0 | AZ101: 0 | BA101: 0 | BB101: 0 | BC101: 0 | BD101: 0 | BE101: 0 | BF101: 0 | BG101: 0 | BH101: 0 | BI101: 0 | BJ101: 0 | BK101: 0 | BL101: 0 | BM101: 0 | BN101: 0 | BO101: 0 | BP101: 0 | BQ101: 0 | BR101: 0 | BS101: 0 | BT101: 0 | BU101: 0 | BV101: =-BV100*BV$185 -> 0 | BW101: 0 | BX101: 0 | BY101: 0 | BZ101: 0
E102: 15 Ops Yr Avg
C103: Fixed Opex fee per customer (nominal) | D103: $/connection/month | E103: =AVERAGE(K103:Y103) -> 2 | F103: Case | J103: =LOOKUP(J14,Inputs!$I$175:$L$175,Inputs!$I$176:$L$176)*J7 -> 0 | K103: =LOOKUP(K14,Inputs!$I$175:$L$175,Inputs!$I$176:$L$176)*K7 -> 2 | L103: =LOOKUP(L14,Inputs!$I$175:$L$175,Inputs!$I$176:$L$176)*L7 -> 2 | M103: =LOOKUP(M14,Inputs!$I$175:$L$175,Inputs!$I$176:$L$176)*M7 -> 2 | N103: =LOOKUP(N14,Inputs!$I$175:$L$175,Inputs!$I$176:$L$176)*N7 -> 2 | O103: =LOOKUP(O14,Inputs!$I$175:$L$175,Inputs!$I$176:$L$176)*O7 -> 2 | P103: =LOOKUP(P14,Inputs!$I$175:$L$175,Inputs!$I$176:$L$176)*P7 -> 2 | Q103: =LOOKUP(Q14,Inputs!$I$175:$L$175,Inputs!$I$176:$L$176)*Q7 -> 2 | R103: =LOOKUP(R14,Inputs!$I$175:$L$175,Inputs!$I$176:$L$176)*R7 -> 2 | S103: =LOOKUP(S14,Inputs!$I$175:$L$175,Inputs!$I$176:$L$176)*S7 -> 2 | T103: =LOOKUP(T14,Inputs!$I$175:$L$175,Inputs!$I$176:$L$176)*T7 -> 2 | U103: =LOOKUP(U14,Inputs!$I$175:$L$175,Inputs!$I$176:$L$176)*U7 -> 2 | V103: =LOOKUP(V14,Inputs!$I$175:$L$175,Inputs!$I$176:$L$176)*V7 -> 2 | W103: =LOOKUP(W14,Inputs!$I$175:$L$175,Inputs!$I$176:$L$176)*W7 -> 2 | X103: =LOOKUP(X14,Inputs!$I$175:$L$175,Inputs!$I$176:$L$176)*X7 -> 2 | Y103: =LOOKUP(Y14,Inputs!$I$175:$L$175,Inputs!$I$176:$L$176)*Y7 -> 2 | Z103: =LOOKUP(Z14,Inputs!$I$175:$L$175,Inputs!$I$176:$L$176)*Z7 -> 2 | AA103: =LOOKUP(AA14,Inputs!$I$175:$L$175,Inputs!$I$176:$L$176)*AA7 -> 2 | AB103: =LOOKUP(AB14,Inputs!$I$175:$L$175,Inputs!$I$176:$L$176)*AB7 -> 2 | AC103: =LOOKUP(AC14,Inputs!$I$175:$L$175,Inputs!$I$176:$L$176)*AC7 -> 2 | AD103: =LOOKUP(AD14,Inputs!$I$175:$L$175,Inputs!$I$176:$L$176)*AD7 -> 2 | AE103: =LOOKUP(AE14,Inputs!$I$175:$L$175,Inputs!$I$176:$L$176)*AE7 -> 0 | AF103: =LOOKUP(AF14,Inputs!$I$175:$L$175,Inputs!$I$176:$L$176)*AF7 -> 0 | AG103: =LOOKUP(AG14,Inputs!$I$175:$L$175,Inputs!$I$176:$L$176)*AG7 -> 0 | AH103: =LOOKUP(AH14,Inputs!$I$175:$L$175,Inputs!$I$176:$L$176)*AH7 -> 0 | AI103: =LOOKUP(AI14,Inputs!$I$175:$L$175,Inputs!$I$176:$L$176)*AI7 -> 0 | AJ103: =LOOKUP(AJ14,Inputs!$I$175:$L$175,Inputs!$I$176:$L$176)*AJ7 -> 0 | AK103: =LOOKUP(AK14,Inputs!$I$175:$L$175,Inputs!$I$176:$L$176)*AK7 -> 0 | AL103: =LOOKUP(AL14,Inputs!$I$175:$L$175,Inputs!$I$176:$L$176)*AL7 -> 0 | AM103: =LOOKUP(AM14,Inputs!$I$175:$L$175,Inputs!$I$176:$L$176)*AM7 -> 0 | AN103: =LOOKUP(AN14,Inputs!$I$175:$L$175,Inputs!$I$176:$L$176)*AN7 -> 0 | AO103: =LOOKUP(AO14,Inputs!$I$175:$L$175,Inputs!$I$176:$L$176)*AO7 -> 0 | AP103: =LOOKUP(AP14,Inputs!$I$175:$L$175,Inputs!$I$176:$L$176)*AP7 -> 0 | AQ103: =LOOKUP(AQ14,Inputs!$I$175:$L$175,Inputs!$I$176:$L$176)*AQ7 -> 0 | AR103: =LOOKUP(AR14,Inputs!$I$175:$L$175,Inputs!$I$176:$L$176)*AR7 -> 0 | AS103: =LOOKUP(AS14,Inputs!$I$175:$L$175,Inputs!$I$176:$L$176)*AS7 -> 0 | AT103: =LOOKUP(AT14,Inputs!$I$175:$L$175,Inputs!$I$176:$L$176)*AT7 -> 0 | AU103: =LOOKUP(AU14,Inputs!$I$175:$L$175,Inputs!$I$176:$L$176)*AU7 -> 0 | AV103: =LOOKUP(AV14,Inputs!$I$175:$L$175,Inputs!$I$176:$L$176)*AV7 -> 0 | AW103: =LOOKUP(AW14,Inputs!$I$175:$L$175,Inputs!$I$176:$L$176)*AW7 -> 0 | AX103: =LOOKUP(AX14,Inputs!$I$175:$L$175,Inputs!$I$176:$L$176)*AX7 -> 0 | AY103: =LOOKUP(AY14,Inputs!$I$175:$L$175,Inputs!$I$176:$L$176)*AY7 -> 0 | AZ103: =LOOKUP(AZ14,Inputs!$I$175:$L$175,Inputs!$I$176:$L$176)*AZ7 -> 0 | BA103: =LOOKUP(BA14,Inputs!$I$175:$L$175,Inputs!$I$176:$L$176)*BA7 -> 0 | BB103: =LOOKUP(BB14,Inputs!$I$175:$L$175,Inputs!$I$176:$L$176)*BB7 -> 0 | BC103: =LOOKUP(BC14,Inputs!$I$175:$L$175,Inputs!$I$176:$L$176)*BC7 -> 0 | BD103: =LOOKUP(BD14,Inputs!$I$175:$L$175,Inputs!$I$176:$L$176)*BD7 -> 0 | BE103: =LOOKUP(BE14,Inputs!$I$175:$L$175,Inputs!$I$176:$L$176)*BE7 -> 0 | BF103: =LOOKUP(BF14,Inputs!$I$175:$L$175,Inputs!$I$176:$L$176)*BF7 -> 0 | BG103: =LOOKUP(BG14,Inputs!$I$175:$L$175,Inputs!$I$176:$L$176)*BG7 -> 0 | BH103: =LOOKUP(BH14,Inputs!$I$175:$L$175,Inputs!$I$176:$L$176)*BH7 -> 0 | BI103: =LOOKUP(BI14,Inputs!$I$175:$L$175,Inputs!$I$176:$L$176)*BI7 -> 0 | BJ103: =LOOKUP(BJ14,Inputs!$I$175:$L$175,Inputs!$I$176:$L$176)*BJ7 -> 0 | BK103: =LOOKUP(BK14,Inputs!$I$175:$L$175,Inputs!$I$176:$L$176)*BK7 -> 0 | BL103: =LOOKUP(BL14,Inputs!$I$175:$L$175,Inputs!$I$176:$L$176)*BL7 -> 0 | BM103: =LOOKUP(BM14,Inputs!$I$175:$L$175,Inputs!$I$176:$L$176)*BM7 -> 0 | BN103: =LOOKUP(BN14,Inputs!$I$175:$L$175,Inputs!$I$176:$L$176)*BN7 -> 0 | BO103: =LOOKUP(BO14,Inputs!$I$175:$L$175,Inputs!$I$176:$L$176)*BO7 -> 0 | BP103: =LOOKUP(BP14,Inputs!$I$175:$L$175,Inputs!$I$176:$L$176)*BP7 -> 0 | BQ103: =LOOKUP(BQ14,Inputs!$I$175:$L$175,Inputs!$I$176:$L$176)*BQ7 -> 0 | BR103: =LOOKUP(BR14,Inputs!$I$175:$L$175,Inputs!$I$176:$L$176)*BR7 -> 0 | BS103: =LOOKUP(BS14,Inputs!$I$175:$L$175,Inputs!$I$176:$L$176)*BS7 -> 0 | BT103: =LOOKUP(BT14,Inputs!$I$175:$L$175,Inputs!$I$176:$L$176)*BT7 -> 0 | BU103: =LOOKUP(BU14,Inputs!$I$175:$L$175,Inputs!$I$176:$L$176)*BU7 -> 0 | BV103: =LOOKUP(BV14,Inputs!$I$175:$L$175,Inputs!$I$176:$L$176)*BV7 -> 0 | BW103: =LOOKUP(BW14,Inputs!$I$175:$L$175,Inputs!$I$176:$L$176)*BW7 -> 0 | BX103: =LOOKUP(BX14,Inputs!$I$175:$L$175,Inputs!$I$176:$L$176)*BX7 -> 0 | BY103: =LOOKUP(BY14,Inputs!$I$175:$L$175,Inputs!$I$176:$L$176)*BY7 -> 0 | BZ103: =LOOKUP(BZ14,Inputs!$I$175:$L$175,Inputs!$I$176:$L$176)*BZ7 -> 0
C104: Naira depreciation against selected currency | D104: Index | F104: =Currency!$F$18 -> 1 | J104: =IF($F104=2,1,J$16)*J$7 -> 0 | K104: 0.9345794393 | L104: 0.8734387283 | M104: 0.8162978769 | N104: 0.762895212 | O104: 0.7129861795 | P104: 0.6663422238 | Q104: 0.6227497419 | R104: 0.5820091046 | S104: 0.5439337426 | T104: 0.5083492921 | U104: 0.4750927964 | V104: 0.4440119592 | W104: 0.4149644479 | X104: 0.387817241 | Y104: 0.3624460196 | Z104: 0.3387345978 | AA104: 0.3165743905 | AB104: 0.2958639163 | AC104: 0.276508333 | AD104: 0.2584190028 | AE104: 0 | AF104: 0 | AG104: 0 | AH104: 0 | AI104: 0 | AJ104: 0 | AK104: 0 | AL104: 0 | AM104: 0 | AN104: 0 | AO104: 0 | AP104: =IF($F104=2,1,AP$16)*AP$7 -> 0 | AQ104: 0 | AR104: 0 | AS104: 0 | AT104: 0 | AU104: 0 | AV104: 0 | AW104: 0 | AX104: 0 | AY104: 0 | AZ104: 0 | BA104: 0 | BB104: 0 | BC104: 0 | BD104: 0 | BE104: 0 | BF104: 0 | BG104: 0 | BH104: 0 | BI104: 0 | BJ104: 0 | BK104: 0 | BL104: 0 | BM104: 0 | BN104: 0 | BO104: 0 | BP104: 0 | BQ104: 0 | BR104: 0 | BS104: 0 | BT104: 0 | BU104: 0 | BV104: 0 | BW104: 0 | BX104: 0 | BY104: 0 | BZ104: 0
C105: Normalised for Inflation | D105: Index | J105: =J$83*J$7 -> 0 | K105: 1.1 | L105: 1.21 | M105: 1.331 | N105: 1.4641 | O105: 1.61051 | P105: 1.771561 | Q105: 1.9487171 | R105: 2.14358881 | S105: 2.357947691 | T105: 2.59374246 | U105: 2.853116706 | V105: 3.138428377 | W105: 3.452271214 | X105: 3.797498336 | Y105: 4.177248169 | Z105: 4.594972986 | AA105: 5.054470285 | AB105: 5.559917313 | AC105: 6.115909045 | AD105: 6.727499949 | AE105: 0 | AF105: 0 | AG105: 0 | AH105: 0 | AI105: 0 | AJ105: 0 | AK105: 0 | AL105: 0 | AM105: 0 | AN105: 0 | AO105: 0 | AP105: =AP$83*AP$7 -> 0 | AQ105: 0 | AR105: 0 | AS105: 0 | AT105: 0 | AU105: 0 | AV105: 0 | AW105: 0 | AX105: 0 | AY105: 0 | AZ105: 0 | BA105: 0 | BB105: 0 | BC105: 0 | BD105: 0 | BE105: 0 | BF105: 0 | BG105: 0 | BH105: 0 | BI105: 0 | BJ105: 0 | BK105: 0 | BL105: 0 | BM105: 0 | BN105: 0 | BO105: 0 | BP105: 0 | BQ105: 0 | BR105: 0 | BS105: 0 | BT105: 0 | BU105: 0 | BV105: 0 | BW105: 0 | BX105: 0 | BY105: 0 | BZ105: 0
C106: Fixed Opex fee per customer (FX and Inflation adjusted) | D106: $/connection/month | J106: =J103*J104*J105 -> 0 | K106: 2.056074766 | L106: 2.113721722 | M106: 2.172984948 | N106: 2.23390976 | O106: 2.296542744 | P106: 2.360931793 | Q106: 2.427126142 | R106: 2.495176408 | S106: 2.565134625 | T106: 2.637054287 | U106: 2.710990389 | V106: 2.786999465 | W106: 2.865139637 | X106: 2.945470655 | Y106: 3.028053944 | Z106: 3.112952653 | AA106: 3.200231699 | AB106: 3.289957822 | AC106: 3.38219963 | AD106: 3.477027657 | AE106: 0 | AF106: 0 | AG106: 0 | AH106: 0 | AI106: 0 | AJ106: 0 | AK106: 0 | AL106: 0 | AM106: 0 | AN106: 0 | AO106: 0 | AP106: =AP103*AP104*AP105 -> 0 | AQ106: 0 | AR106: 0 | AS106: 0 | AT106: 0 | AU106: 0 | AV106: 0 | AW106: 0 | AX106: 0 | AY106: 0 | AZ106: 0 | BA106: 0 | BB106: 0 | BC106: 0 | BD106: 0 | BE106: 0 | BF106: 0 | BG106: 0 | BH106: 0 | BI106: 0 | BJ106: 0 | BK106: 0 | BL106: 0 | BM106: 0 | BN106: 0 | BO106: 0 | BP106: 0 | BQ106: 0 | BR106: 0 | BS106: 0 | BT106: 0 | BU106: 0 | BV106: =BV103*BV104*BV105 -> 0 | BW106: 0 | BX106: 0 | BY106: 0 | BZ106: 0
C107: Customer Opex fee | D107: $/year | I107: =SUM(J107:BZ107) -> -7473759.943 | J107: =-J106*J$7*J$79*Months_Yr -> 0 | K107: -283738.3178 | L107: -291693.5977 | M107: -299871.9229 | N107: -308279.5469 | O107: -316922.8986 | P107: -325808.5874 | Q107: -334943.4076 | R107: -344334.3443 | S107: -353988.5782 | T107: -363913.4916 | U107: -374116.6736 | V107: -384605.9262 | W107: -395389.2699 | X107: -406474.9504 | Y107: -417871.4443 | Z107: -429587.4661 | AA107: -441631.9745 | AB107: -454014.1794 | AC107: -466743.5489 | AD107: -479829.8166 | AE107: 0 | AF107: 0 | AG107: 0 | AH107: 0 | AI107: 0 | AJ107: 0 | AK107: 0 | AL107: 0 | AM107: 0 | AN107: 0 | AO107: 0 | AP107: =-AP106*AP$7*AP$79*Months_Yr -> 0 | AQ107: 0 | AR107: 0 | AS107: 0 | AT107: 0 | AU107: 0 | AV107: 0 | AW107: 0 | AX107: 0 | AY107: 0 | AZ107: 0 | BA107: 0 | BB107: 0 | BC107: 0 | BD107: 0 | BE107: 0 | BF107: 0 | BG107: 0 | BH107: 0 | BI107: 0 | BJ107: 0 | BK107: 0 | BL107: 0 | BM107: 0 | BN107: 0 | BO107: 0 | BP107: 0 | BQ107: 0 | BR107: 0 | BS107: 0 | BT107: 0 | BU107: 0 | BV107: =-BV106*BV$7*BV$79*Months_Yr -> 0 | BW107: 0 | BX107: 0 | BY107: 0 | BZ107: 0
C109: Total Opex fee | D109: $/year | I109: =SUM(J109:BZ109) -> -10723220.79 | J109: =J107+J101 -> 0 | K109: -407102.8037 | L109: -418516.901 | M109: -430251.0198 | N109: -442314.1325 | O109: -454715.4633 | P109: -467464.495 | Q109: -480570.9761 | R109: -494044.9287 | S109: -507896.6557 | T109: -522136.7489 | U109: -536776.097 | V109: -551825.8941 | W109: -567297.6481 | X109: -583203.1896 | Y109: -599554.6809 | Z109: -616364.6253 | AA109: -633645.8764 | AB109: -651411.6487 | AC109: -669675.5267 | AD109: -688451.476 | AE109: 0 | AF109: 0 | AG109: 0 | AH109: 0 | AI109: 0 | AJ109: 0 | AK109: 0 | AL109: 0 | AM109: 0 | AN109: 0 | AO109: 0 | AP109: =AP107+AP101 -> 0 | AQ109: 0 | AR109: 0 | AS109: 0 | AT109: 0 | AU109: 0 | AV109: 0 | AW109: 0 | AX109: 0 | AY109: 0 | AZ109: 0 | BA109: 0 | BB109: 0 | BC109: 0 | BD109: 0 | BE109: 0 | BF109: 0 | BG109: 0 | BH109: 0 | BI109: 0 | BJ109: 0 | BK109: 0 | BL109: 0 | BM109: 0 | BN109: 0 | BO109: 0 | BP109: 0 | BQ109: 0 | BR109: 0 | BS109: 0 | BT109: 0 | BU109: 0 | BV109: 0 | BW109: 0 | BX109: 0 | BY109: 0 | BZ109: 0
C111: Variable Ratchet Fee
C112: =C$90 -> ARPU (FX and inflation adjusted) | D112: =D$90 -> $/month | J112: =J$90 -> 0 | K112: 5.654205607 | L112: 8.316143326 | M112: 10.05476432 | N112: 11.43476096 | O112: 12.63098509 | P112: 13.24482736 | Q112: 13.88850121 | R112: 14.56345641 | S112: 15.27121317 | T112: 16.01336558 | U112: 16.79158522 | V112: 17.60762488 | W112: 18.46332253 | X112: 19.3606055 | Y112: 20.30149474 | Z112: 21.28810943 | AA112: 22.32267176 | AB112: 23.40751189 | AC112: 24.54507321 | AD112: 25.73791789 | AE112: 0 | AF112: 0 | AG112: 0 | AH112: 0 | AI112: 0 | AJ112: 0 | AK112: 0 | AL112: 0 | AM112: 0 | AN112: 0 | AO112: 0 | AP112: =AP$90 -> 0 | AQ112: 0 | AR112: 0 | AS112: 0 | AT112: 0 | AU112: 0 | AV112: 0 | AW112: 0 | AX112: 0 | AY112: 0 | AZ112: 0 | BA112: 0 | BB112: 0 | BC112: 0 | BD112: 0 | BE112: 0 | BF112: 0 | BG112: 0 | BH112: 0 | BI112: 0 | BJ112: 0 | BK112: 0 | BL112: 0 | BM112: 0 | BN112: 0 | BO112: 0 | BP112: 0 | BQ112: 0 | BR112: 0 | BS112: 0 | BT112: 0 | BU112: 0 | BV112: 0 | BW112: 0 | BX112: 0 | BY112: 0 | BZ112: 0
C113: P50 ARPU Forecast (FX and Inflation adjusted) | D113: =D$90 -> $/month | J113: =J52*J69 -> 0 | K113: 5.654205607 | L113: 8.316143326 | M113: 10.05476432 | N113: 11.43476096 | O113: 12.63098509 | P113: 13.24482736 | Q113: 13.88850121 | R113: 14.56345641 | S113: 15.27121317 | T113: 16.01336558 | U113: 16.79158522 | V113: 17.60762488 | W113: 18.46332253 | X113: 19.3606055 | Y113: 20.30149474 | Z113: 21.28810943 | AA113: 22.32267176 | AB113: 23.40751189 | AC113: 24.54507321 | AD113: 25.73791789 | AE113: 0 | AF113: 0 | AG113: 0 | AH113: 0 | AI113: 0 | AJ113: 0 | AK113: 0 | AL113: 0 | AM113: 0 | AN113: 0 | AO113: 0 | AP113: =AP52*AP69 -> 0 | AQ113: 0 | AR113: 0 | AS113: 0 | AT113: 0 | AU113: 0 | AV113: 0 | AW113: 0 | AX113: 0 | AY113: 0 | AZ113: 0 | BA113: 0 | BB113: 0 | BC113: 0 | BD113: 0 | BE113: 0 | BF113: 0 | BG113: 0 | BH113: 0 | BI113: 0 | BJ113: 0 | BK113: 0 | BL113: 0 | BM113: 0 | BN113: 0 | BO113: 0 | BP113: 0 | BQ113: 0 | BR113: 0 | BS113: 0 | BT113: 0 | BU113: 0 | BV113: 0 | BW113: 0 | BX113: 0 | BY113: 0 | BZ113: 0
C114: ARPU above Ratchet threshold | D114: $/month | J114: =MAX(J112-J113,0) -> 0 | K114: 0 | L114: 0 | M114: 1.776356839e-15 | N114: 0 | O114: 0 | P114: 1.776356839e-15 | Q114: 0 | R114: 0 | S114: 0 | T114: 0 | U114: 0 | V114: 3.552713679e-15 | W114: 0 | X114: 0 | Y114: 0 | Z114: 0 | AA114: 0 | AB114: 0 | AC114: 0 | AD114: 0 | AE114: 0 | AF114: 0 | AG114: 0 | AH114: 0 | AI114: 0 | AJ114: 0 | AK114: 0 | AL114: 0 | AM114: 0 | AN114: 0 | AO114: 0 | AP114: =MAX(AP112-AP113,0) -> 0 | AQ114: 0 | AR114: 0 | AS114: 0 | AT114: 0 | AU114: 0 | AV114: 0 | AW114: 0 | AX114: 0 | AY114: 0 | AZ114: 0 | BA114: 0 | BB114: 0 | BC114: 0 | BD114: 0 | BE114: 0 | BF114: 0 | BG114: 0 | BH114: 0 | BI114: 0 | BJ114: 0 | BK114: 0 | BL114: 0 | BM114: 0 | BN114: 0 | BO114: 0 | BP114: 0 | BQ114: 0 | BR114: 0 | BS114: 0 | BT114: 0 | BU114: 0 | BV114: =MAX(BV112-BV113,0) -> 0 | BW114: 0 | BX114: 0 | BY114: 0 | BZ114: 0
C116: Revenue above Ratchet threshold | D116: $/year | I116: =SUM(J116:BZ116) -> 9.805489753e-10 | J116: =J114*J$79*Months_Yr -> 0 | K116: 0 | L116: 0 | M116: 2.451372438e-10 | N116: 0 | O116: 0 | P116: 2.451372438e-10 | Q116: 0 | R116: 0 | S116: 0 | T116: 0 | U116: 0 | V116: 4.902744877e-10 | W116: 0 | X116: 0 | Y116: 0 | Z116: 0 | AA116: 0 | AB116: 0 | AC116: 0 | AD116: 0 | AE116: 0 | AF116: 0 | AG116: 0 | AH116: 0 | AI116: 0 | AJ116: 0 | AK116: 0 | AL116: 0 | AM116: 0 | AN116: 0 | AO116: 0 | AP116: =AP114*AP$79*Months_Yr -> 0 | AQ116: 0 | AR116: 0 | AS116: 0 | AT116: 0 | AU116: 0 | AV116: 0 | AW116: 0 | AX116: 0 | AY116: 0 | AZ116: 0 | BA116: 0 | BB116: 0 | BC116: 0 | BD116: 0 | BE116: 0 | BF116: 0 | BG116: 0 | BH116: 0 | BI116: 0 | BJ116: 0 | BK116: 0 | BL116: 0 | BM116: 0 | BN116: 0 | BO116: 0 | BP116: 0 | BQ116: 0 | BR116: 0 | BS116: 0 | BT116: 0 | BU116: 0 | BV116: 0 | BW116: 0 | BX116: 0 | BY116: 0 | BZ116: 0
C117: =C111 -> Variable Ratchet Fee | D117: $/year | E117: =Inputs!$E$174 -> 0.3 | I117: =SUM(J117:BZ117) -> -2.941646926e-10 | J117: =-$E117*J116 -> 0 | K117: 0 | L117: 0 | M117: -7.354117315e-11 | N117: 0 | O117: 0 | P117: -7.354117315e-11 | Q117: 0 | R117: 0 | S117: 0 | T117: 0 | U117: 0 | V117: -1.470823463e-10 | W117: 0 | X117: 0 | Y117: 0 | Z117: 0 | AA117: 0 | AB117: 0 | AC117: 0 | AD117: 0 | AE117: 0 | AF117: 0 | AG117: 0 | AH117: 0 | AI117: 0 | AJ117: 0 | AK117: 0 | AL117: 0 | AM117: 0 | AN117: 0 | AO117: 0 | AP117: =-$E117*AP116 -> 0 | AQ117: 0 | AR117: 0 | AS117: 0 | AT117: 0 | AU117: 0 | AV117: 0 | AW117: 0 | AX117: 0 | AY117: 0 | AZ117: 0 | BA117: 0 | BB117: 0 | BC117: 0 | BD117: 0 | BE117: 0 | BF117: 0 | BG117: 0 | BH117: 0 | BI117: 0 | BJ117: 0 | BK117: 0 | BL117: 0 | BM117: 0 | BN117: 0 | BO117: 0 | BP117: 0 | BQ117: 0 | BR117: 0 | BS117: 0 | BT117: 0 | BU117: 0 | BV117: =-$E117*BV116 -> 0 | BW117: 0 | BX117: 0 | BY117: 0 | BZ117: 0
C119: Variable fee total | D119: $/year | I119: =SUM(J119:BZ119) -> -2.941646926e-10 | J119: =J117 -> 0 | K119: 0 | L119: 0 | M119: -7.354117315e-11 | N119: 0 | O119: 0 | P119: -7.354117315e-11 | Q119: 0 | R119: 0 | S119: 0 | T119: 0 | U119: 0 | V119: -1.470823463e-10 | W119: 0 | X119: 0 | Y119: 0 | Z119: 0 | AA119: 0 | AB119: 0 | AC119: 0 | AD119: 0 | AE119: 0 | AF119: 0 | AG119: 0 | AH119: 0 | AI119: 0 | AJ119: 0 | AK119: 0 | AL119: 0 | AM119: 0 | AN119: 0 | AO119: 0 | AP119: =AP117 -> 0 | AQ119: 0 | AR119: 0 | AS119: 0 | AT119: 0 | AU119: 0 | AV119: 0 | AW119: 0 | AX119: 0 | AY119: 0 | AZ119: 0 | BA119: 0 | BB119: 0 | BC119: 0 | BD119: 0 | BE119: 0 | BF119: 0 | BG119: 0 | BH119: 0 | BI119: 0 | BJ119: 0 | BK119: 0 | BL119: 0 | BM119: 0 | BN119: 0 | BO119: 0 | BP119: 0 | BQ119: 0 | BR119: 0 | BS119: 0 | BT119: 0 | BU119: 0 | BV119: 0 | BW119: 0 | BX119: 0 | BY119: 0 | BZ119: 0
C121: Total Operating Fee exc. Diesel | D121: $/year | F121: Average | I121: =SUM(J121:BZ121) -> -10723220.79 | J121: =J119+J109 -> 0 | K121: -407102.8037 | L121: -418516.901 | M121: -430251.0198 | N121: -442314.1325 | O121: -454715.4633 | P121: -467464.495 | Q121: -480570.9761 | R121: -494044.9287 | S121: -507896.6557 | T121: -522136.7489 | U121: -536776.097 | V121: -551825.8941 | W121: -567297.6481 | X121: -583203.1896 | Y121: -599554.6809 | Z121: -616364.6253 | AA121: -633645.8764 | AB121: -651411.6487 | AC121: -669675.5267 | AD121: -688451.476 | AE121: 0 | AF121: 0 | AG121: 0 | AH121: 0 | AI121: 0 | AJ121: 0 | AK121: 0 | AL121: 0 | AM121: 0 | AN121: 0 | AO121: 0 | AP121: =AP119+AP109 -> 0 | AQ121: 0 | AR121: 0 | AS121: 0 | AT121: 0 | AU121: 0 | AV121: 0 | AW121: 0 | AX121: 0 | AY121: 0 | AZ121: 0 | BA121: 0 | BB121: 0 | BC121: 0 | BD121: 0 | BE121: 0 | BF121: 0 | BG121: 0 | BH121: 0 | BI121: 0 | BJ121: 0 | BK121: 0 | BL121: 0 | BM121: 0 | BN121: 0 | BO121: 0 | BP121: 0 | BQ121: 0 | BR121: 0 | BS121: 0 | BT121: 0 | BU121: 0 | BV121: 0 | BW121: 0 | BX121: 0 | BY121: 0 | BZ121: 0
C122: Per site | D122: $/year | F122: =AVERAGEIF(J122:BZ122,"<>0") -> -17872.03465 | I122: =SUM(J122:BZ122) -> -357440.6929 | J122: =IF(J$23=0,0,J121/J$23) -> 0 | K122: =IF(K23=0,0,K121/K23) -> -13570.09346 | L122: -13950.56337 | M122: -14341.70066 | N122: -14743.80442 | O122: -15157.18211 | P122: -15582.14983 | Q122: -16019.03254 | R122: -16468.16429 | S122: -16929.88852 | T122: -17404.5583 | U122: -17892.53657 | V122: -18394.19647 | W122: -18909.9216 | X122: -19440.10632 | Y122: -19985.15603 | Z122: -20545.48751 | AA122: -21121.52921 | AB122: -21713.72162 | AC122: -22322.51756 | AD122: -22948.38253 | AE122: 0 | AF122: 0 | AG122: 0 | AH122: 0 | AI122: 0 | AJ122: 0 | AK122: 0 | AL122: 0 | AM122: 0 | AN122: 0 | AO122: 0 | AP122: 0 | AQ122: =IF(AQ23=0,0,AQ121/AQ23) -> 0 | AR122: 0 | AS122: 0 | AT122: 0 | AU122: 0 | AV122: 0 | AW122: 0 | AX122: 0 | AY122: 0 | AZ122: 0 | BA122: 0 | BB122: 0 | BC122: 0 | BD122: 0 | BE122: 0 | BF122: 0 | BG122: 0 | BH122: 0 | BI122: 0 | BJ122: 0 | BK122: 0 | BL122: 0 | BM122: 0 | BN122: 0 | BO122: 0 | BP122: 0 | BQ122: 0 | BR122: 0 | BS122: 0 | BT122: 0 | BU122: 0 | BV122: 0 | BW122: =IF(BW23=0,0,BW121/BW23) -> 0 | BX122: 0 | BY122: 0 | BZ122: 0
C124: Diesel | D124: $/year | F124: Average | I124: =SUM(J124:BZ124) -> -1895269.417 | J124: =-J707 -> 0 | K124: -18325.77927 | L124: -24685.14933 | M124: -71496.17418 | N124: -141405.5306 | O124: -137880.8437 | P124: -101900.777 | Q124: -93636.6157 | R124: -85754.00781 | S124: -91931.50109 | T124: -98505.96257 | U124: -91814.41495 | V124: -99206.78971 | W124: -93349.51363 | X124: -101592.8454 | Y124: -96603.54539 | Z124: -105732.2128 | AA124: -101645.9551 | AB124: -111695.7257 | AC124: -108548.9933 | AD124: -119557.0797 | AE124: 0 | AF124: 0 | AG124: 0 | AH124: 0 | AI124: 0 | AJ124: 0 | AK124: 0 | AL124: 0 | AM124: 0 | AN124: 0 | AO124: 0 | AP124: =-AP707 -> 0 | AQ124: 0 | AR124: 0 | AS124: 0 | AT124: 0 | AU124: 0 | AV124: 0 | AW124: 0 | AX124: 0 | AY124: 0 | AZ124: 0 | BA124: 0 | BB124: 0 | BC124: 0 | BD124: 0 | BE124: 0 | BF124: 0 | BG124: 0 | BH124: 0 | BI124: 0 | BJ124: 0 | BK124: 0 | BL124: 0 | BM124: 0 | BN124: 0 | BO124: 0 | BP124: 0 | BQ124: 0 | BR124: 0 | BS124: 0 | BT124: 0 | BU124: 0 | BV124: 0 | BW124: 0 | BX124: 0 | BY124: 0 | BZ124: 0
C125: Per site | D125: $/year | F125: =AVERAGEIF(J125:BZ125,"<>0") -> -3158.782362 | I125: =SUM(J125:BZ125) -> -63175.64723 | J125: =IF(J$23=0,0,J124/J$23) -> 0 | K125: -610.8593092 | L125: -822.838311 | M125: -2383.205806 | N125: -4713.517687 | O125: -4596.028123 | P125: -3396.692568 | Q125: -3121.220523 | R125: -2858.466927 | S125: -3064.38337 | T125: -3283.532086 | U125: -3060.480498 | V125: -3306.89299 | W125: -3111.650454 | X125: -3386.428179 | Y125: -3220.11818 | Z125: -3524.407092 | AA125: -3388.198505 | AB125: -3723.190857 | AC125: -3618.299778 | AD125: -3985.235989 | AE125: 0 | AF125: 0 | AG125: 0 | AH125: 0 | AI125: 0 | AJ125: 0 | AK125: 0 | AL125: 0 | AM125: 0 | AN125: 0 | AO125: 0 | AP125: =IF(AP$23=0,0,AP124/AP$23) -> 0 | AQ125: 0 | AR125: 0 | AS125: 0 | AT125: 0 | AU125: 0 | AV125: 0 | AW125: 0 | AX125: 0 | AY125: 0 | AZ125: 0 | BA125: 0 | BB125: 0 | BC125: 0 | BD125: 0 | BE125: 0 | BF125: 0 | BG125: 0 | BH125: 0 | BI125: 0 | BJ125: 0 | BK125: 0 | BL125: 0 | BM125: 0 | BN125: 0 | BO125: 0 | BP125: 0 | BQ125: 0 | BR125: 0 | BS125: 0 | BT125: 0 | BU125: 0 | BV125: =IF(BV$23=0,0,BV124/BV$23) -> 0 | BW125: 0 | BX125: 0 | BY125: 0 | BZ125: 0
C127: Administrative, accounting and professional costs | D127: $/year | E127: =Inputs!$E$179 -> 15000 | F127: Case | I127: =SUM(J127:BZ127) -> -300000 | J127: =-$E127*(AND(J$7=1,J$6=0)) -> 0 | K127: -15000 | L127: -15000 | M127: -15000 | N127: -15000 | O127: -15000 | P127: -15000 | Q127: -15000 | R127: -15000 | S127: -15000 | T127: -15000 | U127: -15000 | V127: -15000 | W127: -15000 | X127: -15000 | Y127: -15000 | Z127: -15000 | AA127: -15000 | AB127: -15000 | AC127: -15000 | AD127: -15000 | AE127: 0 | AF127: 0 | AG127: 0 | AH127: 0 | AI127: 0 | AJ127: 0 | AK127: 0 | AL127: 0 | AM127: 0 | AN127: 0 | AO127: 0 | AP127: =-$E127*(AND(AP$7=1,AP$6=0)) -> 0 | AQ127: 0 | AR127: 0 | AS127: 0 | AT127: 0 | AU127: 0 | AV127: 0 | AW127: 0 | AX127: 0 | AY127: 0 | AZ127: 0 | BA127: 0 | BB127: 0 | BC127: 0 | BD127: 0 | BE127: 0 | BF127: 0 | BG127: 0 | BH127: 0 | BI127: 0 | BJ127: 0 | BK127: 0 | BL127: 0 | BM127: 0 | BN127: 0 | BO127: 0 | BP127: 0 | BQ127: 0 | BR127: 0 | BS127: 0 | BT127: 0 | BU127: 0 | BV127: 0 | BW127: 0 | BX127: 0 | BY127: 0 | BZ127: 0
C128: USD appreciation against selected currency | D128: Index | F128: =Currency!$F$18 -> 1 | J128: =IF($F128=1,1,J$17)*J$7 -> 0 | K128: 1 | L128: 1 | M128: 1 | N128: 1 | O128: 1 | P128: 1 | Q128: 1 | R128: 1 | S128: 1 | T128: 1 | U128: 1 | V128: 1 | W128: 1 | X128: 1 | Y128: 1 | Z128: 1 | AA128: 1 | AB128: 1 | AC128: 1 | AD128: 1 | AE128: 0 | AF128: 0 | AG128: 0 | AH128: 0 | AI128: 0 | AJ128: 0 | AK128: 0 | AL128: 0 | AM128: 0 | AN128: 0 | AO128: 0 | AP128: =IF($F128=1,1,AP$17)*AP$7 -> 0 | AQ128: 0 | AR128: 0 | AS128: 0 | AT128: 0 | AU128: 0 | AV128: 0 | AW128: 0 | AX128: 0 | AY128: 0 | AZ128: 0 | BA128: 0 | BB128: 0 | BC128: 0 | BD128: 0 | BE128: 0 | BF128: 0 | BG128: 0 | BH128: 0 | BI128: 0 | BJ128: 0 | BK128: 0 | BL128: 0 | BM128: 0 | BN128: 0 | BO128: 0 | BP128: 0 | BQ128: 0 | BR128: 0 | BS128: 0 | BT128: 0 | BU128: 0 | BV128: 0 | BW128: 0 | BX128: 0 | BY128: 0 | BZ128: 0
C129: Normalised for Inflation | D129: Index | J129: =J$83*J$7 -> 0 | K129: 1.1 | L129: 1.21 | M129: 1.331 | N129: 1.4641 | O129: 1.61051 | P129: 1.771561 | Q129: 1.9487171 | R129: 2.14358881 | S129: 2.357947691 | T129: 2.59374246 | U129: 2.853116706 | V129: 3.138428377 | W129: 3.452271214 | X129: 3.797498336 | Y129: 4.177248169 | Z129: 4.594972986 | AA129: 5.054470285 | AB129: 5.559917313 | AC129: 6.115909045 | AD129: 6.727499949 | AE129: 0 | AF129: 0 | AG129: 0 | AH129: 0 | AI129: 0 | AJ129: 0 | AK129: 0 | AL129: 0 | AM129: 0 | AN129: 0 | AO129: 0 | AP129: =AP$83*AP$7 -> 0 | AQ129: 0 | AR129: 0 | AS129: 0 | AT129: 0 | AU129: 0 | AV129: 0 | AW129: 0 | AX129: 0 | AY129: 0 | AZ129: 0 | BA129: 0 | BB129: 0 | BC129: 0 | BD129: 0 | BE129: 0 | BF129: 0 | BG129: 0 | BH129: 0 | BI129: 0 | BJ129: 0 | BK129: 0 | BL129: 0 | BM129: 0 | BN129: 0 | BO129: 0 | BP129: 0 | BQ129: 0 | BR129: 0 | BS129: 0 | BT129: 0 | BU129: 0 | BV129: 0 | BW129: 0 | BX129: 0 | BY129: 0 | BZ129: 0
C130: Administrative, accounting and professional costs (FX and inflation adjusted) | D130: $/year | I130: =SUM(J130:BZ130) -> -945037.4916 | J130: =J127*J128*J129 -> 0 | K130: -16500 | L130: -18150 | M130: -19965 | N130: -21961.5 | O130: -24157.65 | P130: -26573.415 | Q130: -29230.7565 | R130: -32153.83215 | S130: -35369.21537 | T130: -38906.1369 | U130: -42796.75059 | V130: -47076.42565 | W130: -51784.06822 | X130: -56962.47504 | Y130: -62658.72254 | Z130: -68924.5948 | AA130: -75817.05427 | AB130: -83398.7597 | AC130: -91738.63567 | AD130: -100912.4992 | AE130: 0 | AF130: 0 | AG130: 0 | AH130: 0 | AI130: 0 | AJ130: 0 | AK130: 0 | AL130: 0 | AM130: 0 | AN130: 0 | AO130: 0 | AP130: =AP127*AP128*AP129 -> 0 | AQ130: 0 | AR130: 0 | AS130: 0 | AT130: 0 | AU130: 0 | AV130: 0 | AW130: 0 | AX130: 0 | AY130: 0 | AZ130: 0 | BA130: 0 | BB130: 0 | BC130: 0 | BD130: 0 | BE130: 0 | BF130: 0 | BG130: 0 | BH130: 0 | BI130: 0 | BJ130: 0 | BK130: 0 | BL130: 0 | BM130: 0 | BN130: 0 | BO130: 0 | BP130: 0 | BQ130: 0 | BR130: 0 | BS130: 0 | BT130: 0 | BU130: 0 | BV130: =BV127*BV128*BV129 -> 0 | BW130: 0 | BX130: 0 | BY130: 0 | BZ130: 0
C132: Total Opex | D132: $/year | I132: =SUM(J132:BZ132) -> -13563527.7 | J132: =J121+J124+J130 -> 0 | K132: -441928.583 | L132: -461352.0504 | M132: -521712.1939 | N132: -605681.1631 | O132: -616753.957 | P132: -595938.687 | Q132: -603438.3483 | R132: -611952.7687 | S132: -635197.3722 | T132: -659548.8483 | U132: -671387.2625 | V132: -698109.1094 | W132: -712431.2299 | X132: -741758.51 | Y132: -758816.9489 | Z132: -791021.4328 | AA132: -811108.8859 | AB132: -846506.1341 | AC132: -869963.1557 | AD132: -908921.0549 | AE132: 0 | AF132: 0 | AG132: 0 | AH132: 0 | AI132: 0 | AJ132: 0 | AK132: 0 | AL132: 0 | AM132: 0 | AN132: 0 | AO132: 0 | AP132: =AP121+AP124+AP130 -> 0 | AQ132: 0 | AR132: 0 | AS132: 0 | AT132: 0 | AU132: 0 | AV132: 0 | AW132: 0 | AX132: 0 | AY132: 0 | AZ132: 0 | BA132: 0 | BB132: 0 | BC132: 0 | BD132: 0 | BE132: 0 | BF132: 0 | BG132: 0 | BH132: 0 | BI132: 0 | BJ132: 0 | BK132: 0 | BL132: 0 | BM132: 0 | BN132: 0 | BO132: 0 | BP132: 0 | BQ132: 0 | BR132: 0 | BS132: 0 | BT132: 0 | BU132: 0 | BV132: 0 | BW132: 0 | BX132: 0 | BY132: 0 | BZ132: 0
C134: Working Capital
C135: Trade debtors target balance | E135: =Inputs!E$182 -> 0 | J135: =$E135 / Days_Yr * (J87 + J155) -> 0 | K135: 0 | L135: 0 | M135: 0 | N135: 0 | O135: 0 | P135: 0 | Q135: 0 | R135: 0 | S135: 0 | T135: 0 | U135: 0 | V135: 0 | W135: 0 | X135: 0 | Y135: 0 | Z135: 0 | AA135: 0 | AB135: 0 | AC135: 0 | AD135: 0 | AE135: 0 | AF135: 0 | AG135: 0 | AH135: 0 | AI135: 0 | AJ135: 0 | AK135: 0 | AL135: 0 | AM135: 0 | AN135: 0 | AO135: 0 | AP135: =$E135 / Days_Yr * (AP87 + AP155) -> 0 | AQ135: 0 | AR135: 0 | AS135: 0 | AT135: 0 | AU135: 0 | AV135: 0 | AW135: 0 | AX135: 0 | AY135: 0 | AZ135: 0 | BA135: 0 | BB135: 0 | BC135: 0 | BD135: 0 | BE135: 0 | BF135: 0 | BG135: 0 | BH135: 0 | BI135: 0 | BJ135: 0 | BK135: 0 | BL135: 0 | BM135: 0 | BN135: 0 | BO135: 0 | BP135: 0 | BQ135: 0 | BR135: 0 | BS135: 0 | BT135: 0 | BU135: 0 | BV135: 0 | BW135: 0 | BX135: 0 | BY135: 0 | BZ135: 0
C137: Trade debtor balance b/f | D137: $ | J137: =I140 -> 0 | K137: 0 | L137: 0 | M137: 0 | N137: 0 | O137: 0 | P137: 0 | Q137: 0 | R137: 0 | S137: 0 | T137: 0 | U137: 0 | V137: 0 | W137: 0 | X137: 0 | Y137: 0 | Z137: 0 | AA137: 0 | AB137: 0 | AC137: 0 | AD137: 0 | AE137: 0 | AF137: 0 | AG137: 0 | AH137: 0 | AI137: 0 | AJ137: 0 | AK137: 0 | AL137: 0 | AM137: 0 | AN137: 0 | AO137: 0 | AP137: =AO140 -> 0 | AQ137: 0 | AR137: 0 | AS137: 0 | AT137: 0 | AU137: 0 | AV137: 0 | AW137: 0 | AX137: 0 | AY137: 0 | AZ137: 0 | BA137: 0 | BB137: 0 | BC137: 0 | BD137: 0 | BE137: 0 | BF137: 0 | BG137: 0 | BH137: 0 | BI137: 0 | BJ137: 0 | BK137: 0 | BL137: 0 | BM137: 0 | BN137: 0 | BO137: 0 | BP137: 0 | BQ137: 0 | BR137: 0 | BS137: 0 | BT137: 0 | BU137: 0 | BV137: 0 | BW137: 0 | BX137: 0 | BY137: 0 | BZ137: 0
C138: Revenue accrued | D138: $ | I138: =SUM(J138:BZ138) -> 45663943.33 | J138: =J87 + J155 -> 0 | K138: 780280.3738 | L138: 1147627.779 | M138: 1387557.476 | N138: 1577997.012 | O138: 1743075.943 | P138: 1827786.175 | Q138: 1916613.167 | R138: 2009756.984 | S138: 2107427.417 | T138: 2209844.451 | U138: 2317238.76 | V138: 2429852.233 | W138: 2547938.51 | X138: 2671763.559 | Y138: 2801606.274 | Z138: 2937759.102 | AA138: 3080528.703 | AB138: 3230236.64 | AC138: 3387220.103 | AD138: 3551832.669 | AE138: 0 | AF138: 0 | AG138: 0 | AH138: 0 | AI138: 0 | AJ138: 0 | AK138: 0 | AL138: 0 | AM138: 0 | AN138: 0 | AO138: 0 | AP138: =AP87 + AP155 -> 0 | AQ138: 0 | AR138: 0 | AS138: 0 | AT138: 0 | AU138: 0 | AV138: 0 | AW138: 0 | AX138: 0 | AY138: 0 | AZ138: 0 | BA138: 0 | BB138: 0 | BC138: 0 | BD138: 0 | BE138: 0 | BF138: 0 | BG138: 0 | BH138: 0 | BI138: 0 | BJ138: 0 | BK138: 0 | BL138: 0 | BM138: 0 | BN138: 0 | BO138: 0 | BP138: 0 | BQ138: 0 | BR138: 0 | BS138: 0 | BT138: 0 | BU138: 0 | BV138: 0 | BW138: 0 | BX138: 0 | BY138: 0 | BZ138: 0
C139: Revenue received | D139: $ | I139: =SUM(J139:BZ139) -> 45663943.33 | J139: =IF(AND(J$7 = 1, K$7 = 0), SUM(J137:J138), SUM(J137:J138) - J135) -> 0 | K139: 780280.3738 | L139: 1147627.779 | M139: 1387557.476 | N139: 1577997.012 | O139: 1743075.943 | P139: 1827786.175 | Q139: 1916613.167 | R139: 2009756.984 | S139: 2107427.417 | T139: 2209844.451 | U139: 2317238.76 | V139: 2429852.233 | W139: 2547938.51 | X139: 2671763.559 | Y139: 2801606.274 | Z139: 2937759.102 | AA139: 3080528.703 | AB139: 3230236.64 | AC139: 3387220.103 | AD139: 3551832.669 | AE139: 0 | AF139: 0 | AG139: 0 | AH139: 0 | AI139: 0 | AJ139: 0 | AK139: 0 | AL139: 0 | AM139: 0 | AN139: 0 | AO139: 0 | AP139: =IF(AND(AP$7 = 1, AQ$7 = 0), SUM(AP137:AP138), SUM(AP137:AP138) - AP135) -> 0 | AQ139: 0 | AR139: 0 | AS139: 0 | AT139: 0 | AU139: 0 | AV139: 0 | AW139: 0 | AX139: 0 | AY139: 0 | AZ139: 0 | BA139: 0 | BB139: 0 | BC139: 0 | BD139: 0 | BE139: 0 | BF139: 0 | BG139: 0 | BH139: 0 | BI139: 0 | BJ139: 0 | BK139: 0 | BL139: 0 | BM139: 0 | BN139: 0 | BO139: 0 | BP139: 0 | BQ139: 0 | BR139: 0 | BS139: 0 | BT139: 0 | BU139: 0 | BV139: =IF(AND(BV$7 = 1, BW$7 = 0), SUM(BV137:BV138), SUM(BV137:BV138) - BV135) -> 0 | BW139: 0 | BX139: 0 | BY139: 0 | BZ139: 0
C140: Trade debtor balance c/f | D140: $ | J140: =SUM(J137:J138) - J139 -> 0 | K140: 0 | L140: 0 | M140: 0 | N140: 0 | O140: 0 | P140: 0 | Q140: 0 | R140: 0 | S140: 0 | T140: 0 | U140: 0 | V140: 0 | W140: 0 | X140: 0 | Y140: 0 | Z140: 0 | AA140: 0 | AB140: 0 | AC140: 0 | AD140: 0 | AE140: 0 | AF140: 0 | AG140: 0 | AH140: 0 | AI140: 0 | AJ140: 0 | AK140: 0 | AL140: 0 | AM140: 0 | AN140: 0 | AO140: 0 | AP140: =SUM(AP137:AP138) - AP139 -> 0 | AQ140: 0 | AR140: 0 | AS140: 0 | AT140: 0 | AU140: 0 | AV140: 0 | AW140: 0 | AX140: 0 | AY140: 0 | AZ140: 0 | BA140: 0 | BB140: 0 | BC140: 0 | BD140: 0 | BE140: 0 | BF140: 0 | BG140: 0 | BH140: 0 | BI140: 0 | BJ140: 0 | BK140: 0 | BL140: 0 | BM140: 0 | BN140: 0 | BO140: 0 | BP140: 0 | BQ140: 0 | BR140: 0 | BS140: 0 | BT140: 0 | BU140: 0 | BV140: =SUM(BV137:BV138) - BV139 -> 0 | BW140: 0 | BX140: 0 | BY140: 0 | BZ140: 0
C142: Trade creditors target balance | E142: =Inputs!E$183 -> 0 | J142: =$E142 / Days_Yr * (J132 + J156) -> 0 | K142: 0 | L142: 0 | M142: 0 | N142: 0 | O142: 0 | P142: 0 | Q142: 0 | R142: 0 | S142: 0 | T142: 0 | U142: 0 | V142: 0 | W142: 0 | X142: 0 | Y142: 0 | Z142: 0 | AA142: 0 | AB142: 0 | AC142: 0 | AD142: 0 | AE142: 0 | AF142: 0 | AG142: 0 | AH142: 0 | AI142: 0 | AJ142: 0 | AK142: 0 | AL142: 0 | AM142: 0 | AN142: 0 | AO142: 0 | AP142: =$E142 / Days_Yr * (AP132 + AP156) -> 0 | AQ142: 0 | AR142: 0 | AS142: 0 | AT142: 0 | AU142: 0 | AV142: 0 | AW142: 0 | AX142: 0 | AY142: 0 | AZ142: 0 | BA142: 0 | BB142: 0 | BC142: 0 | BD142: 0 | BE142: 0 | BF142: 0 | BG142: 0 | BH142: 0 | BI142: 0 | BJ142: 0 | BK142: 0 | BL142: 0 | BM142: 0 | BN142: 0 | BO142: 0 | BP142: 0 | BQ142: 0 | BR142: 0 | BS142: 0 | BT142: 0 | BU142: 0 | BV142: 0 | BW142: 0 | BX142: 0 | BY142: 0 | BZ142: 0
C144: Trade creditor balance b/f | D144: $ | J144: =I147 -> 0 | K144: 0 | L144: 0 | M144: 0 | N144: 0 | O144: 0 | P144: 0 | Q144: 0 | R144: 0 | S144: 0 | T144: 0 | U144: 0 | V144: 0 | W144: 0 | X144: 0 | Y144: 0 | Z144: 0 | AA144: 0 | AB144: 0 | AC144: 0 | AD144: 0 | AE144: 0 | AF144: 0 | AG144: 0 | AH144: 0 | AI144: 0 | AJ144: 0 | AK144: 0 | AL144: 0 | AM144: 0 | AN144: 0 | AO144: 0 | AP144: =AO147 -> 0 | AQ144: 0 | AR144: 0 | AS144: 0 | AT144: 0 | AU144: 0 | AV144: 0 | AW144: 0 | AX144: 0 | AY144: 0 | AZ144: 0 | BA144: 0 | BB144: 0 | BC144: 0 | BD144: 0 | BE144: 0 | BF144: 0 | BG144: 0 | BH144: 0 | BI144: 0 | BJ144: 0 | BK144: 0 | BL144: 0 | BM144: 0 | BN144: 0 | BO144: 0 | BP144: 0 | BQ144: 0 | BR144: 0 | BS144: 0 | BT144: 0 | BU144: 0 | BV144: 0 | BW144: 0 | BX144: 0 | BY144: 0 | BZ144: 0
C145: Opex accrued | D145: $ | I145: =SUM(J145:BZ145) -> -13563527.7 | J145: =J132 + J156 -> 0 | K145: -441928.583 | L145: -461352.0504 | M145: -521712.1939 | N145: -605681.1631 | O145: -616753.957 | P145: -595938.687 | Q145: -603438.3483 | R145: -611952.7687 | S145: -635197.3722 | T145: -659548.8483 | U145: -671387.2625 | V145: -698109.1094 | W145: -712431.2299 | X145: -741758.51 | Y145: -758816.9489 | Z145: -791021.4328 | AA145: -811108.8859 | AB145: -846506.1341 | AC145: -869963.1557 | AD145: -908921.0549 | AE145: 0 | AF145: 0 | AG145: 0 | AH145: 0 | AI145: 0 | AJ145: 0 | AK145: 0 | AL145: 0 | AM145: 0 | AN145: 0 | AO145: 0 | AP145: =AP132 + AP156 -> 0 | AQ145: 0 | AR145: 0 | AS145: 0 | AT145: 0 | AU145: 0 | AV145: 0 | AW145: 0 | AX145: 0 | AY145: 0 | AZ145: 0 | BA145: 0 | BB145: 0 | BC145: 0 | BD145: 0 | BE145: 0 | BF145: 0 | BG145: 0 | BH145: 0 | BI145: 0 | BJ145: 0 | BK145: 0 | BL145: 0 | BM145: 0 | BN145: 0 | BO145: 0 | BP145: 0 | BQ145: 0 | BR145: 0 | BS145: 0 | BT145: 0 | BU145: 0 | BV145: 0 | BW145: 0 | BX145: 0 | BY145: 0 | BZ145: 0
C146: Opex paid | D146: $ | I146: =SUM(J146:BZ146) -> -13563527.7 | J146: =IF(AND(J$7 = 1, K$7 = 0), SUM(J144:J145), SUM(J144:J145) - J142) -> 0 | K146: -441928.583 | L146: -461352.0504 | M146: -521712.1939 | N146: -605681.1631 | O146: -616753.957 | P146: -595938.687 | Q146: -603438.3483 | R146: -611952.7687 | S146: -635197.3722 | T146: -659548.8483 | U146: -671387.2625 | V146: -698109.1094 | W146: -712431.2299 | X146: -741758.51 | Y146: -758816.9489 | Z146: -791021.4328 | AA146: -811108.8859 | AB146: -846506.1341 | AC146: -869963.1557 | AD146: -908921.0549 | AE146: 0 | AF146: 0 | AG146: 0 | AH146: 0 | AI146: 0 | AJ146: 0 | AK146: 0 | AL146: 0 | AM146: 0 | AN146: 0 | AO146: 0 | AP146: =IF(AND(AP$7 = 1, AQ$7 = 0), SUM(AP144:AP145), SUM(AP144:AP145) - AP142) -> 0 | AQ146: 0 | AR146: 0 | AS146: 0 | AT146: 0 | AU146: 0 | AV146: 0 | AW146: 0 | AX146: 0 | AY146: 0 | AZ146: 0 | BA146: 0 | BB146: 0 | BC146: 0 | BD146: 0 | BE146: 0 | BF146: 0 | BG146: 0 | BH146: 0 | BI146: 0 | BJ146: 0 | BK146: 0 | BL146: 0 | BM146: 0 | BN146: 0 | BO146: 0 | BP146: 0 | BQ146: 0 | BR146: 0 | BS146: 0 | BT146: 0 | BU146: 0 | BV146: =IF(AND(BV$7 = 1, BW$7 = 0), SUM(BV144:BV145), SUM(BV144:BV145) - BV142) -> 0 | BW146: 0 | BX146: 0 | BY146: 0 | BZ146: 0
C147: Trade creditor balance c/f | D147: $ | J147: =SUM(J144:J145) - J146 -> 0 | K147: 0 | L147: 0 | M147: 0 | N147: 0 | O147: 0 | P147: 0 | Q147: 0 | R147: 0 | S147: 0 | T147: 0 | U147: 0 | V147: 0 | W147: 0 | X147: 0 | Y147: 0 | Z147: 0 | AA147: 0 | AB147: 0 | AC147: 0 | AD147: 0 | AE147: 0 | AF147: 0 | AG147: 0 | AH147: 0 | AI147: 0 | AJ147: 0 | AK147: 0 | AL147: 0 | AM147: 0 | AN147: 0 | AO147: 0 | AP147: =SUM(AP144:AP145) - AP146 -> 0 | AQ147: 0 | AR147: 0 | AS147: 0 | AT147: 0 | AU147: 0 | AV147: 0 | AW147: 0 | AX147: 0 | AY147: 0 | AZ147: 0 | BA147: 0 | BB147: 0 | BC147: 0 | BD147: 0 | BE147: 0 | BF147: 0 | BG147: 0 | BH147: 0 | BI147: 0 | BJ147: 0 | BK147: 0 | BL147: 0 | BM147: 0 | BN147: 0 | BO147: 0 | BP147: 0 | BQ147: 0 | BR147: 0 | BS147: 0 | BT147: 0 | BU147: 0 | BV147: =SUM(BV144:BV145) - BV146 -> 0 | BW147: 0 | BX147: 0 | BY147: 0 | BZ147: 0
C150: Working capital adjustments | D150: $/year | I150: =SUM(J150:BZ150) -> 0 | J150: =(J137 - J140) - (J147 - J144) -> 0 | K150: 0 | L150: 0 | M150: 0 | N150: 0 | O150: 0 | P150: 0 | Q150: 0 | R150: 0 | S150: 0 | T150: 0 | U150: 0 | V150: 0 | W150: 0 | X150: 0 | Y150: 0 | Z150: 0 | AA150: 0 | AB150: 0 | AC150: 0 | AD150: 0 | AE150: 0 | AF150: 0 | AG150: 0 | AH150: 0 | AI150: 0 | AJ150: 0 | AK150: 0 | AL150: 0 | AM150: 0 | AN150: 0 | AO150: 0 | AP150: =(AP137 - AP140) - (AP147 - AP144) -> 0 | AQ150: 0 | AR150: 0 | AS150: 0 | AT150: 0 | AU150: 0 | AV150: 0 | AW150: 0 | AX150: 0 | AY150: 0 | AZ150: 0 | BA150: 0 | BB150: 0 | BC150: 0 | BD150: 0 | BE150: 0 | BF150: 0 | BG150: 0 | BH150: 0 | BI150: 0 | BJ150: 0 | BK150: 0 | BL150: 0 | BM150: 0 | BN150: 0 | BO150: 0 | BP150: 0 | BQ150: 0 | BR150: 0 | BS150: 0 | BT150: 0 | BU150: 0 | BV150: 0 | BW150: 0 | BX150: 0 | BY150: 0 | BZ150: 0
C152: VAT | E152: =Inputs!E$222 -> 0
C153: Recoverable VAT on initial capex | D153: $ | E153: =Inputs!$E$224 -> Recoverable | I153: =SUM(J153:BZ153) -> 0 | J153: =IF($E153 = "Recoverable", J191 * $E$152, 0) -> 0 | K153: 0 | L153: 0 | M153: 0 | N153: 0 | O153: 0 | P153: 0 | Q153: 0 | R153: 0 | S153: 0 | T153: 0 | U153: 0 | V153: 0 | W153: 0 | X153: 0 | Y153: 0 | Z153: 0 | AA153: 0 | AB153: 0 | AC153: 0 | AD153: 0 | AE153: 0 | AF153: 0 | AG153: 0 | AH153: 0 | AI153: 0 | AJ153: 0 | AK153: 0 | AL153: 0 | AM153: 0 | AN153: 0 | AO153: 0 | AP153: =IF($E153 = "Recoverable", AP191 * $E$152, 0) -> 0 | AQ153: 0 | AR153: 0 | AS153: 0 | AT153: 0 | AU153: 0 | AV153: 0 | AW153: 0 | AX153: 0 | AY153: 0 | AZ153: 0 | BA153: 0 | BB153: 0 | BC153: 0 | BD153: 0 | BE153: 0 | BF153: 0 | BG153: 0 | BH153: 0 | BI153: 0 | BJ153: 0 | BK153: 0 | BL153: 0 | BM153: 0 | BN153: 0 | BO153: 0 | BP153: 0 | BQ153: 0 | BR153: 0 | BS153: 0 | BT153: 0 | BU153: 0 | BV153: 0 | BW153: 0 | BX153: 0 | BY153: 0 | BZ153: 0
C154: Recoverable VAT on ongoing capex | D154: $ | E154: =Inputs!$E$224 -> Recoverable | I154: =SUM(J154:BZ154) -> 0 | J154: =IF($E154 = "Recoverable", SUM(J271, J274) * $E$152, 0) -> 0 | K154: 0 | L154: 0 | M154: 0 | N154: 0 | O154: 0 | P154: 0 | Q154: 0 | R154: 0 | S154: 0 | T154: 0 | U154: 0 | V154: 0 | W154: 0 | X154: 0 | Y154: 0 | Z154: 0 | AA154: 0 | AB154: 0 | AC154: 0 | AD154: 0 | AE154: 0 | AF154: 0 | AG154: 0 | AH154: 0 | AI154: 0 | AJ154: 0 | AK154: 0 | AL154: 0 | AM154: 0 | AN154: 0 | AO154: 0 | AP154: =IF($E154 = "Recoverable", SUM(AP271, AP274) * $E$152, 0) -> 0 | AQ154: 0 | AR154: 0 | AS154: 0 | AT154: 0 | AU154: 0 | AV154: 0 | AW154: 0 | AX154: 0 | AY154: 0 | AZ154: 0 | BA154: 0 | BB154: 0 | BC154: 0 | BD154: 0 | BE154: 0 | BF154: 0 | BG154: 0 | BH154: 0 | BI154: 0 | BJ154: 0 | BK154: 0 | BL154: 0 | BM154: 0 | BN154: 0 | BO154: 0 | BP154: 0 | BQ154: 0 | BR154: 0 | BS154: 0 | BT154: 0 | BU154: 0 | BV154: 0 | BW154: 0 | BX154: 0 | BY154: 0 | BZ154: 0
C155: VAT on revenues | D155: $ | I155: =SUM(J155:BZ155) -> 0 | J155: =$E$152 * J87 -> 0 | K155: 0 | L155: 0 | M155: 0 | N155: 0 | O155: 0 | P155: 0 | Q155: 0 | R155: 0 | S155: 0 | T155: 0 | U155: 0 | V155: 0 | W155: 0 | X155: 0 | Y155: 0 | Z155: 0 | AA155: 0 | AB155: 0 | AC155: 0 | AD155: 0 | AE155: 0 | AF155: 0 | AG155: 0 | AH155: 0 | AI155: 0 | AJ155: 0 | AK155: 0 | AL155: 0 | AM155: 0 | AN155: 0 | AO155: 0 | AP155: =$E$152 * AP87 -> 0 | AQ155: 0 | AR155: 0 | AS155: 0 | AT155: 0 | AU155: 0 | AV155: 0 | AW155: 0 | AX155: 0 | AY155: 0 | AZ155: 0 | BA155: 0 | BB155: 0 | BC155: 0 | BD155: 0 | BE155: 0 | BF155: 0 | BG155: 0 | BH155: 0 | BI155: 0 | BJ155: 0 | BK155: 0 | BL155: 0 | BM155: 0 | BN155: 0 | BO155: 0 | BP155: 0 | BQ155: 0 | BR155: 0 | BS155: 0 | BT155: 0 | BU155: 0 | BV155: 0 | BW155: 0 | BX155: 0 | BY155: 0 | BZ155: 0
C156: Recoverable VAT on opex | D156: $ | E156: =Inputs!$E$225 -> Recoverable | I156: =SUM(J156:BZ156) -> 0 | J156: =IF($E156 = "Recoverable", J132 * $E$152, 0) -> 0 | K156: 0 | L156: 0 | M156: 0 | N156: 0 | O156: 0 | P156: 0 | Q156: 0 | R156: 0 | S156: 0 | T156: 0 | U156: 0 | V156: 0 | W156: 0 | X156: 0 | Y156: 0 | Z156: 0 | AA156: 0 | AB156: 0 | AC156: 0 | AD156: 0 | AE156: 0 | AF156: 0 | AG156: 0 | AH156: 0 | AI156: 0 | AJ156: 0 | AK156: 0 | AL156: 0 | AM156: 0 | AN156: 0 | AO156: 0 | AP156: =IF($E156 = "Recoverable", AP132 * $E$152, 0) -> 0 | AQ156: 0 | AR156: 0 | AS156: 0 | AT156: 0 | AU156: 0 | AV156: 0 | AW156: 0 | AX156: 0 | AY156: 0 | AZ156: 0 | BA156: 0 | BB156: 0 | BC156: 0 | BD156: 0 | BE156: 0 | BF156: 0 | BG156: 0 | BH156: 0 | BI156: 0 | BJ156: 0 | BK156: 0 | BL156: 0 | BM156: 0 | BN156: 0 | BO156: 0 | BP156: 0 | BQ156: 0 | BR156: 0 | BS156: 0 | BT156: 0 | BU156: 0 | BV156: =IF($E156 = "Recoverable", BV132 * $E$152, 0) -> 0 | BW156: 0 | BX156: 0 | BY156: 0 | BZ156: 0
C158: Excess VAT (payable) / receivable | D158: $ | I158: =SUM(J158:BZ158) -> 0 | J158: =-J156 - J155 -> 0 | K158: 0 | L158: 0 | M158: 0 | N158: 0 | O158: 0 | P158: 0 | Q158: 0 | R158: 0 | S158: 0 | T158: 0 | U158: 0 | V158: 0 | W158: 0 | X158: 0 | Y158: 0 | Z158: 0 | AA158: 0 | AB158: 0 | AC158: 0 | AD158: 0 | AE158: 0 | AF158: 0 | AG158: 0 | AH158: 0 | AI158: 0 | AJ158: 0 | AK158: 0 | AL158: 0 | AM158: 0 | AN158: 0 | AO158: 0 | AP158: =-AP156 - AP155 -> 0 | AQ158: 0 | AR158: 0 | AS158: 0 | AT158: 0 | AU158: 0 | AV158: 0 | AW158: 0 | AX158: 0 | AY158: 0 | AZ158: 0 | BA158: 0 | BB158: 0 | BC158: 0 | BD158: 0 | BE158: 0 | BF158: 0 | BG158: 0 | BH158: 0 | BI158: 0 | BJ158: 0 | BK158: 0 | BL158: 0 | BM158: 0 | BN158: 0 | BO158: 0 | BP158: 0 | BQ158: 0 | BR158: 0 | BS158: 0 | BT158: 0 | BU158: 0 | BV158: 0 | BW158: 0 | BX158: 0 | BY158: 0 | BZ158: 0
C160: VAT target balance - refund | D160: $ | E160: =Inputs!$E$227 -> 30 | J160: =IF(AND(J$7 = 1, K$7 = 0), 0, IF(J164 > 0, $E160 / Days_Yr * (J164 + J158), $E160 / Days_Yr * J158)) -> 0 | K160: 0 | L160: 0 | M160: 0 | N160: 0 | O160: 0 | P160: 0 | Q160: 0 | R160: 0 | S160: 0 | T160: 0 | U160: 0 | V160: 0 | W160: 0 | X160: 0 | Y160: 0 | Z160: 0 | AA160: 0 | AB160: 0 | AC160: 0 | AD160: 0 | AE160: 0 | AF160: 0 | AG160: 0 | AH160: 0 | AI160: 0 | AJ160: 0 | AK160: 0 | AL160: 0 | AM160: 0 | AN160: 0 | AO160: 0 | AP160: =IF(AND(AP$7 = 1, AQ$7 = 0), 0, IF(AP164 > 0, $E160 / Days_Yr * (AP164 + AP158), $E160 / Days_Yr * AP158)) -> 0 | AQ160: 0 | AR160: 0 | AS160: 0 | AT160: 0 | AU160: 0 | AV160: 0 | AW160: 0 | AX160: 0 | AY160: 0 | AZ160: 0 | BA160: 0 | BB160: 0 | BC160: 0 | BD160: 0 | BE160: 0 | BF160: 0 | BG160: 0 | BH160: 0 | BI160: 0 | BJ160: 0 | BK160: 0 | BL160: 0 | BM160: 0 | BN160: 0 | BO160: 0 | BP160: 0 | BQ160: 0 | BR160: 0 | BS160: 0 | BT160: 0 | BU160: 0 | BV160: 0 | BW160: 0 | BX160: 0 | BY160: 0 | BZ160: 0
C161: VAT target balance | D161: $ | J161: =IF(AND(J$7 = 1, K$7 = 0), 0, IF(SUM(J164, J165, J158) <= 0, J160, J164 + J158)) -> 0 | K161: 0 | L161: 0 | M161: 0 | N161: 0 | O161: 0 | P161: 0 | Q161: 0 | R161: 0 | S161: 0 | T161: 0 | U161: 0 | V161: 0 | W161: 0 | X161: 0 | Y161: 0 | Z161: 0 | AA161: 0 | AB161: 0 | AC161: 0 | AD161: 0 | AE161: 0 | AF161: 0 | AG161: 0 | AH161: 0 | AI161: 0 | AJ161: 0 | AK161: 0 | AL161: 0 | AM161: 0 | AN161: 0 | AO161: 0 | AP161: =IF(AND(AP$7 = 1, AQ$7 = 0), 0, IF(SUM(AP164, AP165, AP158) <= 0, AP160, AP164 + AP158)) -> 0 | AQ161: 0 | AR161: 0 | AS161: 0 | AT161: 0 | AU161: 0 | AV161: 0 | AW161: 0 | AX161: 0 | AY161: 0 | AZ161: 0 | BA161: 0 | BB161: 0 | BC161: 0 | BD161: 0 | BE161: 0 | BF161: 0 | BG161: 0 | BH161: 0 | BI161: 0 | BJ161: 0 | BK161: 0 | BL161: 0 | BM161: 0 | BN161: 0 | BO161: 0 | BP161: 0 | BQ161: 0 | BR161: 0 | BS161: 0 | BT161: 0 | BU161: 0 | BV161: =IF(AND(BV$7 = 1, BW$7 = 0), 0, IF(SUM(BV164, BV165, BV158) <= 0, BV160, BV164 + BV158)) -> 0 | BW161: 0 | BX161: 0 | BY161: 0 | BZ161: 0
C162: VAT received from / (paid to) govt. | D162: $ | I162: =SUM(J162:BZ162) -> 0 | J162: =IF(AND(J$7 = 1, K$7 = 0), J164 + J165 + J166 - J161, J164 + J158 - J161) -> 0 | K162: 0 | L162: 0 | M162: 0 | N162: 0 | O162: 0 | P162: 0 | Q162: 0 | R162: 0 | S162: 0 | T162: 0 | U162: 0 | V162: 0 | W162: 0 | X162: 0 | Y162: 0 | Z162: 0 | AA162: 0 | AB162: 0 | AC162: 0 | AD162: 0 | AE162: 0 | AF162: 0 | AG162: 0 | AH162: 0 | AI162: 0 | AJ162: 0 | AK162: 0 | AL162: 0 | AM162: 0 | AN162: 0 | AO162: 0 | AP162: =IF(AND(AP$7 = 1, AQ$7 = 0), AP164 + AP165 + AP166 - AP161, AP164 + AP158 - AP161) -> 0 | AQ162: 0 | AR162: 0 | AS162: 0 | AT162: 0 | AU162: 0 | AV162: 0 | AW162: 0 | AX162: 0 | AY162: 0 | AZ162: 0 | BA162: 0 | BB162: 0 | BC162: 0 | BD162: 0 | BE162: 0 | BF162: 0 | BG162: 0 | BH162: 0 | BI162: 0 | BJ162: 0 | BK162: 0 | BL162: 0 | BM162: 0 | BN162: 0 | BO162: 0 | BP162: 0 | BQ162: 0 | BR162: 0 | BS162: 0 | BT162: 0 | BU162: 0 | BV162: =IF(AND(BV$7 = 1, BW$7 = 0), BV164 + BV165 + BV166 - BV161, BV164 + BV158 - BV161) -> 0 | BW162: 0 | BX162: 0 | BY162: 0 | BZ162: 0
C164: VAT receivable / (payable) balance b/f | D164: $ | J164: =I168 -> 0 | K164: 0 | L164: 0 | M164: 0 | N164: 0 | O164: 0 | P164: 0 | Q164: 0 | R164: 0 | S164: 0 | T164: 0 | U164: 0 | V164: 0 | W164: 0 | X164: 0 | Y164: 0 | Z164: 0 | AA164: 0 | AB164: 0 | AC164: 0 | AD164: 0 | AE164: 0 | AF164: 0 | AG164: 0 | AH164: 0 | AI164: 0 | AJ164: 0 | AK164: 0 | AL164: 0 | AM164: 0 | AN164: 0 | AO164: 0 | AP164: =AO168 -> 0 | AQ164: 0 | AR164: 0 | AS164: 0 | AT164: 0 | AU164: 0 | AV164: 0 | AW164: 0 | AX164: 0 | AY164: 0 | AZ164: 0 | BA164: 0 | BB164: 0 | BC164: 0 | BD164: 0 | BE164: 0 | BF164: 0 | BG164: 0 | BH164: 0 | BI164: 0 | BJ164: 0 | BK164: 0 | BL164: 0 | BM164: 0 | BN164: 0 | BO164: 0 | BP164: 0 | BQ164: 0 | BR164: 0 | BS164: 0 | BT164: 0 | BU164: 0 | BV164: 0 | BW164: 0 | BX164: 0 | BY164: 0 | BZ164: 0
C165: Recoverable VAT on capex | D165: $ | I165: =SUM(J165:BZ165) -> 0 | J165: =-1 * SUM(J153, J154) -> 0 | K165: 0 | L165: 0 | M165: 0 | N165: 0 | O165: 0 | P165: 0 | Q165: 0 | R165: 0 | S165: 0 | T165: 0 | U165: 0 | V165: 0 | W165: 0 | X165: 0 | Y165: 0 | Z165: 0 | AA165: 0 | AB165: 0 | AC165: 0 | AD165: 0 | AE165: 0 | AF165: 0 | AG165: 0 | AH165: 0 | AI165: 0 | AJ165: 0 | AK165: 0 | AL165: 0 | AM165: 0 | AN165: 0 | AO165: 0 | AP165: =-1 * SUM(AP153, AP154) -> 0 | AQ165: 0 | AR165: 0 | AS165: 0 | AT165: 0 | AU165: 0 | AV165: 0 | AW165: 0 | AX165: 0 | AY165: 0 | AZ165: 0 | BA165: 0 | BB165: 0 | BC165: 0 | BD165: 0 | BE165: 0 | BF165: 0 | BG165: 0 | BH165: 0 | BI165: 0 | BJ165: 0 | BK165: 0 | BL165: 0 | BM165: 0 | BN165: 0 | BO165: 0 | BP165: 0 | BQ165: 0 | BR165: 0 | BS165: 0 | BT165: 0 | BU165: 0 | BV165: 0 | BW165: 0 | BX165: 0 | BY165: 0 | BZ165: 0
C166: =C158 -> Excess VAT (payable) / receivable | D166: $ | I166: =SUM(J166:BZ166) -> 0 | J166: =J158 -> 0 | K166: 0 | L166: 0 | M166: 0 | N166: 0 | O166: 0 | P166: 0 | Q166: 0 | R166: 0 | S166: 0 | T166: 0 | U166: 0 | V166: 0 | W166: 0 | X166: 0 | Y166: 0 | Z166: 0 | AA166: 0 | AB166: 0 | AC166: 0 | AD166: 0 | AE166: 0 | AF166: 0 | AG166: 0 | AH166: 0 | AI166: 0 | AJ166: 0 | AK166: 0 | AL166: 0 | AM166: 0 | AN166: 0 | AO166: 0 | AP166: =AP158 -> 0 | AQ166: 0 | AR166: 0 | AS166: 0 | AT166: 0 | AU166: 0 | AV166: 0 | AW166: 0 | AX166: 0 | AY166: 0 | AZ166: 0 | BA166: 0 | BB166: 0 | BC166: 0 | BD166: 0 | BE166: 0 | BF166: 0 | BG166: 0 | BH166: 0 | BI166: 0 | BJ166: 0 | BK166: 0 | BL166: 0 | BM166: 0 | BN166: 0 | BO166: 0 | BP166: 0 | BQ166: 0 | BR166: 0 | BS166: 0 | BT166: 0 | BU166: 0 | BV166: 0 | BW166: 0 | BX166: 0 | BY166: 0 | BZ166: 0
C167: VAT received from / (paid to) govt. | D167: $ | I167: =SUM(J167:BZ167) -> 0 | J167: =J162 -> 0 | K167: 0 | L167: 0 | M167: 0 | N167: 0 | O167: 0 | P167: 0 | Q167: 0 | R167: 0 | S167: 0 | T167: 0 | U167: 0 | V167: 0 | W167: 0 | X167: 0 | Y167: 0 | Z167: 0 | AA167: 0 | AB167: 0 | AC167: 0 | AD167: 0 | AE167: 0 | AF167: 0 | AG167: 0 | AH167: 0 | AI167: 0 | AJ167: 0 | AK167: 0 | AL167: 0 | AM167: 0 | AN167: 0 | AO167: 0 | AP167: =AP162 -> 0 | AQ167: 0 | AR167: 0 | AS167: 0 | AT167: 0 | AU167: 0 | AV167: 0 | AW167: 0 | AX167: 0 | AY167: 0 | AZ167: 0 | BA167: 0 | BB167: 0 | BC167: 0 | BD167: 0 | BE167: 0 | BF167: 0 | BG167: 0 | BH167: 0 | BI167: 0 | BJ167: 0 | BK167: 0 | BL167: 0 | BM167: 0 | BN167: 0 | BO167: 0 | BP167: 0 | BQ167: 0 | BR167: 0 | BS167: 0 | BT167: 0 | BU167: 0 | BV167: 0 | BW167: 0 | BX167: 0 | BY167: 0 | BZ167: 0
C168: VAT receivable / (payable) balance c/f | D168: $ | J168: =SUM(J164:J166) - J167 -> 0 | K168: 0 | L168: 0 | M168: 0 | N168: 0 | O168: 0 | P168: 0 | Q168: 0 | R168: 0 | S168: 0 | T168: 0 | U168: 0 | V168: 0 | W168: 0 | X168: 0 | Y168: 0 | Z168: 0 | AA168: 0 | AB168: 0 | AC168: 0 | AD168: 0 | AE168: 0 | AF168: 0 | AG168: 0 | AH168: 0 | AI168: 0 | AJ168: 0 | AK168: 0 | AL168: 0 | AM168: 0 | AN168: 0 | AO168: 0 | AP168: =SUM(AP164:AP166) - AP167 -> 0 | AQ168: 0 | AR168: 0 | AS168: 0 | AT168: 0 | AU168: 0 | AV168: 0 | AW168: 0 | AX168: 0 | AY168: 0 | AZ168: 0 | BA168: 0 | BB168: 0 | BC168: 0 | BD168: 0 | BE168: 0 | BF168: 0 | BG168: 0 | BH168: 0 | BI168: 0 | BJ168: 0 | BK168: 0 | BL168: 0 | BM168: 0 | BN168: 0 | BO168: 0 | BP168: 0 | BQ168: 0 | BR168: 0 | BS168: 0 | BT168: 0 | BU168: 0 | BV168: =SUM(BV164:BV166) - BV167 -> 0 | BW168: 0 | BX168: 0 | BY168: 0 | BZ168: 0
C170: Operating cash flows | D170: $ | I170: =SUM(J170:BZ170) -> 32100415.64 | J170: =J87+J132+J155+J156+J150+J162 -> 0 | K170: 338351.7908 | L170: =L87+L132+L155+L156+L150+L162 -> 686275.7286 | M170: 865845.2822 | N170: 972315.8487 | O170: 1126321.986 | P170: 1231847.488 | Q170: 1313174.819 | R170: 1397804.216 | S170: 1472230.045 | T170: 1550295.602 | U170: 1645851.498 | V170: 1731743.124 | W170: 1835507.28 | X170: 1930005.049 | Y170: 2042789.325 | Z170: 2146737.669 | AA170: 2269419.817 | AB170: 2383730.506 | AC170: 2517256.947 | AD170: 2642911.614 | AE170: 0 | AF170: 0 | AG170: 0 | AH170: 0 | AI170: 0 | AJ170: 0 | AK170: 0 | AL170: 0 | AM170: 0 | AN170: 0 | AO170: 0 | AP170: =AP87+AP132+AP155+AP156+AP150+AP162 -> 0 | AQ170: 0 | AR170: 0 | AS170: 0 | AT170: 0 | AU170: 0 | AV170: 0 | AW170: 0 | AX170: 0 | AY170: 0 | AZ170: 0 | BA170: 0 | BB170: 0 | BC170: 0 | BD170: 0 | BE170: 0 | BF170: 0 | BG170: 0 | BH170: 0 | BI170: 0 | BJ170: 0 | BK170: 0 | BL170: 0 | BM170: 0 | BN170: 0 | BO170: 0 | BP170: 0 | BQ170: 0 | BR170: 0 | BS170: 0 | BT170: 0 | BU170: 0 | BV170: 0 | BW170: 0 | BX170: 0 | BY170: 0 | BZ170: 0
C171: EBITDA Margin | J171: =IF(J87=0,0,J170/J87) -> 0 | K171: 0.4336284779 | L171: 0.5979950479 | M171: 0.6240067868 | N171: 0.6161709062 | O171: 0.646169199 | P171: 0.6739560157 | Q171: 0.6851538126 | R171: 0.6955090723 | S171: 0.6985911036 | T171: 0.7015406002 | U171: 0.710264098 | V171: 0.7126948298 | W171: 0.7203891588 | X171: 0.7223712002 | Y171: 0.7291493255 | Z171: 0.7307398581 | AA171: 0.7366981567 | AB171: 0.7379429966 | AC171: 0.7431630868 | AD171: 0.7440980081 | AE171: 0 | AF171: 0 | AG171: 0 | AH171: 0 | AI171: 0 | AJ171: 0 | AK171: 0 | AL171: 0 | AM171: 0 | AN171: 0 | AO171: 0 | AP171: =IF(AP87=0,0,AP170/AP87) -> 0 | AQ171: 0 | AR171: 0 | AS171: 0 | AT171: 0 | AU171: 0 | AV171: 0 | AW171: 0 | AX171: 0 | AY171: 0 | AZ171: 0 | BA171: 0 | BB171: 0 | BC171: 0 | BD171: 0 | BE171: 0 | BF171: 0 | BG171: 0 | BH171: 0 | BI171: 0 | BJ171: 0 | BK171: 0 | BL171: 0 | BM171: 0 | BN171: 0 | BO171: 0 | BP171: 0 | BQ171: 0 | BR171: 0 | BS171: 0 | BT171: 0 | BU171: 0 | BV171: =IF(BV87=0,0,BV170/BV87) -> 0 | BW171: 0 | BX171: 0 | BY171: 0 | BZ171: 0
C173: Construction and Purchase profile
C174: Construction Profile
C175: Construction year | D175: Num# | J175: =J13 -> 1 | K175: 0 | L175: 0 | M175: 0 | N175: 0 | O175: 0 | P175: 0 | Q175: 0 | R175: 0 | S175: 0 | T175: 0 | U175: 0 | V175: 0 | W175: 0 | X175: 0 | Y175: 0 | Z175: 0 | AA175: 0 | AB175: 0 | AC175: 0 | AD175: 0 | AE175: 0 | AF175: 0 | AG175: 0 | AH175: 0 | AI175: 0 | AJ175: 0 | AK175: 0 | AL175: 0 | AM175: 0 | AN175: 0 | AO175: 0 | AP175: =AP13 -> 0 | AQ175: 0 | AR175: 0 | AS175: 0 | AT175: 0 | AU175: 0 | AV175: 0 | AW175: 0 | AX175: 0 | AY175: 0 | AZ175: 0 | BA175: 0 | BB175: 0 | BC175: 0 | BD175: 0 | BE175: 0 | BF175: 0 | BG175: 0 | BH175: 0 | BI175: 0 | BJ175: 0 | BK175: 0 | BL175: 0 | BM175: 0 | BN175: 0 | BO175: 0 | BP175: 0 | BQ175: 0 | BR175: 0 | BS175: 0 | BT175: 0 | BU175: 0 | BV175: 0 | BW175: 0 | BX175: 0 | BY175: 0 | BZ175: 0
C176: Incremental grids at year end | D176: Num# | J176: =IF(J175=0,0,LOOKUP(J$175,Inputs!$I$134:$N$134,Inputs!$I$136:$N$136)) -> 30 | K176: =IF(K175=0,0,LOOKUP(K$175,Inputs!$I$134:$N$134,Inputs!$I$136:$N$136)) -> 0 | L176: =IF(L175=0,0,LOOKUP(L$175,Inputs!$I$134:$N$134,Inputs!$I$136:$N$136)) -> 0 | M176: =IF(M175=0,0,LOOKUP(M$175,Inputs!$I$134:$N$134,Inputs!$I$136:$N$136)) -> 0 | N176: =IF(N175=0,0,LOOKUP(N$175,Inputs!$I$134:$N$134,Inputs!$I$136:$N$136)) -> 0 | O176: =IF(O175=0,0,LOOKUP(O$175,Inputs!$I$134:$N$134,Inputs!$I$136:$N$136)) -> 0 | P176: =IF(P175=0,0,LOOKUP(P$175,Inputs!$I$134:$N$134,Inputs!$I$136:$N$136)) -> 0 | Q176: =IF(Q175=0,0,LOOKUP(Q$175,Inputs!$I$134:$N$134,Inputs!$I$136:$N$136)) -> 0 | R176: =IF(R175=0,0,LOOKUP(R$175,Inputs!$I$134:$N$134,Inputs!$I$136:$N$136)) -> 0 | S176: =IF(S175=0,0,LOOKUP(S$175,Inputs!$I$134:$N$134,Inputs!$I$136:$N$136)) -> 0 | T176: =IF(T175=0,0,LOOKUP(T$175,Inputs!$I$134:$N$134,Inputs!$I$136:$N$136)) -> 0 | U176: =IF(U175=0,0,LOOKUP(U$175,Inputs!$I$134:$N$134,Inputs!$I$136:$N$136)) -> 0 | V176: =IF(V175=0,0,LOOKUP(V$175,Inputs!$I$134:$N$134,Inputs!$I$136:$N$136)) -> 0 | W176: =IF(W175=0,0,LOOKUP(W$175,Inputs!$I$134:$N$134,Inputs!$I$136:$N$136)) -> 0 | X176: =IF(X175=0,0,LOOKUP(X$175,Inputs!$I$134:$N$134,Inputs!$I$136:$N$136)) -> 0 | Y176: =IF(Y175=0,0,LOOKUP(Y$175,Inputs!$I$134:$N$134,Inputs!$I$136:$N$136)) -> 0 | Z176: =IF(Z175=0,0,LOOKUP(Z$175,Inputs!$I$134:$N$134,Inputs!$I$136:$N$136)) -> 0 | AA176: =IF(AA175=0,0,LOOKUP(AA$175,Inputs!$I$134:$N$134,Inputs!$I$136:$N$136)) -> 0 | AB176: =IF(AB175=0,0,LOOKUP(AB$175,Inputs!$I$134:$N$134,Inputs!$I$136:$N$136)) -> 0 | AC176: =IF(AC175=0,0,LOOKUP(AC$175,Inputs!$I$134:$N$134,Inputs!$I$136:$N$136)) -> 0 | AD176: =IF(AD175=0,0,LOOKUP(AD$175,Inputs!$I$134:$N$134,Inputs!$I$136:$N$136)) -> 0 | AE176: =IF(AE175=0,0,LOOKUP(AE$175,Inputs!$I$134:$N$134,Inputs!$I$136:$N$136)) -> 0 | AF176: =IF(AF175=0,0,LOOKUP(AF$175,Inputs!$I$134:$N$134,Inputs!$I$136:$N$136)) -> 0 | AG176: =IF(AG175=0,0,LOOKUP(AG$175,Inputs!$I$134:$N$134,Inputs!$I$136:$N$136)) -> 0 | AH176: =IF(AH175=0,0,LOOKUP(AH$175,Inputs!$I$134:$N$134,Inputs!$I$136:$N$136)) -> 0 | AI176: =IF(AI175=0,0,LOOKUP(AI$175,Inputs!$I$134:$N$134,Inputs!$I$136:$N$136)) -> 0 | AJ176: =IF(AJ175=0,0,LOOKUP(AJ$175,Inputs!$I$134:$N$134,Inputs!$I$136:$N$136)) -> 0 | AK176: =IF(AK175=0,0,LOOKUP(AK$175,Inputs!$I$134:$N$134,Inputs!$I$136:$N$136)) -> 0 | AL176: =IF(AL175=0,0,LOOKUP(AL$175,Inputs!$I$134:$N$134,Inputs!$I$136:$N$136)) -> 0 | AM176: =IF(AM175=0,0,LOOKUP(AM$175,Inputs!$I$134:$N$134,Inputs!$I$136:$N$136)) -> 0 | AN176: =IF(AN175=0,0,LOOKUP(AN$175,Inputs!$I$134:$N$134,Inputs!$I$136:$N$136)) -> 0 | AO176: =IF(AO175=0,0,LOOKUP(AO$175,Inputs!$I$134:$N$134,Inputs!$I$136:$N$136)) -> 0 | AP176: =IF(AP175=0,0,LOOKUP(AP$175,Inputs!$I$134:$N$134,Inputs!$I$136:$N$136)) -> 0 | AQ176: =IF(AQ175=0,0,LOOKUP(AQ$175,Inputs!$I$134:$N$134,Inputs!$I$136:$N$136)) -> 0 | AR176: =IF(AR175=0,0,LOOKUP(AR$175,Inputs!$I$134:$N$134,Inputs!$I$136:$N$136)) -> 0 | AS176: =IF(AS175=0,0,LOOKUP(AS$175,Inputs!$I$134:$N$134,Inputs!$I$136:$N$136)) -> 0 | AT176: =IF(AT175=0,0,LOOKUP(AT$175,Inputs!$I$134:$N$134,Inputs!$I$136:$N$136)) -> 0 | AU176: =IF(AU175=0,0,LOOKUP(AU$175,Inputs!$I$134:$N$134,Inputs!$I$136:$N$136)) -> 0 | AV176: =IF(AV175=0,0,LOOKUP(AV$175,Inputs!$I$134:$N$134,Inputs!$I$136:$N$136)) -> 0 | AW176: =IF(AW175=0,0,LOOKUP(AW$175,Inputs!$I$134:$N$134,Inputs!$I$136:$N$136)) -> 0 | AX176: =IF(AX175=0,0,LOOKUP(AX$175,Inputs!$I$134:$N$134,Inputs!$I$136:$N$136)) -> 0 | AY176: =IF(AY175=0,0,LOOKUP(AY$175,Inputs!$I$134:$N$134,Inputs!$I$136:$N$136)) -> 0 | AZ176: =IF(AZ175=0,0,LOOKUP(AZ$175,Inputs!$I$134:$N$134,Inputs!$I$136:$N$136)) -> 0 | BA176: =IF(BA175=0,0,LOOKUP(BA$175,Inputs!$I$134:$N$134,Inputs!$I$136:$N$136)) -> 0 | BB176: =IF(BB175=0,0,LOOKUP(BB$175,Inputs!$I$134:$N$134,Inputs!$I$136:$N$136)) -> 0 | BC176: =IF(BC175=0,0,LOOKUP(BC$175,Inputs!$I$134:$N$134,Inputs!$I$136:$N$136)) -> 0 | BD176: =IF(BD175=0,0,LOOKUP(BD$175,Inputs!$I$134:$N$134,Inputs!$I$136:$N$136)) -> 0 | BE176: =IF(BE175=0,0,LOOKUP(BE$175,Inputs!$I$134:$N$134,Inputs!$I$136:$N$136)) -> 0 | BF176: =IF(BF175=0,0,LOOKUP(BF$175,Inputs!$I$134:$N$134,Inputs!$I$136:$N$136)) -> 0 | BG176: =IF(BG175=0,0,LOOKUP(BG$175,Inputs!$I$134:$N$134,Inputs!$I$136:$N$136)) -> 0 | BH176: =IF(BH175=0,0,LOOKUP(BH$175,Inputs!$I$134:$N$134,Inputs!$I$136:$N$136)) -> 0 | BI176: =IF(BI175=0,0,LOOKUP(BI$175,Inputs!$I$134:$N$134,Inputs!$I$136:$N$136)) -> 0 | BJ176: =IF(BJ175=0,0,LOOKUP(BJ$175,Inputs!$I$134:$N$134,Inputs!$I$136:$N$136)) -> 0 | BK176: =IF(BK175=0,0,LOOKUP(BK$175,Inputs!$I$134:$N$134,Inputs!$I$136:$N$136)) -> 0 | BL176: =IF(BL175=0,0,LOOKUP(BL$175,Inputs!$I$134:$N$134,Inputs!$I$136:$N$136)) -> 0 | BM176: =IF(BM175=0,0,LOOKUP(BM$175,Inputs!$I$134:$N$134,Inputs!$I$136:$N$136)) -> 0 | BN176: =IF(BN175=0,0,LOOKUP(BN$175,Inputs!$I$134:$N$134,Inputs!$I$136:$N$136)) -> 0 | BO176: =IF(BO175=0,0,LOOKUP(BO$175,Inputs!$I$134:$N$134,Inputs!$I$136:$N$136)) -> 0 | BP176: =IF(BP175=0,0,LOOKUP(BP$175,Inputs!$I$134:$N$134,Inputs!$I$136:$N$136)) -> 0 | BQ176: =IF(BQ175=0,0,LOOKUP(BQ$175,Inputs!$I$134:$N$134,Inputs!$I$136:$N$136)) -> 0 | BR176: =IF(BR175=0,0,LOOKUP(BR$175,Inputs!$I$134:$N$134,Inputs!$I$136:$N$136)) -> 0 | BS176: =IF(BS175=0,0,LOOKUP(BS$175,Inputs!$I$134:$N$134,Inputs!$I$136:$N$136)) -> 0 | BT176: =IF(BT175=0,0,LOOKUP(BT$175,Inputs!$I$134:$N$134,Inputs!$I$136:$N$136)) -> 0 | BU176: =IF(BU175=0,0,LOOKUP(BU$175,Inputs!$I$134:$N$134,Inputs!$I$136:$N$136)) -> 0 | BV176: =IF(BV175=0,0,LOOKUP(BV$175,Inputs!$I$134:$N$134,Inputs!$I$136:$N$136)) -> 0 | BW176: =IF(BW175=0,0,LOOKUP(BW$175,Inputs!$I$134:$N$134,Inputs!$I$136:$N$136)) -> 0 | BX176: =IF(BX175=0,0,LOOKUP(BX$175,Inputs!$I$134:$N$134,Inputs!$I$136:$N$136)) -> 0 | BY176: =IF(BY175=0,0,LOOKUP(BY$175,Inputs!$I$134:$N$134,Inputs!$I$136:$N$136)) -> 0 | BZ176: =IF(BZ175=0,0,LOOKUP(BZ$175,Inputs!$I$134:$N$134,Inputs!$I$136:$N$136)) -> 0
C178: Purchase Profile
C179: Incremental grids at year end | D179: Num# | J179: =I176 -> 0 | K179: 30 | L179: 0 | M179: 0 | N179: 0 | O179: 0 | P179: 0 | Q179: 0 | R179: 0 | S179: 0 | T179: 0 | U179: 0 | V179: 0 | W179: 0 | X179: 0 | Y179: 0 | Z179: 0 | AA179: 0 | AB179: 0 | AC179: 0 | AD179: 0 | AE179: 0 | AF179: 0 | AG179: 0 | AH179: 0 | AI179: 0 | AJ179: 0 | AK179: 0 | AL179: 0 | AM179: 0 | AN179: 0 | AO179: 0 | AP179: =AO176 -> 0 | AQ179: 0 | AR179: 0 | AS179: 0 | AT179: 0 | AU179: 0 | AV179: 0 | AW179: 0 | AX179: 0 | AY179: 0 | AZ179: 0 | BA179: 0 | BB179: 0 | BC179: 0 | BD179: 0 | BE179: 0 | BF179: 0 | BG179: 0 | BH179: 0 | BI179: 0 | BJ179: 0 | BK179: 0 | BL179: 0 | BM179: 0 | BN179: 0 | BO179: 0 | BP179: 0 | BQ179: 0 | BR179: 0 | BS179: 0 | BT179: 0 | BU179: 0 | BV179: 0 | BW179: 0 | BX179: 0 | BY179: 0 | BZ179: 0
C181: Operational Grids at year end
C182: Balance b/f | D182: Num# | J182: =I185 -> 0 | K182: 0 | L182: 30 | M182: 30 | N182: 30 | O182: 30 | P182: 30 | Q182: 30 | R182: 30 | S182: 30 | T182: 30 | U182: 30 | V182: 30 | W182: 30 | X182: 30 | Y182: 30 | Z182: 30 | AA182: 30 | AB182: 30 | AC182: 30 | AD182: 30 | AE182: 30 | AF182: 0 | AG182: 0 | AH182: 0 | AI182: 0 | AJ182: 0 | AK182: 0 | AL182: 0 | AM182: 0 | AN182: 0 | AO182: 0 | AP182: =AO185 -> 0 | AQ182: 0 | AR182: 0 | AS182: 0 | AT182: 0 | AU182: 0 | AV182: 0 | AW182: 0 | AX182: 0 | AY182: 0 | AZ182: 0 | BA182: 0 | BB182: 0 | BC182: 0 | BD182: 0 | BE182: 0 | BF182: 0 | BG182: 0 | BH182: 0 | BI182: 0 | BJ182: 0 | BK182: 0 | BL182: 0 | BM182: 0 | BN182: 0 | BO182: 0 | BP182: 0 | BQ182: 0 | BR182: 0 | BS182: 0 | BT182: 0 | BU182: 0 | BV182: 0 | BW182: 0 | BX182: 0 | BY182: 0 | BZ182: 0
C183: Constructed | D183: Num# | I183: =SUM(J183:BZ183) -> 30 | J183: =J179 -> 0 | K183: 30 | L183: 0 | M183: 0 | N183: 0 | O183: 0 | P183: 0 | Q183: 0 | R183: 0 | S183: 0 | T183: 0 | U183: 0 | V183: 0 | W183: 0 | X183: 0 | Y183: 0 | Z183: 0 | AA183: 0 | AB183: 0 | AC183: 0 | AD183: 0 | AE183: 0 | AF183: 0 | AG183: 0 | AH183: 0 | AI183: 0 | AJ183: 0 | AK183: 0 | AL183: 0 | AM183: 0 | AN183: 0 | AO183: 0 | AP183: =AP179 -> 0 | AQ183: 0 | AR183: 0 | AS183: 0 | AT183: 0 | AU183: 0 | AV183: 0 | AW183: 0 | AX183: 0 | AY183: 0 | AZ183: 0 | BA183: 0 | BB183: 0 | BC183: 0 | BD183: 0 | BE183: 0 | BF183: 0 | BG183: 0 | BH183: 0 | BI183: 0 | BJ183: 0 | BK183: 0 | BL183: 0 | BM183: 0 | BN183: 0 | BO183: 0 | BP183: 0 | BQ183: 0 | BR183: 0 | BS183: 0 | BT183: 0 | BU183: 0 | BV183: 0 | BW183: 0 | BX183: 0 | BY183: 0 | BZ183: 0
C184: Retired | D184: Num# | I184: =SUM(J184:BZ184) -> -30 | J184: =MIN(J188-I185,0) -> 0 | K184: 0 | L184: 0 | M184: 0 | N184: 0 | O184: 0 | P184: 0 | Q184: 0 | R184: 0 | S184: 0 | T184: 0 | U184: 0 | V184: 0 | W184: 0 | X184: 0 | Y184: 0 | Z184: 0 | AA184: 0 | AB184: 0 | AC184: 0 | AD184: 0 | AE184: -30 | AF184: 0 | AG184: 0 | AH184: 0 | AI184: 0 | AJ184: 0 | AK184: 0 | AL184: 0 | AM184: 0 | AN184: 0 | AO184: 0 | AP184: =MIN(AP188-AO185,0) -> 0 | AQ184: 0 | AR184: 0 | AS184: 0 | AT184: 0 | AU184: 0 | AV184: 0 | AW184: 0 | AX184: 0 | AY184: 0 | AZ184: 0 | BA184: 0 | BB184: 0 | BC184: 0 | BD184: 0 | BE184: 0 | BF184: 0 | BG184: 0 | BH184: 0 | BI184: 0 | BJ184: 0 | BK184: 0 | BL184: 0 | BM184: 0 | BN184: 0 | BO184: 0 | BP184: 0 | BQ184: 0 | BR184: 0 | BS184: 0 | BT184: 0 | BU184: 0 | BV184: 0 | BW184: 0 | BX184: 0 | BY184: 0 | BZ184: 0
C185: Balance c/f | D185: Num# | J185: =SUM(J182:J184) -> 0 | K185: 30 | L185: 30 | M185: 30 | N185: 30 | O185: 30 | P185: 30 | Q185: 30 | R185: 30 | S185: 30 | T185: 30 | U185: 30 | V185: 30 | W185: 30 | X185: 30 | Y185: 30 | Z185: 30 | AA185: 30 | AB185: 30 | AC185: 30 | AD185: 30 | AE185: 0 | AF185: 0 | AG185: 0 | AH185: 0 | AI185: 0 | AJ185: 0 | AK185: 0 | AL185: 0 | AM185: 0 | AN185: 0 | AO185: 0 | AP185: =SUM(AP182:AP184) -> 0 | AQ185: 0 | AR185: 0 | AS185: 0 | AT185: 0 | AU185: 0 | AV185: 0 | AW185: 0 | AX185: 0 | AY185: 0 | AZ185: 0 | BA185: 0 | BB185: 0 | BC185: 0 | BD185: 0 | BE185: 0 | BF185: 0 | BG185: 0 | BH185: 0 | BI185: 0 | BJ185: 0 | BK185: 0 | BL185: 0 | BM185: 0 | BN185: 0 | BO185: 0 | BP185: 0 | BQ185: 0 | BR185: 0 | BS185: 0 | BT185: 0 | BU185: 0 | BV185: =SUM(BV182:BV184) -> 0 | BW185: 0 | BX185: 0 | BY185: 0 | BZ185: 0
C187: Periods to look back | D187: Num# | E187: =Inputs!$E$18 -> 20 | J187: =MIN(J$19,$E187) -> 1 | K187: 2 | L187: 3 | M187: 4 | N187: 5 | O187: 6 | P187: 7 | Q187: 8 | R187: 9 | S187: 10 | T187: 11 | U187: 12 | V187: 13 | W187: 14 | X187: 15 | Y187: 16 | Z187: 17 | AA187: 18 | AB187: 19 | AC187: 20 | AD187: 20 | AE187: 0 | AF187: 0 | AG187: 0 | AH187: 0 | AI187: 0 | AJ187: 0 | AK187: 0 | AL187: 0 | AM187: 0 | AN187: 0 | AO187: 0 | AP187: =MIN(AP$19,$E187) -> 0 | AQ187: 0 | AR187: 0 | AS187: 0 | AT187: 0 | AU187: 0 | AV187: 0 | AW187: 0 | AX187: 0 | AY187: 0 | AZ187: 0 | BA187: 0 | BB187: 0 | BC187: 0 | BD187: 0 | BE187: 0 | BF187: 0 | BG187: 0 | BH187: 0 | BI187: 0 | BJ187: 0 | BK187: 0 | BL187: 0 | BM187: 0 | BN187: 0 | BO187: 0 | BP187: 0 | BQ187: 0 | BR187: 0 | BS187: 0 | BT187: 0 | BU187: 0 | BV187: 0 | BW187: 0 | BX187: 0 | BY187: 0 | BZ187: 0
C188: Grids in service | D188: Num# | J188: =IF(J187=0,0,SUM(OFFSET(I183,0,0,1,-J187))) -> 30 | K188: 30 | L188: 60 | M188: 60 | N188: 60 | O188: 60 | P188: 60 | Q188: 60 | R188: 60 | S188: 60 | T188: 60 | U188: 60 | V188: 60 | W188: 60 | X188: 60 | Y188: 60 | Z188: 60 | AA188: 60 | AB188: 60 | AC188: 60 | AD188: 30 | AE188: 0 | AF188: 0 | AG188: 0 | AH188: 0 | AI188: 0 | AJ188: 0 | AK188: 0 | AL188: 0 | AM188: 0 | AN188: 0 | AO188: 0 | AP188: =IF(AP187=0,0,SUM(OFFSET(AO183,0,0,1,-AP187))) -> 0 | AQ188: 0 | AR188: 0 | AS188: 0 | AT188: 0 | AU188: 0 | AV188: 0 | AW188: 0 | AX188: 0 | AY188: 0 | AZ188: 0 | BA188: 0 | BB188: 0 | BC188: 0 | BD188: 0 | BE188: 0 | BF188: 0 | BG188: 0 | BH188: 0 | BI188: 0 | BJ188: 0 | BK188: 0 | BL188: 0 | BM188: 0 | BN188: 0 | BO188: 0 | BP188: 0 | BQ188: 0 | BR188: 0 | BS188: 0 | BT188: 0 | BU188: 0 | BV188: =IF(BV187=0,0,SUM(OFFSET(BU183,0,0,1,-BV187))) -> 0 | BW188: 0 | BX188: 0 | BY188: 0 | BZ188: 0
C190: Costs
C191: Grid Purchases | D191: $ | E191: =-Inputs!$E$129 -> -345000 | I191: =SUM(J191:BZ191) -> -10350000 | J191: =J$183*$E191 -> 0 | K191: -10350000 | L191: 0 | M191: 0 | N191: 0 | O191: 0 | P191: 0 | Q191: 0 | R191: 0 | S191: 0 | T191: 0 | U191: 0 | V191: 0 | W191: 0 | X191: 0 | Y191: 0 | Z191: 0 | AA191: 0 | AB191: 0 | AC191: 0 | AD191: 0 | AE191: 0 | AF191: 0 | AG191: 0 | AH191: 0 | AI191: 0 | AJ191: 0 | AK191: 0 | AL191: 0 | AM191: 0 | AN191: 0 | AO191: 0 | AP191: =AP$183*$E191 -> 0 | AQ191: 0 | AR191: 0 | AS191: 0 | AT191: 0 | AU191: 0 | AV191: 0 | AW191: 0 | AX191: 0 | AY191: 0 | AZ191: 0 | BA191: 0 | BB191: 0 | BC191: 0 | BD191: 0 | BE191: 0 | BF191: 0 | BG191: 0 | BH191: 0 | BI191: 0 | BJ191: 0 | BK191: 0 | BL191: 0 | BM191: 0 | BN191: 0 | BO191: 0 | BP191: 0 | BQ191: 0 | BR191: 0 | BS191: 0 | BT191: 0 | BU191: 0 | BV191: 0 | BW191: 0 | BX191: 0 | BY191: 0 | BZ191: 0
C192: Financing Fees | D192: $ | I192: =SUM(J192:BZ192) -> -291958.7717 | J192: =J201 -> 0 | K192: -291958.7717 | L192: 0 | M192: 0 | N192: 0 | O192: 0 | P192: 0 | Q192: 0 | R192: 0 | S192: 0 | T192: 0 | U192: 0 | V192: 0 | W192: 0 | X192: 0 | Y192: 0 | Z192: 0 | AA192: 0 | AB192: 0 | AC192: 0 | AD192: 0 | AE192: 0 | AF192: 0 | AG192: 0 | AH192: 0 | AI192: 0 | AJ192: 0 | AK192: 0 | AL192: 0 | AM192: 0 | AN192: 0 | AO192: 0 | AP192: =AP201 -> 0 | AQ192: 0 | AR192: 0 | AS192: 0 | AT192: 0 | AU192: 0 | AV192: 0 | AW192: 0 | AX192: 0 | AY192: 0 | AZ192: 0 | BA192: 0 | BB192: 0 | BC192: 0 | BD192: 0 | BE192: 0 | BF192: 0 | BG192: 0 | BH192: 0 | BI192: 0 | BJ192: 0 | BK192: 0 | BL192: 0 | BM192: 0 | BN192: 0 | BO192: 0 | BP192: 0 | BQ192: 0 | BR192: 0 | BS192: 0 | BT192: 0 | BU192: 0 | BV192: 0 | BW192: 0 | BX192: 0 | BY192: 0 | BZ192: 0
C193: Asset base on Capex basis | D193: $ | I193: =SUM(J193:BZ193) -> -10641958.77 | J193: =SUM(J191:J192) -> 0 | K193: -10641958.77 | L193: 0 | M193: 0 | N193: 0 | O193: 0 | P193: 0 | Q193: 0 | R193: 0 | S193: 0 | T193: 0 | U193: 0 | V193: 0 | W193: 0 | X193: 0 | Y193: 0 | Z193: 0 | AA193: 0 | AB193: 0 | AC193: 0 | AD193: 0 | AE193: 0 | AF193: 0 | AG193: 0 | AH193: 0 | AI193: 0 | AJ193: 0 | AK193: 0 | AL193: 0 | AM193: 0 | AN193: 0 | AO193: 0 | AP193: =SUM(AP191:AP192) -> 0 | AQ193: 0 | AR193: 0 | AS193: 0 | AT193: 0 | AU193: 0 | AV193: 0 | AW193: 0 | AX193: 0 | AY193: 0 | AZ193: 0 | BA193: 0 | BB193: 0 | BC193: 0 | BD193: 0 | BE193: 0 | BF193: 0 | BG193: 0 | BH193: 0 | BI193: 0 | BJ193: 0 | BK193: 0 | BL193: 0 | BM193: 0 | BN193: 0 | BO193: 0 | BP193: 0 | BQ193: 0 | BR193: 0 | BS193: 0 | BT193: 0 | BU193: 0 | BV193: =SUM(BV191:BV192) -> 0 | BW193: 0 | BX193: 0 | BY193: 0 | BZ193: 0
C195: Initial Funding
C196: Grid Purchases Flag | D196: Flag | J196: =(J183>0)*1 -> 0 | K196: 1 | L196: 0 | M196: 0 | N196: 0 | O196: 0 | P196: 0 | Q196: 0 | R196: 0 | S196: 0 | T196: 0 | U196: 0 | V196: 0 | W196: 0 | X196: 0 | Y196: 0 | Z196: 0 | AA196: 0 | AB196: 0 | AC196: 0 | AD196: 0 | AE196: 0 | AF196: 0 | AG196: 0 | AH196: 0 | AI196: 0 | AJ196: 0 | AK196: 0 | AL196: 0 | AM196: 0 | AN196: 0 | AO196: 0 | AP196: =(AP183>0)*1 -> 0 | AQ196: 0 | AR196: 0 | AS196: 0 | AT196: 0 | AU196: 0 | AV196: 0 | AW196: 0 | AX196: 0 | AY196: 0 | AZ196: 0 | BA196: 0 | BB196: 0 | BC196: 0 | BD196: 0 | BE196: 0 | BF196: 0 | BG196: 0 | BH196: 0 | BI196: 0 | BJ196: 0 | BK196: 0 | BL196: 0 | BM196: 0 | BN196: 0 | BO196: 0 | BP196: 0 | BQ196: 0 | BR196: 0 | BS196: 0 | BT196: 0 | BU196: 0 | BV196: 0 | BW196: 0 | BX196: 0 | BY196: 0 | BZ196: 0
C198: Uses
C199: Grid Purchases incl. VAT | D199: $ | I199: =SUM(J199:BZ199) -> -10350000 | J199: =J191 + J153 -> 0 | K199: -10350000 | L199: 0 | M199: 0 | N199: 0 | O199: 0 | P199: 0 | Q199: 0 | R199: 0 | S199: 0 | T199: 0 | U199: 0 | V199: 0 | W199: 0 | X199: 0 | Y199: 0 | Z199: 0 | AA199: 0 | AB199: 0 | AC199: 0 | AD199: 0 | AE199: 0 | AF199: 0 | AG199: 0 | AH199: 0 | AI199: 0 | AJ199: 0 | AK199: 0 | AL199: 0 | AM199: 0 | AN199: 0 | AO199: 0 | AP199: =AP191 + AP153 -> 0 | AQ199: 0 | AR199: 0 | AS199: 0 | AT199: 0 | AU199: 0 | AV199: 0 | AW199: 0 | AX199: 0 | AY199: 0 | AZ199: 0 | BA199: 0 | BB199: 0 | BC199: 0 | BD199: 0 | BE199: 0 | BF199: 0 | BG199: 0 | BH199: 0 | BI199: 0 | BJ199: 0 | BK199: 0 | BL199: 0 | BM199: 0 | BN199: 0 | BO199: 0 | BP199: 0 | BQ199: 0 | BR199: 0 | BS199: 0 | BT199: 0 | BU199: 0 | BV199: 0 | BW199: 0 | BX199: 0 | BY199: 0 | BZ199: 0
C200: Interest during construction | D200: $ | I200: 0 | J200: =-J255 -> 0 | K200: 0 | L200: 0 | M200: 0 | N200: 0 | O200: 0 | P200: 0 | Q200: 0 | R200: 0 | S200: 0 | T200: 0 | U200: 0 | V200: 0 | W200: 0 | X200: 0 | Y200: 0 | Z200: 0 | AA200: 0 | AB200: 0 | AC200: 0 | AD200: 0 | AE200: 0 | AF200: 0 | AG200: 0 | AH200: 0 | AI200: 0 | AJ200: 0 | AK200: 0 | AL200: 0 | AM200: 0 | AN200: 0 | AO200: 0 | AP200: =-AP255 -> 0 | AQ200: 0 | AR200: 0 | AS200: 0 | AT200: 0 | AU200: 0 | AV200: 0 | AW200: 0 | AX200: 0 | AY200: 0 | AZ200: 0 | BA200: 0 | BB200: 0 | BC200: 0 | BD200: 0 | BE200: 0 | BF200: 0 | BG200: 0 | BH200: 0 | BI200: 0 | BJ200: 0 | BK200: 0 | BL200: 0 | BM200: 0 | BN200: 0 | BO200: 0 | BP200: 0 | BQ200: 0 | BR200: 0 | BS200: 0 | BT200: 0 | BU200: 0 | BV200: 0 | BW200: 0 | BX200: 0 | BY200: 0 | BZ200: 0
C201: Financing fees | D201: $ | I201: -291958.7717 | J201: =-J258 -> 0 | K201: -291958.7717 | L201: 0 | M201: 0 | N201: 0 | O201: 0 | P201: 0 | Q201: 0 | R201: 0 | S201: 0 | T201: 0 | U201: 0 | V201: 0 | W201: 0 | X201: 0 | Y201: 0 | Z201: 0 | AA201: 0 | AB201: 0 | AC201: 0 | AD201: 0 | AE201: 0 | AF201: 0 | AG201: 0 | AH201: 0 | AI201: 0 | AJ201: 0 | AK201: 0 | AL201: 0 | AM201: 0 | AN201: 0 | AO201: 0 | AP201: =-AP258 -> 0 | AQ201: 0 | AR201: 0 | AS201: 0 | AT201: 0 | AU201: 0 | AV201: 0 | AW201: 0 | AX201: 0 | AY201: 0 | AZ201: 0 | BA201: 0 | BB201: 0 | BC201: 0 | BD201: 0 | BE201: 0 | BF201: 0 | BG201: 0 | BH201: 0 | BI201: 0 | BJ201: 0 | BK201: 0 | BL201: 0 | BM201: 0 | BN201: 0 | BO201: 0 | BP201: 0 | BQ201: 0 | BR201: 0 | BS201: 0 | BT201: 0 | BU201: 0 | BV201: 0 | BW201: 0 | BX201: 0 | BY201: 0 | BZ201: 0
C202: DSRA opening balance | D202: $ | I202: -285948.2203 | J202: =-Debt!J194 -> 0 | K202: =-Debt!K194 -> -285948.2203 | L202: =-Debt!L194 -> 0 | M202: =-Debt!M194 -> 0 | N202: =-Debt!N194 -> 0 | O202: =-Debt!O194 -> 0 | P202: =-Debt!P194 -> 0 | Q202: =-Debt!Q194 -> 0 | R202: =-Debt!R194 -> 0 | S202: =-Debt!S194 -> 0 | T202: =-Debt!T194 -> 0 | U202: =-Debt!U194 -> 0 | V202: =-Debt!V194 -> 0 | W202: =-Debt!W194 -> 0 | X202: =-Debt!X194 -> 0 | Y202: =-Debt!Y194 -> 0 | Z202: =-Debt!Z194 -> 0 | AA202: =-Debt!AA194 -> 0 | AB202: =-Debt!AB194 -> 0 | AC202: =-Debt!AC194 -> 0 | AD202: =-Debt!AD194 -> 0 | AE202: =-Debt!AE194 -> 0 | AF202: =-Debt!AF194 -> 0 | AG202: =-Debt!AG194 -> 0 | AH202: =-Debt!AH194 -> 0 | AI202: =-Debt!AI194 -> 0 | AJ202: =-Debt!AJ194 -> 0 | AK202: =-Debt!AK194 -> 0 | AL202: =-Debt!AL194 -> 0 | AM202: =-Debt!AM194 -> 0 | AN202: =-Debt!AN194 -> 0 | AO202: =-Debt!AO194 -> 0 | AP202: =-Debt!AP194 -> 0 | AQ202: =-Debt!AQ194 -> 0 | AR202: =-Debt!AR194 -> 0 | AS202: =-Debt!AS194 -> 0 | AT202: =-Debt!AT194 -> 0 | AU202: =-Debt!AU194 -> 0 | AV202: =-Debt!AV194 -> 0 | AW202: =-Debt!AW194 -> 0 | AX202: =-Debt!AX194 -> 0 | AY202: =-Debt!AY194 -> 0 | AZ202: =-Debt!AZ194 -> 0 | BA202: =-Debt!BA194 -> 0 | BB202: =-Debt!BB194 -> 0 | BC202: =-Debt!BC194 -> 0 | BD202: =-Debt!BD194 -> 0 | BE202: =-Debt!BE194 -> 0 | BF202: =-Debt!BF194 -> 0 | BG202: =-Debt!BG194 -> 0 | BH202: =-Debt!BH194 -> 0 | BI202: =-Debt!BI194 -> 0 | BJ202: =-Debt!BJ194 -> 0 | BK202: =-Debt!BK194 -> 0 | BL202: =-Debt!BL194 -> 0 | BM202: =-Debt!BM194 -> 0 | BN202: =-Debt!BN194 -> 0 | BO202: =-Debt!BO194 -> 0 | BP202: =-Debt!BP194 -> 0 | BQ202: =-Debt!BQ194 -> 0 | BR202: =-Debt!BR194 -> 0 | BS202: =-Debt!BS194 -> 0 | BT202: =-Debt!BT194 -> 0 | BU202: =-Debt!BU194 -> 0 | BV202: =-Debt!BV194 -> 0 | BW202: =-Debt!BW194 -> 0 | BX202: =-Debt!BX194 -> 0 | BY202: =-Debt!BY194 -> 0 | BZ202: =-Debt!BZ194 -> 0
C203: MMRA opening balance | D203: $ | I203: -750000 | J203: =-Debt!J125 -> 0 | K203: =-Debt!K125 -> -750000 | L203: =-Debt!L125 -> 0 | M203: =-Debt!M125 -> 0 | N203: =-Debt!N125 -> 0 | O203: =-Debt!O125 -> 0 | P203: =-Debt!P125 -> 0 | Q203: =-Debt!Q125 -> 0 | R203: =-Debt!R125 -> 0 | S203: =-Debt!S125 -> 0 | T203: =-Debt!T125 -> 0 | U203: =-Debt!U125 -> 0 | V203: =-Debt!V125 -> 0 | W203: =-Debt!W125 -> 0 | X203: =-Debt!X125 -> 0 | Y203: =-Debt!Y125 -> 0 | Z203: =-Debt!Z125 -> 0 | AA203: =-Debt!AA125 -> 0 | AB203: =-Debt!AB125 -> 0 | AC203: =-Debt!AC125 -> 0 | AD203: =-Debt!AD125 -> 0 | AE203: =-Debt!AE125 -> 0 | AF203: =-Debt!AF125 -> 0 | AG203: =-Debt!AG125 -> 0 | AH203: =-Debt!AH125 -> 0 | AI203: =-Debt!AI125 -> 0 | AJ203: =-Debt!AJ125 -> 0 | AK203: =-Debt!AK125 -> 0 | AL203: =-Debt!AL125 -> 0 | AM203: =-Debt!AM125 -> 0 | AN203: =-Debt!AN125 -> 0 | AO203: =-Debt!AO125 -> 0 | AP203: =-Debt!AP125 -> 0 | AQ203: =-Debt!AQ125 -> 0 | AR203: =-Debt!AR125 -> 0 | AS203: =-Debt!AS125 -> 0 | AT203: =-Debt!AT125 -> 0 | AU203: =-Debt!AU125 -> 0 | AV203: =-Debt!AV125 -> 0 | AW203: =-Debt!AW125 -> 0 | AX203: =-Debt!AX125 -> 0 | AY203: =-Debt!AY125 -> 0 | AZ203: =-Debt!AZ125 -> 0 | BA203: =-Debt!BA125 -> 0 | BB203: =-Debt!BB125 -> 0 | BC203: =-Debt!BC125 -> 0 | BD203: =-Debt!BD125 -> 0 | BE203: =-Debt!BE125 -> 0 | BF203: =-Debt!BF125 -> 0 | BG203: =-Debt!BG125 -> 0 | BH203: =-Debt!BH125 -> 0 | BI203: =-Debt!BI125 -> 0 | BJ203: =-Debt!BJ125 -> 0 | BK203: =-Debt!BK125 -> 0 | BL203: =-Debt!BL125 -> 0 | BM203: =-Debt!BM125 -> 0 | BN203: =-Debt!BN125 -> 0 | BO203: =-Debt!BO125 -> 0 | BP203: =-Debt!BP125 -> 0 | BQ203: =-Debt!BQ125 -> 0 | BR203: =-Debt!BR125 -> 0 | BS203: =-Debt!BS125 -> 0 | BT203: =-Debt!BT125 -> 0 | BU203: =-Debt!BU125 -> 0 | BV203: =-Debt!BV125 -> 0 | BW203: =-Debt!BW125 -> 0 | BX203: =-Debt!BX125 -> 0 | BY203: =-Debt!BY125 -> 0 | BZ203: =-Debt!BZ125 -> 0
C204: Total | D204: $ | I204: -11677906.99 | J204: =SUM(J199:J203) -> 0 | K204: -11677906.99 | L204: 0 | M204: 0 | N204: 0 | O204: 0 | P204: 0 | Q204: 0 | R204: 0 | S204: 0 | T204: 0 | U204: 0 | V204: 0 | W204: 0 | X204: 0 | Y204: 0 | Z204: 0 | AA204: 0 | AB204: 0 | AC204: 0 | AD204: 0 | AE204: 0 | AF204: 0 | AG204: 0 | AH204: 0 | AI204: 0 | AJ204: 0 | AK204: 0 | AL204: 0 | AM204: 0 | AN204: 0 | AO204: 0 | AP204: =SUM(AP199:AP203) -> 0 | AQ204: 0 | AR204: 0 | AS204: 0 | AT204: 0 | AU204: 0 | AV204: 0 | AW204: 0 | AX204: 0 | AY204: 0 | AZ204: 0 | BA204: 0 | BB204: 0 | BC204: 0 | BD204: 0 | BE204: 0 | BF204: 0 | BG204: 0 | BH204: 0 | BI204: 0 | BJ204: 0 | BK204: 0 | BL204: 0 | BM204: 0 | BN204: 0 | BO204: 0 | BP204: 0 | BQ204: 0 | BR204: 0 | BS204: 0 | BT204: 0 | BU204: 0 | BV204: =SUM(BV199:BV203) -> 0 | BW204: 0 | BX204: 0 | BY204: 0 | BZ204: 0
C206: Sources
C207: =C215 -> Grant to AssetCo | D207: =D215 -> $ | I207: =SUM(J207:BZ207) -> 2932500 | J207: =J215 -> 0 | K207: 2932500 | L207: 0 | M207: 0 | N207: 0 | O207: 0 | P207: 0 | Q207: 0 | R207: 0 | S207: 0 | T207: 0 | U207: 0 | V207: 0 | W207: 0 | X207: 0 | Y207: 0 | Z207: 0 | AA207: 0 | AB207: 0 | AC207: 0 | AD207: 0 | AE207: 0 | AF207: 0 | AG207: 0 | AH207: 0 | AI207: 0 | AJ207: 0 | AK207: 0 | AL207: 0 | AM207: 0 | AN207: 0 | AO207: 0 | AP207: =AP215 -> 0 | AQ207: 0 | AR207: 0 | AS207: 0 | AT207: 0 | AU207: 0 | AV207: 0 | AW207: 0 | AX207: 0 | AY207: 0 | AZ207: 0 | BA207: 0 | BB207: 0 | BC207: 0 | BD207: 0 | BE207: 0 | BF207: 0 | BG207: 0 | BH207: 0 | BI207: 0 | BJ207: 0 | BK207: 0 | BL207: 0 | BM207: 0 | BN207: 0 | BO207: 0 | BP207: 0 | BQ207: 0 | BR207: 0 | BS207: 0 | BT207: 0 | BU207: 0 | BV207: 0 | BW207: 0 | BX207: 0 | BY207: 0 | BZ207: 0
C208: =C219 -> Owner Equity | D208: $ | I208: =SUM(J208:BZ208) -> 2906675.435 | J208: =J219 -> 0 | K208: 2906675.435 | L208: 0 | M208: 0 | N208: 0 | O208: 0 | P208: 0 | Q208: 0 | R208: 0 | S208: 0 | T208: 0 | U208: 0 | V208: 0 | W208: 0 | X208: 0 | Y208: 0 | Z208: 0 | AA208: 0 | AB208: 0 | AC208: 0 | AD208: 0 | AE208: 0 | AF208: 0 | AG208: 0 | AH208: 0 | AI208: 0 | AJ208: 0 | AK208: 0 | AL208: 0 | AM208: 0 | AN208: 0 | AO208: 0 | AP208: =AP219 -> 0 | AQ208: 0 | AR208: 0 | AS208: 0 | AT208: 0 | AU208: 0 | AV208: 0 | AW208: 0 | AX208: 0 | AY208: 0 | AZ208: 0 | BA208: 0 | BB208: 0 | BC208: 0 | BD208: 0 | BE208: 0 | BF208: 0 | BG208: 0 | BH208: 0 | BI208: 0 | BJ208: 0 | BK208: 0 | BL208: 0 | BM208: 0 | BN208: 0 | BO208: 0 | BP208: 0 | BQ208: 0 | BR208: 0 | BS208: 0 | BT208: 0 | BU208: 0 | BV208: 0 | BW208: 0 | BX208: 0 | BY208: 0 | BZ208: 0
C209: =C223 -> Senior Debt | D209: $ | I209: =SUM(J209:BZ209) -> 5838731.557 | J209: =J223 -> 0 | K209: 5838731.557 | L209: 0 | M209: 0 | N209: 0 | O209: 0 | P209: 0 | Q209: 0 | R209: 0 | S209: 0 | T209: 0 | U209: 0 | V209: 0 | W209: 0 | X209: 0 | Y209: 0 | Z209: 0 | AA209: 0 | AB209: 0 | AC209: 0 | AD209: 0 | AE209: 0 | AF209: 0 | AG209: 0 | AH209: 0 | AI209: 0 | AJ209: 0 | AK209: 0 | AL209: 0 | AM209: 0 | AN209: 0 | AO209: 0 | AP209: =AP223 -> 0 | AQ209: 0 | AR209: 0 | AS209: 0 | AT209: 0 | AU209: 0 | AV209: 0 | AW209: 0 | AX209: 0 | AY209: 0 | AZ209: 0 | BA209: 0 | BB209: 0 | BC209: 0 | BD209: 0 | BE209: 0 | BF209: 0 | BG209: 0 | BH209: 0 | BI209: 0 | BJ209: 0 | BK209: 0 | BL209: 0 | BM209: 0 | BN209: 0 | BO209: 0 | BP209: 0 | BQ209: 0 | BR209: 0 | BS209: 0 | BT209: 0 | BU209: 0 | BV209: 0 | BW209: 0 | BX209: 0 | BY209: 0 | BZ209: 0
C210: =C226 -> Additional equity | D210: $ | I210: =SUM(J210:BZ210) -> 0 | J210: =J226 -> 0 | K210: 0 | L210: 0 | M210: 0 | N210: 0 | O210: 0 | P210: 0 | Q210: 0 | R210: 0 | S210: 0 | T210: 0 | U210: 0 | V210: 0 | W210: 0 | X210: 0 | Y210: 0 | Z210: 0 | AA210: 0 | AB210: 0 | AC210: 0 | AD210: 0 | AE210: 0 | AF210: 0 | AG210: 0 | AH210: 0 | AI210: 0 | AJ210: 0 | AK210: 0 | AL210: 0 | AM210: 0 | AN210: 0 | AO210: 0 | AP210: =AP226 -> 0 | AQ210: 0 | AR210: 0 | AS210: 0 | AT210: 0 | AU210: 0 | AV210: 0 | AW210: 0 | AX210: 0 | AY210: 0 | AZ210: 0 | BA210: 0 | BB210: 0 | BC210: 0 | BD210: 0 | BE210: 0 | BF210: 0 | BG210: 0 | BH210: 0 | BI210: 0 | BJ210: 0 | BK210: 0 | BL210: 0 | BM210: 0 | BN210: 0 | BO210: 0 | BP210: 0 | BQ210: 0 | BR210: 0 | BS210: 0 | BT210: 0 | BU210: 0 | BV210: 0 | BW210: 0 | BX210: 0 | BY210: 0 | BZ210: 0
C211: Total | D211: $ | I211: =SUM(J211:BZ211) -> 11677906.99 | J211: =SUM(J207:J210) -> 0 | K211: 11677906.99 | L211: 0 | M211: 0 | N211: 0 | O211: 0 | P211: 0 | Q211: 0 | R211: 0 | S211: 0 | T211: 0 | U211: 0 | V211: 0 | W211: 0 | X211: 0 | Y211: 0 | Z211: 0 | AA211: 0 | AB211: 0 | AC211: 0 | AD211: 0 | AE211: 0 | AF211: 0 | AG211: 0 | AH211: 0 | AI211: 0 | AJ211: 0 | AK211: 0 | AL211: 0 | AM211: 0 | AN211: 0 | AO211: 0 | AP211: =SUM(AP207:AP210) -> 0 | AQ211: 0 | AR211: 0 | AS211: 0 | AT211: 0 | AU211: 0 | AV211: 0 | AW211: 0 | AX211: 0 | AY211: 0 | AZ211: 0 | BA211: 0 | BB211: 0 | BC211: 0 | BD211: 0 | BE211: 0 | BF211: 0 | BG211: 0 | BH211: 0 | BI211: 0 | BJ211: 0 | BK211: 0 | BL211: 0 | BM211: 0 | BN211: 0 | BO211: 0 | BP211: 0 | BQ211: 0 | BR211: 0 | BS211: 0 | BT211: 0 | BU211: 0 | BV211: =SUM(BV207:BV210) -> 0 | BW211: 0 | BX211: 0 | BY211: 0 | BZ211: 0
C213: Sources detail
E214: Drawdown
C215: =Inputs!C270 -> Grant to AssetCo | D215: $ | E215: =Inputs!$E$272 -> 0.5 | I215: =SUM(J215:BZ215) -> 2932500 | J215: =MIN(-J$204*$E$215,J234) -> 0 | K215: 2932500 | L215: 0 | M215: 0 | N215: 0 | O215: 0 | P215: 0 | Q215: 0 | R215: 0 | S215: 0 | T215: 0 | U215: 0 | V215: 0 | W215: 0 | X215: 0 | Y215: 0 | Z215: 0 | AA215: 0 | AB215: 0 | AC215: 0 | AD215: 0 | AE215: 0 | AF215: 0 | AG215: 0 | AH215: 0 | AI215: 0 | AJ215: 0 | AK215: 0 | AL215: 0 | AM215: 0 | AN215: 0 | AO215: 0 | AP215: =MIN(-AP$204*$E$215,AP234) -> 0 | AQ215: 0 | AR215: 0 | AS215: 0 | AT215: 0 | AU215: 0 | AV215: 0 | AW215: 0 | AX215: 0 | AY215: 0 | AZ215: 0 | BA215: 0 | BB215: 0 | BC215: 0 | BD215: 0 | BE215: 0 | BF215: 0 | BG215: 0 | BH215: 0 | BI215: 0 | BJ215: 0 | BK215: 0 | BL215: 0 | BM215: 0 | BN215: 0 | BO215: 0 | BP215: 0 | BQ215: 0 | BR215: 0 | BS215: 0 | BT215: 0 | BU215: 0 | BV215: 0 | BW215: 0 | BX215: 0 | BY215: 0 | BZ215: 0
C216: Funding required after grant | D216: $ | I216: =SUM(J216:BZ216) -> -8745406.992 | J216: =J204+J215 -> 0 | K216: -8745406.992 | L216: 0 | M216: 0 | N216: 0 | O216: 0 | P216: 0 | Q216: 0 | R216: 0 | S216: 0 | T216: 0 | U216: 0 | V216: 0 | W216: 0 | X216: 0 | Y216: 0 | Z216: 0 | AA216: 0 | AB216: 0 | AC216: 0 | AD216: 0 | AE216: 0 | AF216: 0 | AG216: 0 | AH216: 0 | AI216: 0 | AJ216: 0 | AK216: 0 | AL216: 0 | AM216: 0 | AN216: 0 | AO216: 0 | AP216: =AP204+AP215 -> 0 | AQ216: 0 | AR216: 0 | AS216: 0 | AT216: 0 | AU216: 0 | AV216: 0 | AW216: 0 | AX216: 0 | AY216: 0 | AZ216: 0 | BA216: 0 | BB216: 0 | BC216: 0 | BD216: 0 | BE216: 0 | BF216: 0 | BG216: 0 | BH216: 0 | BI216: 0 | BJ216: 0 | BK216: 0 | BL216: 0 | BM216: 0 | BN216: 0 | BO216: 0 | BP216: 0 | BQ216: 0 | BR216: 0 | BS216: 0 | BT216: 0 | BU216: 0 | BV216: =BV204+BV215 -> 0 | BW216: 0 | BX216: 0 | BY216: 0 | BZ216: 0
E218: Drawdown
C219: =Inputs!C279 -> Owner Equity | D219: $ | E219: =1-$F$223 -> 0.5 | I219: =SUM(J219:BZ219) -> 2906675.435 | J219: =MIN(J242,-$E219*J$216) -> 0 | K219: 2906675.435 | L219: 0 | M219: 0 | N219: 0 | O219: 0 | P219: 0 | Q219: 0 | R219: 0 | S219: 0 | T219: 0 | U219: 0 | V219: 0 | W219: 0 | X219: 0 | Y219: 0 | Z219: 0 | AA219: 0 | AB219: 0 | AC219: 0 | AD219: 0 | AE219: 0 | AF219: 0 | AG219: 0 | AH219: 0 | AI219: 0 | AJ219: 0 | AK219: 0 | AL219: 0 | AM219: 0 | AN219: 0 | AO219: 0 | AP219: =MIN(AP242,-$E219*AP$216) -> 0 | AQ219: 0 | AR219: 0 | AS219: 0 | AT219: 0 | AU219: 0 | AV219: 0 | AW219: 0 | AX219: 0 | AY219: 0 | AZ219: 0 | BA219: 0 | BB219: 0 | BC219: 0 | BD219: 0 | BE219: 0 | BF219: 0 | BG219: 0 | BH219: 0 | BI219: 0 | BJ219: 0 | BK219: 0 | BL219: 0 | BM219: 0 | BN219: 0 | BO219: 0 | BP219: 0 | BQ219: 0 | BR219: 0 | BS219: 0 | BT219: 0 | BU219: 0 | BV219: 0 | BW219: 0 | BX219: 0 | BY219: 0 | BZ219: 0
C220: Funding required after equity | D220: $ | I220: =SUM(J220:BZ220) -> -5838731.557 | J220: =J216+J219 -> 0 | K220: -5838731.557 | L220: 0 | M220: 0 | N220: 0 | O220: 0 | P220: 0 | Q220: 0 | R220: 0 | S220: 0 | T220: 0 | U220: 0 | V220: 0 | W220: 0 | X220: 0 | Y220: 0 | Z220: 0 | AA220: 0 | AB220: 0 | AC220: 0 | AD220: 0 | AE220: 0 | AF220: 0 | AG220: 0 | AH220: 0 | AI220: 0 | AJ220: 0 | AK220: 0 | AL220: 0 | AM220: 0 | AN220: 0 | AO220: 0 | AP220: =AP216+AP219 -> 0 | AQ220: 0 | AR220: 0 | AS220: 0 | AT220: 0 | AU220: 0 | AV220: 0 | AW220: 0 | AX220: 0 | AY220: 0 | AZ220: 0 | BA220: 0 | BB220: 0 | BC220: 0 | BD220: 0 | BE220: 0 | BF220: 0 | BG220: 0 | BH220: 0 | BI220: 0 | BJ220: 0 | BK220: 0 | BL220: 0 | BM220: 0 | BN220: 0 | BO220: 0 | BP220: 0 | BQ220: 0 | BR220: 0 | BS220: 0 | BT220: 0 | BU220: 0 | BV220: =BV216+BV219 -> 0 | BW220: 0 | BX220: 0 | BY220: 0 | BZ220: 0
E222: Drawdown | F222: With equity
C223: =Inputs!C305 -> Senior Debt | D223: $ | E223: =Inputs!E332 -> Pari Passu | F223: =Inputs!$G$332 -> 0.5 | I223: =SUM(J223:BZ223) -> 5838731.557 | J223: =MIN(-J220,J251) -> 0 | K223: 5838731.557 | L223: 0 | M223: 0 | N223: 0 | O223: 0 | P223: 0 | Q223: 0 | R223: 0 | S223: 0 | T223: 0 | U223: 0 | V223: 0 | W223: 0 | X223: 0 | Y223: 0 | Z223: 0 | AA223: 0 | AB223: 0 | AC223: 0 | AD223: 0 | AE223: 0 | AF223: 0 | AG223: 0 | AH223: 0 | AI223: 0 | AJ223: 0 | AK223: 0 | AL223: 0 | AM223: 0 | AN223: 0 | AO223: 0 | AP223: =MIN(-AP220,AP251) -> 0 | AQ223: 0 | AR223: 0 | AS223: 0 | AT223: 0 | AU223: 0 | AV223: 0 | AW223: 0 | AX223: 0 | AY223: 0 | AZ223: 0 | BA223: 0 | BB223: 0 | BC223: 0 | BD223: 0 | BE223: 0 | BF223: 0 | BG223: 0 | BH223: 0 | BI223: 0 | BJ223: 0 | BK223: 0 | BL223: 0 | BM223: 0 | BN223: 0 | BO223: 0 | BP223: 0 | BQ223: 0 | BR223: 0 | BS223: 0 | BT223: 0 | BU223: 0 | BV223: 0 | BW223: 0 | BX223: 0 | BY223: 0 | BZ223: 0
C224: Funding required after senior debt | I224: =SUM(J224:BZ224) -> 0 | J224: =J220+J223 -> 0 | K224: 0 | L224: 0 | M224: 0 | N224: 0 | O224: 0 | P224: 0 | Q224: 0 | R224: 0 | S224: 0 | T224: 0 | U224: 0 | V224: 0 | W224: 0 | X224: 0 | Y224: 0 | Z224: 0 | AA224: 0 | AB224: 0 | AC224: 0 | AD224: 0 | AE224: 0 | AF224: 0 | AG224: 0 | AH224: 0 | AI224: 0 | AJ224: 0 | AK224: 0 | AL224: 0 | AM224: 0 | AN224: 0 | AO224: 0 | AP224: =AP220+AP223 -> 0 | AQ224: 0 | AR224: 0 | AS224: 0 | AT224: 0 | AU224: 0 | AV224: 0 | AW224: 0 | AX224: 0 | AY224: 0 | AZ224: 0 | BA224: 0 | BB224: 0 | BC224: 0 | BD224: 0 | BE224: 0 | BF224: 0 | BG224: 0 | BH224: 0 | BI224: 0 | BJ224: 0 | BK224: 0 | BL224: 0 | BM224: 0 | BN224: 0 | BO224: 0 | BP224: 0 | BQ224: 0 | BR224: 0 | BS224: 0 | BT224: 0 | BU224: 0 | BV224: =BV220+BV223 -> 0 | BW224: 0 | BX224: 0 | BY224: 0 | BZ224: 0
C226: Additional equity | D226: $ | I226: =SUM(J226:BZ226) -> 0 | J226: =-J224 -> 0 | K226: 0 | L226: 0 | M226: 0 | N226: 0 | O226: 0 | P226: 0 | Q226: 0 | R226: 0 | S226: 0 | T226: 0 | U226: 0 | V226: 0 | W226: 0 | X226: 0 | Y226: 0 | Z226: 0 | AA226: 0 | AB226: 0 | AC226: 0 | AD226: 0 | AE226: 0 | AF226: 0 | AG226: 0 | AH226: 0 | AI226: 0 | AJ226: 0 | AK226: 0 | AL226: 0 | AM226: 0 | AN226: 0 | AO226: 0 | AP226: =-AP224 -> 0 | AQ226: 0 | AR226: 0 | AS226: 0 | AT226: 0 | AU226: 0 | AV226: 0 | AW226: 0 | AX226: 0 | AY226: 0 | AZ226: 0 | BA226: 0 | BB226: 0 | BC226: 0 | BD226: 0 | BE226: 0 | BF226: 0 | BG226: 0 | BH226: 0 | BI226: 0 | BJ226: 0 | BK226: 0 | BL226: 0 | BM226: 0 | BN226: 0 | BO226: 0 | BP226: 0 | BQ226: 0 | BR226: 0 | BS226: 0 | BT226: 0 | BU226: 0 | BV226: 0 | BW226: 0 | BX226: 0 | BY226: 0 | BZ226: 0
C227: Shortfall | I227: =SUM(J227:BZ227) -> 0 | J227: =J224+J226 -> 0 | K227: 0 | L227: 0 | M227: 0 | N227: 0 | O227: 0 | P227: 0 | Q227: 0 | R227: 0 | S227: 0 | T227: 0 | U227: 0 | V227: 0 | W227: 0 | X227: 0 | Y227: 0 | Z227: 0 | AA227: 0 | AB227: 0 | AC227: 0 | AD227: 0 | AE227: 0 | AF227: 0 | AG227: 0 | AH227: 0 | AI227: 0 | AJ227: 0 | AK227: 0 | AL227: 0 | AM227: 0 | AN227: 0 | AO227: 0 | AP227: =AP224+AP226 -> 0 | AQ227: 0 | AR227: 0 | AS227: 0 | AT227: 0 | AU227: 0 | AV227: 0 | AW227: 0 | AX227: 0 | AY227: 0 | AZ227: 0 | BA227: 0 | BB227: 0 | BC227: 0 | BD227: 0 | BE227: 0 | BF227: 0 | BG227: 0 | BH227: 0 | BI227: 0 | BJ227: 0 | BK227: 0 | BL227: 0 | BM227: 0 | BN227: 0 | BO227: 0 | BP227: 0 | BQ227: 0 | BR227: 0 | BS227: 0 | BT227: 0 | BU227: 0 | BV227: =BV224+BV226 -> 0 | BW227: 0 | BX227: 0 | BY227: 0 | BZ227: 0
C229: Grant drawn
C230: Balance b/f | D230: $ | J230: =I232 -> 0 | K230: 0 | L230: 2932500 | M230: 2932500 | N230: 2932500 | O230: 2932500 | P230: 2932500 | Q230: 2932500 | R230: 2932500 | S230: 2932500 | T230: 2932500 | U230: 2932500 | V230: 2932500 | W230: 2932500 | X230: 2932500 | Y230: 2932500 | Z230: 2932500 | AA230: 2932500 | AB230: 2932500 | AC230: 2932500 | AD230: 2932500 | AE230: 2932500 | AF230: 2932500 | AG230: 2932500 | AH230: 2932500 | AI230: 2932500 | AJ230: 2932500 | AK230: 2932500 | AL230: 2932500 | AM230: 2932500 | AN230: 2932500 | AO230: 2932500 | AP230: =AO232 -> 2932500 | AQ230: 2932500 | AR230: 2932500 | AS230: 2932500 | AT230: 2932500 | AU230: 2932500 | AV230: 2932500 | AW230: 2932500 | AX230: 2932500 | AY230: 2932500 | AZ230: 2932500 | BA230: 2932500 | BB230: 2932500 | BC230: 2932500 | BD230: 2932500 | BE230: 2932500 | BF230: 2932500 | BG230: 2932500 | BH230: 2932500 | BI230: 2932500 | BJ230: 2932500 | BK230: 2932500 | BL230: 2932500 | BM230: 2932500 | BN230: 2932500 | BO230: 2932500 | BP230: 2932500 | BQ230: 2932500 | BR230: 2932500 | BS230: 2932500 | BT230: 2932500 | BU230: 2932500 | BV230: 2932500 | BW230: 2932500 | BX230: 2932500 | BY230: 2932500 | BZ230: 2932500
C231: Drawdowns | D231: $ | I231: =SUM(J231:BZ231) -> 2932500 | J231: =J215 -> 0 | K231: 2932500 | L231: 0 | M231: 0 | N231: 0 | O231: 0 | P231: 0 | Q231: 0 | R231: 0 | S231: 0 | T231: 0 | U231: 0 | V231: 0 | W231: 0 | X231: 0 | Y231: 0 | Z231: 0 | AA231: 0 | AB231: 0 | AC231: 0 | AD231: 0 | AE231: 0 | AF231: 0 | AG231: 0 | AH231: 0 | AI231: 0 | AJ231: 0 | AK231: 0 | AL231: 0 | AM231: 0 | AN231: 0 | AO231: 0 | AP231: =AP215 -> 0 | AQ231: 0 | AR231: 0 | AS231: 0 | AT231: 0 | AU231: 0 | AV231: 0 | AW231: 0 | AX231: 0 | AY231: 0 | AZ231: 0 | BA231: 0 | BB231: 0 | BC231: 0 | BD231: 0 | BE231: 0 | BF231: 0 | BG231: 0 | BH231: 0 | BI231: 0 | BJ231: 0 | BK231: 0 | BL231: 0 | BM231: 0 | BN231: 0 | BO231: 0 | BP231: 0 | BQ231: 0 | BR231: 0 | BS231: 0 | BT231: 0 | BU231: 0 | BV231: 0 | BW231: 0 | BX231: 0 | BY231: 0 | BZ231: 0
C232: Balance c/f | D232: $ | J232: =SUM(J230:J231) -> 0 | K232: 2932500 | L232: 2932500 | M232: 2932500 | N232: 2932500 | O232: 2932500 | P232: 2932500 | Q232: 2932500 | R232: 2932500 | S232: 2932500 | T232: 2932500 | U232: 2932500 | V232: 2932500 | W232: 2932500 | X232: 2932500 | Y232: 2932500 | Z232: 2932500 | AA232: 2932500 | AB232: 2932500 | AC232: 2932500 | AD232: 2932500 | AE232: 2932500 | AF232: 2932500 | AG232: 2932500 | AH232: 2932500 | AI232: 2932500 | AJ232: 2932500 | AK232: 2932500 | AL232: 2932500 | AM232: 2932500 | AN232: 2932500 | AO232: 2932500 | AP232: =SUM(AP230:AP231) -> 2932500 | AQ232: 2932500 | AR232: 2932500 | AS232: 2932500 | AT232: 2932500 | AU232: 2932500 | AV232: 2932500 | AW232: 2932500 | AX232: 2932500 | AY232: 2932500 | AZ232: 2932500 | BA232: 2932500 | BB232: 2932500 | BC232: 2932500 | BD232: 2932500 | BE232: 2932500 | BF232: 2932500 | BG232: 2932500 | BH232: 2932500 | BI232: 2932500 | BJ232: 2932500 | BK232: 2932500 | BL232: 2932500 | BM232: 2932500 | BN232: 2932500 | BO232: 2932500 | BP232: 2932500 | BQ232: 2932500 | BR232: 2932500 | BS232: 2932500 | BT232: 2932500 | BU232: 2932500 | BV232: =SUM(BV230:BV231) -> 2932500 | BW232: 2932500 | BX232: 2932500 | BY232: 2932500 | BZ232: 2932500
C234: Undrawn amount @ start of period | D234: $ | E234: =Inputs!$E$270 -> 2932500 | J234: =($E234-J230)*J$196 -> 0 | K234: 2932500 | L234: 0 | M234: 0 | N234: 0 | O234: 0 | P234: 0 | Q234: 0 | R234: 0 | S234: 0 | T234: 0 | U234: 0 | V234: 0 | W234: 0 | X234: 0 | Y234: 0 | Z234: 0 | AA234: 0 | AB234: 0 | AC234: 0 | AD234: 0 | AE234: 0 | AF234: 0 | AG234: 0 | AH234: 0 | AI234: 0 | AJ234: 0 | AK234: 0 | AL234: 0 | AM234: 0 | AN234: 0 | AO234: 0 | AP234: =($E234-AP230)*AP$196 -> 0 | AQ234: 0 | AR234: 0 | AS234: 0 | AT234: 0 | AU234: 0 | AV234: 0 | AW234: 0 | AX234: 0 | AY234: 0 | AZ234: 0 | BA234: 0 | BB234: 0 | BC234: 0 | BD234: 0 | BE234: 0 | BF234: 0 | BG234: 0 | BH234: 0 | BI234: 0 | BJ234: 0 | BK234: 0 | BL234: 0 | BM234: 0 | BN234: 0 | BO234: 0 | BP234: 0 | BQ234: 0 | BR234: 0 | BS234: 0 | BT234: 0 | BU234: 0 | BV234: 0 | BW234: 0 | BX234: 0 | BY234: 0 | BZ234: 0
C235: Number of connections | D235: #Num | E235: =Inputs!$E$30 -> 383.3333333 | J235: =$E$235*J$23 -> 0 | K235: 11500 | L235: 11500 | M235: 11500 | N235: 11500 | O235: 11500 | P235: 11500 | Q235: 11500 | R235: 11500 | S235: 11500 | T235: 11500 | U235: 11500 | V235: 11500 | W235: 11500 | X235: 11500 | Y235: 11500 | Z235: 11500 | AA235: 11500 | AB235: 11500 | AC235: 11500 | AD235: 11500 | AE235: 0 | AF235: 0 | AG235: 0 | AH235: 0 | AI235: 0 | AJ235: 0 | AK235: 0 | AL235: 0 | AM235: 0 | AN235: 0 | AO235: 0 | AP235: =$E$235*AP$23 -> 0 | AQ235: 0 | AR235: 0 | AS235: 0 | AT235: 0 | AU235: 0 | AV235: 0 | AW235: 0 | AX235: 0 | AY235: 0 | AZ235: 0 | BA235: 0 | BB235: 0 | BC235: 0 | BD235: 0 | BE235: 0 | BF235: 0 | BG235: 0 | BH235: 0 | BI235: 0 | BJ235: 0 | BK235: 0 | BL235: 0 | BM235: 0 | BN235: 0 | BO235: 0 | BP235: 0 | BQ235: 0 | BR235: 0 | BS235: 0 | BT235: 0 | BU235: 0 | BV235: 0 | BW235: 0 | BX235: 0 | BY235: 0 | BZ235: 0
C237: Initial Equity drawn
C238: Balance b/f | D238: $ | J238: =I240 -> 0 | K238: 0 | L238: 2906675.435 | M238: 2906675.435 | N238: 2906675.435 | O238: 2906675.435 | P238: 2906675.435 | Q238: 2906675.435 | R238: 2906675.435 | S238: 2906675.435 | T238: 2906675.435 | U238: 2906675.435 | V238: 2906675.435 | W238: 2906675.435 | X238: 2906675.435 | Y238: 2906675.435 | Z238: 2906675.435 | AA238: 2906675.435 | AB238: 2906675.435 | AC238: 2906675.435 | AD238: 2906675.435 | AE238: 2906675.435 | AF238: 2906675.435 | AG238: 2906675.435 | AH238: 2906675.435 | AI238: 2906675.435 | AJ238: 2906675.435 | AK238: 2906675.435 | AL238: 2906675.435 | AM238: 2906675.435 | AN238: 2906675.435 | AO238: 2906675.435 | AP238: =AO240 -> 2906675.435 | AQ238: 2906675.435 | AR238: 2906675.435 | AS238: 2906675.435 | AT238: 2906675.435 | AU238: 2906675.435 | AV238: 2906675.435 | AW238: 2906675.435 | AX238: 2906675.435 | AY238: 2906675.435 | AZ238: 2906675.435 | BA238: 2906675.435 | BB238: 2906675.435 | BC238: 2906675.435 | BD238: 2906675.435 | BE238: 2906675.435 | BF238: 2906675.435 | BG238: 2906675.435 | BH238: 2906675.435 | BI238: 2906675.435 | BJ238: 2906675.435 | BK238: 2906675.435 | BL238: 2906675.435 | BM238: 2906675.435 | BN238: 2906675.435 | BO238: 2906675.435 | BP238: 2906675.435 | BQ238: 2906675.435 | BR238: 2906675.435 | BS238: 2906675.435 | BT238: 2906675.435 | BU238: 2906675.435 | BV238: 2906675.435 | BW238: 2906675.435 | BX238: 2906675.435 | BY238: 2906675.435 | BZ238: 2906675.435
C239: Drawdowns | D239: $ | I239: =SUM(J239:BZ239) -> 2906675.435 | J239: =J219 -> 0 | K239: 2906675.435 | L239: 0 | M239: 0 | N239: 0 | O239: 0 | P239: 0 | Q239: 0 | R239: 0 | S239: 0 | T239: 0 | U239: 0 | V239: 0 | W239: 0 | X239: 0 | Y239: 0 | Z239: 0 | AA239: 0 | AB239: 0 | AC239: 0 | AD239: 0 | AE239: 0 | AF239: 0 | AG239: 0 | AH239: 0 | AI239: 0 | AJ239: 0 | AK239: 0 | AL239: 0 | AM239: 0 | AN239: 0 | AO239: 0 | AP239: =AP219 -> 0 | AQ239: 0 | AR239: 0 | AS239: 0 | AT239: 0 | AU239: 0 | AV239: 0 | AW239: 0 | AX239: 0 | AY239: 0 | AZ239: 0 | BA239: 0 | BB239: 0 | BC239: 0 | BD239: 0 | BE239: 0 | BF239: 0 | BG239: 0 | BH239: 0 | BI239: 0 | BJ239: 0 | BK239: 0 | BL239: 0 | BM239: 0 | BN239: 0 | BO239: 0 | BP239: 0 | BQ239: 0 | BR239: 0 | BS239: 0 | BT239: 0 | BU239: 0 | BV239: 0 | BW239: 0 | BX239: 0 | BY239: 0 | BZ239: 0
C240: Balance c/f | D240: $ | J240: =SUM(J238:J239) -> 0 | K240: 2906675.435 | L240: 2906675.435 | M240: 2906675.435 | N240: 2906675.435 | O240: 2906675.435 | P240: 2906675.435 | Q240: 2906675.435 | R240: 2906675.435 | S240: 2906675.435 | T240: 2906675.435 | U240: 2906675.435 | V240: 2906675.435 | W240: 2906675.435 | X240: 2906675.435 | Y240: 2906675.435 | Z240: 2906675.435 | AA240: 2906675.435 | AB240: 2906675.435 | AC240: 2906675.435 | AD240: 2906675.435 | AE240: 2906675.435 | AF240: 2906675.435 | AG240: 2906675.435 | AH240: 2906675.435 | AI240: 2906675.435 | AJ240: 2906675.435 | AK240: 2906675.435 | AL240: 2906675.435 | AM240: 2906675.435 | AN240: 2906675.435 | AO240: 2906675.435 | AP240: =SUM(AP238:AP239) -> 2906675.435 | AQ240: 2906675.435 | AR240: 2906675.435 | AS240: 2906675.435 | AT240: 2906675.435 | AU240: 2906675.435 | AV240: 2906675.435 | AW240: 2906675.435 | AX240: 2906675.435 | AY240: 2906675.435 | AZ240: 2906675.435 | BA240: 2906675.435 | BB240: 2906675.435 | BC240: 2906675.435 | BD240: 2906675.435 | BE240: 2906675.435 | BF240: 2906675.435 | BG240: 2906675.435 | BH240: 2906675.435 | BI240: 2906675.435 | BJ240: 2906675.435 | BK240: 2906675.435 | BL240: 2906675.435 | BM240: 2906675.435 | BN240: 2906675.435 | BO240: 2906675.435 | BP240: 2906675.435 | BQ240: 2906675.435 | BR240: 2906675.435 | BS240: 2906675.435 | BT240: 2906675.435 | BU240: 2906675.435 | BV240: =SUM(BV238:BV239) -> 2906675.435 | BW240: 2906675.435 | BX240: 2906675.435 | BY240: 2906675.435 | BZ240: 2906675.435
C242: Undrawn amount @ start of period | D242: $ | E242: =Inputs!$E$279 -> 2906675.435 | J242: =($E242-J238)*J$196 -> 0 | K242: 2906675.435 | L242: 0 | M242: 0 | N242: 0 | O242: 0 | P242: 0 | Q242: 0 | R242: 0 | S242: 0 | T242: 0 | U242: 0 | V242: 0 | W242: 0 | X242: 0 | Y242: 0 | Z242: 0 | AA242: 0 | AB242: 0 | AC242: 0 | AD242: 0 | AE242: 0 | AF242: 0 | AG242: 0 | AH242: 0 | AI242: 0 | AJ242: 0 | AK242: 0 | AL242: 0 | AM242: 0 | AN242: 0 | AO242: 0 | AP242: =($E242-AP238)*AP$196 -> 0 | AQ242: 0 | AR242: 0 | AS242: 0 | AT242: 0 | AU242: 0 | AV242: 0 | AW242: 0 | AX242: 0 | AY242: 0 | AZ242: 0 | BA242: 0 | BB242: 0 | BC242: 0 | BD242: 0 | BE242: 0 | BF242: 0 | BG242: 0 | BH242: 0 | BI242: 0 | BJ242: 0 | BK242: 0 | BL242: 0 | BM242: 0 | BN242: 0 | BO242: 0 | BP242: 0 | BQ242: 0 | BR242: 0 | BS242: 0 | BT242: 0 | BU242: 0 | BV242: 0 | BW242: 0 | BX242: 0 | BY242: 0 | BZ242: 0
C244: Senior debt drawn
C245: Balance b/f | D245: $ | J245: =I249 -> 0 | K245: 0 | L245: 5838731.557 | M245: 5675546.326 | N245: 5430698.265 | O245: 5169605.46 | P245: 4757824.778 | Q245: 4208399.246 | R245: 3672739.725 | S245: 3051701.89 | T245: 2360158.599 | U245: 2181795.594 | V245: 1287192.936 | W245: 0 | X245: 0 | Y245: 0 | Z245: 0 | AA245: 0 | AB245: 0 | AC245: 0 | AD245: 0 | AE245: 0 | AF245: 0 | AG245: 0 | AH245: 0 | AI245: 0 | AJ245: 0 | AK245: 0 | AL245: 0 | AM245: 0 | AN245: 0 | AO245: 0 | AP245: =AO249 -> 0 | AQ245: 0 | AR245: 0 | AS245: 0 | AT245: 0 | AU245: 0 | AV245: 0 | AW245: 0 | AX245: 0 | AY245: 0 | AZ245: 0 | BA245: 0 | BB245: 0 | BC245: 0 | BD245: 0 | BE245: 0 | BF245: 0 | BG245: 0 | BH245: 0 | BI245: 0 | BJ245: 0 | BK245: 0 | BL245: 0 | BM245: 0 | BN245: 0 | BO245: 0 | BP245: 0 | BQ245: 0 | BR245: 0 | BS245: 0 | BT245: 0 | BU245: 0 | BV245: 0 | BW245: 0 | BX245: 0 | BY245: 0 | BZ245: 0
C246: Drawdown | D246: $ | I246: =SUM(J246:BZ246) -> 5838731.557 | J246: =J223 -> 0 | K246: 5838731.557 | L246: 0 | M246: 0 | N246: 0 | O246: 0 | P246: 0 | Q246: 0 | R246: 0 | S246: 0 | T246: 0 | U246: 0 | V246: 0 | W246: 0 | X246: 0 | Y246: 0 | Z246: 0 | AA246: 0 | AB246: 0 | AC246: 0 | AD246: 0 | AE246: 0 | AF246: 0 | AG246: 0 | AH246: 0 | AI246: 0 | AJ246: 0 | AK246: 0 | AL246: 0 | AM246: 0 | AN246: 0 | AO246: 0 | AP246: =AP223 -> 0 | AQ246: 0 | AR246: 0 | AS246: 0 | AT246: 0 | AU246: 0 | AV246: 0 | AW246: 0 | AX246: 0 | AY246: 0 | AZ246: 0 | BA246: 0 | BB246: 0 | BC246: 0 | BD246: 0 | BE246: 0 | BF246: 0 | BG246: 0 | BH246: 0 | BI246: 0 | BJ246: 0 | BK246: 0 | BL246: 0 | BM246: 0 | BN246: 0 | BO246: 0 | BP246: 0 | BQ246: 0 | BR246: 0 | BS246: 0 | BT246: 0 | BU246: 0 | BV246: 0 | BW246: 0 | BX246: 0 | BY246: 0 | BZ246: 0
C247: Principal repayment | D247: $ | E247: =Cons_End -> 2023-12-31 | I247: =SUM(J247:BZ247) -> -5838731.557 | J247: =Debt!J32 -> 0 | K247: =Debt!K32 -> 0 | L247: =Debt!L32 -> -163185.2315 | M247: =Debt!M32 -> -244848.0606 | N247: =Debt!N32 -> -261092.805 | O247: =Debt!O32 -> -411780.6821 | P247: =Debt!P32 -> -549425.5319 | Q247: =Debt!Q32 -> -535659.5213 | R247: =Debt!R32 -> -621037.8353 | S247: =Debt!S32 -> -691543.291 | T247: =Debt!T32 -> -178363.0046 | U247: =Debt!U32 -> -894602.6582 | V247: =Debt!V32 -> -1287192.936 | W247: =Debt!W32 -> 0 | X247: =Debt!X32 -> 0 | Y247: =Debt!Y32 -> 0 | Z247: =Debt!Z32 -> 0 | AA247: =Debt!AA32 -> 0 | AB247: =Debt!AB32 -> 0 | AC247: =Debt!AC32 -> 0 | AD247: =Debt!AD32 -> 0 | AE247: =Debt!AE32 -> 0 | AF247: =Debt!AF32 -> 0 | AG247: =Debt!AG32 -> 0 | AH247: =Debt!AH32 -> 0 | AI247: =Debt!AI32 -> 0 | AJ247: =Debt!AJ32 -> 0 | AK247: =Debt!AK32 -> 0 | AL247: =Debt!AL32 -> 0 | AM247: =Debt!AM32 -> 0 | AN247: =Debt!AN32 -> 0 | AO247: =Debt!AO32 -> 0 | AP247: =Debt!AP32 -> 0 | AQ247: =Debt!AQ32 -> 0 | AR247: =Debt!AR32 -> 0 | AS247: =Debt!AS32 -> 0 | AT247: =Debt!AT32 -> 0 | AU247: =Debt!AU32 -> 0 | AV247: =Debt!AV32 -> 0 | AW247: =Debt!AW32 -> 0 | AX247: =Debt!AX32 -> 0 | AY247: =Debt!AY32 -> 0 | AZ247: =Debt!AZ32 -> 0 | BA247: =Debt!BA32 -> 0 | BB247: =Debt!BB32 -> 0 | BC247: =Debt!BC32 -> 0 | BD247: =Debt!BD32 -> 0 | BE247: =Debt!BE32 -> 0 | BF247: =Debt!BF32 -> 0 | BG247: =Debt!BG32 -> 0 | BH247: =Debt!BH32 -> 0 | BI247: =Debt!BI32 -> 0 | BJ247: =Debt!BJ32 -> 0 | BK247: =Debt!BK32 -> 0 | BL247: =Debt!BL32 -> 0 | BM247: =Debt!BM32 -> 0 | BN247: =Debt!BN32 -> 0 | BO247: =Debt!BO32 -> 0 | BP247: =Debt!BP32 -> 0 | BQ247: =Debt!BQ32 -> 0 | BR247: =Debt!BR32 -> 0 | BS247: =Debt!BS32 -> 0 | BT247: =Debt!BT32 -> 0 | BU247: =Debt!BU32 -> 0 | BV247: =Debt!BV32 -> 0 | BW247: =Debt!BW32 -> 0 | BX247: =Debt!BX32 -> 0 | BY247: =Debt!BY32 -> 0 | BZ247: =Debt!BZ32 -> 0
C248: Refi take out | D248: $ | I248: =SUM(J248:BZ248) -> 0 | J248: =Debt!J33 -> 0 | K248: =Debt!K33 -> 0 | L248: =Debt!L33 -> 0 | M248: =Debt!M33 -> 0 | N248: =Debt!N33 -> 0 | O248: =Debt!O33 -> 0 | P248: =Debt!P33 -> 0 | Q248: =Debt!Q33 -> 0 | R248: =Debt!R33 -> 0 | S248: =Debt!S33 -> 0 | T248: =Debt!T33 -> 0 | U248: =Debt!U33 -> 0 | V248: =Debt!V33 -> 0 | W248: =Debt!W33 -> 0 | X248: =Debt!X33 -> 0 | Y248: =Debt!Y33 -> 0 | Z248: =Debt!Z33 -> 0 | AA248: =Debt!AA33 -> 0 | AB248: =Debt!AB33 -> 0 | AC248: =Debt!AC33 -> 0 | AD248: =Debt!AD33 -> 0 | AE248: =Debt!AE33 -> 0 | AF248: =Debt!AF33 -> 0 | AG248: =Debt!AG33 -> 0 | AH248: =Debt!AH33 -> 0 | AI248: =Debt!AI33 -> 0 | AJ248: =Debt!AJ33 -> 0 | AK248: =Debt!AK33 -> 0 | AL248: =Debt!AL33 -> 0 | AM248: =Debt!AM33 -> 0 | AN248: =Debt!AN33 -> 0 | AO248: =Debt!AO33 -> 0 | AP248: =Debt!AP33 -> 0 | AQ248: =Debt!AQ33 -> 0 | AR248: =Debt!AR33 -> 0 | AS248: =Debt!AS33 -> 0 | AT248: =Debt!AT33 -> 0 | AU248: =Debt!AU33 -> 0 | AV248: =Debt!AV33 -> 0 | AW248: =Debt!AW33 -> 0 | AX248: =Debt!AX33 -> 0 | AY248: =Debt!AY33 -> 0 | AZ248: =Debt!AZ33 -> 0 | BA248: =Debt!BA33 -> 0 | BB248: =Debt!BB33 -> 0 | BC248: =Debt!BC33 -> 0 | BD248: =Debt!BD33 -> 0 | BE248: =Debt!BE33 -> 0 | BF248: =Debt!BF33 -> 0 | BG248: =Debt!BG33 -> 0 | BH248: =Debt!BH33 -> 0 | BI248: =Debt!BI33 -> 0 | BJ248: =Debt!BJ33 -> 0 | BK248: =Debt!BK33 -> 0 | BL248: =Debt!BL33 -> 0 | BM248: =Debt!BM33 -> 0 | BN248: =Debt!BN33 -> 0 | BO248: =Debt!BO33 -> 0 | BP248: =Debt!BP33 -> 0 | BQ248: =Debt!BQ33 -> 0 | BR248: =Debt!BR33 -> 0 | BS248: =Debt!BS33 -> 0 | BT248: =Debt!BT33 -> 0 | BU248: =Debt!BU33 -> 0 | BV248: =Debt!BV33 -> 0 | BW248: =Debt!BW33 -> 0 | BX248: =Debt!BX33 -> 0 | BY248: =Debt!BY33 -> 0 | BZ248: =Debt!BZ33 -> 0
C249: Balance c/f | D249: $ | J249: =SUM(J245:J248) -> 0 | K249: 5838731.557 | L249: 5675546.326 | M249: 5430698.265 | N249: 5169605.46 | O249: 4757824.778 | P249: 4208399.246 | Q249: 3672739.725 | R249: 3051701.89 | S249: 2360158.599 | T249: 2181795.594 | U249: 1287192.936 | V249: 0 | W249: 0 | X249: 0 | Y249: 0 | Z249: 0 | AA249: 0 | AB249: 0 | AC249: 0 | AD249: 0 | AE249: 0 | AF249: 0 | AG249: 0 | AH249: 0 | AI249: 0 | AJ249: 0 | AK249: 0 | AL249: 0 | AM249: 0 | AN249: 0 | AO249: 0 | AP249: =SUM(AP245:AP248) -> 0 | AQ249: 0 | AR249: 0 | AS249: 0 | AT249: 0 | AU249: 0 | AV249: 0 | AW249: 0 | AX249: 0 | AY249: 0 | AZ249: 0 | BA249: 0 | BB249: 0 | BC249: 0 | BD249: 0 | BE249: 0 | BF249: 0 | BG249: 0 | BH249: 0 | BI249: 0 | BJ249: 0 | BK249: 0 | BL249: 0 | BM249: 0 | BN249: 0 | BO249: 0 | BP249: 0 | BQ249: 0 | BR249: 0 | BS249: 0 | BT249: 0 | BU249: 0 | BV249: =SUM(BV245:BV248) -> 0 | BW249: 0 | BX249: 0 | BY249: 0 | BZ249: 0
C251: Undrawn amount @ start of period | D251: $ | E251: =Inputs!E304 -> 5839175.435 | J251: =($E251-J245)*J$196 -> 0 | K251: 5839175.435 | L251: 0 | M251: 0 | N251: 0 | O251: 0 | P251: 0 | Q251: 0 | R251: 0 | S251: 0 | T251: 0 | U251: 0 | V251: 0 | W251: 0 | X251: 0 | Y251: 0 | Z251: 0 | AA251: 0 | AB251: 0 | AC251: 0 | AD251: 0 | AE251: 0 | AF251: 0 | AG251: 0 | AH251: 0 | AI251: 0 | AJ251: 0 | AK251: 0 | AL251: 0 | AM251: 0 | AN251: 0 | AO251: 0 | AP251: =($E251-AP245)*AP$196 -> 0 | AQ251: 0 | AR251: 0 | AS251: 0 | AT251: 0 | AU251: 0 | AV251: 0 | AW251: 0 | AX251: 0 | AY251: 0 | AZ251: 0 | BA251: 0 | BB251: 0 | BC251: 0 | BD251: 0 | BE251: 0 | BF251: 0 | BG251: 0 | BH251: 0 | BI251: 0 | BJ251: 0 | BK251: 0 | BL251: 0 | BM251: 0 | BN251: 0 | BO251: 0 | BP251: 0 | BQ251: 0 | BR251: 0 | BS251: 0 | BT251: 0 | BU251: 0 | BV251: 0 | BW251: 0 | BX251: 0 | BY251: 0 | BZ251: 0
C253: Interest during construction
C254: Interest rate | D254: % | E254: =Inputs!$I$310 -> 0.07 | J254: =$E$254*J$6 -> 0.07 | K254: 0 | L254: 0 | M254: 0 | N254: 0 | O254: 0 | P254: 0 | Q254: 0 | R254: 0 | S254: 0 | T254: 0 | U254: 0 | V254: 0 | W254: 0 | X254: 0 | Y254: 0 | Z254: 0 | AA254: 0 | AB254: 0 | AC254: 0 | AD254: 0 | AE254: 0 | AF254: 0 | AG254: 0 | AH254: 0 | AI254: 0 | AJ254: 0 | AK254: 0 | AL254: 0 | AM254: 0 | AN254: 0 | AO254: 0 | AP254: =$E$254*AP$6 -> 0 | AQ254: 0 | AR254: 0 | AS254: 0 | AT254: 0 | AU254: 0 | AV254: 0 | AW254: 0 | AX254: 0 | AY254: 0 | AZ254: 0 | BA254: 0 | BB254: 0 | BC254: 0 | BD254: 0 | BE254: 0 | BF254: 0 | BG254: 0 | BH254: 0 | BI254: 0 | BJ254: 0 | BK254: 0 | BL254: 0 | BM254: 0 | BN254: 0 | BO254: 0 | BP254: 0 | BQ254: 0 | BR254: 0 | BS254: 0 | BT254: 0 | BU254: 0 | BV254: 0 | BW254: 0 | BX254: 0 | BY254: 0 | BZ254: 0
C255: Interest | D255: $ | E255: Amount | I255: =SUM(J255:BZ255) -> 0 | J255: =J245*J254 -> 0 | K255: 0 | L255: 0 | M255: 0 | N255: 0 | O255: 0 | P255: 0 | Q255: 0 | R255: 0 | S255: 0 | T255: 0 | U255: 0 | V255: 0 | W255: 0 | X255: 0 | Y255: 0 | Z255: 0 | AA255: 0 | AB255: 0 | AC255: 0 | AD255: 0 | AE255: 0 | AF255: 0 | AG255: 0 | AH255: 0 | AI255: 0 | AJ255: 0 | AK255: 0 | AL255: 0 | AM255: 0 | AN255: 0 | AO255: 0 | AP255: =AP245*AP254 -> 0 | AQ255: 0 | AR255: 0 | AS255: 0 | AT255: 0 | AU255: 0 | AV255: 0 | AW255: 0 | AX255: 0 | AY255: 0 | AZ255: 0 | BA255: 0 | BB255: 0 | BC255: 0 | BD255: 0 | BE255: 0 | BF255: 0 | BG255: 0 | BH255: 0 | BI255: 0 | BJ255: 0 | BK255: 0 | BL255: 0 | BM255: 0 | BN255: 0 | BO255: 0 | BP255: 0 | BQ255: 0 | BR255: 0 | BS255: 0 | BT255: 0 | BU255: 0 | BV255: =BV245*BV254 -> 0 | BW255: 0 | BX255: 0 | BY255: 0 | BZ255: 0
C256: Start of Debt Flag | E256: =Inputs!I325 -> 2024-01-01 | J256: =(J$4=$E256)*1 -> 0 | K256: 1 | L256: 0 | M256: 0 | N256: 0 | O256: 0 | P256: 0 | Q256: 0 | R256: 0 | S256: 0 | T256: 0 | U256: 0 | V256: 0 | W256: 0 | X256: 0 | Y256: 0 | Z256: 0 | AA256: 0 | AB256: 0 | AC256: 0 | AD256: 0 | AE256: 0 | AF256: 0 | AG256: 0 | AH256: 0 | AI256: 0 | AJ256: 0 | AK256: 0 | AL256: 0 | AM256: 0 | AN256: 0 | AO256: 0 | AP256: =(AP$4=$E256)*1 -> 0 | AQ256: 0 | AR256: 0 | AS256: 0 | AT256: 0 | AU256: 0 | AV256: 0 | AW256: 0 | AX256: 0 | AY256: 0 | AZ256: 0 | BA256: 0 | BB256: 0 | BC256: 0 | BD256: 0 | BE256: 0 | BF256: 0 | BG256: 0 | BH256: 0 | BI256: 0 | BJ256: 0 | BK256: 0 | BL256: 0 | BM256: 0 | BN256: 0 | BO256: 0 | BP256: 0 | BQ256: 0 | BR256: 0 | BS256: 0 | BT256: 0 | BU256: 0 | BV256: 0 | BW256: 0 | BX256: 0 | BY256: 0 | BZ256: 0
F257: Amount
C258: Financing fees | D258: $ | E258: =Inputs!$E$319 -> 0.05 | F258: =Inputs!E304 -> 5839175.435 | I258: =SUM(J258:BZ258) -> 291958.7717 | J258: =$E258*J256*$F258 -> 0 | K258: 291958.7717 | L258: 0 | M258: 0 | N258: 0 | O258: 0 | P258: 0 | Q258: 0 | R258: 0 | S258: 0 | T258: 0 | U258: 0 | V258: 0 | W258: 0 | X258: 0 | Y258: 0 | Z258: 0 | AA258: 0 | AB258: 0 | AC258: 0 | AD258: 0 | AE258: 0 | AF258: 0 | AG258: 0 | AH258: 0 | AI258: 0 | AJ258: 0 | AK258: 0 | AL258: 0 | AM258: 0 | AN258: 0 | AO258: 0 | AP258: =$E258*AP256*$F258 -> 0 | AQ258: 0 | AR258: 0 | AS258: 0 | AT258: 0 | AU258: 0 | AV258: 0 | AW258: 0 | AX258: 0 | AY258: 0 | AZ258: 0 | BA258: 0 | BB258: 0 | BC258: 0 | BD258: 0 | BE258: 0 | BF258: 0 | BG258: 0 | BH258: 0 | BI258: 0 | BJ258: 0 | BK258: 0 | BL258: 0 | BM258: 0 | BN258: 0 | BO258: 0 | BP258: 0 | BQ258: 0 | BR258: 0 | BS258: 0 | BT258: 0 | BU258: 0 | BV258: 0 | BW258: 0 | BX258: 0 | BY258: 0 | BZ258: 0
... 401 more rows

Sheet Debt
A1: Debt
A2: =Name_Model -> AssetCo Model
J3: =J17 -> 1 | K3: =K17 -> 2 | L3: 3 | M3: 4 | N3: 5 | O3: 6 | P3: 7 | Q3: 8 | R3: 9 | S3: 10 | T3: 11 | U3: 12 | V3: 13 | W3: 14 | X3: 15 | Y3: 16 | Z3: 17 | AA3: 18 | AB3: 19 | AC3: 20 | AD3: 21 | AE3: 0 | AF3: 0 | AG3: 0 | AH3: 0 | AI3: 0 | AJ3: 0 | AK3: 0 | AL3: 0 | AM3: 0 | AN3: 0 | AO3: 0 | AP3: 0 | AQ3: 0 | AR3: 0 | AS3: 0 | AT3: 0 | AU3: 0 | AV3: 0 | AW3: 0 | AX3: 0 | AY3: 0 | AZ3: 0 | BA3: 0 | BB3: 0 | BC3: 0 | BD3: 0 | BE3: 0 | BF3: 0 | BG3: 0 | BH3: 0 | BI3: 0 | BJ3: 0 | BK3: 0 | BL3: 0 | BM3: 0 | BN3: 0 | BO3: 0 | BP3: 0 | BQ3: 0 | BR3: 0 | BS3: 0 | BT3: 0 | BU3: 0 | BV3: 0 | BW3: =BW17 -> 0 | BX3: =BX17 -> 0 | BY3: =BY17 -> 0 | BZ3: =BZ17 -> 0
C4: Period Start | D4: Date | J4: =I5+1 -> 2023-01-01 | K4: =J5+1 -> 2024-01-01 | L4: 2025-01-01 | M4: 2026-01-01 | N4: 2027-01-01 | O4: 2028-01-01 | P4: 2029-01-01 | Q4: 2030-01-01 | R4: 2031-01-01 | S4: 2032-01-01 | T4: 2033-01-01 | U4: 2034-01-01 | V4: 2035-01-01 | W4: 2036-01-01 | X4: 2037-01-01 | Y4: 2038-01-01 | Z4: 2039-01-01 | AA4: 2040-01-01 | AB4: 2041-01-01 | AC4: 2042-01-01 | AD4: 2043-01-01 | AE4: 2044-01-01 | AF4: 2045-01-01 | AG4: 2046-01-01 | AH4: 2047-01-01 | AI4: 2048-01-01 | AJ4: 2049-01-01 | AK4: 2050-01-01 | AL4: 2051-01-01 | AM4: 2052-01-01 | AN4: 2053-01-01 | AO4: 2054-01-01 | AP4: 2055-01-01 | AQ4: 2056-01-01 | AR4: 2057-01-01 | AS4: 2058-01-01 | AT4: 2059-01-01 | AU4: 2060-01-01 | AV4: 2061-01-01 | AW4: 2062-01-01 | AX4: 2063-01-01 | AY4: 2064-01-01 | AZ4: 2065-01-01 | BA4: 2066-01-01 | BB4: 2067-01-01 | BC4: 2068-01-01 | BD4: 2069-01-01 | BE4: 2070-01-01 | BF4: 2071-01-01 | BG4: 2072-01-01 | BH4: 2073-01-01 | BI4: 2074-01-01 | BJ4: 2075-01-01 | BK4: 2076-01-01 | BL4: 2077-01-01 | BM4: 2078-01-01 | BN4: 2079-01-01 | BO4: 2080-01-01 | BP4: 2081-01-01 | BQ4: 2082-01-01 | BR4: 2083-01-01 | BS4: 2084-01-01 | BT4: 2085-01-01 | BU4: 2086-01-01 | BV4: 2087-01-01 | BW4: =BV5+1 -> 2088-01-01 | BX4: =BW5+1 -> 2089-01-01 | BY4: =BX5+1 -> 2090-01-01 | BZ4: =BY5+1 -> 2091-01-01
C5: Period End | D5: Date | E5: Start | F5: End | I5: =Inputs!E6 -> 2022-12-31 | J5: =EOMONTH(J4,Months_Yr-1) -> 2023-12-31 | K5: 2024-12-31 | L5: 2025-12-31 | M5: 2026-12-31 | N5: 2027-12-31 | O5: 2028-12-31 | P5: 2029-12-31 | Q5: 2030-12-31 | R5: 2031-12-31 | S5: 2032-12-31 | T5: 2033-12-31 | U5: 2034-12-31 | V5: 2035-12-31 | W5: 2036-12-31 | X5: 2037-12-31 | Y5: 2038-12-31 | Z5: 2039-12-31 | AA5: 2040-12-31 | AB5: 2041-12-31 | AC5: 2042-12-31 | AD5: 2043-12-31 | AE5: 2044-12-31 | AF5: 2045-12-31 | AG5: 2046-12-31 | AH5: 2047-12-31 | AI5: 2048-12-31 | AJ5: 2049-12-31 | AK5: 2050-12-31 | AL5: 2051-12-31 | AM5: 2052-12-31 | AN5: 2053-12-31 | AO5: 2054-12-31 | AP5: 2055-12-31 | AQ5: 2056-12-31 | AR5: 2057-12-31 | AS5: 2058-12-31 | AT5: 2059-12-31 | AU5: 2060-12-31 | AV5: 2061-12-31 | AW5: 2062-12-31 | AX5: 2063-12-31 | AY5: 2064-12-31 | AZ5: 2065-12-31 | BA5: 2066-12-31 | BB5: 2067-12-31 | BC5: 2068-12-31 | BD5: 2069-12-31 | BE5: 2070-12-31 | BF5: 2071-12-31 | BG5: 2072-12-31 | BH5: 2073-12-31 | BI5: 2074-12-31 | BJ5: 2075-12-31 | BK5: 2076-12-31 | BL5: 2077-12-31 | BM5: 2078-12-31 | BN5: 2079-12-31 | BO5: 2080-12-31 | BP5: 2081-12-31 | BQ5: 2082-12-31 | BR5: 2083-12-31 | BS5: 2084-12-31 | BT5: 2085-12-31 | BU5: 2086-12-31 | BV5: =EOMONTH(BV4,Months_Yr-1) -> 2087-12-31 | BW5: =EOMONTH(BW4,Months_Yr-1) -> 2088-12-31 | BX5: =EOMONTH(BX4,Months_Yr-1) -> 2089-12-31 | BY5: =EOMONTH(BY4,Months_Yr-1) -> 2090-12-31 | BZ5: =EOMONTH(BZ4,Months_Yr-1) -> 2091-12-31
C6: Construction | D6: [1,0] | E6: =Con_Start -> 2023-01-01 | F6: =Cons_End -> 2023-12-31 | J6: =(J$4>=$E6)*(J$5<=$F6) -> 1 | K6: =(K$4>=$E6)*(K$5<=$F6) -> 0 | L6: 0 | M6: 0 | N6: 0 | O6: 0 | P6: 0 | Q6: 0 | R6: 0 | S6: 0 | T6: 0 | U6: 0 | V6: 0 | W6: 0 | X6: 0 | Y6: 0 | Z6: 0 | AA6: =(AA$4>=$E6)*(AA$5<=$F6) -> 0 | AB6: 0 | AC6: 0 | AD6: 0 | AE6: 0 | AF6: 0 | AG6: 0 | AH6: 0 | AI6: 0 | AJ6: 0 | AK6: 0 | AL6: 0 | AM6: 0 | AN6: 0 | AO6: 0 | AP6: 0 | AQ6: 0 | AR6: 0 | AS6: 0 | AT6: 0 | AU6: 0 | AV6: 0 | AW6: 0 | AX6: 0 | AY6: 0 | AZ6: 0 | BA6: 0 | BB6: 0 | BC6: =(BC$4>=$E6)*(BC$5<=$F6) -> 0 | BD6: 0 | BE6: 0 | BF6: 0 | BG6: 0 | BH6: 0 | BI6: 0 | BJ6: 0 | BK6: 0 | BL6: 0 | BM6: 0 | BN6: 0 | BO6: 0 | BP6: 0 | BQ6: 0 | BR6: 0 | BS6: 0 | BT6: 0 | BU6: 0 | BV6: 0 | BW6: 0 | BX6: 0 | BY6: 0 | BZ6: 0
C7: Operations | D7: [1,0] | E7: =Ops_Start -> 2024-01-01 | F7: =Ops_End -> 2043-12-31 | J7: =(J$4>=$E7)*(J$5<=$F7) -> 0 | K7: 1 | L7: 1 | M7: 1 | N7: 1 | O7: 1 | P7: 1 | Q7: 1 | R7: 1 | S7: 1 | T7: 1 | U7: 1 | V7: 1 | W7: 1 | X7: 1 | Y7: 1 | Z7: 1 | AA7: 1 | AB7: 1 | AC7: 1 | AD7: 1 | AE7: 0 | AF7: 0 | AG7: 0 | AH7: 0 | AI7: 0 | AJ7: 0 | AK7: 0 | AL7: 0 | AM7: 0 | AN7: 0 | AO7: 0 | AP7: 0 | AQ7: 0 | AR7: 0 | AS7: 0 | AT7: 0 | AU7: 0 | AV7: 0 | AW7: 0 | AX7: 0 | AY7: 0 | AZ7: 0 | BA7: 0 | BB7: 0 | BC7: 0 | BD7: 0 | BE7: 0 | BF7: 0 | BG7: 0 | BH7: 0 | BI7: 0 | BJ7: 0 | BK7: 0 | BL7: 0 | BM7: 0 | BN7: 0 | BO7: 0 | BP7: 0 | BQ7: 0 | BR7: 0 | BS7: 0 | BT7: 0 | BU7: 0 | BV7: 0 | BW7: 0 | BX7: 0 | BY7: 0 | BZ7: 0
C9: Counters
C10: Days in a period | D10: Num# | J10: =J5-J4+1 -> 365 | K10: =K5-K4+1 -> 366 | L10: 365 | M10: 365 | N10: 365 | O10: 366 | P10: 365 | Q10: 365 | R10: 365 | S10: 366 | T10: 365 | U10: 365 | V10: 365 | W10: 366 | X10: 365 | Y10: 365 | Z10: 365 | AA10: 366 | AB10: 365 | AC10: 365 | AD10: 365 | AE10: 366 | AF10: 365 | AG10: 365 | AH10: 365 | AI10: 366 | AJ10: 365 | AK10: 365 | AL10: 365 | AM10: 366 | AN10: 365 | AO10: 365 | AP10: 365 | AQ10: 366 | AR10: 365 | AS10: 365 | AT10: 365 | AU10: 366 | AV10: 365 | AW10: 365 | AX10: 365 | AY10: 366 | AZ10: 365 | BA10: 365 | BB10: 365 | BC10: 366 | BD10: 365 | BE10: 365 | BF10: 365 | BG10: 366 | BH10: 365 | BI10: 365 | BJ10: 365 | BK10: 366 | BL10: 365 | BM10: 365 | BN10: 365 | BO10: 366 | BP10: 365 | BQ10: 365 | BR10: 365 | BS10: 366 | BT10: 365 | BU10: 365 | BV10: 365 | BW10: =BW5-BW4+1 -> 366 | BX10: =BX5-BX4+1 -> 365 | BY10: =BY5-BY4+1 -> 365 | BZ10: =BZ5-BZ4+1 -> 365
C11: Calendar year | D11: Num# | J11: =YEAR(J4) -> 2023 | K11: =YEAR(K4) -> 2024 | L11: 2025 | M11: 2026 | N11: 2027 | O11: 2028 | P11: 2029 | Q11: 2030 | R11: 2031 | S11: 2032 | T11: 2033 | U11: 2034 | V11: 2035 | W11: 2036 | X11: 2037 | Y11: 2038 | Z11: 2039 | AA11: 2040 | AB11: 2041 | AC11: 2042 | AD11: 2043 | AE11: 2044 | AF11: 2045 | AG11: 2046 | AH11: 2047 | AI11: 2048 | AJ11: 2049 | AK11: 2050 | AL11: 2051 | AM11: 2052 | AN11: 2053 | AO11: 2054 | AP11: 2055 | AQ11: 2056 | AR11: 2057 | AS11: 2058 | AT11: 2059 | AU11: 2060 | AV11: 2061 | AW11: 2062 | AX11: 2063 | AY11: 2064 | AZ11: 2065 | BA11: 2066 | BB11: 2067 | BC11: 2068 | BD11: 2069 | BE11: 2070 | BF11: 2071 | BG11: 2072 | BH11: 2073 | BI11: 2074 | BJ11: 2075 | BK11: 2076 | BL11: 2077 | BM11: 2078 | BN11: 2079 | BO11: 2080 | BP11: 2081 | BQ11: 2082 | BR11: 2083 | BS11: 2084 | BT11: 2085 | BU11: 2086 | BV11: 2087 | BW11: =YEAR(BW4) -> 2088 | BX11: =YEAR(BX4) -> 2089 | BY11: =YEAR(BY4) -> 2090 | BZ11: =YEAR(BZ4) -> 2091
C13: Construction year | D13: Num# | J13: =SUM($J6:J6)*J6 -> 1 | K13: =SUM($J6:K6)*K6 -> 0 | L13: =SUM($J6:L6)*L6 -> 0 | M13: =SUM($J6:M6)*M6 -> 0 | N13: =SUM($J6:N6)*N6 -> 0 | O13: =SUM($J6:O6)*O6 -> 0 | P13: =SUM($J6:P6)*P6 -> 0 | Q13: =SUM($J6:Q6)*Q6 -> 0 | R13: =SUM($J6:R6)*R6 -> 0 | S13: =SUM($J6:S6)*S6 -> 0 | T13: =SUM($J6:T6)*T6 -> 0 | U13: =SUM($J6:U6)*U6 -> 0 | V13: =SUM($J6:V6)*V6 -> 0 | W13: =SUM($J6:W6)*W6 -> 0 | X13: =SUM($J6:X6)*X6 -> 0 | Y13: =SUM($J6:Y6)*Y6 -> 0 | Z13: =SUM($J6:Z6)*Z6 -> 0 | AA13: =SUM($J6:AA6)*AA6 -> 0 | AB13: =SUM($J6:AB6)*AB6 -> 0 | AC13: =SUM($J6:AC6)*AC6 -> 0 | AD13: =SUM($J6:AD6)*AD6 -> 0 | AE13: =SUM($J6:AE6)*AE6 -> 0 | AF13: =SUM($J6:AF6)*AF6 -> 0 | AG13: =SUM($J6:AG6)*AG6 -> 0 | AH13: =SUM($J6:AH6)*AH6 -> 0 | AI13: =SUM($J6:AI6)*AI6 -> 0 | AJ13: =SUM($J6:AJ6)*AJ6 -> 0 | AK13: =SUM($J6:AK6)*AK6 -> 0 | AL13: =SUM($J6:AL6)*AL6 -> 0 | AM13: =SUM($J6:AM6)*AM6 -> 0 | AN13: =SUM($J6:AN6)*AN6 -> 0 | AO13: =SUM($J6:AO6)*AO6 -> 0 | AP13: =SUM($J6:AP6)*AP6 -> 0 | AQ13: =SUM($J6:AQ6)*AQ6 -> 0 | AR13: =SUM($J6:AR6)*AR6 -> 0 | AS13: =SUM($J6:AS6)*AS6 -> 0 | AT13: =SUM($J6:AT6)*AT6 -> 0 | AU13: =SUM($J6:AU6)*AU6 -> 0 | AV13: =SUM($J6:AV6)*AV6 -> 0 | AW13: =SUM($J6:AW6)*AW6 -> 0 | AX13: =SUM($J6:AX6)*AX6 -> 0 | AY13: =SUM($J6:AY6)*AY6 -> 0 | AZ13: =SUM($J6:AZ6)*AZ6 -> 0 | BA13: =SUM($J6:BA6)*BA6 -> 0 | BB13: =SUM($J6:BB6)*BB6 -> 0 | BC13: =SUM($J6:BC6)*BC6 -> 0 | BD13: =SUM($J6:BD6)*BD6 -> 0 | BE13: =SUM($J6:BE6)*BE6 -> 0 | BF13: =SUM($J6:BF6)*BF6 -> 0 | BG13: =SUM($J6:BG6)*BG6 -> 0 | BH13: =SUM($J6:BH6)*BH6 -> 0 | BI13: =SUM($J6:BI6)*BI6 -> 0 | BJ13: =SUM($J6:BJ6)*BJ6 -> 0 | BK13: =SUM($J6:BK6)*BK6 -> 0 | BL13: =SUM($J6:BL6)*BL6 -> 0 | BM13: =SUM($J6:BM6)*BM6 -> 0 | BN13: =SUM($J6:BN6)*BN6 -> 0 | BO13: =SUM($J6:BO6)*BO6 -> 0 | BP13: =SUM($J6:BP6)*BP6 -> 0 | BQ13: =SUM($J6:BQ6)*BQ6 -> 0 | BR13: =SUM($J6:BR6)*BR6 -> 0 | BS13: =SUM($J6:BS6)*BS6 -> 0 | BT13: =SUM($J6:BT6)*BT6 -> 0 | BU13: =SUM($J6:BU6)*BU6 -> 0 | BV13: =SUM($J6:BV6)*BV6 -> 0 | BW13: =SUM($J6:BW6)*BW6 -> 0 | BX13: =SUM($J6:BX6)*BX6 -> 0 | BY13: =SUM($J6:BY6)*BY6 -> 0 | BZ13: =SUM($J6:BZ6)*BZ6 -> 0
C14: Operations year | D14: Num# | J14: =SUM($J7:J7)*J7 -> 0 | K14: =SUM($J7:K7)*K7 -> 1 | L14: =SUM($J7:L7)*L7 -> 2 | M14: =SUM($J7:M7)*M7 -> 3 | N14: =SUM($J7:N7)*N7 -> 4 | O14: =SUM($J7:O7)*O7 -> 5 | P14: =SUM($J7:P7)*P7 -> 6 | Q14: =SUM($J7:Q7)*Q7 -> 7 | R14: =SUM($J7:R7)*R7 -> 8 | S14: =SUM($J7:S7)*S7 -> 9 | T14: =SUM($J7:T7)*T7 -> 10 | U14: =SUM($J7:U7)*U7 -> 11 | V14: =SUM($J7:V7)*V7 -> 12 | W14: =SUM($J7:W7)*W7 -> 13 | X14: =SUM($J7:X7)*X7 -> 14 | Y14: =SUM($J7:Y7)*Y7 -> 15 | Z14: =SUM($J7:Z7)*Z7 -> 16 | AA14: =SUM($J7:AA7)*AA7 -> 17 | AB14: =SUM($J7:AB7)*AB7 -> 18 | AC14: =SUM($J7:AC7)*AC7 -> 19 | AD14: =SUM($J7:AD7)*AD7 -> 20 | AE14: =SUM($J7:AE7)*AE7 -> 0 | AF14: =SUM($J7:AF7)*AF7 -> 0 | AG14: =SUM($J7:AG7)*AG7 -> 0 | AH14: =SUM($J7:AH7)*AH7 -> 0 | AI14: =SUM($J7:AI7)*AI7 -> 0 | AJ14: =SUM($J7:AJ7)*AJ7 -> 0 | AK14: =SUM($J7:AK7)*AK7 -> 0 | AL14: =SUM($J7:AL7)*AL7 -> 0 | AM14: =SUM($J7:AM7)*AM7 -> 0 | AN14: =SUM($J7:AN7)*AN7 -> 0 | AO14: =SUM($J7:AO7)*AO7 -> 0 | AP14: =SUM($J7:AP7)*AP7 -> 0 | AQ14: =SUM($J7:AQ7)*AQ7 -> 0 | AR14: =SUM($J7:AR7)*AR7 -> 0 | AS14: =SUM($J7:AS7)*AS7 -> 0 | AT14: =SUM($J7:AT7)*AT7 -> 0 | AU14: =SUM($J7:AU7)*AU7 -> 0 | AV14: =SUM($J7:AV7)*AV7 -> 0 | AW14: =SUM($J7:AW7)*AW7 -> 0 | AX14: =SUM($J7:AX7)*AX7 -> 0 | AY14: =SUM($J7:AY7)*AY7 -> 0 | AZ14: =SUM($J7:AZ7)*AZ7 -> 0 | BA14: =SUM($J7:BA7)*BA7 -> 0 | BB14: =SUM($J7:BB7)*BB7 -> 0 | BC14: =SUM($J7:BC7)*BC7 -> 0 | BD14: =SUM($J7:BD7)*BD7 -> 0 | BE14: =SUM($J7:BE7)*BE7 -> 0 | BF14: =SUM($J7:BF7)*BF7 -> 0 | BG14: =SUM($J7:BG7)*BG7 -> 0 | BH14: =SUM($J7:BH7)*BH7 -> 0 | BI14: =SUM($J7:BI7)*BI7 -> 0 | BJ14: =SUM($J7:BJ7)*BJ7 -> 0 | BK14: =SUM($J7:BK7)*BK7 -> 0 | BL14: =SUM($J7:BL7)*BL7 -> 0 | BM14: =SUM($J7:BM7)*BM7 -> 0 | BN14: =SUM($J7:BN7)*BN7 -> 0 | BO14: =SUM($J7:BO7)*BO7 -> 0 | BP14: =SUM($J7:BP7)*BP7 -> 0 | BQ14: =SUM($J7:BQ7)*BQ7 -> 0 | BR14: =SUM($J7:BR7)*BR7 -> 0 | BS14: =SUM($J7:BS7)*BS7 -> 0 | BT14: =SUM($J7:BT7)*BT7 -> 0 | BU14: =SUM($J7:BU7)*BU7 -> 0 | BV14: =SUM($J7:BV7)*BV7 -> 0 | BW14: =SUM($J7:BW7)*BW7 -> 0 | BX14: =SUM($J7:BX7)*BX7 -> 0 | BY14: =SUM($J7:BY7)*BY7 -> 0 | BZ14: =SUM($J7:BZ7)*BZ7 -> 0
C16: AssetCo live flag | J16: =(J$4>=$E6)*(J$5<=$F7) -> 1 | K16: =(K$4>=$E6)*(K$5<=$F7) -> 1 | L16: 1 | M16: 1 | N16: 1 | O16: 1 | P16: 1 | Q16: 1 | R16: 1 | S16: 1 | T16: 1 | U16: 1 | V16: 1 | W16: 1 | X16: 1 | Y16: 1 | Z16: 1 | AA16: 1 | AB16: 1 | AC16: 1 | AD16: 1 | AE16: 0 | AF16: 0 | AG16: 0 | AH16: 0 | AI16: 0 | AJ16: 0 | AK16: 0 | AL16: 0 | AM16: 0 | AN16: 0 | AO16: 0 | AP16: 0 | AQ16: 0 | AR16: 0 | AS16: 0 | AT16: 0 | AU16: 0 | AV16: 0 | AW16: 0 | AX16: 0 | AY16: 0 | AZ16: 0 | BA16: 0 | BB16: 0 | BC16: 0 | BD16: 0 | BE16: 0 | BF16: 0 | BG16: 0 | BH16: 0 | BI16: 0 | BJ16: 0 | BK16: 0 | BL16: 0 | BM16: 0 | BN16: 0 | BO16: 0 | BP16: 0 | BQ16: 0 | BR16: 0 | BS16: 0 | BT16: 0 | BU16: 0 | BV16: 0 | BW16: =(BW$4>=$E6)*(BW$5<=$F7) -> 0 | BX16: =(BX$4>=$E6)*(BX$5<=$F7) -> 0 | BY16: =(BY$4>=$E6)*(BY$5<=$F7) -> 0 | BZ16: =(BZ$4>=$E6)*(BZ$5<=$F7) -> 0
C17: AssetCo lifetime | J17: =SUM($J16:J16)*J16 -> 1 | K17: =SUM($J16:K16)*K16 -> 2 | L17: =SUM($J16:L16)*L16 -> 3 | M17: =SUM($J16:M16)*M16 -> 4 | N17: =SUM($J16:N16)*N16 -> 5 | O17: =SUM($J16:O16)*O16 -> 6 | P17: =SUM($J16:P16)*P16 -> 7 | Q17: =SUM($J16:Q16)*Q16 -> 8 | R17: =SUM($J16:R16)*R16 -> 9 | S17: =SUM($J16:S16)*S16 -> 10 | T17: =SUM($J16:T16)*T16 -> 11 | U17: =SUM($J16:U16)*U16 -> 12 | V17: =SUM($J16:V16)*V16 -> 13 | W17: =SUM($J16:W16)*W16 -> 14 | X17: =SUM($J16:X16)*X16 -> 15 | Y17: =SUM($J16:Y16)*Y16 -> 16 | Z17: =SUM($J16:Z16)*Z16 -> 17 | AA17: =SUM($J16:AA16)*AA16 -> 18 | AB17: =SUM($J16:AB16)*AB16 -> 19 | AC17: =SUM($J16:AC16)*AC16 -> 20 | AD17: =SUM($J16:AD16)*AD16 -> 21 | AE17: =SUM($J16:AE16)*AE16 -> 0 | AF17: =SUM($J16:AF16)*AF16 -> 0 | AG17: =SUM($J16:AG16)*AG16 -> 0 | AH17: =SUM($J16:AH16)*AH16 -> 0 | AI17: =SUM($J16:AI16)*AI16 -> 0 | AJ17: =SUM($J16:AJ16)*AJ16 -> 0 | AK17: =SUM($J16:AK16)*AK16 -> 0 | AL17: =SUM($J16:AL16)*AL16 -> 0 | AM17: =SUM($J16:AM16)*AM16 -> 0 | AN17: =SUM($J16:AN16)*AN16 -> 0 | AO17: =SUM($J16:AO16)*AO16 -> 0 | AP17: =SUM($J16:AP16)*AP16 -> 0 | AQ17: =SUM($J16:AQ16)*AQ16 -> 0 | AR17: =SUM($J16:AR16)*AR16 -> 0 | AS17: =SUM($J16:AS16)*AS16 -> 0 | AT17: =SUM($J16:AT16)*AT16 -> 0 | AU17: =SUM($J16:AU16)*AU16 -> 0 | AV17: =SUM($J16:AV16)*AV16 -> 0 | AW17: =SUM($J16:AW16)*AW16 -> 0 | AX17: =SUM($J16:AX16)*AX16 -> 0 | AY17: =SUM($J16:AY16)*AY16 -> 0 | AZ17: =SUM($J16:AZ16)*AZ16 -> 0 | BA17: =SUM($J16:BA16)*BA16 -> 0 | BB17: =SUM($J16:BB16)*BB16 -> 0 | BC17: =SUM($J16:BC16)*BC16 -> 0 | BD17: =SUM($J16:BD16)*BD16 -> 0 | BE17: =SUM($J16:BE16)*BE16 -> 0 | BF17: =SUM($J16:BF16)*BF16 -> 0 | BG17: =SUM($J16:BG16)*BG16 -> 0 | BH17: =SUM($J16:BH16)*BH16 -> 0 | BI17: =SUM($J16:BI16)*BI16 -> 0 | BJ17: =SUM($J16:BJ16)*BJ16 -> 0 | BK17: =SUM($J16:BK16)*BK16 -> 0 | BL17: =SUM($J16:BL16)*BL16 -> 0 | BM17: =SUM($J16:BM16)*BM16 -> 0 | BN17: =SUM($J16:BN16)*BN16 -> 0 | BO17: =SUM($J16:BO16)*BO16 -> 0 | BP17: =SUM($J16:BP16)*BP16 -> 0 | BQ17: =SUM($J16:BQ16)*BQ16 -> 0 | BR17: =SUM($J16:BR16)*BR16 -> 0 | BS17: =SUM($J16:BS16)*BS16 -> 0 | BT17: =SUM($J16:BT16)*BT16 -> 0 | BU17: =SUM($J16:BU16)*BU16 -> 0 | BV17: =SUM($J16:BV16)*BV16 -> 0 | BW17: =SUM($J16:BW16)*BW16 -> 0 | BX17: =SUM($J16:BX16)*BX16 -> 0 | BY17: =SUM($J16:BY16)*BY16 -> 0 | BZ17: =SUM($J16:BZ16)*BZ16 -> 0
C19: Senior debt
C20: Flags | E20: Start | F20: End
C21: Tenor | D21: [1,0] | E21: =Inputs!I325 -> 2024-01-01 | F21: =Inputs!J325 -> 2035-12-31 | I21: =SUM(J21:BZ21) -> 12 | J21: =(J$4>=$E21)*(J$5<=$F21) * IF(Inputs!$E$296 = 0, 0, 1) * Inputs!$G$304 -> 0 | K21: =(K$4>=$E21)*(K$5<=$F21) * IF(Inputs!$E$296 = 0, 0, 1) * Inputs!$G$304 -> 1 | L21: =(L$4>=$E21)*(L$5<=$F21) * IF(Inputs!$E$296 = 0, 0, 1) * Inputs!$G$304 -> 1 | M21: =(M$4>=$E21)*(M$5<=$F21) * IF(Inputs!$E$296 = 0, 0, 1) * Inputs!$G$304 -> 1 | N21: =(N$4>=$E21)*(N$5<=$F21) * IF(Inputs!$E$296 = 0, 0, 1) * Inputs!$G$304 -> 1 | O21: =(O$4>=$E21)*(O$5<=$F21) * IF(Inputs!$E$296 = 0, 0, 1) * Inputs!$G$304 -> 1 | P21: =(P$4>=$E21)*(P$5<=$F21) * IF(Inputs!$E$296 = 0, 0, 1) * Inputs!$G$304 -> 1 | Q21: =(Q$4>=$E21)*(Q$5<=$F21) * IF(Inputs!$E$296 = 0, 0, 1) * Inputs!$G$304 -> 1 | R21: =(R$4>=$E21)*(R$5<=$F21) * IF(Inputs!$E$296 = 0, 0, 1) * Inputs!$G$304 -> 1 | S21: =(S$4>=$E21)*(S$5<=$F21) * IF(Inputs!$E$296 = 0, 0, 1) * Inputs!$G$304 -> 1 | T21: =(T$4>=$E21)*(T$5<=$F21) * IF(Inputs!$E$296 = 0, 0, 1) * Inputs!$G$304 -> 1 | U21: =(U$4>=$E21)*(U$5<=$F21) * IF(Inputs!$E$296 = 0, 0, 1) * Inputs!$G$304 -> 1 | V21: =(V$4>=$E21)*(V$5<=$F21) * IF(Inputs!$E$296 = 0, 0, 1) * Inputs!$G$304 -> 1 | W21: =(W$4>=$E21)*(W$5<=$F21) * IF(Inputs!$E$296 = 0, 0, 1) * Inputs!$G$304 -> 0 | X21: =(X$4>=$E21)*(X$5<=$F21) * IF(Inputs!$E$296 = 0, 0, 1) * Inputs!$G$304 -> 0 | Y21: =(Y$4>=$E21)*(Y$5<=$F21) * IF(Inputs!$E$296 = 0, 0, 1) * Inputs!$G$304 -> 0 | Z21: =(Z$4>=$E21)*(Z$5<=$F21) * IF(Inputs!$E$296 = 0, 0, 1) * Inputs!$G$304 -> 0 | AA21: =(AA$4>=$E21)*(AA$5<=$F21) * IF(Inputs!$E$296 = 0, 0, 1) * Inputs!$G$304 -> 0 | AB21: =(AB$4>=$E21)*(AB$5<=$F21) * IF(Inputs!$E$296 = 0, 0, 1) * Inputs!$G$304 -> 0 | AC21: =(AC$4>=$E21)*(AC$5<=$F21) * IF(Inputs!$E$296 = 0, 0, 1) * Inputs!$G$304 -> 0 | AD21: =(AD$4>=$E21)*(AD$5<=$F21) * IF(Inputs!$E$296 = 0, 0, 1) * Inputs!$G$304 -> 0 | AE21: =(AE$4>=$E21)*(AE$5<=$F21) * IF(Inputs!$E$296 = 0, 0, 1) * Inputs!$G$304 -> 0 | AF21: =(AF$4>=$E21)*(AF$5<=$F21) * IF(Inputs!$E$296 = 0, 0, 1) * Inputs!$G$304 -> 0 | AG21: =(AG$4>=$E21)*(AG$5<=$F21) * IF(Inputs!$E$296 = 0, 0, 1) * Inputs!$G$304 -> 0 | AH21: =(AH$4>=$E21)*(AH$5<=$F21) * IF(Inputs!$E$296 = 0, 0, 1) * Inputs!$G$304 -> 0 | AI21: =(AI$4>=$E21)*(AI$5<=$F21) * IF(Inputs!$E$296 = 0, 0, 1) * Inputs!$G$304 -> 0 | AJ21: =(AJ$4>=$E21)*(AJ$5<=$F21) * IF(Inputs!$E$296 = 0, 0, 1) * Inputs!$G$304 -> 0 | AK21: =(AK$4>=$E21)*(AK$5<=$F21) * IF(Inputs!$E$296 = 0, 0, 1) * Inputs!$G$304 -> 0 | AL21: =(AL$4>=$E21)*(AL$5<=$F21) * IF(Inputs!$E$296 = 0, 0, 1) * Inputs!$G$304 -> 0 | AM21: =(AM$4>=$E21)*(AM$5<=$F21) * IF(Inputs!$E$296 = 0, 0, 1) * Inputs!$G$304 -> 0 | AN21: =(AN$4>=$E21)*(AN$5<=$F21) * IF(Inputs!$E$296 = 0, 0, 1) * Inputs!$G$304 -> 0 | AO21: =(AO$4>=$E21)*(AO$5<=$F21) * IF(Inputs!$E$296 = 0, 0, 1) * Inputs!$G$304 -> 0 | AP21: =(AP$4>=$E21)*(AP$5<=$F21) * IF(Inputs!$E$296 = 0, 0, 1) * Inputs!$G$304 -> 0 | AQ21: =(AQ$4>=$E21)*(AQ$5<=$F21) * IF(Inputs!$E$296 = 0, 0, 1) * Inputs!$G$304 -> 0 | AR21: =(AR$4>=$E21)*(AR$5<=$F21) * IF(Inputs!$E$296 = 0, 0, 1) * Inputs!$G$304 -> 0 | AS21: =(AS$4>=$E21)*(AS$5<=$F21) * IF(Inputs!$E$296 = 0, 0, 1) * Inputs!$G$304 -> 0 | AT21: =(AT$4>=$E21)*(AT$5<=$F21) * IF(Inputs!$E$296 = 0, 0, 1) * Inputs!$G$304 -> 0 | AU21: =(AU$4>=$E21)*(AU$5<=$F21) * IF(Inputs!$E$296 = 0, 0, 1) * Inputs!$G$304 -> 0 | AV21: =(AV$4>=$E21)*(AV$5<=$F21) * IF(Inputs!$E$296 = 0, 0, 1) * Inputs!$G$304 -> 0 | AW21: =(AW$4>=$E21)*(AW$5<=$F21) * IF(Inputs!$E$296 = 0, 0, 1) * Inputs!$G$304 -> 0 | AX21: =(AX$4>=$E21)*(AX$5<=$F21) * IF(Inputs!$E$296 = 0, 0, 1) * Inputs!$G$304 -> 0 | AY21: =(AY$4>=$E21)*(AY$5<=$F21) * IF(Inputs!$E$296 = 0, 0, 1) * Inputs!$G$304 -> 0 | AZ21: =(AZ$4>=$E21)*(AZ$5<=$F21) * IF(Inputs!$E$296 = 0, 0, 1) * Inputs!$G$304 -> 0 | BA21: =(BA$4>=$E21)*(BA$5<=$F21) * IF(Inputs!$E$296 = 0, 0, 1) * Inputs!$G$304 -> 0 | BB21: =(BB$4>=$E21)*(BB$5<=$F21) * IF(Inputs!$E$296 = 0, 0, 1) * Inputs!$G$304 -> 0 | BC21: =(BC$4>=$E21)*(BC$5<=$F21) * IF(Inputs!$E$296 = 0, 0, 1) * Inputs!$G$304 -> 0 | BD21: =(BD$4>=$E21)*(BD$5<=$F21) * IF(Inputs!$E$296 = 0, 0, 1) * Inputs!$G$304 -> 0 | BE21: =(BE$4>=$E21)*(BE$5<=$F21) * IF(Inputs!$E$296 = 0, 0, 1) * Inputs!$G$304 -> 0 | BF21: =(BF$4>=$E21)*(BF$5<=$F21) * IF(Inputs!$E$296 = 0, 0, 1) * Inputs!$G$304 -> 0 | BG21: =(BG$4>=$E21)*(BG$5<=$F21) * IF(Inputs!$E$296 = 0, 0, 1) * Inputs!$G$304 -> 0 | BH21: =(BH$4>=$E21)*(BH$5<=$F21) * IF(Inputs!$E$296 = 0, 0, 1) * Inputs!$G$304 -> 0 | BI21: =(BI$4>=$E21)*(BI$5<=$F21) * IF(Inputs!$E$296 = 0, 0, 1) * Inputs!$G$304 -> 0 | BJ21: =(BJ$4>=$E21)*(BJ$5<=$F21) * IF(Inputs!$E$296 = 0, 0, 1) * Inputs!$G$304 -> 0 | BK21: =(BK$4>=$E21)*(BK$5<=$F21) * IF(Inputs!$E$296 = 0, 0, 1) * Inputs!$G$304 -> 0 | BL21: =(BL$4>=$E21)*(BL$5<=$F21) * IF(Inputs!$E$296 = 0, 0, 1) * Inputs!$G$304 -> 0 | BM21: =(BM$4>=$E21)*(BM$5<=$F21) * IF(Inputs!$E$296 = 0, 0, 1) * Inputs!$G$304 -> 0 | BN21: =(BN$4>=$E21)*(BN$5<=$F21) * IF(Inputs!$E$296 = 0, 0, 1) * Inputs!$G$304 -> 0 | BO21: =(BO$4>=$E21)*(BO$5<=$F21) * IF(Inputs!$E$296 = 0, 0, 1) * Inputs!$G$304 -> 0 | BP21: =(BP$4>=$E21)*(BP$5<=$F21) * IF(Inputs!$E$296 = 0, 0, 1) * Inputs!$G$304 -> 0 | BQ21: =(BQ$4>=$E21)*(BQ$5<=$F21) * IF(Inputs!$E$296 = 0, 0, 1) * Inputs!$G$304 -> 0 | BR21: =(BR$4>=$E21)*(BR$5<=$F21) * IF(Inputs!$E$296 = 0, 0, 1) * Inputs!$G$304 -> 0 | BS21: =(BS$4>=$E21)*(BS$5<=$F21) * IF(Inputs!$E$296 = 0, 0, 1) * Inputs!$G$304 -> 0 | BT21: =(BT$4>=$E21)*(BT$5<=$F21) * IF(Inputs!$E$296 = 0, 0, 1) * Inputs!$G$304 -> 0 | BU21: =(BU$4>=$E21)*(BU$5<=$F21) * IF(Inputs!$E$296 = 0, 0, 1) * Inputs!$G$304 -> 0 | BV21: =(BV$4>=$E21)*(BV$5<=$F21) * IF(Inputs!$E$296 = 0, 0, 1) * Inputs!$G$304 -> 0 | BW21: =(BW$4>=$E21)*(BW$5<=$F21) * IF(Inputs!$E$296 = 0, 0, 1) * Inputs!$G$304 -> 0 | BX21: =(BX$4>=$E21)*(BX$5<=$F21) * IF(Inputs!$E$296 = 0, 0, 1) * Inputs!$G$304 -> 0 | BY21: =(BY$4>=$E21)*(BY$5<=$F21) * IF(Inputs!$E$296 = 0, 0, 1) * Inputs!$G$304 -> 0 | BZ21: =(BZ$4>=$E21)*(BZ$5<=$F21) * IF(Inputs!$E$296 = 0, 0, 1) * Inputs!$G$304 -> 0
C22: Grace period | D22: [1,0] | E22: =Inputs!I326 -> 2024-01-01 | F22: =Inputs!J326 -> 2024-12-31 | J22: =(J$4>=$E22)*(J$5<=$F22) * IF(Inputs!$E$296 = 0, 0, 1) * Inputs!$G$304 -> 0 | K22: =(K$4>=$E22)*(K$5<=$F22) * IF(Inputs!$E$296 = 0, 0, 1) * Inputs!$G$304 -> 1 | L22: =(L$4>=$E22)*(L$5<=$F22) * IF(Inputs!$E$296 = 0, 0, 1) * Inputs!$G$304 -> 0 | M22: =(M$4>=$E22)*(M$5<=$F22) * IF(Inputs!$E$296 = 0, 0, 1) * Inputs!$G$304 -> 0 | N22: =(N$4>=$E22)*(N$5<=$F22) * IF(Inputs!$E$296 = 0, 0, 1) * Inputs!$G$304 -> 0 | O22: =(O$4>=$E22)*(O$5<=$F22) * IF(Inputs!$E$296 = 0, 0, 1) * Inputs!$G$304 -> 0 | P22: =(P$4>=$E22)*(P$5<=$F22) * IF(Inputs!$E$296 = 0, 0, 1) * Inputs!$G$304 -> 0 | Q22: =(Q$4>=$E22)*(Q$5<=$F22) * IF(Inputs!$E$296 = 0, 0, 1) * Inputs!$G$304 -> 0 | R22: =(R$4>=$E22)*(R$5<=$F22) * IF(Inputs!$E$296 = 0, 0, 1) * Inputs!$G$304 -> 0 | S22: =(S$4>=$E22)*(S$5<=$F22) * IF(Inputs!$E$296 = 0, 0, 1) * Inputs!$G$304 -> 0 | T22: =(T$4>=$E22)*(T$5<=$F22) * IF(Inputs!$E$296 = 0, 0, 1) * Inputs!$G$304 -> 0 | U22: =(U$4>=$E22)*(U$5<=$F22) * IF(Inputs!$E$296 = 0, 0, 1) * Inputs!$G$304 -> 0 | V22: =(V$4>=$E22)*(V$5<=$F22) * IF(Inputs!$E$296 = 0, 0, 1) * Inputs!$G$304 -> 0 | W22: =(W$4>=$E22)*(W$5<=$F22) * IF(Inputs!$E$296 = 0, 0, 1) * Inputs!$G$304 -> 0 | X22: =(X$4>=$E22)*(X$5<=$F22) * IF(Inputs!$E$296 = 0, 0, 1) * Inputs!$G$304 -> 0 | Y22: =(Y$4>=$E22)*(Y$5<=$F22) * IF(Inputs!$E$296 = 0, 0, 1) * Inputs!$G$304 -> 0 | Z22: =(Z$4>=$E22)*(Z$5<=$F22) * IF(Inputs!$E$296 = 0, 0, 1) * Inputs!$G$304 -> 0 | AA22: =(AA$4>=$E22)*(AA$5<=$F22) * IF(Inputs!$E$296 = 0, 0, 1) * Inputs!$G$304 -> 0 | AB22: =(AB$4>=$E22)*(AB$5<=$F22) * IF(Inputs!$E$296 = 0, 0, 1) * Inputs!$G$304 -> 0 | AC22: =(AC$4>=$E22)*(AC$5<=$F22) * IF(Inputs!$E$296 = 0, 0, 1) * Inputs!$G$304 -> 0 | AD22: =(AD$4>=$E22)*(AD$5<=$F22) * IF(Inputs!$E$296 = 0, 0, 1) * Inputs!$G$304 -> 0 | AE22: =(AE$4>=$E22)*(AE$5<=$F22) * IF(Inputs!$E$296 = 0, 0, 1) * Inputs!$G$304 -> 0 | AF22: =(AF$4>=$E22)*(AF$5<=$F22) * IF(Inputs!$E$296 = 0, 0, 1) * Inputs!$G$304 -> 0 | AG22: =(AG$4>=$E22)*(AG$5<=$F22) * IF(Inputs!$E$296 = 0, 0, 1) * Inputs!$G$304 -> 0 | AH22: =(AH$4>=$E22)*(AH$5<=$F22) * IF(Inputs!$E$296 = 0, 0, 1) * Inputs!$G$304 -> 0 | AI22: =(AI$4>=$E22)*(AI$5<=$F22) * IF(Inputs!$E$296 = 0, 0, 1) * Inputs!$G$304 -> 0 | AJ22: =(AJ$4>=$E22)*(AJ$5<=$F22) * IF(Inputs!$E$296 = 0, 0, 1) * Inputs!$G$304 -> 0 | AK22: =(AK$4>=$E22)*(AK$5<=$F22) * IF(Inputs!$E$296 = 0, 0, 1) * Inputs!$G$304 -> 0 | AL22: =(AL$4>=$E22)*(AL$5<=$F22) * IF(Inputs!$E$296 = 0, 0, 1) * Inputs!$G$304 -> 0 | AM22: =(AM$4>=$E22)*(AM$5<=$F22) * IF(Inputs!$E$296 = 0, 0, 1) * Inputs!$G$304 -> 0 | AN22: =(AN$4>=$E22)*(AN$5<=$F22) * IF(Inputs!$E$296 = 0, 0, 1) * Inputs!$G$304 -> 0 | AO22: =(AO$4>=$E22)*(AO$5<=$F22) * IF(Inputs!$E$296 = 0, 0, 1) * Inputs!$G$304 -> 0 | AP22: =(AP$4>=$E22)*(AP$5<=$F22) * IF(Inputs!$E$296 = 0, 0, 1) * Inputs!$G$304 -> 0 | AQ22: =(AQ$4>=$E22)*(AQ$5<=$F22) * IF(Inputs!$E$296 = 0, 0, 1) * Inputs!$G$304 -> 0 | AR22: =(AR$4>=$E22)*(AR$5<=$F22) * IF(Inputs!$E$296 = 0, 0, 1) * Inputs!$G$304 -> 0 | AS22: =(AS$4>=$E22)*(AS$5<=$F22) * IF(Inputs!$E$296 = 0, 0, 1) * Inputs!$G$304 -> 0 | AT22: =(AT$4>=$E22)*(AT$5<=$F22) * IF(Inputs!$E$296 = 0, 0, 1) * Inputs!$G$304 -> 0 | AU22: =(AU$4>=$E22)*(AU$5<=$F22) * IF(Inputs!$E$296 = 0, 0, 1) * Inputs!$G$304 -> 0 | AV22: =(AV$4>=$E22)*(AV$5<=$F22) * IF(Inputs!$E$296 = 0, 0, 1) * Inputs!$G$304 -> 0 | AW22: =(AW$4>=$E22)*(AW$5<=$F22) * IF(Inputs!$E$296 = 0, 0, 1) * Inputs!$G$304 -> 0 | AX22: =(AX$4>=$E22)*(AX$5<=$F22) * IF(Inputs!$E$296 = 0, 0, 1) * Inputs!$G$304 -> 0 | AY22: =(AY$4>=$E22)*(AY$5<=$F22) * IF(Inputs!$E$296 = 0, 0, 1) * Inputs!$G$304 -> 0 | AZ22: =(AZ$4>=$E22)*(AZ$5<=$F22) * IF(Inputs!$E$296 = 0, 0, 1) * Inputs!$G$304 -> 0 | BA22: =(BA$4>=$E22)*(BA$5<=$F22) * IF(Inputs!$E$296 = 0, 0, 1) * Inputs!$G$304 -> 0 | BB22: =(BB$4>=$E22)*(BB$5<=$F22) * IF(Inputs!$E$296 = 0, 0, 1) * Inputs!$G$304 -> 0 | BC22: =(BC$4>=$E22)*(BC$5<=$F22) * IF(Inputs!$E$296 = 0, 0, 1) * Inputs!$G$304 -> 0 | BD22: =(BD$4>=$E22)*(BD$5<=$F22) * IF(Inputs!$E$296 = 0, 0, 1) * Inputs!$G$304 -> 0 | BE22: =(BE$4>=$E22)*(BE$5<=$F22) * IF(Inputs!$E$296 = 0, 0, 1) * Inputs!$G$304 -> 0 | BF22: =(BF$4>=$E22)*(BF$5<=$F22) * IF(Inputs!$E$296 = 0, 0, 1) * Inputs!$G$304 -> 0 | BG22: =(BG$4>=$E22)*(BG$5<=$F22) * IF(Inputs!$E$296 = 0, 0, 1) * Inputs!$G$304 -> 0 | BH22: =(BH$4>=$E22)*(BH$5<=$F22) * IF(Inputs!$E$296 = 0, 0, 1) * Inputs!$G$304 -> 0 | BI22: =(BI$4>=$E22)*(BI$5<=$F22) * IF(Inputs!$E$296 = 0, 0, 1) * Inputs!$G$304 -> 0 | BJ22: =(BJ$4>=$E22)*(BJ$5<=$F22) * IF(Inputs!$E$296 = 0, 0, 1) * Inputs!$G$304 -> 0 | BK22: =(BK$4>=$E22)*(BK$5<=$F22) * IF(Inputs!$E$296 = 0, 0, 1) * Inputs!$G$304 -> 0 | BL22: =(BL$4>=$E22)*(BL$5<=$F22) * IF(Inputs!$E$296 = 0, 0, 1) * Inputs!$G$304 -> 0 | BM22: =(BM$4>=$E22)*(BM$5<=$F22) * IF(Inputs!$E$296 = 0, 0, 1) * Inputs!$G$304 -> 0 | BN22: =(BN$4>=$E22)*(BN$5<=$F22) * IF(Inputs!$E$296 = 0, 0, 1) * Inputs!$G$304 -> 0 | BO22: =(BO$4>=$E22)*(BO$5<=$F22) * IF(Inputs!$E$296 = 0, 0, 1) * Inputs!$G$304 -> 0 | BP22: =(BP$4>=$E22)*(BP$5<=$F22) * IF(Inputs!$E$296 = 0, 0, 1) * Inputs!$G$304 -> 0 | BQ22: =(BQ$4>=$E22)*(BQ$5<=$F22) * IF(Inputs!$E$296 = 0, 0, 1) * Inputs!$G$304 -> 0 | BR22: =(BR$4>=$E22)*(BR$5<=$F22) * IF(Inputs!$E$296 = 0, 0, 1) * Inputs!$G$304 -> 0 | BS22: =(BS$4>=$E22)*(BS$5<=$F22) * IF(Inputs!$E$296 = 0, 0, 1) * Inputs!$G$304 -> 0 | BT22: =(BT$4>=$E22)*(BT$5<=$F22) * IF(Inputs!$E$296 = 0, 0, 1) * Inputs!$G$304 -> 0 | BU22: =(BU$4>=$E22)*(BU$5<=$F22) * IF(Inputs!$E$296 = 0, 0, 1) * Inputs!$G$304 -> 0 | BV22: =(BV$4>=$E22)*(BV$5<=$F22) * IF(Inputs!$E$296 = 0, 0, 1) * Inputs!$G$304 -> 0 | BW22: =(BW$4>=$E22)*(BW$5<=$F22) * IF(Inputs!$E$296 = 0, 0, 1) * Inputs!$G$304 -> 0 | BX22: =(BX$4>=$E22)*(BX$5<=$F22) * IF(Inputs!$E$296 = 0, 0, 1) * Inputs!$G$304 -> 0 | BY22: =(BY$4>=$E22)*(BY$5<=$F22) * IF(Inputs!$E$296 = 0, 0, 1) * Inputs!$G$304 -> 0 | BZ22: =(BZ$4>=$E22)*(BZ$5<=$F22) * IF(Inputs!$E$296 = 0, 0, 1) * Inputs!$G$304 -> 0
C23: Repayment flag | D23: [1,0] | J23: =J21-J22 -> 0 | K23: =K21-K22 -> 0 | L23: 1 | M23: 1 | N23: 1 | O23: 1 | P23: 1 | Q23: 1 | R23: 1 | S23: 1 | T23: 1 | U23: 1 | V23: 1 | W23: 0 | X23: 0 | Y23: 0 | Z23: 0 | AA23: 0 | AB23: 0 | AC23: 0 | AD23: 0 | AE23: 0 | AF23: 0 | AG23: 0 | AH23: 0 | AI23: 0 | AJ23: 0 | AK23: 0 | AL23: 0 | AM23: 0 | AN23: 0 | AO23: 0 | AP23: 0 | AQ23: 0 | AR23: 0 | AS23: 0 | AT23: 0 | AU23: 0 | AV23: 0 | AW23: 0 | AX23: 0 | AY23: 0 | AZ23: 0 | BA23: 0 | BB23: 0 | BC23: 0 | BD23: 0 | BE23: 0 | BF23: 0 | BG23: 0 | BH23: 0 | BI23: 0 | BJ23: 0 | BK23: 0 | BL23: 0 | BM23: 0 | BN23: 0 | BO23: 0 | BP23: 0 | BQ23: 0 | BR23: 0 | BS23: 0 | BT23: 0 | BU23: 0 | BV23: 0 | BW23: =BW21-BW22 -> 0 | BX23: =BX21-BX22 -> 0 | BY23: =BY21-BY22 -> 0 | BZ23: =BZ21-BZ22 -> 0
C24: Remaining periods | D24: Num# | J24: =SUM(J23:$BZ23)*J23 -> 0 | K24: =SUM(K23:$BZ23)*K23 -> 0 | L24: =SUM(L23:$BZ23)*L23 -> 11 | M24: =SUM(M23:$BZ23)*M23 -> 10 | N24: =SUM(N23:$BZ23)*N23 -> 9 | O24: =SUM(O23:$BZ23)*O23 -> 8 | P24: =SUM(P23:$BZ23)*P23 -> 7 | Q24: =SUM(Q23:$BZ23)*Q23 -> 6 | R24: =SUM(R23:$BZ23)*R23 -> 5 | S24: =SUM(S23:$BZ23)*S23 -> 4 | T24: =SUM(T23:$BZ23)*T23 -> 3 | U24: =SUM(U23:$BZ23)*U23 -> 2 | V24: =SUM(V23:$BZ23)*V23 -> 1 | W24: =SUM(W23:$BZ23)*W23 -> 0 | X24: =SUM(X23:$BZ23)*X23 -> 0 | Y24: =SUM(Y23:$BZ23)*Y23 -> 0 | Z24: =SUM(Z23:$BZ23)*Z23 -> 0 | AA24: =SUM(AA23:$BZ23)*AA23 -> 0 | AB24: =SUM(AB23:$BZ23)*AB23 -> 0 | AC24: =SUM(AC23:$BZ23)*AC23 -> 0 | AD24: =SUM(AD23:$BZ23)*AD23 -> 0 | AE24: =SUM(AE23:$BZ23)*AE23 -> 0 | AF24: =SUM(AF23:$BZ23)*AF23 -> 0 | AG24: =SUM(AG23:$BZ23)*AG23 -> 0 | AH24: =SUM(AH23:$BZ23)*AH23 -> 0 | AI24: =SUM(AI23:$BZ23)*AI23 -> 0 | AJ24: =SUM(AJ23:$BZ23)*AJ23 -> 0 | AK24: =SUM(AK23:$BZ23)*AK23 -> 0 | AL24: =SUM(AL23:$BZ23)*AL23 -> 0 | AM24: =SUM(AM23:$BZ23)*AM23 -> 0 | AN24: =SUM(AN23:$BZ23)*AN23 -> 0 | AO24: =SUM(AO23:$BZ23)*AO23 -> 0 | AP24: =SUM(AP23:$BZ23)*AP23 -> 0 | AQ24: =SUM(AQ23:$BZ23)*AQ23 -> 0 | AR24: =SUM(AR23:$BZ23)*AR23 -> 0 | AS24: =SUM(AS23:$BZ23)*AS23 -> 0 | AT24: =SUM(AT23:$BZ23)*AT23 -> 0 | AU24: =SUM(AU23:$BZ23)*AU23 -> 0 | AV24: =SUM(AV23:$BZ23)*AV23 -> 0 | AW24: =SUM(AW23:$BZ23)*AW23 -> 0 | AX24: =SUM(AX23:$BZ23)*AX23 -> 0 | AY24: =SUM(AY23:$BZ23)*AY23 -> 0 | AZ24: =SUM(AZ23:$BZ23)*AZ23 -> 0 | BA24: =SUM(BA23:$BZ23)*BA23 -> 0 | BB24: =SUM(BB23:$BZ23)*BB23 -> 0 | BC24: =SUM(BC23:$BZ23)*BC23 -> 0 | BD24: =SUM(BD23:$BZ23)*BD23 -> 0 | BE24: =SUM(BE23:$BZ23)*BE23 -> 0 | BF24: =SUM(BF23:$BZ23)*BF23 -> 0 | BG24: =SUM(BG23:$BZ23)*BG23 -> 0 | BH24: =SUM(BH23:$BZ23)*BH23 -> 0 | BI24: =SUM(BI23:$BZ23)*BI23 -> 0 | BJ24: =SUM(BJ23:$BZ23)*BJ23 -> 0 | BK24: =SUM(BK23:$BZ23)*BK23 -> 0 | BL24: =SUM(BL23:$BZ23)*BL23 -> 0 | BM24: =SUM(BM23:$BZ23)*BM23 -> 0 | BN24: =SUM(BN23:$BZ23)*BN23 -> 0 | BO24: =SUM(BO23:$BZ23)*BO23 -> 0 | BP24: =SUM(BP23:$BZ23)*BP23 -> 0 | BQ24: =SUM(BQ23:$BZ23)*BQ23 -> 0 | BR24: =SUM(BR23:$BZ23)*BR23 -> 0 | BS24: =SUM(BS23:$BZ23)*BS23 -> 0 | BT24: =SUM(BT23:$BZ23)*BT23 -> 0 | BU24: =SUM(BU23:$BZ23)*BU23 -> 0 | BV24: =SUM(BV23:$BZ23)*BV23 -> 0 | BW24: =SUM(BW23:$BZ23)*BW23 -> 0 | BX24: =SUM(BX23:$BZ23)*BX23 -> 0 | BY24: =SUM(BY23:$BZ23)*BY23 -> 0 | BZ24: =SUM(BZ23:$BZ23)*BZ23 -> 0
C25: Year in senior debt tenor | D25: Num# | J25: =SUM($J21:J21)*J21 -> 0 | K25: =SUM($J21:K21)*K21 -> 1 | L25: =SUM($J21:L21)*L21 -> 2 | M25: =SUM($J21:M21)*M21 -> 3 | N25: =SUM($J21:N21)*N21 -> 4 | O25: =SUM($J21:O21)*O21 -> 5 | P25: =SUM($J21:P21)*P21 -> 6 | Q25: =SUM($J21:Q21)*Q21 -> 7 | R25: =SUM($J21:R21)*R21 -> 8 | S25: =SUM($J21:S21)*S21 -> 9 | T25: =SUM($J21:T21)*T21 -> 10 | U25: =SUM($J21:U21)*U21 -> 11 | V25: =SUM($J21:V21)*V21 -> 12 | W25: =SUM($J21:W21)*W21 -> 0 | X25: =SUM($J21:X21)*X21 -> 0 | Y25: =SUM($J21:Y21)*Y21 -> 0 | Z25: =SUM($J21:Z21)*Z21 -> 0 | AA25: =SUM($J21:AA21)*AA21 -> 0 | AB25: =SUM($J21:AB21)*AB21 -> 0 | AC25: =SUM($J21:AC21)*AC21 -> 0 | AD25: =SUM($J21:AD21)*AD21 -> 0 | AE25: =SUM($J21:AE21)*AE21 -> 0 | AF25: =SUM($J21:AF21)*AF21 -> 0 | AG25: =SUM($J21:AG21)*AG21 -> 0 | AH25: =SUM($J21:AH21)*AH21 -> 0 | AI25: =SUM($J21:AI21)*AI21 -> 0 | AJ25: =SUM($J21:AJ21)*AJ21 -> 0 | AK25: =SUM($J21:AK21)*AK21 -> 0 | AL25: =SUM($J21:AL21)*AL21 -> 0 | AM25: =SUM($J21:AM21)*AM21 -> 0 | AN25: =SUM($J21:AN21)*AN21 -> 0 | AO25: =SUM($J21:AO21)*AO21 -> 0 | AP25: =SUM($J21:AP21)*AP21 -> 0 | AQ25: =SUM($J21:AQ21)*AQ21 -> 0 | AR25: =SUM($J21:AR21)*AR21 -> 0 | AS25: =SUM($J21:AS21)*AS21 -> 0 | AT25: =SUM($J21:AT21)*AT21 -> 0 | AU25: =SUM($J21:AU21)*AU21 -> 0 | AV25: =SUM($J21:AV21)*AV21 -> 0 | AW25: =SUM($J21:AW21)*AW21 -> 0 | AX25: =SUM($J21:AX21)*AX21 -> 0 | AY25: =SUM($J21:AY21)*AY21 -> 0 | AZ25: =SUM($J21:AZ21)*AZ21 -> 0 | BA25: =SUM($J21:BA21)*BA21 -> 0 | BB25: =SUM($J21:BB21)*BB21 -> 0 | BC25: =SUM($J21:BC21)*BC21 -> 0 | BD25: =SUM($J21:BD21)*BD21 -> 0 | BE25: =SUM($J21:BE21)*BE21 -> 0 | BF25: =SUM($J21:BF21)*BF21 -> 0 | BG25: =SUM($J21:BG21)*BG21 -> 0 | BH25: =SUM($J21:BH21)*BH21 -> 0 | BI25: =SUM($J21:BI21)*BI21 -> 0 | BJ25: =SUM($J21:BJ21)*BJ21 -> 0 | BK25: =SUM($J21:BK21)*BK21 -> 0 | BL25: =SUM($J21:BL21)*BL21 -> 0 | BM25: =SUM($J21:BM21)*BM21 -> 0 | BN25: =SUM($J21:BN21)*BN21 -> 0 | BO25: =SUM($J21:BO21)*BO21 -> 0 | BP25: =SUM($J21:BP21)*BP21 -> 0 | BQ25: =SUM($J21:BQ21)*BQ21 -> 0 | BR25: =SUM($J21:BR21)*BR21 -> 0 | BS25: =SUM($J21:BS21)*BS21 -> 0 | BT25: =SUM($J21:BT21)*BT21 -> 0 | BU25: =SUM($J21:BU21)*BU21 -> 0 | BV25: =SUM($J21:BV21)*BV21 -> 0 | BW25: =SUM($J21:BW21)*BW21 -> 0 | BX25: =SUM($J21:BX21)*BX21 -> 0 | BY25: =SUM($J21:BY21)*BY21 -> 0 | BZ25: =SUM($J21:BZ21)*BZ21 -> 0
C26: Refi flag | D26: [1,0] | J26: =J65 -> 0 | K26: =K65 -> 0 | L26: 0 | M26: 0 | N26: 0 | O26: 0 | P26: 0 | Q26: 0 | R26: 0 | S26: 0 | T26: 0 | U26: 0 | V26: 0 | W26: 0 | X26: 0 | Y26: 0 | Z26: 0 | AA26: 0 | AB26: 0 | AC26: 0 | AD26: 0 | AE26: 0 | AF26: 0 | AG26: 0 | AH26: 0 | AI26: 0 | AJ26: 0 | AK26: 0 | AL26: 0 | AM26: 0 | AN26: 0 | AO26: 0 | AP26: 0 | AQ26: 0 | AR26: 0 | AS26: 0 | AT26: 0 | AU26: 0 | AV26: 0 | AW26: 0 | AX26: 0 | AY26: 0 | AZ26: 0 | BA26: 0 | BB26: 0 | BC26: 0 | BD26: 0 | BE26: 0 | BF26: 0 | BG26: 0 | BH26: 0 | BI26: 0 | BJ26: 0 | BK26: 0 | BL26: 0 | BM26: 0 | BN26: 0 | BO26: 0 | BP26: 0 | BQ26: 0 | BR26: 0 | BS26: 0 | BT26: 0 | BU26: 0 | BV26: 0 | BW26: =BW65 -> 0 | BX26: =BX65 -> 0 | BY26: =BY65 -> 0 | BZ26: =BZ65 -> 0
C27: Refi tenor flag | D27: [1,0] | J27: =J68 -> 0 | K27: =K68 -> 0 | L27: 0 | M27: 0 | N27: 0 | O27: 0 | P27: 0 | Q27: 0 | R27: 0 | S27: 0 | T27: 0 | U27: 0 | V27: 0 | W27: 0 | X27: 0 | Y27: 0 | Z27: 0 | AA27: 0 | AB27: 0 | AC27: 0 | AD27: 0 | AE27: 0 | AF27: 0 | AG27: 0 | AH27: 0 | AI27: 0 | AJ27: 0 | AK27: 0 | AL27: 0 | AM27: 0 | AN27: 0 | AO27: 0 | AP27: 0 | AQ27: 0 | AR27: 0 | AS27: 0 | AT27: 0 | AU27: 0 | AV27: 0 | AW27: 0 | AX27: 0 | AY27: 0 | AZ27: 0 | BA27: 0 | BB27: 0 | BC27: 0 | BD27: 0 | BE27: 0 | BF27: 0 | BG27: 0 | BH27: 0 | BI27: 0 | BJ27: 0 | BK27: 0 | BL27: 0 | BM27: 0 | BN27: 0 | BO27: 0 | BP27: 0 | BQ27: 0 | BR27: 0 | BS27: 0 | BT27: 0 | BU27: 0 | BV27: 0 | BW27: =BW68 -> 0 | BX27: =BX68 -> 0 | BY27: =BY68 -> 0 | BZ27: =BZ68 -> 0
C29: Account
C30: Balance b/f | J30: =I34 -> 0 | K30: =J34 -> 0 | L30: 5838731.557 | M30: 5675546.326 | N30: 5430698.265 | O30: 5169605.46 | P30: 4757824.778 | Q30: 4208399.246 | R30: 3672739.725 | S30: 3051701.89 | T30: 2360158.599 | U30: 2181795.594 | V30: 1287192.936 | W30: 0 | X30: 0 | Y30: 0 | Z30: 0 | AA30: 0 | AB30: 0 | AC30: 0 | AD30: 0 | AE30: 0 | AF30: 0 | AG30: 0 | AH30: 0 | AI30: 0 | AJ30: 0 | AK30: 0 | AL30: 0 | AM30: 0 | AN30: 0 | AO30: 0 | AP30: 0 | AQ30: 0 | AR30: 0 | AS30: 0 | AT30: 0 | AU30: 0 | AV30: 0 | AW30: 0 | AX30: 0 | AY30: 0 | AZ30: 0 | BA30: 0 | BB30: 0 | BC30: 0 | BD30: 0 | BE30: 0 | BF30: 0 | BG30: 0 | BH30: 0 | BI30: 0 | BJ30: 0 | BK30: 0 | BL30: 0 | BM30: 0 | BN30: 0 | BO30: 0 | BP30: 0 | BQ30: 0 | BR30: 0 | BS30: 0 | BT30: 0 | BU30: 0 | BV30: 0 | BW30: =BV34 -> 0 | BX30: =BW34 -> 0 | BY30: =BX34 -> 0 | BZ30: =BY34 -> 0
C31: Drawdown | I31: =SUM(J31:BZ31) -> 5838731.557 | J31: =Model!J246 -> 0 | K31: =Model!K246 -> 5838731.557 | L31: =Model!L246 -> 0 | M31: =Model!M246 -> 0 | N31: =Model!N246 -> 0 | O31: =Model!O246 -> 0 | P31: =Model!P246 -> 0 | Q31: =Model!Q246 -> 0 | R31: =Model!R246 -> 0 | S31: =Model!S246 -> 0 | T31: =Model!T246 -> 0 | U31: =Model!U246 -> 0 | V31: =Model!V246 -> 0 | W31: =Model!W246 -> 0 | X31: =Model!X246 -> 0 | Y31: =Model!Y246 -> 0 | Z31: =Model!Z246 -> 0 | AA31: =Model!AA246 -> 0 | AB31: =Model!AB246 -> 0 | AC31: =Model!AC246 -> 0 | AD31: =Model!AD246 -> 0 | AE31: =Model!AE246 -> 0 | AF31: =Model!AF246 -> 0 | AG31: =Model!AG246 -> 0 | AH31: =Model!AH246 -> 0 | AI31: =Model!AI246 -> 0 | AJ31: =Model!AJ246 -> 0 | AK31: =Model!AK246 -> 0 | AL31: =Model!AL246 -> 0 | AM31: =Model!AM246 -> 0 | AN31: =Model!AN246 -> 0 | AO31: =Model!AO246 -> 0 | AP31: =Model!AP246 -> 0 | AQ31: =Model!AQ246 -> 0 | AR31: =Model!AR246 -> 0 | AS31: =Model!AS246 -> 0 | AT31: =Model!AT246 -> 0 | AU31: =Model!AU246 -> 0 | AV31: =Model!AV246 -> 0 | AW31: =Model!AW246 -> 0 | AX31: =Model!AX246 -> 0 | AY31: =Model!AY246 -> 0 | AZ31: =Model!AZ246 -> 0 | BA31: =Model!BA246 -> 0 | BB31: =Model!BB246 -> 0 | BC31: =Model!BC246 -> 0 | BD31: =Model!BD246 -> 0 | BE31: =Model!BE246 -> 0 | BF31: =Model!BF246 -> 0 | BG31: =Model!BG246 -> 0 | BH31: =Model!BH246 -> 0 | BI31: =Model!BI246 -> 0 | BJ31: =Model!BJ246 -> 0 | BK31: =Model!BK246 -> 0 | BL31: =Model!BL246 -> 0 | BM31: =Model!BM246 -> 0 | BN31: =Model!BN246 -> 0 | BO31: =Model!BO246 -> 0 | BP31: =Model!BP246 -> 0 | BQ31: =Model!BQ246 -> 0 | BR31: =Model!BR246 -> 0 | BS31: =Model!BS246 -> 0 | BT31: =Model!BT246 -> 0 | BU31: =Model!BU246 -> 0 | BV31: =Model!BV246 -> 0 | BW31: =Model!BW246 -> 0 | BX31: =Model!BX246 -> 0 | BY31: =Model!BY246 -> 0 | BZ31: =Model!BZ246 -> 0
C32: Principal repayment | I32: =SUM(J32:BZ32) -> -5838731.557 | J32: =IF(J24=1,-J30,-MIN(J60)*(J23-J27)) -> 0 | K32: 0 | L32: -163185.2315 | M32: -244848.0606 | N32: -261092.805 | O32: -411780.6821 | P32: -549425.5319 | Q32: -535659.5213 | R32: -621037.8353 | S32: -691543.291 | T32: -178363.0046 | U32: -894602.6582 | V32: -1287192.936 | W32: 0 | X32: 0 | Y32: 0 | Z32: 0 | AA32: 0 | AB32: 0 | AC32: 0 | AD32: 0 | AE32: 0 | AF32: 0 | AG32: 0 | AH32: 0 | AI32: 0 | AJ32: 0 | AK32: 0 | AL32: 0 | AM32: 0 | AN32: 0 | AO32: 0 | AP32: =IF(AP24=1,-AP30,-MIN(AP60)*(AP23-AP27)) -> 0 | AQ32: 0 | AR32: 0 | AS32: 0 | AT32: 0 | AU32: 0 | AV32: 0 | AW32: 0 | AX32: 0 | AY32: 0 | AZ32: 0 | BA32: 0 | BB32: 0 | BC32: 0 | BD32: 0 | BE32: 0 | BF32: 0 | BG32: 0 | BH32: 0 | BI32: 0 | BJ32: 0 | BK32: 0 | BL32: 0 | BM32: 0 | BN32: 0 | BO32: 0 | BP32: 0 | BQ32: 0 | BR32: 0 | BS32: 0 | BT32: 0 | BU32: 0 | BV32: 0 | BW32: 0 | BX32: 0 | BY32: 0 | BZ32: 0
C33: Refi take out | I33: =SUM(J33:BZ33) -> 0 | J33: =-SUM(J30:J32)*J26 -> 0 | K33: 0 | L33: 0 | M33: 0 | N33: 0 | O33: 0 | P33: 0 | Q33: 0 | R33: 0 | S33: 0 | T33: 0 | U33: 0 | V33: 0 | W33: 0 | X33: 0 | Y33: 0 | Z33: 0 | AA33: 0 | AB33: 0 | AC33: 0 | AD33: 0 | AE33: 0 | AF33: 0 | AG33: 0 | AH33: 0 | AI33: 0 | AJ33: 0 | AK33: 0 | AL33: 0 | AM33: 0 | AN33: 0 | AO33: 0 | AP33: =-SUM(AP30:AP32)*AP26 -> 0 | AQ33: 0 | AR33: 0 | AS33: 0 | AT33: 0 | AU33: 0 | AV33: 0 | AW33: 0 | AX33: 0 | AY33: 0 | AZ33: 0 | BA33: 0 | BB33: 0 | BC33: 0 | BD33: 0 | BE33: 0 | BF33: 0 | BG33: 0 | BH33: 0 | BI33: 0 | BJ33: 0 | BK33: 0 | BL33: 0 | BM33: 0 | BN33: 0 | BO33: 0 | BP33: 0 | BQ33: 0 | BR33: 0 | BS33: 0 | BT33: 0 | BU33: 0 | BV33: =-SUM(BV30:BV32)*BV26 -> 0 | BW33: 0 | BX33: 0 | BY33: 0 | BZ33: 0
C34: Balance c/f | J34: =SUM(J30:J33) -> 0 | K34: 5838731.557 | L34: 5675546.326 | M34: 5430698.265 | N34: 5169605.46 | O34: 4757824.778 | P34: 4208399.246 | Q34: 3672739.725 | R34: 3051701.89 | S34: 2360158.599 | T34: 2181795.594 | U34: 1287192.936 | V34: 0 | W34: 0 | X34: 0 | Y34: 0 | Z34: 0 | AA34: 0 | AB34: 0 | AC34: 0 | AD34: 0 | AE34: 0 | AF34: 0 | AG34: 0 | AH34: 0 | AI34: 0 | AJ34: 0 | AK34: 0 | AL34: 0 | AM34: 0 | AN34: 0 | AO34: 0 | AP34: =SUM(AP30:AP33) -> 0 | AQ34: 0 | AR34: 0 | AS34: 0 | AT34: 0 | AU34: 0 | AV34: 0 | AW34: 0 | AX34: 0 | AY34: 0 | AZ34: 0 | BA34: 0 | BB34: 0 | BC34: 0 | BD34: 0 | BE34: 0 | BF34: 0 | BG34: 0 | BH34: 0 | BI34: 0 | BJ34: 0 | BK34: 0 | BL34: 0 | BM34: 0 | BN34: 0 | BO34: 0 | BP34: 0 | BQ34: 0 | BR34: 0 | BS34: 0 | BT34: 0 | BU34: 0 | BV34: =SUM(BV30:BV33) -> 0 | BW34: 0 | BX34: 0 | BY34: 0 | BZ34: 0
H35: =I31+I32 -> 0 | I35: =I33+H35 -> 0
C36: Interest
C37: Base + Margin
C38: Base rate | D38: % p.a. | J38: =LOOKUP(J$11,Inputs!$I$406:$K$406,Inputs!$I$407:$K$407)*J$21 -> 0 | K38: =LOOKUP(K$11,Inputs!$I$406:$K$406,Inputs!$I$407:$K$407)*K$21 -> 0.02 | L38: =LOOKUP(L$11,Inputs!$I$406:$K$406,Inputs!$I$407:$K$407)*L$21 -> 0.02 | M38: =LOOKUP(M$11,Inputs!$I$406:$K$406,Inputs!$I$407:$K$407)*M$21 -> 0.02 | N38: =LOOKUP(N$11,Inputs!$I$406:$K$406,Inputs!$I$407:$K$407)*N$21 -> 0.02 | O38: =LOOKUP(O$11,Inputs!$I$406:$K$406,Inputs!$I$407:$K$407)*O$21 -> 0.02 | P38: =LOOKUP(P$11,Inputs!$I$406:$K$406,Inputs!$I$407:$K$407)*P$21 -> 0.02 | Q38: =LOOKUP(Q$11,Inputs!$I$406:$K$406,Inputs!$I$407:$K$407)*Q$21 -> 0.02 | R38: =LOOKUP(R$11,Inputs!$I$406:$K$406,Inputs!$I$407:$K$407)*R$21 -> 0.02 | S38: =LOOKUP(S$11,Inputs!$I$406:$K$406,Inputs!$I$407:$K$407)*S$21 -> 0.02 | T38: =LOOKUP(T$11,Inputs!$I$406:$K$406,Inputs!$I$407:$K$407)*T$21 -> 0.02 | U38: =LOOKUP(U$11,Inputs!$I$406:$K$406,Inputs!$I$407:$K$407)*U$21 -> 0.02 | V38: =LOOKUP(V$11,Inputs!$I$406:$K$406,Inputs!$I$407:$K$407)*V$21 -> 0.02 | W38: =LOOKUP(W$11,Inputs!$I$406:$K$406,Inputs!$I$407:$K$407)*W$21 -> 0 | X38: =LOOKUP(X$11,Inputs!$I$406:$K$406,Inputs!$I$407:$K$407)*X$21 -> 0 | Y38: =LOOKUP(Y$11,Inputs!$I$406:$K$406,Inputs!$I$407:$K$407)*Y$21 -> 0 | Z38: =LOOKUP(Z$11,Inputs!$I$406:$K$406,Inputs!$I$407:$K$407)*Z$21 -> 0 | AA38: =LOOKUP(AA$11,Inputs!$I$406:$K$406,Inputs!$I$407:$K$407)*AA$21 -> 0 | AB38: =LOOKUP(AB$11,Inputs!$I$406:$K$406,Inputs!$I$407:$K$407)*AB$21 -> 0 | AC38: =LOOKUP(AC$11,Inputs!$I$406:$K$406,Inputs!$I$407:$K$407)*AC$21 -> 0 | AD38: =LOOKUP(AD$11,Inputs!$I$406:$K$406,Inputs!$I$407:$K$407)*AD$21 -> 0 | AE38: =LOOKUP(AE$11,Inputs!$I$406:$K$406,Inputs!$I$407:$K$407)*AE$21 -> 0 | AF38: =LOOKUP(AF$11,Inputs!$I$406:$K$406,Inputs!$I$407:$K$407)*AF$21 -> 0 | AG38: =LOOKUP(AG$11,Inputs!$I$406:$K$406,Inputs!$I$407:$K$407)*AG$21 -> 0 | AH38: =LOOKUP(AH$11,Inputs!$I$406:$K$406,Inputs!$I$407:$K$407)*AH$21 -> 0 | AI38: =LOOKUP(AI$11,Inputs!$I$406:$K$406,Inputs!$I$407:$K$407)*AI$21 -> 0 | AJ38: =LOOKUP(AJ$11,Inputs!$I$406:$K$406,Inputs!$I$407:$K$407)*AJ$21 -> 0 | AK38: =LOOKUP(AK$11,Inputs!$I$406:$K$406,Inputs!$I$407:$K$407)*AK$21 -> 0 | AL38: =LOOKUP(AL$11,Inputs!$I$406:$K$406,Inputs!$I$407:$K$407)*AL$21 -> 0 | AM38: =LOOKUP(AM$11,Inputs!$I$406:$K$406,Inputs!$I$407:$K$407)*AM$21 -> 0 | AN38: =LOOKUP(AN$11,Inputs!$I$406:$K$406,Inputs!$I$407:$K$407)*AN$21 -> 0 | AO38: =LOOKUP(AO$11,Inputs!$I$406:$K$406,Inputs!$I$407:$K$407)*AO$21 -> 0 | AP38: =LOOKUP(AP$11,Inputs!$I$406:$K$406,Inputs!$I$407:$K$407)*AP$21 -> 0 | AQ38: =LOOKUP(AQ$11,Inputs!$I$406:$K$406,Inputs!$I$407:$K$407)*AQ$21 -> 0 | AR38: =LOOKUP(AR$11,Inputs!$I$406:$K$406,Inputs!$I$407:$K$407)*AR$21 -> 0 | AS38: =LOOKUP(AS$11,Inputs!$I$406:$K$406,Inputs!$I$407:$K$407)*AS$21 -> 0 | AT38: =LOOKUP(AT$11,Inputs!$I$406:$K$406,Inputs!$I$407:$K$407)*AT$21 -> 0 | AU38: =LOOKUP(AU$11,Inputs!$I$406:$K$406,Inputs!$I$407:$K$407)*AU$21 -> 0 | AV38: =LOOKUP(AV$11,Inputs!$I$406:$K$406,Inputs!$I$407:$K$407)*AV$21 -> 0 | AW38: =LOOKUP(AW$11,Inputs!$I$406:$K$406,Inputs!$I$407:$K$407)*AW$21 -> 0 | AX38: =LOOKUP(AX$11,Inputs!$I$406:$K$406,Inputs!$I$407:$K$407)*AX$21 -> 0 | AY38: =LOOKUP(AY$11,Inputs!$I$406:$K$406,Inputs!$I$407:$K$407)*AY$21 -> 0 | AZ38: =LOOKUP(AZ$11,Inputs!$I$406:$K$406,Inputs!$I$407:$K$407)*AZ$21 -> 0 | BA38: =LOOKUP(BA$11,Inputs!$I$406:$K$406,Inputs!$I$407:$K$407)*BA$21 -> 0 | BB38: =LOOKUP(BB$11,Inputs!$I$406:$K$406,Inputs!$I$407:$K$407)*BB$21 -> 0 | BC38: =LOOKUP(BC$11,Inputs!$I$406:$K$406,Inputs!$I$407:$K$407)*BC$21 -> 0 | BD38: =LOOKUP(BD$11,Inputs!$I$406:$K$406,Inputs!$I$407:$K$407)*BD$21 -> 0 | BE38: =LOOKUP(BE$11,Inputs!$I$406:$K$406,Inputs!$I$407:$K$407)*BE$21 -> 0 | BF38: =LOOKUP(BF$11,Inputs!$I$406:$K$406,Inputs!$I$407:$K$407)*BF$21 -> 0 | BG38: =LOOKUP(BG$11,Inputs!$I$406:$K$406,Inputs!$I$407:$K$407)*BG$21 -> 0 | BH38: =LOOKUP(BH$11,Inputs!$I$406:$K$406,Inputs!$I$407:$K$407)*BH$21 -> 0 | BI38: =LOOKUP(BI$11,Inputs!$I$406:$K$406,Inputs!$I$407:$K$407)*BI$21 -> 0 | BJ38: =LOOKUP(BJ$11,Inputs!$I$406:$K$406,Inputs!$I$407:$K$407)*BJ$21 -> 0 | BK38: =LOOKUP(BK$11,Inputs!$I$406:$K$406,Inputs!$I$407:$K$407)*BK$21 -> 0 | BL38: =LOOKUP(BL$11,Inputs!$I$406:$K$406,Inputs!$I$407:$K$407)*BL$21 -> 0 | BM38: =LOOKUP(BM$11,Inputs!$I$406:$K$406,Inputs!$I$407:$K$407)*BM$21 -> 0 | BN38: =LOOKUP(BN$11,Inputs!$I$406:$K$406,Inputs!$I$407:$K$407)*BN$21 -> 0 | BO38: =LOOKUP(BO$11,Inputs!$I$406:$K$406,Inputs!$I$407:$K$407)*BO$21 -> 0 | BP38: =LOOKUP(BP$11,Inputs!$I$406:$K$406,Inputs!$I$407:$K$407)*BP$21 -> 0 | BQ38: =LOOKUP(BQ$11,Inputs!$I$406:$K$406,Inputs!$I$407:$K$407)*BQ$21 -> 0 | BR38: =LOOKUP(BR$11,Inputs!$I$406:$K$406,Inputs!$I$407:$K$407)*BR$21 -> 0 | BS38: =LOOKUP(BS$11,Inputs!$I$406:$K$406,Inputs!$I$407:$K$407)*BS$21 -> 0 | BT38: =LOOKUP(BT$11,Inputs!$I$406:$K$406,Inputs!$I$407:$K$407)*BT$21 -> 0 | BU38: =LOOKUP(BU$11,Inputs!$I$406:$K$406,Inputs!$I$407:$K$407)*BU$21 -> 0 | BV38: =LOOKUP(BV$11,Inputs!$I$406:$K$406,Inputs!$I$407:$K$407)*BV$21 -> 0 | BW38: =LOOKUP(BW$11,Inputs!$I$406:$K$406,Inputs!$I$407:$K$407)*BW$21 -> 0 | BX38: =LOOKUP(BX$11,Inputs!$I$406:$K$406,Inputs!$I$407:$K$407)*BX$21 -> 0 | BY38: =LOOKUP(BY$11,Inputs!$I$406:$K$406,Inputs!$I$407:$K$407)*BY$21 -> 0 | BZ38: =LOOKUP(BZ$11,Inputs!$I$406:$K$406,Inputs!$I$407:$K$407)*BZ$21 -> 0
C39: Margin | D39: % p.a. | J39: =IF(J$21=0,0,LOOKUP(J$25,Inputs!$I$313:$L$313,Inputs!$I$314:$L$314)) -> 0 | K39: =IF(K$21=0,0,LOOKUP(K$25,Inputs!$I$313:$L$313,Inputs!$I$314:$L$314)) -> 0.03 | L39: =IF(L$21=0,0,LOOKUP(L$25,Inputs!$I$313:$L$313,Inputs!$I$314:$L$314)) -> 0.03 | M39: =IF(M$21=0,0,LOOKUP(M$25,Inputs!$I$313:$L$313,Inputs!$I$314:$L$314)) -> 0.03 | N39: =IF(N$21=0,0,LOOKUP(N$25,Inputs!$I$313:$L$313,Inputs!$I$314:$L$314)) -> 0.03 | O39: =IF(O$21=0,0,LOOKUP(O$25,Inputs!$I$313:$L$313,Inputs!$I$314:$L$314)) -> 0.03 | P39: =IF(P$21=0,0,LOOKUP(P$25,Inputs!$I$313:$L$313,Inputs!$I$314:$L$314)) -> 0.03 | Q39: =IF(Q$21=0,0,LOOKUP(Q$25,Inputs!$I$313:$L$313,Inputs!$I$314:$L$314)) -> 0.03 | R39: =IF(R$21=0,0,LOOKUP(R$25,Inputs!$I$313:$L$313,Inputs!$I$314:$L$314)) -> 0.03 | S39: =IF(S$21=0,0,LOOKUP(S$25,Inputs!$I$313:$L$313,Inputs!$I$314:$L$314)) -> 0.03 | T39: =IF(T$21=0,0,LOOKUP(T$25,Inputs!$I$313:$L$313,Inputs!$I$314:$L$314)) -> 0.03 | U39: =IF(U$21=0,0,LOOKUP(U$25,Inputs!$I$313:$L$313,Inputs!$I$314:$L$314)) -> 0.03 | V39: =IF(V$21=0,0,LOOKUP(V$25,Inputs!$I$313:$L$313,Inputs!$I$314:$L$314)) -> 0.03 | W39: =IF(W$21=0,0,LOOKUP(W$25,Inputs!$I$313:$L$313,Inputs!$I$314:$L$314)) -> 0 | X39: =IF(X$21=0,0,LOOKUP(X$25,Inputs!$I$313:$L$313,Inputs!$I$314:$L$314)) -> 0 | Y39: =IF(Y$21=0,0,LOOKUP(Y$25,Inputs!$I$313:$L$313,Inputs!$I$314:$L$314)) -> 0 | Z39: =IF(Z$21=0,0,LOOKUP(Z$25,Inputs!$I$313:$L$313,Inputs!$I$314:$L$314)) -> 0 | AA39: =IF(AA$21=0,0,LOOKUP(AA$25,Inputs!$I$313:$L$313,Inputs!$I$314:$L$314)) -> 0 | AB39: =IF(AB$21=0,0,LOOKUP(AB$25,Inputs!$I$313:$L$313,Inputs!$I$314:$L$314)) -> 0 | AC39: =IF(AC$21=0,0,LOOKUP(AC$25,Inputs!$I$313:$L$313,Inputs!$I$314:$L$314)) -> 0 | AD39: =IF(AD$21=0,0,LOOKUP(AD$25,Inputs!$I$313:$L$313,Inputs!$I$314:$L$314)) -> 0 | AE39: =IF(AE$21=0,0,LOOKUP(AE$25,Inputs!$I$313:$L$313,Inputs!$I$314:$L$314)) -> 0 | AF39: =IF(AF$21=0,0,LOOKUP(AF$25,Inputs!$I$313:$L$313,Inputs!$I$314:$L$314)) -> 0 | AG39: =IF(AG$21=0,0,LOOKUP(AG$25,Inputs!$I$313:$L$313,Inputs!$I$314:$L$314)) -> 0 | AH39: =IF(AH$21=0,0,LOOKUP(AH$25,Inputs!$I$313:$L$313,Inputs!$I$314:$L$314)) -> 0 | AI39: =IF(AI$21=0,0,LOOKUP(AI$25,Inputs!$I$313:$L$313,Inputs!$I$314:$L$314)) -> 0 | AJ39: =IF(AJ$21=0,0,LOOKUP(AJ$25,Inputs!$I$313:$L$313,Inputs!$I$314:$L$314)) -> 0 | AK39: =IF(AK$21=0,0,LOOKUP(AK$25,Inputs!$I$313:$L$313,Inputs!$I$314:$L$314)) -> 0 | AL39: =IF(AL$21=0,0,LOOKUP(AL$25,Inputs!$I$313:$L$313,Inputs!$I$314:$L$314)) -> 0 | AM39: =IF(AM$21=0,0,LOOKUP(AM$25,Inputs!$I$313:$L$313,Inputs!$I$314:$L$314)) -> 0 | AN39: =IF(AN$21=0,0,LOOKUP(AN$25,Inputs!$I$313:$L$313,Inputs!$I$314:$L$314)) -> 0 | AO39: =IF(AO$21=0,0,LOOKUP(AO$25,Inputs!$I$313:$L$313,Inputs!$I$314:$L$314)) -> 0 | AP39: =IF(AP$21=0,0,LOOKUP(AP$25,Inputs!$I$313:$L$313,Inputs!$I$314:$L$314)) -> 0 | AQ39: =IF(AQ$21=0,0,LOOKUP(AQ$25,Inputs!$I$313:$L$313,Inputs!$I$314:$L$314)) -> 0 | AR39: =IF(AR$21=0,0,LOOKUP(AR$25,Inputs!$I$313:$L$313,Inputs!$I$314:$L$314)) -> 0 | AS39: =IF(AS$21=0,0,LOOKUP(AS$25,Inputs!$I$313:$L$313,Inputs!$I$314:$L$314)) -> 0 | AT39: =IF(AT$21=0,0,LOOKUP(AT$25,Inputs!$I$313:$L$313,Inputs!$I$314:$L$314)) -> 0 | AU39: =IF(AU$21=0,0,LOOKUP(AU$25,Inputs!$I$313:$L$313,Inputs!$I$314:$L$314)) -> 0 | AV39: =IF(AV$21=0,0,LOOKUP(AV$25,Inputs!$I$313:$L$313,Inputs!$I$314:$L$314)) -> 0 | AW39: =IF(AW$21=0,0,LOOKUP(AW$25,Inputs!$I$313:$L$313,Inputs!$I$314:$L$314)) -> 0 | AX39: =IF(AX$21=0,0,LOOKUP(AX$25,Inputs!$I$313:$L$313,Inputs!$I$314:$L$314)) -> 0 | AY39: =IF(AY$21=0,0,LOOKUP(AY$25,Inputs!$I$313:$L$313,Inputs!$I$314:$L$314)) -> 0 | AZ39: =IF(AZ$21=0,0,LOOKUP(AZ$25,Inputs!$I$313:$L$313,Inputs!$I$314:$L$314)) -> 0 | BA39: =IF(BA$21=0,0,LOOKUP(BA$25,Inputs!$I$313:$L$313,Inputs!$I$314:$L$314)) -> 0 | BB39: =IF(BB$21=0,0,LOOKUP(BB$25,Inputs!$I$313:$L$313,Inputs!$I$314:$L$314)) -> 0 | BC39: =IF(BC$21=0,0,LOOKUP(BC$25,Inputs!$I$313:$L$313,Inputs!$I$314:$L$314)) -> 0 | BD39: =IF(BD$21=0,0,LOOKUP(BD$25,Inputs!$I$313:$L$313,Inputs!$I$314:$L$314)) -> 0 | BE39: =IF(BE$21=0,0,LOOKUP(BE$25,Inputs!$I$313:$L$313,Inputs!$I$314:$L$314)) -> 0 | BF39: =IF(BF$21=0,0,LOOKUP(BF$25,Inputs!$I$313:$L$313,Inputs!$I$314:$L$314)) -> 0 | BG39: =IF(BG$21=0,0,LOOKUP(BG$25,Inputs!$I$313:$L$313,Inputs!$I$314:$L$314)) -> 0 | BH39: =IF(BH$21=0,0,LOOKUP(BH$25,Inputs!$I$313:$L$313,Inputs!$I$314:$L$314)) -> 0 | BI39: =IF(BI$21=0,0,LOOKUP(BI$25,Inputs!$I$313:$L$313,Inputs!$I$314:$L$314)) -> 0 | BJ39: =IF(BJ$21=0,0,LOOKUP(BJ$25,Inputs!$I$313:$L$313,Inputs!$I$314:$L$314)) -> 0 | BK39: =IF(BK$21=0,0,LOOKUP(BK$25,Inputs!$I$313:$L$313,Inputs!$I$314:$L$314)) -> 0 | BL39: =IF(BL$21=0,0,LOOKUP(BL$25,Inputs!$I$313:$L$313,Inputs!$I$314:$L$314)) -> 0 | BM39: =IF(BM$21=0,0,LOOKUP(BM$25,Inputs!$I$313:$L$313,Inputs!$I$314:$L$314)) -> 0 | BN39: =IF(BN$21=0,0,LOOKUP(BN$25,Inputs!$I$313:$L$313,Inputs!$I$314:$L$314)) -> 0 | BO39: =IF(BO$21=0,0,LOOKUP(BO$25,Inputs!$I$313:$L$313,Inputs!$I$314:$L$314)) -> 0 | BP39: =IF(BP$21=0,0,LOOKUP(BP$25,Inputs!$I$313:$L$313,Inputs!$I$314:$L$314)) -> 0 | BQ39: =IF(BQ$21=0,0,LOOKUP(BQ$25,Inputs!$I$313:$L$313,Inputs!$I$314:$L$314)) -> 0 | BR39: =IF(BR$21=0,0,LOOKUP(BR$25,Inputs!$I$313:$L$313,Inputs!$I$314:$L$314)) -> 0 | BS39: =IF(BS$21=0,0,LOOKUP(BS$25,Inputs!$I$313:$L$313,Inputs!$I$314:$L$314)) -> 0 | BT39: =IF(BT$21=0,0,LOOKUP(BT$25,Inputs!$I$313:$L$313,Inputs!$I$314:$L$314)) -> 0 | BU39: =IF(BU$21=0,0,LOOKUP(BU$25,Inputs!$I$313:$L$313,Inputs!$I$314:$L$314)) -> 0 | BV39: =IF(BV$21=0,0,LOOKUP(BV$25,Inputs!$I$313:$L$313,Inputs!$I$314:$L$314)) -> 0 | BW39: =IF(BW$21=0,0,LOOKUP(BW$25,Inputs!$I$313:$L$313,Inputs!$I$314:$L$314)) -> 0 | BX39: =IF(BX$21=0,0,LOOKUP(BX$25,Inputs!$I$313:$L$313,Inputs!$I$314:$L$314)) -> 0 | BY39: =IF(BY$21=0,0,LOOKUP(BY$25,Inputs!$I$313:$L$313,Inputs!$I$314:$L$314)) -> 0 | BZ39: =IF(BZ$21=0,0,LOOKUP(BZ$25,Inputs!$I$313:$L$313,Inputs!$I$314:$L$314)) -> 0
C40: All-in rate | D40: % p.a. | E40: =Inputs!E314 -> Floating | J40: =SUM(J38:J39) -> 0 | K40: =SUM(K38:K39) -> 0.05 | L40: 0.05 | M40: 0.05 | N40: 0.05 | O40: 0.05 | P40: 0.05 | Q40: 0.05 | R40: 0.05 | S40: 0.05 | T40: 0.05 | U40: 0.05 | V40: 0.05 | W40: 0 | X40: 0 | Y40: 0 | Z40: 0 | AA40: 0 | AB40: 0 | AC40: 0 | AD40: 0 | AE40: 0 | AF40: 0 | AG40: 0 | AH40: 0 | AI40: 0 | AJ40: 0 | AK40: 0 | AL40: 0 | AM40: 0 | AN40: 0 | AO40: 0 | AP40: 0 | AQ40: 0 | AR40: 0 | AS40: 0 | AT40: 0 | AU40: 0 | AV40: 0 | AW40: 0 | AX40: 0 | AY40: 0 | AZ40: 0 | BA40: 0 | BB40: 0 | BC40: 0 | BD40: 0 | BE40: 0 | BF40: 0 | BG40: 0 | BH40: 0 | BI40: 0 | BJ40: 0 | BK40: 0 | BL40: 0 | BM40: 0 | BN40: 0 | BO40: 0 | BP40: 0 | BQ40: 0 | BR40: 0 | BS40: 0 | BT40: 0 | BU40: 0 | BV40: 0 | BW40: =SUM(BW38:BW39) -> 0 | BX40: =SUM(BX38:BX39) -> 0 | BY40: =SUM(BY38:BY39) -> 0 | BZ40: =SUM(BZ38:BZ39) -> 0
C42: Fixed All-in
C43: All-in rate | D43: % p.a. | E43: =Inputs!E315 -> Fixed | J43: =IF(J$21=0,0,LOOKUP(J$21,Inputs!$I$313:$L$313,Inputs!$I$315:$L$315)) -> 0 | K43: =IF(K$21=0,0,LOOKUP(K$21,Inputs!$I$313:$L$313,Inputs!$I$315:$L$315)) -> 0.07 | L43: =IF(L$21=0,0,LOOKUP(L$21,Inputs!$I$313:$L$313,Inputs!$I$315:$L$315)) -> 0.07 | M43: =IF(M$21=0,0,LOOKUP(M$21,Inputs!$I$313:$L$313,Inputs!$I$315:$L$315)) -> 0.07 | N43: =IF(N$21=0,0,LOOKUP(N$21,Inputs!$I$313:$L$313,Inputs!$I$315:$L$315)) -> 0.07 | O43: =IF(O$21=0,0,LOOKUP(O$21,Inputs!$I$313:$L$313,Inputs!$I$315:$L$315)) -> 0.07 | P43: =IF(P$21=0,0,LOOKUP(P$21,Inputs!$I$313:$L$313,Inputs!$I$315:$L$315)) -> 0.07 | Q43: =IF(Q$21=0,0,LOOKUP(Q$21,Inputs!$I$313:$L$313,Inputs!$I$315:$L$315)) -> 0.07 | R43: =IF(R$21=0,0,LOOKUP(R$21,Inputs!$I$313:$L$313,Inputs!$I$315:$L$315)) -> 0.07 | S43: =IF(S$21=0,0,LOOKUP(S$21,Inputs!$I$313:$L$313,Inputs!$I$315:$L$315)) -> 0.07 | T43: =IF(T$21=0,0,LOOKUP(T$21,Inputs!$I$313:$L$313,Inputs!$I$315:$L$315)) -> 0.07 | U43: =IF(U$21=0,0,LOOKUP(U$21,Inputs!$I$313:$L$313,Inputs!$I$315:$L$315)) -> 0.07 | V43: =IF(V$21=0,0,LOOKUP(V$21,Inputs!$I$313:$L$313,Inputs!$I$315:$L$315)) -> 0.07 | W43: =IF(W$21=0,0,LOOKUP(W$21,Inputs!$I$313:$L$313,Inputs!$I$315:$L$315)) -> 0 | X43: =IF(X$21=0,0,LOOKUP(X$21,Inputs!$I$313:$L$313,Inputs!$I$315:$L$315)) -> 0 | Y43: =IF(Y$21=0,0,LOOKUP(Y$21,Inputs!$I$313:$L$313,Inputs!$I$315:$L$315)) -> 0 | Z43: =IF(Z$21=0,0,LOOKUP(Z$21,Inputs!$I$313:$L$313,Inputs!$I$315:$L$315)) -> 0 | AA43: =IF(AA$21=0,0,LOOKUP(AA$21,Inputs!$I$313:$L$313,Inputs!$I$315:$L$315)) -> 0 | AB43: =IF(AB$21=0,0,LOOKUP(AB$21,Inputs!$I$313:$L$313,Inputs!$I$315:$L$315)) -> 0 | AC43: =IF(AC$21=0,0,LOOKUP(AC$21,Inputs!$I$313:$L$313,Inputs!$I$315:$L$315)) -> 0 | AD43: =IF(AD$21=0,0,LOOKUP(AD$21,Inputs!$I$313:$L$313,Inputs!$I$315:$L$315)) -> 0 | AE43: =IF(AE$21=0,0,LOOKUP(AE$21,Inputs!$I$313:$L$313,Inputs!$I$315:$L$315)) -> 0 | AF43: =IF(AF$21=0,0,LOOKUP(AF$21,Inputs!$I$313:$L$313,Inputs!$I$315:$L$315)) -> 0 | AG43: =IF(AG$21=0,0,LOOKUP(AG$21,Inputs!$I$313:$L$313,Inputs!$I$315:$L$315)) -> 0 | AH43: =IF(AH$21=0,0,LOOKUP(AH$21,Inputs!$I$313:$L$313,Inputs!$I$315:$L$315)) -> 0 | AI43: =IF(AI$21=0,0,LOOKUP(AI$21,Inputs!$I$313:$L$313,Inputs!$I$315:$L$315)) -> 0 | AJ43: =IF(AJ$21=0,0,LOOKUP(AJ$21,Inputs!$I$313:$L$313,Inputs!$I$315:$L$315)) -> 0 | AK43: =IF(AK$21=0,0,LOOKUP(AK$21,Inputs!$I$313:$L$313,Inputs!$I$315:$L$315)) -> 0 | AL43: =IF(AL$21=0,0,LOOKUP(AL$21,Inputs!$I$313:$L$313,Inputs!$I$315:$L$315)) -> 0 | AM43: =IF(AM$21=0,0,LOOKUP(AM$21,Inputs!$I$313:$L$313,Inputs!$I$315:$L$315)) -> 0 | AN43: =IF(AN$21=0,0,LOOKUP(AN$21,Inputs!$I$313:$L$313,Inputs!$I$315:$L$315)) -> 0 | AO43: =IF(AO$21=0,0,LOOKUP(AO$21,Inputs!$I$313:$L$313,Inputs!$I$315:$L$315)) -> 0 | AP43: =IF(AP$21=0,0,LOOKUP(AP$21,Inputs!$I$313:$L$313,Inputs!$I$315:$L$315)) -> 0 | AQ43: =IF(AQ$21=0,0,LOOKUP(AQ$21,Inputs!$I$313:$L$313,Inputs!$I$315:$L$315)) -> 0 | AR43: =IF(AR$21=0,0,LOOKUP(AR$21,Inputs!$I$313:$L$313,Inputs!$I$315:$L$315)) -> 0 | AS43: =IF(AS$21=0,0,LOOKUP(AS$21,Inputs!$I$313:$L$313,Inputs!$I$315:$L$315)) -> 0 | AT43: =IF(AT$21=0,0,LOOKUP(AT$21,Inputs!$I$313:$L$313,Inputs!$I$315:$L$315)) -> 0 | AU43: =IF(AU$21=0,0,LOOKUP(AU$21,Inputs!$I$313:$L$313,Inputs!$I$315:$L$315)) -> 0 | AV43: =IF(AV$21=0,0,LOOKUP(AV$21,Inputs!$I$313:$L$313,Inputs!$I$315:$L$315)) -> 0 | AW43: =IF(AW$21=0,0,LOOKUP(AW$21,Inputs!$I$313:$L$313,Inputs!$I$315:$L$315)) -> 0 | AX43: =IF(AX$21=0,0,LOOKUP(AX$21,Inputs!$I$313:$L$313,Inputs!$I$315:$L$315)) -> 0 | AY43: =IF(AY$21=0,0,LOOKUP(AY$21,Inputs!$I$313:$L$313,Inputs!$I$315:$L$315)) -> 0 | AZ43: =IF(AZ$21=0,0,LOOKUP(AZ$21,Inputs!$I$313:$L$313,Inputs!$I$315:$L$315)) -> 0 | BA43: =IF(BA$21=0,0,LOOKUP(BA$21,Inputs!$I$313:$L$313,Inputs!$I$315:$L$315)) -> 0 | BB43: =IF(BB$21=0,0,LOOKUP(BB$21,Inputs!$I$313:$L$313,Inputs!$I$315:$L$315)) -> 0 | BC43: =IF(BC$21=0,0,LOOKUP(BC$21,Inputs!$I$313:$L$313,Inputs!$I$315:$L$315)) -> 0 | BD43: =IF(BD$21=0,0,LOOKUP(BD$21,Inputs!$I$313:$L$313,Inputs!$I$315:$L$315)) -> 0 | BE43: =IF(BE$21=0,0,LOOKUP(BE$21,Inputs!$I$313:$L$313,Inputs!$I$315:$L$315)) -> 0 | BF43: =IF(BF$21=0,0,LOOKUP(BF$21,Inputs!$I$313:$L$313,Inputs!$I$315:$L$315)) -> 0 | BG43: =IF(BG$21=0,0,LOOKUP(BG$21,Inputs!$I$313:$L$313,Inputs!$I$315:$L$315)) -> 0 | BH43: =IF(BH$21=0,0,LOOKUP(BH$21,Inputs!$I$313:$L$313,Inputs!$I$315:$L$315)) -> 0 | BI43: =IF(BI$21=0,0,LOOKUP(BI$21,Inputs!$I$313:$L$313,Inputs!$I$315:$L$315)) -> 0 | BJ43: =IF(BJ$21=0,0,LOOKUP(BJ$21,Inputs!$I$313:$L$313,Inputs!$I$315:$L$315)) -> 0 | BK43: =IF(BK$21=0,0,LOOKUP(BK$21,Inputs!$I$313:$L$313,Inputs!$I$315:$L$315)) -> 0 | BL43: =IF(BL$21=0,0,LOOKUP(BL$21,Inputs!$I$313:$L$313,Inputs!$I$315:$L$315)) -> 0 | BM43: =IF(BM$21=0,0,LOOKUP(BM$21,Inputs!$I$313:$L$313,Inputs!$I$315:$L$315)) -> 0 | BN43: =IF(BN$21=0,0,LOOKUP(BN$21,Inputs!$I$313:$L$313,Inputs!$I$315:$L$315)) -> 0 | BO43: =IF(BO$21=0,0,LOOKUP(BO$21,Inputs!$I$313:$L$313,Inputs!$I$315:$L$315)) -> 0 | BP43: =IF(BP$21=0,0,LOOKUP(BP$21,Inputs!$I$313:$L$313,Inputs!$I$315:$L$315)) -> 0 | BQ43: =IF(BQ$21=0,0,LOOKUP(BQ$21,Inputs!$I$313:$L$313,Inputs!$I$315:$L$315)) -> 0 | BR43: =IF(BR$21=0,0,LOOKUP(BR$21,Inputs!$I$313:$L$313,Inputs!$I$315:$L$315)) -> 0 | BS43: =IF(BS$21=0,0,LOOKUP(BS$21,Inputs!$I$313:$L$313,Inputs!$I$315:$L$315)) -> 0 | BT43: =IF(BT$21=0,0,LOOKUP(BT$21,Inputs!$I$313:$L$313,Inputs!$I$315:$L$315)) -> 0 | BU43: =IF(BU$21=0,0,LOOKUP(BU$21,Inputs!$I$313:$L$313,Inputs!$I$315:$L$315)) -> 0 | BV43: =IF(BV$21=0,0,LOOKUP(BV$21,Inputs!$I$313:$L$313,Inputs!$I$315:$L$315)) -> 0 | BW43: =IF(BW$21=0,0,LOOKUP(BW$21,Inputs!$I$313:$L$313,Inputs!$I$315:$L$315)) -> 0 | BX43: =IF(BX$21=0,0,LOOKUP(BX$21,Inputs!$I$313:$L$313,Inputs!$I$315:$L$315)) -> 0 | BY43: =IF(BY$21=0,0,LOOKUP(BY$21,Inputs!$I$313:$L$313,Inputs!$I$315:$L$315)) -> 0 | BZ43: =IF(BZ$21=0,0,LOOKUP(BZ$21,Inputs!$I$313:$L$313,Inputs!$I$315:$L$315)) -> 0
C45: Selected interest rate | D45: % p.a. | E45: =Inputs!E316 -> Fixed | J45: =IF($E45=$E40,J40,J43) -> 0 | K45: =IF($E45=$E40,K40,K43) -> 0.07 | L45: 0.07 | M45: 0.07 | N45: 0.07 | O45: 0.07 | P45: 0.07 | Q45: 0.07 | R45: 0.07 | S45: 0.07 | T45: 0.07 | U45: 0.07 | V45: 0.07 | W45: 0 | X45: 0 | Y45: 0 | Z45: 0 | AA45: 0 | AB45: 0 | AC45: 0 | AD45: 0 | AE45: 0 | AF45: 0 | AG45: 0 | AH45: 0 | AI45: 0 | AJ45: 0 | AK45: 0 | AL45: 0 | AM45: 0 | AN45: 0 | AO45: 0 | AP45: 0 | AQ45: 0 | AR45: 0 | AS45: 0 | AT45: 0 | AU45: 0 | AV45: 0 | AW45: 0 | AX45: 0 | AY45: 0 | AZ45: 0 | BA45: 0 | BB45: 0 | BC45: 0 | BD45: 0 | BE45: 0 | BF45: 0 | BG45: 0 | BH45: 0 | BI45: 0 | BJ45: 0 | BK45: 0 | BL45: 0 | BM45: 0 | BN45: 0 | BO45: 0 | BP45: 0 | BQ45: 0 | BR45: 0 | BS45: 0 | BT45: 0 | BU45: 0 | BV45: 0 | BW45: =IF($E45=$E40,BW40,BW43) -> 0 | BX45: =IF($E45=$E40,BX40,BX43) -> 0 | BY45: =IF($E45=$E40,BY40,BY43) -> 0 | BZ45: =IF($E45=$E40,BZ40,BZ43) -> 0
C47: Interest paid
C48: Interest | D48: $ | I48: =SUM(J48:BZ48) -> 3463118.815 | J48: =J$45*SUM(J$30:J$31) -> 0 | K48: =K$45*SUM(K$30:K$31) -> 408711.209 | L48: 408711.209 | M48: 397288.2428 | N48: 380148.8786 | O48: 361872.3822 | P48: 333047.7345 | Q48: 294587.9472 | R48: 257091.7807 | S48: 213619.1323 | T48: 165211.1019 | U48: 152725.6916 | V48: 90103.50551 | W48: 0 | X48: 0 | Y48: 0 | Z48: 0 | AA48: 0 | AB48: 0 | AC48: 0 | AD48: 0 | AE48: 0 | AF48: 0 | AG48: 0 | AH48: 0 | AI48: 0 | AJ48: 0 | AK48: 0 | AL48: 0 | AM48: 0 | AN48: 0 | AO48: 0 | AP48: 0 | AQ48: 0 | AR48: 0 | AS48: 0 | AT48: 0 | AU48: 0 | AV48: 0 | AW48: 0 | AX48: 0 | AY48: 0 | AZ48: 0 | BA48: 0 | BB48: 0 | BC48: 0 | BD48: 0 | BE48: 0 | BF48: 0 | BG48: 0 | BH48: 0 | BI48: 0 | BJ48: 0 | BK48: 0 | BL48: 0 | BM48: 0 | BN48: 0 | BO48: 0 | BP48: 0 | BQ48: 0 | BR48: 0 | BS48: 0 | BT48: 0 | BU48: 0 | BV48: 0 | BW48: =BW$45*SUM(BW$30:BW$31) -> 0 | BX48: 0 | BY48: 0 | BZ48: 0
C50: Principal repayment
C51: Sculpted
C52: Calculate? | D52: [1,0] | I52: =SUM(J52:BZ52) -> 11 | J52: =J23 -> 0 | K52: 0 | L52: 1 | M52: 1 | N52: 1 | O52: 1 | P52: 1 | Q52: 1 | R52: 1 | S52: 1 | T52: 1 | U52: 1 | V52: 1 | W52: 0 | X52: 0 | Y52: 0 | Z52: 0 | AA52: 0 | AB52: 0 | AC52: 0 | AD52: 0 | AE52: 0 | AF52: 0 | AG52: 0 | AH52: 0 | AI52: 0 | AJ52: 0 | AK52: 0 | AL52: 0 | AM52: 0 | AN52: 0 | AO52: 0 | AP52: =AP23 -> 0 | AQ52: 0 | AR52: 0 | AS52: 0 | AT52: 0 | AU52: 0 | AV52: 0 | AW52: 0 | AX52: 0 | AY52: 0 | AZ52: 0 | BA52: 0 | BB52: 0 | BC52: 0 | BD52: 0 | BE52: 0 | BF52: 0 | BG52: 0 | BH52: 0 | BI52: 0 | BJ52: 0 | BK52: 0 | BL52: 0 | BM52: 0 | BN52: 0 | BO52: 0 | BP52: 0 | BQ52: 0 | BR52: 0 | BS52: 0 | BT52: 0 | BU52: 0 | BV52: 0 | BW52: 0 | BX52: 0 | BY52: 0 | BZ52: 0
C54: CFADS | D54: $ | I54: =SUM(J54:BZ54) -> 23622725.47 | J54: =Model!J$291 -> 0 | K54: =Model!K$291 -> 338351.7908 | L54: =Model!L$291 -> 686275.7286 | M54: =Model!M$291 -> 770563.5641 | N54: =Model!N$291 -> 769490.0202 | O54: =Model!O$291 -> 928383.6772 | P54: =Model!P$291 -> 1058967.92 | Q54: =Model!Q$291 -> 996296.9622 | R54: =Model!R$291 -> 1053755.539 | S54: =Model!S$291 -> 1086194.908 | T54: =Model!T$291 -> 412288.9278 | U54: =Model!U$291 -> 1256794.02 | V54: =Model!V$291 -> 2030506.891 | W54: =Model!W$291 -> 1333077.493 | X54: =Model!X$291 -> 1261728.617 | Y54: =Model!Y$291 -> 1378434.887 | Z54: =Model!Z$291 -> 1461529.975 | AA54: =Model!AA$291 -> 1568029.106 | AB54: =Model!AB$291 -> 1650081.96 | AC54: =Model!AC$291 -> 1758143.796 | AD54: =Model!AD$291 -> 1823829.687 | AE54: =Model!AE$291 -> 0 | AF54: =Model!AF$291 -> 0 | AG54: =Model!AG$291 -> 0 | AH54: =Model!AH$291 -> 0 | AI54: =Model!AI$291 -> 0 | AJ54: =Model!AJ$291 -> 0 | AK54: =Model!AK$291 -> 0 | AL54: =Model!AL$291 -> 0 | AM54: =Model!AM$291 -> 0 | AN54: =Model!AN$291 -> 0 | AO54: =Model!AO$291 -> 0 | AP54: =Model!AP$291 -> 0 | AQ54: =Model!AQ$291 -> 0 | AR54: =Model!AR$291 -> 0 | AS54: =Model!AS$291 -> 0 | AT54: =Model!AT$291 -> 0 | AU54: =Model!AU$291 -> 0 | AV54: =Model!AV$291 -> 0 | AW54: =Model!AW$291 -> 0 | AX54: =Model!AX$291 -> 0 | AY54: =Model!AY$291 -> 0 | AZ54: =Model!AZ$291 -> 0 | BA54: =Model!BA$291 -> 0 | BB54: =Model!BB$291 -> 0 | BC54: =Model!BC$291 -> 0 | BD54: =Model!BD$291 -> 0 | BE54: =Model!BE$291 -> 0 | BF54: =Model!BF$291 -> 0 | BG54: =Model!BG$291 -> 0 | BH54: =Model!BH$291 -> 0 | BI54: =Model!BI$291 -> 0 | BJ54: =Model!BJ$291 -> 0 | BK54: =Model!BK$291 -> 0 | BL54: =Model!BL$291 -> 0 | BM54: =Model!BM$291 -> 0 | BN54: =Model!BN$291 -> 0 | BO54: =Model!BO$291 -> 0 | BP54: =Model!BP$291 -> 0 | BQ54: =Model!BQ$291 -> 0 | BR54: =Model!BR$291 -> 0 | BS54: =Model!BS$291 -> 0 | BT54: =Model!BT$291 -> 0 | BU54: =Model!BU$291 -> 0 | BV54: =Model!BV$291 -> 0 | BW54: =Model!BW$291 -> 0 | BX54: =Model!BX$291 -> 0 | BY54: =Model!BY$291 -> 0 | BZ54: =Model!BZ$291 -> 0
C55: Qualifying CFADS | D55: $ | I55: =SUM(J55:BZ55) -> 11049518.16 | J55: =J54*J$23 -> 0 | K55: =K54*K$23 -> 0 | L55: 686275.7286 | M55: 770563.5641 | N55: 769490.0202 | O55: 928383.6772 | P55: 1058967.92 | Q55: 996296.9622 | R55: 1053755.539 | S55: 1086194.908 | T55: 412288.9278 | U55: 1256794.02 | V55: 2030506.891 | W55: 0 | X55: 0 | Y55: 0 | Z55: 0 | AA55: 0 | AB55: 0 | AC55: 0 | AD55: 0 | AE55: 0 | AF55: 0 | AG55: 0 | AH55: 0 | AI55: 0 | AJ55: 0 | AK55: 0 | AL55: 0 | AM55: 0 | AN55: 0 | AO55: 0 | AP55: 0 | AQ55: 0 | AR55: 0 | AS55: 0 | AT55: 0 | AU55: 0 | AV55: 0 | AW55: 0 | AX55: 0 | AY55: 0 | AZ55: 0 | BA55: 0 | BB55: 0 | BC55: 0 | BD55: 0 | BE55: 0 | BF55: 0 | BG55: 0 | BH55: 0 | BI55: 0 | BJ55: 0 | BK55: 0 | BL55: 0 | BM55: 0 | BN55: 0 | BO55: 0 | BP55: 0 | BQ55: 0 | BR55: 0 | BS55: 0 | BT55: 0 | BU55: 0 | BV55: 0 | BW55: =BW54*BW$23 -> 0 | BX55: =BX54*BX$23 -> 0 | BY55: =BY54*BY$23 -> 0 | BZ55: =BZ54*BZ$23 -> 0
C56: DSCR | D56: x | E56: =Inputs!E329 -> 1.2 | J56: =$E56*J52 -> 0 | K56: 0 | L56: 1.2 | M56: 1.2 | N56: 1.2 | O56: 1.2 | P56: 1.2 | Q56: 1.2 | R56: 1.2 | S56: 1.2 | T56: 1.2 | U56: 1.2 | V56: 1.2 | W56: 0 | X56: 0 | Y56: 0 | Z56: 0 | AA56: 0 | AB56: 0 | AC56: 0 | AD56: 0 | AE56: 0 | AF56: 0 | AG56: 0 | AH56: 0 | AI56: 0 | AJ56: 0 | AK56: 0 | AL56: 0 | AM56: 0 | AN56: 0 | AO56: 0 | AP56: =$E56*AP52 -> 0 | AQ56: 0 | AR56: 0 | AS56: 0 | AT56: 0 | AU56: 0 | AV56: 0 | AW56: 0 | AX56: 0 | AY56: 0 | AZ56: 0 | BA56: 0 | BB56: 0 | BC56: 0 | BD56: 0 | BE56: 0 | BF56: 0 | BG56: 0 | BH56: 0 | BI56: 0 | BJ56: 0 | BK56: 0 | BL56: 0 | BM56: 0 | BN56: 0 | BO56: 0 | BP56: 0 | BQ56: 0 | BR56: 0 | BS56: 0 | BT56: 0 | BU56: 0 | BV56: 0 | BW56: 0 | BX56: 0 | BY56: 0 | BZ56: 0
C58: Max debt service | D58: $ | I58: =SUM(J58:BZ58) -> 9207931.798 | J58: =IF(J52=0,0,J55/J56) -> 0 | K58: 0 | L58: 571896.4405 | M58: 642136.3034 | N58: 641241.6835 | O58: 773653.0643 | P58: 882473.2664 | Q58: 830247.4685 | R58: 878129.616 | S58: 905162.4233 | T58: 343574.1065 | U58: 1047328.35 | V58: 1692089.076 | W58: 0 | X58: 0 | Y58: 0 | Z58: 0 | AA58: 0 | AB58: 0 | AC58: 0 | AD58: 0 | AE58: 0 | AF58: 0 | AG58: 0 | AH58: 0 | AI58: 0 | AJ58: 0 | AK58: 0 | AL58: 0 | AM58: 0 | AN58: 0 | AO58: 0 | AP58: =IF(AP52=0,0,AP55/AP56) -> 0 | AQ58: 0 | AR58: 0 | AS58: 0 | AT58: 0 | AU58: 0 | AV58: 0 | AW58: 0 | AX58: 0 | AY58: 0 | AZ58: 0 | BA58: 0 | BB58: 0 | BC58: 0 | BD58: 0 | BE58: 0 | BF58: 0 | BG58: 0 | BH58: 0 | BI58: 0 | BJ58: 0 | BK58: 0 | BL58: 0 | BM58: 0 | BN58: 0 | BO58: 0 | BP58: 0 | BQ58: 0 | BR58: 0 | BS58: 0 | BT58: 0 | BU58: 0 | BV58: 0 | BW58: 0 | BX58: 0 | BY58: 0 | BZ58: 0
C59: Less Interest | D59: $ | I59: =SUM(J59:BZ59) -> -3054407.606 | J59: =-J52*J48 -> 0 | K59: 0 | L59: -408711.209 | M59: -397288.2428 | N59: -380148.8786 | O59: -361872.3822 | P59: -333047.7345 | Q59: -294587.9472 | R59: -257091.7807 | S59: -213619.1323 | T59: -165211.1019 | U59: -152725.6916 | V59: -90103.50551 | W59: 0 | X59: 0 | Y59: 0 | Z59: 0 | AA59: 0 | AB59: 0 | AC59: 0 | AD59: 0 | AE59: 0 | AF59: 0 | AG59: 0 | AH59: 0 | AI59: 0 | AJ59: 0 | AK59: 0 | AL59: 0 | AM59: 0 | AN59: 0 | AO59: 0 | AP59: =-AP52*AP48 -> 0 | AQ59: 0 | AR59: 0 | AS59: 0 | AT59: 0 | AU59: 0 | AV59: 0 | AW59: 0 | AX59: 0 | AY59: 0 | AZ59: 0 | BA59: 0 | BB59: 0 | BC59: 0 | BD59: 0 | BE59: 0 | BF59: 0 | BG59: 0 | BH59: 0 | BI59: 0 | BJ59: 0 | BK59: 0 | BL59: 0 | BM59: 0 | BN59: 0 | BO59: 0 | BP59: 0 | BQ59: 0 | BR59: 0 | BS59: 0 | BT59: 0 | BU59: 0 | BV59: 0 | BW59: 0 | BX59: 0 | BY59: 0 | BZ59: 0
C60: Max principal repayment | D60: $ | I60: =SUM(J60:BZ60) -> 6153524.192 | J60: =MAX(SUM(J58:J59),0) -> 0 | K60: =MAX(SUM(K58:K59),0) -> 0 | L60: 163185.2315 | M60: 244848.0606 | N60: 261092.805 | O60: 411780.6821 | P60: 549425.5319 | Q60: 535659.5213 | R60: 621037.8353 | S60: 691543.291 | T60: 178363.0046 | U60: 894602.6582 | V60: 1601985.57 | W60: 0 | X60: 0 | Y60: 0 | Z60: 0 | AA60: 0 | AB60: 0 | AC60: 0 | AD60: 0 | AE60: 0 | AF60: 0 | AG60: 0 | AH60: 0 | AI60: 0 | AJ60: 0 | AK60: 0 | AL60: 0 | AM60: 0 | AN60: 0 | AO60: 0 | AP60: 0 | AQ60: 0 | AR60: 0 | AS60: 0 | AT60: 0 | AU60: 0 | AV60: 0 | AW60: 0 | AX60: 0 | AY60: 0 | AZ60: 0 | BA60: 0 | BB60: 0 | BC60: 0 | BD60: 0 | BE60: 0 | BF60: 0 | BG60: 0 | BH60: 0 | BI60: 0 | BJ60: 0 | BK60: 0 | BL60: 0 | BM60: 0 | BN60: 0 | BO60: 0 | BP60: 0 | BQ60: 0 | BR60: 0 | BS60: 0 | BT60: 0 | BU60: 0 | BV60: 0 | BW60: =MAX(SUM(BW58:BW59),0) -> 0 | BX60: =MAX(SUM(BX58:BX59),0) -> 0 | BY60: =MAX(SUM(BY58:BY59),0) -> 0 | BZ60: =MAX(SUM(BZ58:BZ59),0) -> 0
C63: Senior Debt Re-fi
C64: Flags | F64: Refi on?
C65: Refi flag | D65: Num# | E65: =Inputs!$E$336 -> 5 | F65: =Inputs!G336 -> 0 | J65: =($E65=J$25)*$F$65 -> 0 | K65: 0 | L65: 0 | M65: 0 | N65: 0 | O65: 0 | P65: 0 | Q65: 0 | R65: 0 | S65: 0 | T65: 0 | U65: 0 | V65: 0 | W65: 0 | X65: 0 | Y65: 0 | Z65: 0 | AA65: 0 | AB65: 0 | AC65: 0 | AD65: 0 | AE65: 0 | AF65: 0 | AG65: 0 | AH65: 0 | AI65: 0 | AJ65: 0 | AK65: 0 | AL65: 0 | AM65: 0 | AN65: 0 | AO65: 0 | AP65: =($E65=AP$25)*$F$65 -> 0 | AQ65: 0 | AR65: 0 | AS65: 0 | AT65: 0 | AU65: 0 | AV65: 0 | AW65: 0 | AX65: 0 | AY65: 0 | AZ65: 0 | BA65: 0 | BB65: 0 | BC65: 0 | BD65: 0 | BE65: 0 | BF65: 0 | BG65: 0 | BH65: 0 | BI65: 0 | BJ65: 0 | BK65: 0 | BL65: 0 | BM65: 0 | BN65: 0 | BO65: 0 | BP65: 0 | BQ65: 0 | BR65: 0 | BS65: 0 | BT65: 0 | BU65: 0 | BV65: 0 | BW65: 0 | BX65: 0 | BY65: 0 | BZ65: 0
C66: Start of period to refi | D66: Date | I66: =SUM(J66:BZ66) -> 00:00:00 | J66: =I65*J$4 -> 0 | K66: =J65*K$4 -> 0 | L66: 0 | M66: 0 | N66: 0 | O66: 0 | P66: 0 | Q66: 0 | R66: 0 | S66: 0 | T66: 0 | U66: 0 | V66: 0 | W66: 0 | X66: 0 | Y66: 0 | Z66: 0 | AA66: 0 | AB66: 0 | AC66: 0 | AD66: 0 | AE66: 0 | AF66: 0 | AG66: 0 | AH66: 0 | AI66: 0 | AJ66: 0 | AK66: 0 | AL66: 0 | AM66: 0 | AN66: 0 | AO66: 0 | AP66: 0 | AQ66: 0 | AR66: 0 | AS66: 0 | AT66: 0 | AU66: 0 | AV66: 0 | AW66: 0 | AX66: 0 | AY66: 0 | AZ66: 0 | BA66: 0 | BB66: 0 | BC66: 0 | BD66: 0 | BE66: 0 | BF66: 0 | BG66: 0 | BH66: 0 | BI66: 0 | BJ66: 0 | BK66: 0 | BL66: 0 | BM66: 0 | BN66: 0 | BO66: 0 | BP66: 0 | BQ66: 0 | BR66: 0 | BS66: 0 | BT66: 0 | BU66: 0 | BV66: 0 | BW66: =BV65*BW$4 -> 0 | BX66: =BW65*BX$4 -> 0 | BY66: =BX65*BY$4 -> 0 | BZ66: =BY65*BZ$4 -> 0
E67: Start | F67: End
C68: Tenor | D68: [1,0] | E68: =Inputs!I364 -> 00:00:00 | F68: =Inputs!J364 -> 1911-12-31 | J68: =(J$4>=$E68)*(J$5<=$F68) -> 0 | K68: =(K$4>=$E68)*(K$5<=$F68) -> 0 | L68: 0 | M68: 0 | N68: 0 | O68: 0 | P68: 0 | Q68: 0 | R68: 0 | S68: 0 | T68: 0 | U68: 0 | V68: 0 | W68: 0 | X68: 0 | Y68: 0 | Z68: 0 | AA68: 0 | AB68: 0 | AC68: 0 | AD68: 0 | AE68: 0 | AF68: 0 | AG68: 0 | AH68: 0 | AI68: 0 | AJ68: 0 | AK68: 0 | AL68: 0 | AM68: 0 | AN68: 0 | AO68: 0 | AP68: 0 | AQ68: 0 | AR68: 0 | AS68: 0 | AT68: 0 | AU68: 0 | AV68: 0 | AW68: 0 | AX68: 0 | AY68: 0 | AZ68: 0 | BA68: 0 | BB68: 0 | BC68: 0 | BD68: 0 | BE68: 0 | BF68: 0 | BG68: 0 | BH68: 0 | BI68: 0 | BJ68: 0 | BK68: 0 | BL68: 0 | BM68: 0 | BN68: 0 | BO68: 0 | BP68: 0 | BQ68: 0 | BR68: 0 | BS68: 0 | BT68: 0 | BU68: 0 | BV68: 0 | BW68: =(BW$4>=$E68)*(BW$5<=$F68) -> 0 | BX68: =(BX$4>=$E68)*(BX$5<=$F68) -> 0 | BY68: =(BY$4>=$E68)*(BY$5<=$F68) -> 0 | BZ68: =(BZ$4>=$E68)*(BZ$5<=$F68) -> 0
C69: Repayment flag | D69: [1,0] | J69: =J68 -> 0 | K69: =K68 -> 0 | L69: 0 | M69: 0 | N69: 0 | O69: 0 | P69: 0 | Q69: 0 | R69: 0 | S69: 0 | T69: 0 | U69: 0 | V69: 0 | W69: 0 | X69: 0 | Y69: 0 | Z69: 0 | AA69: 0 | AB69: 0 | AC69: 0 | AD69: 0 | AE69: 0 | AF69: 0 | AG69: 0 | AH69: 0 | AI69: 0 | AJ69: 0 | AK69: 0 | AL69: 0 | AM69: 0 | AN69: 0 | AO69: 0 | AP69: 0 | AQ69: 0 | AR69: 0 | AS69: 0 | AT69: 0 | AU69: 0 | AV69: 0 | AW69: 0 | AX69: 0 | AY69: 0 | AZ69: 0 | BA69: 0 | BB69: 0 | BC69: 0 | BD69: 0 | BE69: 0 | BF69: 0 | BG69: 0 | BH69: 0 | BI69: 0 | BJ69: 0 | BK69: 0 | BL69: 0 | BM69: 0 | BN69: 0 | BO69: 0 | BP69: 0 | BQ69: 0 | BR69: 0 | BS69: 0 | BT69: 0 | BU69: 0 | BV69: 0 | BW69: =BW68 -> 0 | BX69: =BX68 -> 0 | BY69: =BY68 -> 0 | BZ69: =BZ68 -> 0
C70: Remaining periods | D70: Num# | J70: =SUM(J69:$BZ69)*J69 -> 0 | K70: =SUM(K69:$BZ69)*K69 -> 0 | L70: =SUM(L69:$BZ69)*L69 -> 0 | M70: =SUM(M69:$BZ69)*M69 -> 0 | N70: =SUM(N69:$BZ69)*N69 -> 0 | O70: =SUM(O69:$BZ69)*O69 -> 0 | P70: =SUM(P69:$BZ69)*P69 -> 0 | Q70: =SUM(Q69:$BZ69)*Q69 -> 0 | R70: =SUM(R69:$BZ69)*R69 -> 0 | S70: =SUM(S69:$BZ69)*S69 -> 0 | T70: =SUM(T69:$BZ69)*T69 -> 0 | U70: =SUM(U69:$BZ69)*U69 -> 0 | V70: =SUM(V69:$BZ69)*V69 -> 0 | W70: =SUM(W69:$BZ69)*W69 -> 0 | X70: =SUM(X69:$BZ69)*X69 -> 0 | Y70: =SUM(Y69:$BZ69)*Y69 -> 0 | Z70: =SUM(Z69:$BZ69)*Z69 -> 0 | AA70: =SUM(AA69:$BZ69)*AA69 -> 0 | AB70: =SUM(AB69:$BZ69)*AB69 -> 0 | AC70: =SUM(AC69:$BZ69)*AC69 -> 0 | AD70: =SUM(AD69:$BZ69)*AD69 -> 0 | AE70: =SUM(AE69:$BZ69)*AE69 -> 0 | AF70: =SUM(AF69:$BZ69)*AF69 -> 0 | AG70: =SUM(AG69:$BZ69)*AG69 -> 0 | AH70: =SUM(AH69:$BZ69)*AH69 -> 0 | AI70: =SUM(AI69:$BZ69)*AI69 -> 0 | AJ70: =SUM(AJ69:$BZ69)*AJ69 -> 0 | AK70: =SUM(AK69:$BZ69)*AK69 -> 0 | AL70: =SUM(AL69:$BZ69)*AL69 -> 0 | AM70: =SUM(AM69:$BZ69)*AM69 -> 0 | AN70: =SUM(AN69:$BZ69)*AN69 -> 0 | AO70: =SUM(AO69:$BZ69)*AO69 -> 0 | AP70: =SUM(AP69:$BZ69)*AP69 -> 0 | AQ70: =SUM(AQ69:$BZ69)*AQ69 -> 0 | AR70: =SUM(AR69:$BZ69)*AR69 -> 0 | AS70: =SUM(AS69:$BZ69)*AS69 -> 0 | AT70: =SUM(AT69:$BZ69)*AT69 -> 0 | AU70: =SUM(AU69:$BZ69)*AU69 -> 0 | AV70: =SUM(AV69:$BZ69)*AV69 -> 0 | AW70: =SUM(AW69:$BZ69)*AW69 -> 0 | AX70: =SUM(AX69:$BZ69)*AX69 -> 0 | AY70: =SUM(AY69:$BZ69)*AY69 -> 0 | AZ70: =SUM(AZ69:$BZ69)*AZ69 -> 0 | BA70: =SUM(BA69:$BZ69)*BA69 -> 0 | BB70: =SUM(BB69:$BZ69)*BB69 -> 0 | BC70: =SUM(BC69:$BZ69)*BC69 -> 0 | BD70: =SUM(BD69:$BZ69)*BD69 -> 0 | BE70: =SUM(BE69:$BZ69)*BE69 -> 0 | BF70: =SUM(BF69:$BZ69)*BF69 -> 0 | BG70: =SUM(BG69:$BZ69)*BG69 -> 0 | BH70: =SUM(BH69:$BZ69)*BH69 -> 0 | BI70: =SUM(BI69:$BZ69)*BI69 -> 0 | BJ70: =SUM(BJ69:$BZ69)*BJ69 -> 0 | BK70: =SUM(BK69:$BZ69)*BK69 -> 0 | BL70: =SUM(BL69:$BZ69)*BL69 -> 0 | BM70: =SUM(BM69:$BZ69)*BM69 -> 0 | BN70: =SUM(BN69:$BZ69)*BN69 -> 0 | BO70: =SUM(BO69:$BZ69)*BO69 -> 0 | BP70: =SUM(BP69:$BZ69)*BP69 -> 0 | BQ70: =SUM(BQ69:$BZ69)*BQ69 -> 0 | BR70: =SUM(BR69:$BZ69)*BR69 -> 0 | BS70: =SUM(BS69:$BZ69)*BS69 -> 0 | BT70: =SUM(BT69:$BZ69)*BT69 -> 0 | BU70: =SUM(BU69:$BZ69)*BU69 -> 0 | BV70: =SUM(BV69:$BZ69)*BV69 -> 0 | BW70: =SUM(BW69:$BZ69)*BW69 -> 0 | BX70: =SUM(BX69:$BZ69)*BX69 -> 0 | BY70: =SUM(BY69:$BZ69)*BY69 -> 0 | BZ70: =SUM(BZ69:$BZ69)*BZ69 -> 0
C71: Year in refi debt tenor | D71: Num# | J71: =SUM($J69:J69)*J69 -> 0 | K71: =SUM($J69:K69)*K69 -> 0 | L71: =SUM($J69:L69)*L69 -> 0 | M71: =SUM($J69:M69)*M69 -> 0 | N71: =SUM($J69:N69)*N69 -> 0 | O71: =SUM($J69:O69)*O69 -> 0 | P71: =SUM($J69:P69)*P69 -> 0 | Q71: =SUM($J69:Q69)*Q69 -> 0 | R71: =SUM($J69:R69)*R69 -> 0 | S71: =SUM($J69:S69)*S69 -> 0 | T71: =SUM($J69:T69)*T69 -> 0 | U71: =SUM($J69:U69)*U69 -> 0 | V71: =SUM($J69:V69)*V69 -> 0 | W71: =SUM($J69:W69)*W69 -> 0 | X71: =SUM($J69:X69)*X69 -> 0 | Y71: =SUM($J69:Y69)*Y69 -> 0 | Z71: =SUM($J69:Z69)*Z69 -> 0 | AA71: =SUM($J69:AA69)*AA69 -> 0 | AB71: =SUM($J69:AB69)*AB69 -> 0 | AC71: =SUM($J69:AC69)*AC69 -> 0 | AD71: =SUM($J69:AD69)*AD69 -> 0 | AE71: =SUM($J69:AE69)*AE69 -> 0 | AF71: =SUM($J69:AF69)*AF69 -> 0 | AG71: =SUM($J69:AG69)*AG69 -> 0 | AH71: =SUM($J69:AH69)*AH69 -> 0 | AI71: =SUM($J69:AI69)*AI69 -> 0 | AJ71: =SUM($J69:AJ69)*AJ69 -> 0 | AK71: =SUM($J69:AK69)*AK69 -> 0 | AL71: =SUM($J69:AL69)*AL69 -> 0 | AM71: =SUM($J69:AM69)*AM69 -> 0 | AN71: =SUM($J69:AN69)*AN69 -> 0 | AO71: =SUM($J69:AO69)*AO69 -> 0 | AP71: =SUM($J69:AP69)*AP69 -> 0 | AQ71: =SUM($J69:AQ69)*AQ69 -> 0 | AR71: =SUM($J69:AR69)*AR69 -> 0 | AS71: =SUM($J69:AS69)*AS69 -> 0 | AT71: =SUM($J69:AT69)*AT69 -> 0 | AU71: =SUM($J69:AU69)*AU69 -> 0 | AV71: =SUM($J69:AV69)*AV69 -> 0 | AW71: =SUM($J69:AW69)*AW69 -> 0 | AX71: =SUM($J69:AX69)*AX69 -> 0 | AY71: =SUM($J69:AY69)*AY69 -> 0 | AZ71: =SUM($J69:AZ69)*AZ69 -> 0 | BA71: =SUM($J69:BA69)*BA69 -> 0 | BB71: =SUM($J69:BB69)*BB69 -> 0 | BC71: =SUM($J69:BC69)*BC69 -> 0 | BD71: =SUM($J69:BD69)*BD69 -> 0 | BE71: =SUM($J69:BE69)*BE69 -> 0 | BF71: =SUM($J69:BF69)*BF69 -> 0 | BG71: =SUM($J69:BG69)*BG69 -> 0 | BH71: =SUM($J69:BH69)*BH69 -> 0 | BI71: =SUM($J69:BI69)*BI69 -> 0 | BJ71: =SUM($J69:BJ69)*BJ69 -> 0 | BK71: =SUM($J69:BK69)*BK69 -> 0 | BL71: =SUM($J69:BL69)*BL69 -> 0 | BM71: =SUM($J69:BM69)*BM69 -> 0 | BN71: =SUM($J69:BN69)*BN69 -> 0 | BO71: =SUM($J69:BO69)*BO69 -> 0 | BP71: =SUM($J69:BP69)*BP69 -> 0 | BQ71: =SUM($J69:BQ69)*BQ69 -> 0 | BR71: =SUM($J69:BR69)*BR69 -> 0 | BS71: =SUM($J69:BS69)*BS69 -> 0 | BT71: =SUM($J69:BT69)*BT69 -> 0 | BU71: =SUM($J69:BU69)*BU69 -> 0 | BV71: =SUM($J69:BV69)*BV69 -> 0 | BW71: =SUM($J69:BW69)*BW69 -> 0 | BX71: =SUM($J69:BX69)*BX69 -> 0 | BY71: =SUM($J69:BY69)*BY69 -> 0 | BZ71: =SUM($J69:BZ69)*BZ69 -> 0
C73: Account
C74: Balance b/f | E74: Start | F74: Amount | J74: =I77 -> 0 | K74: 0 | L74: 0 | M74: 0 | N74: 0 | O74: 0 | P74: 0 | Q74: 0 | R74: 0 | S74: 0 | T74: 0 | U74: 0 | V74: 0 | W74: 0 | X74: 0 | Y74: 0 | Z74: 0 | AA74: 0 | AB74: 0 | AC74: 0 | AD74: 0 | AE74: 0 | AF74: 0 | AG74: 0 | AH74: 0 | AI74: 0 | AJ74: 0 | AK74: 0 | AL74: 0 | AM74: 0 | AN74: 0 | AO74: 0 | AP74: =AO77 -> 0 | AQ74: 0 | AR74: 0 | AS74: 0 | AT74: 0 | AU74: 0 | AV74: 0 | AW74: 0 | AX74: 0 | AY74: 0 | AZ74: 0 | BA74: 0 | BB74: 0 | BC74: 0 | BD74: 0 | BE74: 0 | BF74: 0 | BG74: 0 | BH74: 0 | BI74: 0 | BJ74: 0 | BK74: 0 | BL74: 0 | BM74: 0 | BN74: 0 | BO74: 0 | BP74: 0 | BQ74: 0 | BR74: 0 | BS74: 0 | BT74: 0 | BU74: 0 | BV74: 0 | BW74: 0 | BX74: 0 | BY74: 0 | BZ74: 0
C75: Initial drawdown | E75: =E68-1 -> -1 | F75: =Inputs!$E$348 -> 0 | I75: =SUM(J75:BZ75) -> 0 | J75: =IF($E75=J$5,$F75,0) -> 0 | K75: =IF($E75=K$5,$F75,0) -> 0 | L75: 0 | M75: 0 | N75: 0 | O75: 0 | P75: 0 | Q75: 0 | R75: 0 | S75: 0 | T75: 0 | U75: 0 | V75: 0 | W75: 0 | X75: 0 | Y75: 0 | Z75: 0 | AA75: 0 | AB75: 0 | AC75: 0 | AD75: 0 | AE75: 0 | AF75: 0 | AG75: 0 | AH75: 0 | AI75: 0 | AJ75: 0 | AK75: 0 | AL75: 0 | AM75: 0 | AN75: 0 | AO75: 0 | AP75: 0 | AQ75: 0 | AR75: 0 | AS75: 0 | AT75: 0 | AU75: 0 | AV75: 0 | AW75: 0 | AX75: 0 | AY75: 0 | AZ75: 0 | BA75: 0 | BB75: 0 | BC75: 0 | BD75: 0 | BE75: 0 | BF75: 0 | BG75: 0 | BH75: 0 | BI75: 0 | BJ75: 0 | BK75: 0 | BL75: 0 | BM75: 0 | BN75: 0 | BO75: 0 | BP75: 0 | BQ75: 0 | BR75: 0 | BS75: 0 | BT75: 0 | BU75: 0 | BV75: 0 | BW75: =IF($E75=BW$5,$F75,0) -> 0 | BX75: =IF($E75=BX$5,$F75,0) -> 0 | BY75: =IF($E75=BY$5,$F75,0) -> 0 | BZ75: =IF($E75=BZ$5,$F75,0) -> 0
C76: Principal repayment | I76: =SUM(J76:BZ76) -> 0 | J76: =-MIN(J102,J74) -> 0 | K76: =-MIN(K102,K74) -> 0 | L76: 0 | M76: 0 | N76: 0 | O76: 0 | P76: 0 | Q76: 0 | R76: 0 | S76: 0 | T76: 0 | U76: 0 | V76: 0 | W76: 0 | X76: 0 | Y76: 0 | Z76: 0 | AA76: 0 | AB76: 0 | AC76: 0 | AD76: 0 | AE76: 0 | AF76: 0 | AG76: 0 | AH76: 0 | AI76: 0 | AJ76: 0 | AK76: 0 | AL76: 0 | AM76: 0 | AN76: 0 | AO76: 0 | AP76: 0 | AQ76: 0 | AR76: 0 | AS76: 0 | AT76: 0 | AU76: 0 | AV76: 0 | AW76: 0 | AX76: 0 | AY76: 0 | AZ76: 0 | BA76: 0 | BB76: 0 | BC76: 0 | BD76: 0 | BE76: 0 | BF76: 0 | BG76: 0 | BH76: 0 | BI76: 0 | BJ76: 0 | BK76: 0 | BL76: 0 | BM76: 0 | BN76: 0 | BO76: 0 | BP76: 0 | BQ76: 0 | BR76: 0 | BS76: 0 | BT76: 0 | BU76: 0 | BV76: 0 | BW76: =-MIN(BW102,BW74) -> 0 | BX76: =-MIN(BX102,BX74) -> 0 | BY76: =-MIN(BY102,BY74) -> 0 | BZ76: =-MIN(BZ102,BZ74) -> 0
C77: Balance c/f | J77: =SUM(J74:J76) -> 0 | K77: =SUM(K74:K76) -> 0 | L77: 0 | M77: 0 | N77: 0 | O77: 0 | P77: 0 | Q77: 0 | R77: 0 | S77: 0 | T77: 0 | U77: 0 | V77: 0 | W77: 0 | X77: 0 | Y77: 0 | Z77: 0 | AA77: 0 | AB77: 0 | AC77: 0 | AD77: 0 | AE77: 0 | AF77: 0 | AG77: 0 | AH77: 0 | AI77: 0 | AJ77: 0 | AK77: 0 | AL77: 0 | AM77: 0 | AN77: 0 | AO77: 0 | AP77: 0 | AQ77: 0 | AR77: 0 | AS77: 0 | AT77: 0 | AU77: 0 | AV77: 0 | AW77: 0 | AX77: 0 | AY77: 0 | AZ77: 0 | BA77: 0 | BB77: 0 | BC77: 0 | BD77: 0 | BE77: 0 | BF77: 0 | BG77: 0 | BH77: 0 | BI77: 0 | BJ77: 0 | BK77: 0 | BL77: 0 | BM77: 0 | BN77: 0 | BO77: 0 | BP77: 0 | BQ77: 0 | BR77: 0 | BS77: 0 | BT77: 0 | BU77: 0 | BV77: 0 | BW77: =SUM(BW74:BW76) -> 0 | BX77: =SUM(BX74:BX76) -> 0 | BY77: =SUM(BY74:BY76) -> 0 | BZ77: =SUM(BZ74:BZ76) -> 0
I78: =I75+I76 -> 0
C79: Interest
C80: Base + Margin
C81: Base rate | D81: % p.a. | J81: =LOOKUP(J$11,Inputs!$I$406:$K$406,Inputs!$I$407:$K$407)*J$68 -> 0 | K81: =LOOKUP(K$11,Inputs!$I$406:$K$406,Inputs!$I$407:$K$407)*K$68 -> 0 | L81: =LOOKUP(L$11,Inputs!$I$406:$K$406,Inputs!$I$407:$K$407)*L$68 -> 0 | M81: =LOOKUP(M$11,Inputs!$I$406:$K$406,Inputs!$I$407:$K$407)*M$68 -> 0 | N81: =LOOKUP(N$11,Inputs!$I$406:$K$406,Inputs!$I$407:$K$407)*N$68 -> 0 | O81: =LOOKUP(O$11,Inputs!$I$406:$K$406,Inputs!$I$407:$K$407)*O$68 -> 0 | P81: =LOOKUP(P$11,Inputs!$I$406:$K$406,Inputs!$I$407:$K$407)*P$68 -> 0 | Q81: =LOOKUP(Q$11,Inputs!$I$406:$K$406,Inputs!$I$407:$K$407)*Q$68 -> 0 | R81: =LOOKUP(R$11,Inputs!$I$406:$K$406,Inputs!$I$407:$K$407)*R$68 -> 0 | S81: =LOOKUP(S$11,Inputs!$I$406:$K$406,Inputs!$I$407:$K$407)*S$68 -> 0 | T81: =LOOKUP(T$11,Inputs!$I$406:$K$406,Inputs!$I$407:$K$407)*T$68 -> 0 | U81: =LOOKUP(U$11,Inputs!$I$406:$K$406,Inputs!$I$407:$K$407)*U$68 -> 0 | V81: =LOOKUP(V$11,Inputs!$I$406:$K$406,Inputs!$I$407:$K$407)*V$68 -> 0 | W81: =LOOKUP(W$11,Inputs!$I$406:$K$406,Inputs!$I$407:$K$407)*W$68 -> 0 | X81: =LOOKUP(X$11,Inputs!$I$406:$K$406,Inputs!$I$407:$K$407)*X$68 -> 0 | Y81: =LOOKUP(Y$11,Inputs!$I$406:$K$406,Inputs!$I$407:$K$407)*Y$68 -> 0 | Z81: =LOOKUP(Z$11,Inputs!$I$406:$K$406,Inputs!$I$407:$K$407)*Z$68 -> 0 | AA81: =LOOKUP(AA$11,Inputs!$I$406:$K$406,Inputs!$I$407:$K$407)*AA$68 -> 0 | AB81: =LOOKUP(AB$11,Inputs!$I$406:$K$406,Inputs!$I$407:$K$407)*AB$68 -> 0 | AC81: =LOOKUP(AC$11,Inputs!$I$406:$K$406,Inputs!$I$407:$K$407)*AC$68 -> 0 | AD81: =LOOKUP(AD$11,Inputs!$I$406:$K$406,Inputs!$I$407:$K$407)*AD$68 -> 0 | AE81: =LOOKUP(AE$11,Inputs!$I$406:$K$406,Inputs!$I$407:$K$407)*AE$68 -> 0 | AF81: =LOOKUP(AF$11,Inputs!$I$406:$K$406,Inputs!$I$407:$K$407)*AF$68 -> 0 | AG81: =LOOKUP(AG$11,Inputs!$I$406:$K$406,Inputs!$I$407:$K$407)*AG$68 -> 0 | AH81: =LOOKUP(AH$11,Inputs!$I$406:$K$406,Inputs!$I$407:$K$407)*AH$68 -> 0 | AI81: =LOOKUP(AI$11,Inputs!$I$406:$K$406,Inputs!$I$407:$K$407)*AI$68 -> 0 | AJ81: =LOOKUP(AJ$11,Inputs!$I$406:$K$406,Inputs!$I$407:$K$407)*AJ$68 -> 0 | AK81: =LOOKUP(AK$11,Inputs!$I$406:$K$406,Inputs!$I$407:$K$407)*AK$68 -> 0 | AL81: =LOOKUP(AL$11,Inputs!$I$406:$K$406,Inputs!$I$407:$K$407)*AL$68 -> 0 | AM81: =LOOKUP(AM$11,Inputs!$I$406:$K$406,Inputs!$I$407:$K$407)*AM$68 -> 0 | AN81: =LOOKUP(AN$11,Inputs!$I$406:$K$406,Inputs!$I$407:$K$407)*AN$68 -> 0 | AO81: =LOOKUP(AO$11,Inputs!$I$406:$K$406,Inputs!$I$407:$K$407)*AO$68 -> 0 | AP81: =LOOKUP(AP$11,Inputs!$I$406:$K$406,Inputs!$I$407:$K$407)*AP$68 -> 0 | AQ81: =LOOKUP(AQ$11,Inputs!$I$406:$K$406,Inputs!$I$407:$K$407)*AQ$68 -> 0 | AR81: =LOOKUP(AR$11,Inputs!$I$406:$K$406,Inputs!$I$407:$K$407)*AR$68 -> 0 | AS81: =LOOKUP(AS$11,Inputs!$I$406:$K$406,Inputs!$I$407:$K$407)*AS$68 -> 0 | AT81: =LOOKUP(AT$11,Inputs!$I$406:$K$406,Inputs!$I$407:$K$407)*AT$68 -> 0 | AU81: =LOOKUP(AU$11,Inputs!$I$406:$K$406,Inputs!$I$407:$K$407)*AU$68 -> 0 | AV81: =LOOKUP(AV$11,Inputs!$I$406:$K$406,Inputs!$I$407:$K$407)*AV$68 -> 0 | AW81: =LOOKUP(AW$11,Inputs!$I$406:$K$406,Inputs!$I$407:$K$407)*AW$68 -> 0 | AX81: =LOOKUP(AX$11,Inputs!$I$406:$K$406,Inputs!$I$407:$K$407)*AX$68 -> 0 | AY81: =LOOKUP(AY$11,Inputs!$I$406:$K$406,Inputs!$I$407:$K$407)*AY$68 -> 0 | AZ81: =LOOKUP(AZ$11,Inputs!$I$406:$K$406,Inputs!$I$407:$K$407)*AZ$68 -> 0 | BA81: =LOOKUP(BA$11,Inputs!$I$406:$K$406,Inputs!$I$407:$K$407)*BA$68 -> 0 | BB81: =LOOKUP(BB$11,Inputs!$I$406:$K$406,Inputs!$I$407:$K$407)*BB$68 -> 0 | BC81: =LOOKUP(BC$11,Inputs!$I$406:$K$406,Inputs!$I$407:$K$407)*BC$68 -> 0 | BD81: =LOOKUP(BD$11,Inputs!$I$406:$K$406,Inputs!$I$407:$K$407)*BD$68 -> 0 | BE81: =LOOKUP(BE$11,Inputs!$I$406:$K$406,Inputs!$I$407:$K$407)*BE$68 -> 0 | BF81: =LOOKUP(BF$11,Inputs!$I$406:$K$406,Inputs!$I$407:$K$407)*BF$68 -> 0 | BG81: =LOOKUP(BG$11,Inputs!$I$406:$K$406,Inputs!$I$407:$K$407)*BG$68 -> 0 | BH81: =LOOKUP(BH$11,Inputs!$I$406:$K$406,Inputs!$I$407:$K$407)*BH$68 -> 0 | BI81: =LOOKUP(BI$11,Inputs!$I$406:$K$406,Inputs!$I$407:$K$407)*BI$68 -> 0 | BJ81: =LOOKUP(BJ$11,Inputs!$I$406:$K$406,Inputs!$I$407:$K$407)*BJ$68 -> 0 | BK81: =LOOKUP(BK$11,Inputs!$I$406:$K$406,Inputs!$I$407:$K$407)*BK$68 -> 0 | BL81: =LOOKUP(BL$11,Inputs!$I$406:$K$406,Inputs!$I$407:$K$407)*BL$68 -> 0 | BM81: =LOOKUP(BM$11,Inputs!$I$406:$K$406,Inputs!$I$407:$K$407)*BM$68 -> 0 | BN81: =LOOKUP(BN$11,Inputs!$I$406:$K$406,Inputs!$I$407:$K$407)*BN$68 -> 0 | BO81: =LOOKUP(BO$11,Inputs!$I$406:$K$406,Inputs!$I$407:$K$407)*BO$68 -> 0 | BP81: =LOOKUP(BP$11,Inputs!$I$406:$K$406,Inputs!$I$407:$K$407)*BP$68 -> 0 | BQ81: =LOOKUP(BQ$11,Inputs!$I$406:$K$406,Inputs!$I$407:$K$407)*BQ$68 -> 0 | BR81: =LOOKUP(BR$11,Inputs!$I$406:$K$406,Inputs!$I$407:$K$407)*BR$68 -> 0 | BS81: =LOOKUP(BS$11,Inputs!$I$406:$K$406,Inputs!$I$407:$K$407)*BS$68 -> 0 | BT81: =LOOKUP(BT$11,Inputs!$I$406:$K$406,Inputs!$I$407:$K$407)*BT$68 -> 0 | BU81: =LOOKUP(BU$11,Inputs!$I$406:$K$406,Inputs!$I$407:$K$407)*BU$68 -> 0 | BV81: =LOOKUP(BV$11,Inputs!$I$406:$K$406,Inputs!$I$407:$K$407)*BV$68 -> 0 | BW81: =LOOKUP(BW$11,Inputs!$I$406:$K$406,Inputs!$I$407:$K$407)*BW$68 -> 0 | BX81: =LOOKUP(BX$11,Inputs!$I$406:$K$406,Inputs!$I$407:$K$407)*BX$68 -> 0 | BY81: =LOOKUP(BY$11,Inputs!$I$406:$K$406,Inputs!$I$407:$K$407)*BY$68 -> 0 | BZ81: =LOOKUP(BZ$11,Inputs!$I$406:$K$406,Inputs!$I$407:$K$407)*BZ$68 -> 0
